Workbook

Sheet Legende
A5: Gutachten zur Ermittlung von Produktivitätsfortschrittsraten im Auftrag der Bundesnetzagentur
A7: Tool 3 Entwicklung der Totalen Faktorproduktivität und der Arbeitsproduktivität auf Basis eines synthetischen Branchenindex für die Deutsche Post
B9: Version | C9: 2.0
B10: Datum | C10: 2020-12-16
B11: Letzte Aktualisierung | C11: 2021-06-16
B14: Datenbasis: | C14: Destatis VGR nach Wirtschaftszweigen
A17: Legende - Zellen
C18: Inputzellen
C19: Outputzellen
A22: Legende - Arbeitsblätter
B23: OUT_ | C23: Ergebnisse
B24: IN_ | C24: Dateneingabe und Parameterwahl
B25: ABB_ | C25: Abbildungen
B26: NR_ | C26: Nebenrechnung
B27: RD_ | C27: Rohdaten
B28: HI_ | C28: Hilfstabelle

Sheet OUT_Produktivitätsentwicklung
B2: Berechnungsperiode | F2: Verfügbare Jahre
C3: Startjahr | D3: 2015 | F3: 1992 bis 2019
C4: Endjahr | D4: 2018
D6: Arithmetisches Mittel | E6: Geometrisches Mittel
B7: Synthetischer Index
C8: Totale Faktorproduktivität (auf Basis Bruttowertschöpfung) | D8: =IF(D4>D3,NR_Mittelwertberechnung!B35,"Das Startjahr muss vor dem Endjahr liegen.") -> -0.0009696214628 | E8: =IF(D4>D3,NR_Mittelwertberechnung!B36,"Das Startjahr muss vor dem Endjahr liegen.") -> -0.0009910143379
C9: Arbeitsproduktivität (Bruttowertschöpfung/Erwerbstätige) | D9: =IF(D4>D3,NR_Mittelwertberechnung!C35,"Das Startjahr muss vor dem Endjahr liegen.") -> -0.001536553965 | E9: =IF(D4>D3,NR_Mittelwertberechnung!C36,"Das Startjahr muss vor dem Endjahr liegen.") -> -0.001554531149
B11: Post-, Kurier- und Expressdienste
C12: Totale Faktorproduktivität (auf Basis Bruttowertschöpfung) | D12: =IF(D4>D3,NR_Mittelwertberechnung!E35,"Das Startjahr muss vor dem Endjahr liegen.") -> -0.01067316576 | E12: =IF(D4>D3,NR_Mittelwertberechnung!E36,"Das Startjahr muss vor dem Endjahr liegen.") -> -0.01081685015
C13: Arbeitsproduktivität (Bruttowertschöpfung/Erwerbstätige) | D13: =IF(D4>D3,NR_Mittelwertberechnung!F35,"Das Startjahr muss vor dem Endjahr liegen.") -> -0.01337912064 | E13: =IF(D4>D3,NR_Mittelwertberechnung!F36,"Das Startjahr muss vor dem Endjahr liegen.") -> -0.01352441614
B15: Einzelprozesse des synthetischen Index
B16: TFP | C16: ="Annahme ("&TEXT('IN_Definition Index'!E5,"0%")&")" -> Annahme (10%) | D16: =IF(D4>D3,NR_Mittelwertberechnung!H35,"Das Startjahr muss vor dem Endjahr liegen.") -> 0.0290369704 | E16: =IF(D4>D3,NR_Mittelwertberechnung!H36,"Das Startjahr muss vor dem Endjahr liegen.") -> 0.02863056591
C17: ="Sortierung ("&TEXT('IN_Definition Index'!F5,"0%")&")" -> Sortierung (20%) | D17: =IF(D4>D3,NR_Mittelwertberechnung!J35,"Das Startjahr muss vor dem Endjahr liegen.") -> -0.01489864218 | E17: =IF(D4>D3,NR_Mittelwertberechnung!J36,"Das Startjahr muss vor dem Endjahr liegen.") -> -0.01495766514
C18: ="Transport ("&TEXT('IN_Definition Index'!G5,"0%")&")" -> Transport (10%) | D18: =IF(D4>D3,NR_Mittelwertberechnung!L35,"Das Startjahr muss vor dem Endjahr liegen.") -> -0.006501627688 | E18: =IF(D4>D3,NR_Mittelwertberechnung!L36,"Das Startjahr muss vor dem Endjahr liegen.") -> -0.006834249566
C19: ="Zustellung ("&TEXT('IN_Definition Index'!H5,"0%")&")" -> Zustellung (45%) | D19: =IF(D4>D3,NR_Mittelwertberechnung!N35,"Das Startjahr muss vor dem Endjahr liegen.") -> -0.002139415562 | E19: =IF(D4>D3,NR_Mittelwertberechnung!N36,"Das Startjahr muss vor dem Endjahr liegen.") -> -0.002234932636
C20: ="Übrige Prozesse ("&TEXT('IN_Definition Index'!I5,"0%")&")" -> Übrige Prozesse (15%) | D20: =IF(D4>D3,NR_Mittelwertberechnung!P35,"Das Startjahr muss vor dem Endjahr liegen.") -> 0.004795398029 | E20: =IF(D4>D3,NR_Mittelwertberechnung!P36,"Das Startjahr muss vor dem Endjahr liegen.") -> 0.004505454869
B21: Arbeitsproduktivität | C21: ="Annahme ("&TEXT('IN_Definition Index'!E5,"0%")&")" -> Annahme (10%) | D21: =IF(D4>D3,NR_Mittelwertberechnung!I35,"Das Startjahr muss vor dem Endjahr liegen.") -> 0.03110734042 | E21: =IF(D4>D3,NR_Mittelwertberechnung!I36,"Das Startjahr muss vor dem Endjahr liegen.") -> 0.03070518395
C22: ="Sortierung ("&TEXT('IN_Definition Index'!F5,"0%")&")" -> Sortierung (20%) | D22: =IF(D4>D3,NR_Mittelwertberechnung!K35,"Das Startjahr muss vor dem Endjahr liegen.") -> -0.01595136604 | E22: =IF(D4>D3,NR_Mittelwertberechnung!K36,"Das Startjahr muss vor dem Endjahr liegen.") -> -0.01601295324
C23: ="Transport ("&TEXT('IN_Definition Index'!G5,"0%")&")" -> Transport (10%) | D23: =IF(D4>D3,NR_Mittelwertberechnung!M35,"Das Startjahr muss vor dem Endjahr liegen.") -> -0.009757738805 | E23: =IF(D4>D3,NR_Mittelwertberechnung!M36,"Das Startjahr muss vor dem Endjahr liegen.") -> -0.01009965242
C24: ="Zustellung ("&TEXT('IN_Definition Index'!H5,"0%")&")" -> Zustellung (45%) | D24: =IF(D4>D3,NR_Mittelwertberechnung!O35,"Das Startjahr muss vor dem Endjahr liegen.") -> -0.004383101146 | E24: =IF(D4>D3,NR_Mittelwertberechnung!O36,"Das Startjahr muss vor dem Endjahr liegen.") -> -0.004468703599
C25: ="Übrige Prozesse ("&TEXT('IN_Definition Index'!I5,"0%")&")" -> Übrige Prozesse (15%) | D25: =IF(D4>D3,NR_Mittelwertberechnung!Q35,"Das Startjahr muss vor dem Endjahr liegen.") -> 0.009941030646 | E25: =IF(D4>D3,NR_Mittelwertberechnung!Q36,"Das Startjahr muss vor dem Endjahr liegen.") -> 0.009638492196

Sheet IN_Definition Index
A1: Definition des synthetischen Index
E3: Prozesse
E4: Annahme | F4: Sortierung | G4: Transport | H4: Zustellung | I4: Sonstiges | J4: Beschreibung | K4: Gewicht am synthetischen Index
B5: Gewichtung der Prozesse am Index | E5: 0.1 | F5: 0.2 | G5: 0.1 | H5: 0.45 | I5: 0.15 | J5: =IF(SUM(E5:I5)=1,"100 %✔","Die Summe der Einzelprozesse muss 100 % ergeben.") -> 100 %✔
B6: WZ 2008 | D6: Branche
B7: C | C7: 33 | D7: Reparatur und Installation von Maschinen und Ausrüstungen | E7: 0 | F7: 1 | G7: 0 | H7: 0 | I7: 0 | J7: Diese Abteilung umfasst die Instandsetzung von hergestellten Waren zur Wiederherstellung der Funktionstüchtigkeit dieser Maschinen, Ausrüstungsgegenständen und anderen Erzeugnissen. | K7: =E7*$E$19*$E$5+F7*$F$19*$F$5+G7*$G$19*$G$5+H7*$H$19*$H$5+I7*$I$19*$I$5 -> 0.1
B8: G | C8: 45 | D8: Handel mit Kraftfahrzeugen; Instandhaltung und Reparatur von Kraftfahrzeugen | E8: 0 | F8: 0 | G8: 0 | H8: 1 | I8: 0 | J8: Diese Abteilung umfasst alle Tätigkeiten, die sich auf Kraftfahrzeuge einschließlich Lastkraftwagen, Anhänger und Krafträder beziehen, außer deren Herstellung und Vermietung: Groß- und Einzelhandel mit Neu- und Gebrauchtfahrzeugen, Reparatur und Instandhaltung von Kraftfahrzeugen, Groß- und Einzelhandel mit Teilen und Zubehör für Kraftfahrzeuge. | K8: =E8*$E$19*$E$5+F8*$F$19*$F$5+G8*$G$19*$G$5+H8*$H$19*$H$5+I8*$I$19*$I$5 -> 0.15
B9: G | C9: 47 | D9: Einzelhandel (ohne Handel mit Kraftfahrzeugen) | E9: 1 | F9: 0 | G9: 0 | H9: 0 | I9: 0 | J9: Diese Abteilung umfasst den Wiederverkauf von Neu- und Gebrauchtwaren vor allem an private Haushalte für den privaten Ge- oder Verbrauch, in Verkaufsräumen, einschließlich Warenhäusern, an Marktständen, durch Versandhäuser, im Straßenhandel und durch Haustürverkauf, Verbrauchergenossenschaften usw. | K9: 0.1
B10: H | C10: 49 | D10: Landverkehr und Transport in Rohrfernleitungen | E10: 0 | F10: 0 | G10: 1 | H10: 1 | I10: 0 | J10: Diese Abteilung umfasst die Beförderung von Personen und Gütern auf Straßen und Schienen sowie von Gütern in Rohrfernleitungen. | K10: 0.25
B11: H | C11: 52 | D11: Lagerei sowie Erbringung von sonstigen Dienstleistungen für den Verkehr | E11: 0 | F11: 1 | G11: 0 | H11: 1 | I11: 0 | J11: Diese Abteilung umfasst die Lagerei sowie die Erbringung von anderen Dienstleistungen für den Verkehr, wie den Betrieb von Verkehrsinfrastrukturen (z. B. Flughäfen, Häfen, Tunnel, Brücken usw.), die Verkehrsvermittlung und den Frachtumschlag. | K11: 0.25
B12: J | C12: 61 | D12: Telekommunikation | E12: 0 | F12: 0 | G12: 0 | H12: 0 | I12: 0 | J12: Diese Abteilung umfasst die Erbringung von Telekommunikationsdienstleistungen, d. h. die Übertragung von Sprache, Daten, Text, Ton und Bild. Die Übertragungseinrichtungen können auf einer einzigen oder auf mehreren Technologien beruhen. Den in dieser Abteilung aufgeführten Tätigkeiten ist gemeinsam, dass zwar Inhalte übertragen, aber keine Inhalte hergestellt werden. | K12: 0
B13: J | C13: 62-01 | D13: IT- und Informationsdienstleister | E13: 0 | F13: 0 | G13: 0 | H13: 0 | I13: 1 | J13: Erbringung von Dienstleistungen der Informationstechnologie (62) und Informationsdienstleistungen (63). Hierunter fallen z.B. Entwicklung, Anpassung, Testen und Pflege von Software, Planung und Entwurf von Computersystemen, die Hardware-, Software- und Kommunikationstechnologie umfassen, Verwaltung und Betrieb der Computersysteme und/oder Datenverarbeitungsanlagen eines Kunden vor Ort sowie Tätigkeiten von Suchmaschinen-Portalen, Datenverarbeitung und Hosting. | K13: 0.03
B14: M | C14: 69-01 | D14: Unternehmensnahe Beratungsleistungen | E14: 0 | F14: 0 | G14: 0 | H14: 0 | I14: 1 | J14: Hierunter fallen Rechts- und Steuerberatung, Wirtschaftsprüfung, Public-Relations- und Unternehmensberatung. | K14: 0.03
B15: M | C15: 73 | D15: Werbung und Marktforschung | E15: 0 | F15: 0 | G15: 0 | H15: 0 | I15: 1 | J15: Diese Abteilung umfasst die Planung von Werbekampagnen und die Platzierung solcher Werbung in Zeitschriften, Zeitungen, Hörfunk und Fernsehen oder anderen Medien sowie der Entwurf von Displaysystemen und -einrichtungen. | K15: 0.03
B16: M | C16: 74-01 | D16: Freiberufl.,wiss.,techn.DL a.n.g., Veterinärwesen | E16: 0 | F16: 0 | G16: 0 | H16: 0 | I16: 1 | J16: Dieser Bereich umfasst u.a. die Erbringung einer Vielzahl von Dienstleistungen, im Allgemeinen für kommerzielle Kunden. Sie beinhaltet Tätigkeiten, für die fortgeschrittene berufliche, wissenschaftliche und technische Kenntnisse erforderlich sind. | K16: 0.03
B17: L | C17: 68 | D17: Grundstücks- und Wohnungswesen | E17: 0 | F17: 0 | G17: 0 | H17: 0 | I17: 1 | J17: Diese Tätigkeit umfasst den Kauf und Verkauf von Grundstücken, Gebäuden und Wohnungen, die Vermietung von Grundstücken, Gebäuden und Wohnungen, die Erbringung sonstiger Dienstleistungen im Zusammenhang mit Grundstücken, Gebäuden und Wohnungen, z. B. Schätzung von Grundstücken, Gebäuden und Wohnungen oder die Tätigkeit als Treuhänder von Grundstücken, Gebäuden und Wohnungen. | K17: 0.03
B18: Anzahl Vergleichsbranchen | E18: =SUM(E7:E17) -> 1 | F18: =SUM(F7:F17) -> 2 | G18: =SUM(G7:G17) -> 1 | H18: =SUM(H7:H17) -> 3 | I18: =SUM(I7:I17) -> 5 | K18: =SUM(Gewicht) -> 1
B19: Gewichtung der Branchen am Prozess | E19: =IFERROR(1/E18,0) -> 1 | F19: =IFERROR(1/F18,0) -> 0.5 | G19: 1 | H19: 0.3333333333 | I19: 0.2
E21: =IF(OR(E18=0,F18=0,G18=0,H18=0,I18=0),"Bitte wählen Sie mindestens eine Branche für jeden Prozess aus.","") -> 

Sheet ABB_Tabellen
A2: 1. Zusammensetzung des synthetischen Index
M3: 2. Veränderungsraten
C5: Prozesse | E5: Annahme | F5: Sortierung | G5: Transport | H5: Zustellung | I5: Übrige | J5: Gewicht der Branche am Mischindex
C6: Gewichtung der Prozesse am Mischindex | E6: ='IN_Definition Index'!E5 -> 0.1 | F6: ='IN_Definition Index'!F5 -> 0.2 | G6: ='IN_Definition Index'!G5 -> 0.1 | H6: ='IN_Definition Index'!H5 -> 0.45 | I6: ='IN_Definition Index'!I5 -> 0.15
C7: Vergleichsbranchen | D7: C33 Reparatur und Installation von Maschinen und Ausrüstungen | E7: =IF('IN_Definition Index'!E7>0,"Ja","") ->  | F7: =IF('IN_Definition Index'!F7>0,"Ja","") -> Ja | G7: =IF('IN_Definition Index'!G7>0,"Ja","") ->  | H7: =IF('IN_Definition Index'!H7>0,"Ja","") ->  | I7: =IF('IN_Definition Index'!I7>0,"Ja","") ->  | J7: ='IN_Definition Index'!K7 -> 0.1 | O7: 1992 | P7: =O7+1 -> 1993 | Q7: =P7+1 -> 1994 | R7: 1995 | S7: 1996 | T7: 1997 | U7: 1998 | V7: 1999 | W7: 2000 | X7: 2001 | Y7: 2002 | Z7: 2003 | AA7: 2004 | AB7: 2005 | AC7: 2006 | AD7: 2007 | AE7: 2008 | AF7: 2009 | AG7: 2010 | AH7: =AG7+1 -> 2011 | AI7: 2012 | AJ7: 2013 | AK7: 2014 | AL7: 2015 | AM7: 2016 | AN7: =AM7+1 -> 2017 | AO7: =AN7+1 -> 2018 | AP7: 2019
D8: G45 Handel mit Kraftfahrzeugen; Instandhaltung und Reparatur von Kraftfahrzeugen | E8: =IF('IN_Definition Index'!E8>0,"Ja","") ->  | F8: =IF('IN_Definition Index'!F8>0,"Ja","") ->  | G8: =IF('IN_Definition Index'!G8>0,"Ja","") ->  | H8: =IF('IN_Definition Index'!H8>0,"Ja","") -> Ja | I8: =IF('IN_Definition Index'!I8>0,"Ja","") ->  | J8: ='IN_Definition Index'!K8 -> 0.15 | M8: Synthetischer Index
D9: G47 Einzelhandel (ohne Handel mit Kraftfahrzeugen) | E9: =IF('IN_Definition Index'!E9>0,"Ja","") -> Ja | F9: =IF('IN_Definition Index'!F9>0,"Ja","") ->  | G9: =IF('IN_Definition Index'!G9>0,"Ja","") ->  | H9: =IF('IN_Definition Index'!H9>0,"Ja","") ->  | I9: =IF('IN_Definition Index'!I9>0,"Ja","") ->  | J9: ='IN_Definition Index'!K9 -> 0.1 | N9: ∆ TFP | O9: =TRANSPOSE(NR_Mittelwertberechnung!S4:S31) -> -0.001074950332 | P9: -0.02368649158 | Q9: 0.03697796064 | R9: 0.03999385275 | S9: 0.0242043794 | T9: 0.03209910089 | U9: 0.007294856146 | V9: 0.01261610375 | W9: -0.008026948184 | X9: 0.01844859385 | Y9: 0.02178956855 | Z9: 0.02225525804 | AA9: 0.04308985775 | AB9: 0.03550933396 | AC9: 0.0599760659 | AD9: 0.004824614368 | AE9: -0.01928153778 | AF9: -0.07317506704 | AG9: 0.008918801958 | AH9: 0.02466800857 | AI9: -0.006095321857 | AJ9: -0.002125705621 | AK9: 0.01165149501 | AL9: -0.007846201978 | AM9: 0.006865537238 | AN9: -0.007011411408 | AO9: 0.004113590296
D10: H49 Landverkehr und Transport in Rohrfernleitungen | E10: =IF('IN_Definition Index'!E10>0,"Ja","") ->  | F10: =IF('IN_Definition Index'!F10>0,"Ja","") ->  | G10: =IF('IN_Definition Index'!G10>0,"Ja","") -> Ja | H10: =IF('IN_Definition Index'!H10>0,"Ja","") -> Ja | I10: =IF('IN_Definition Index'!I10>0,"Ja","") ->  | J10: ='IN_Definition Index'!K10 -> 0.25 | N10: ∆ Arbeitsproduktivität | O10: =TRANSPOSE(NR_Mittelwertberechnung!T4:T31) -> 0.003964824625 | P10: -0.02126170933 | Q10: 0.03773826936 | R10: 0.04298733142 | S10: 0.02710533748 | T10: 0.03374893516 | U10: 0.004746141808 | V10: -0.002229891592 | W10: -0.009061349273 | X10: 0.0246688348 | Y10: 0.02693258548 | Z10: 0.02712721364 | AA10: 0.04495142393 | AB10: 0.04014995656 | AC10: 0.05999958721 | AD10: 0.003376205944 | AE10: -0.01795236489 | AF10: -0.06566253733 | AG10: 0.01394581051 | AH10: 0.02274732343 | AI10: -0.008062523294 | AJ10: -0.002717229465 | AK10: 0.01159861837 | AL10: -0.007460959647 | AM10: 0.006477131723 | AN10: -0.007175166194 | AO10: 0.002012778257
D11: H52 Lagerei sowie Erbringung von sonstigen Dienstleistungen für den Verkehr | E11: =IF('IN_Definition Index'!E11>0,"Ja","") ->  | F11: =IF('IN_Definition Index'!F11>0,"Ja","") -> Ja | G11: =IF('IN_Definition Index'!G11>0,"Ja","") ->  | H11: =IF('IN_Definition Index'!H11>0,"Ja","") -> Ja | I11: =IF('IN_Definition Index'!I11>0,"Ja","") ->  | J11: ='IN_Definition Index'!K11 -> 0.25 | M11: Post-, Express-, und Kurierdienste
D12: J61Telekommunikation | E12: =IF('IN_Definition Index'!E12>0,"Ja","") ->  | F12: =IF('IN_Definition Index'!F12>0,"Ja","") ->  | G12: =IF('IN_Definition Index'!G12>0,"Ja","") ->  | H12: =IF('IN_Definition Index'!H12>0,"Ja","") ->  | I12: =IF('IN_Definition Index'!I12>0,"Ja","") ->  | J12: ='IN_Definition Index'!K12 -> 0 | N12: ∆ TFP | O12: =TRANSPOSE(NR_Mittelwertberechnung!V4:V31) -> -0.02922588381 | P12: -0.0863325471 | Q12: 0.03192973389 | R12: 0.0350952687 | S12: 0.04616360178 | T12: 0.04324159382 | U12: -0.02073389445 | V12: 0.009914067628 | W12: 0.003784727508 | X12: -0.05699438391 | Y12: 0.02350859385 | Z12: 0.0380393781 | AA12: -0.05861750432 | AB12: -0.05352642809 | AC12: -0.01823133321 | AD12: 0.04474019158 | AE12: 0.03727275879 | AF12: 0.05712557751 | AG12: -0.1198865045 | AH12: 0.01427386377 | AI12: -0.001075379246 | AJ12: 0.03344712314 | AK12: 0.02667635775 | AL12: -0.00165884546 | AM12: 0.009289377238 | AN12: -0.01438308044 | AO12: -0.03594011436
D13: J62-01 IT- und Informationsdienstleister | E13: =IF('IN_Definition Index'!E13>0,"Ja","") ->  | F13: =IF('IN_Definition Index'!F13>0,"Ja","") ->  | G13: =IF('IN_Definition Index'!G13>0,"Ja","") ->  | H13: =IF('IN_Definition Index'!H13>0,"Ja","") ->  | I13: =IF('IN_Definition Index'!I13>0,"Ja","") -> Ja | J13: ='IN_Definition Index'!K13 -> 0.03 | N13: ∆ Arbeitsproduktivität | O13: =TRANSPOSE(NR_Mittelwertberechnung!W4:W29) -> -0.02123018741 | P13: -0.08490892465 | Q13: 0.0351506484 | R13: 0.03808311147 | S13: 0.04616360178 | T13: 0.0468416074 | U13: -0.01657200626 | V13: 0.01572543552 | W13: 0.007186041817 | X13: -0.05476875617 | Y13: 0.03232191138 | Z13: 0.05059977889 | AA13: -0.05054088374 | AB13: -0.0384363071 | AC13: -0.009673998406 | AD13: 0.04458980285 | AE13: 0.03483607348 | AF13: 0.0564715457 | AG13: -0.115952734 | AH13: 0.01497277349 | AI13: -0.00292640138 | AJ13: 0.03141607862 | AK13: 0.02510772938 | AL13: -0.006112302925 | AM13: 0.008395876289 | AN13: -0.01801884968 | AO13: =TRANSPOSE(NR_Mittelwertberechnung!W4:W29) -> -0.02123018741 | AP13: =TRANSPOSE(NR_Mittelwertberechnung!W4:W31) -> -0.05476875617
D14: M69-01 Unternehmensnahe Beratungsleistungen | E14: =IF('IN_Definition Index'!E14>0,"Ja","") ->  | F14: =IF('IN_Definition Index'!F14>0,"Ja","") ->  | G14: =IF('IN_Definition Index'!G14>0,"Ja","") ->  | H14: =IF('IN_Definition Index'!H14>0,"Ja","") ->  | I14: =IF('IN_Definition Index'!I14>0,"Ja","") -> Ja | J14: ='IN_Definition Index'!K14 -> 0.03
D15: M73 Werbung und Marktforschung | E15: =IF('IN_Definition Index'!E15>0,"Ja","") ->  | F15: =IF('IN_Definition Index'!F15>0,"Ja","") ->  | G15: =IF('IN_Definition Index'!G15>0,"Ja","") ->  | H15: =IF('IN_Definition Index'!H15>0,"Ja","") ->  | I15: =IF('IN_Definition Index'!I15>0,"Ja","") -> Ja | J15: ='IN_Definition Index'!K15 -> 0.03
D16: M74-01 Freiberufl.,wiss.,techn.DL a.n.g., Veterinärwesen | E16: =IF('IN_Definition Index'!E16>0,"Ja","") ->  | F16: =IF('IN_Definition Index'!F16>0,"Ja","") ->  | G16: =IF('IN_Definition Index'!G16>0,"Ja","") ->  | H16: =IF('IN_Definition Index'!H16>0,"Ja","") ->  | I16: =IF('IN_Definition Index'!I16>0,"Ja","") -> Ja | J16: ='IN_Definition Index'!K16 -> 0.03
D17: N Sonstige wirtschaftliche Dienstleistungen | E17: =IF('IN_Definition Index'!E17>0,"Ja","") ->  | F17: =IF('IN_Definition Index'!F17>0,"Ja","") ->  | G17: =IF('IN_Definition Index'!G17>0,"Ja","") ->  | H17: =IF('IN_Definition Index'!H17>0,"Ja","") ->  | I17: =IF('IN_Definition Index'!I17>0,"Ja","") -> Ja | J17: ='IN_Definition Index'!K17 -> 0.03 | O17: 1992 | P17: =O17+1 -> 1993 | Q17: =P17+1 -> 1994 | R17: 1995 | S17: 1996 | T17: 1997 | U17: 1998 | V17: 1999 | W17: 2000 | X17: 2001 | Y17: 2002 | Z17: 2003 | AA17: 2004 | AB17: 2005 | AC17: 2006 | AD17: 2007 | AE17: 2008 | AF17: 2009 | AG17: 2010 | AH17: =AG17+1 -> 2011 | AI17: =AH17+1 -> 2012 | AJ17: 2013 | AK17: 2014 | AL17: 2015 | AM17: 2016 | AN17: =AM17+1 -> 2017 | AO17: =AN17+1 -> 2018 | AP17: =AO17+1 -> 2019
C18: Anzahl an Branchen am Prozess | E18: =COUNTIF(E7:E17,"Ja") -> 1 | F18: =COUNTIF(F7:F17,"Ja") -> 2 | G18: =COUNTIF(G7:G17,"Ja") -> 1 | H18: =COUNTIF(H7:H17,"Ja") -> 3 | I18: =COUNTIF(I7:I17,"Ja") -> 5 | M18: Synthetischer Index ∆ TFP
C19: Gewichtung der Branchen am Prozess | E19: =1/E18 -> 1 | F19: =1/F18 -> 0.5 | G19: 1 | H19: 0.3333333333 | I19: 0.2 | N19: =OUT_Produktivitätsentwicklung!C16 -> Annahme (10%) | O19: =TRANSPOSE(NR_Mittelwertberechnung!Y4:Y31) -> 0.002810911091 | P19: -0.05875637386 | Q19: 0.007764467215 | R19: 0.006043062328 | S19: -0.02663292183 | T19: -0.0197388249 | U19: -0.007972203383 | V19: -0.002929265634 | W19: -0.01299902244 | X19: 0.01516901573 | Y19: -0.0416181911 | Z19: 0.007514734599 | AA19: -0.01696141765 | AB19: -0.02197762042 | AC19: 0.05846229525 | AD19: -0.001234663358 | AE19: -0.02223679165 | AF19: 0.01025133234 | AG19: 0.02417734562 | AH19: -0.02227918547 | AI19: -0.001424217852 | AJ19: -0.004447530193 | AK19: 0.02541075923 | AL19: 0.07342774432 | AM19: 0.02580958889 | AN19: 0.02487524982 | AO19: -0.00796470143
N20: =OUT_Produktivitätsentwicklung!C17 -> Sortierung (20%) | O20: =TRANSPOSE(NR_Mittelwertberechnung!AA4:AA31) -> 0.02897590296 | P20: -0.006350252451 | Q20: 0.08053085505 | R20: 0.008377917504 | S20: 0.02754537304 | T20: 0.1051504543 | U20: 0.03628746496 | V20: -0.07063521036 | W20: 0.04745210551 | X20: 0.05294158785 | Y20: 0.07184491565 | Z20: 0.05599268788 | AA20: 0.1123361763 | AB20: 0.09743221558 | AC20: 0.03970930122 | AD20: 0.03097360383 | AE20: -0.0865521284 | AF20: -0.121992383 | AG20: 0.03780516433 | AH20: 0.002683193926 | AI20: -0.01524533209 | AJ20: -0.0143052231 | AK20: 0.00319541481 | AL20: -0.002200881502 | AM20: -0.01867665169 | AN20: -0.03051212655 | AO20: -0.008204908965
E21: Ja | F21: Verwendung als Vergleichsbranche | N21: =OUT_Produktivitätsentwicklung!C18 -> Transport (10%) | O21: =TRANSPOSE(NR_Mittelwertberechnung!AC4:AC31) -> -0.04941913563 | P21: 0.01064457507 | Q21: 0.06018463481 | R21: 0.144762141 | S21: 0.07017486531 | T21: -0.02447865986 | U21: -0.01892374371 | V21: 0.2500744747 | W21: -0.0579915731 | X21: -0.01920103031 | Y21: -0.02423282059 | Z21: -0.04796252922 | AA21: -0.001917517622 | AB21: 0.05180785645 | AC21: 0.0902035651 | AD21: 0.008951312903 | AE21: 0.01495545059 | AF21: -0.08174632225 | AG21: 0.01613458359 | AH21: 0.0446497374 | AI21: 0.006732573679 | AJ21: -0.006849322493 | AK21: 0.01934853072 | AL21: -0.03575801067 | AM21: -0.02832466936 | AN21: 0.01740946035 | AO21: 0.02066670892
F22: Keine Verwendung als Vergleichsbranche | N22: =OUT_Produktivitätsentwicklung!C19 -> Zustellung (45%) | O22: =TRANSPOSE(NR_Mittelwertberechnung!AE4:AE31) -> -0.02147453808 | P22: -0.0550502355 | Q22: 0.03872439032 | R22: 0.0438819466 | S22: 0.0311457522 | T22: 0.02919306094 | U22: 0.008281526807 | V22: 0.01797621381 | W22: -0.01996541474 | X22: 0.02506107323 | Y22: 0.04084905719 | Z22: 0.04574644627 | AA22: 0.0598154271 | AB22: 0.03209732099 | AC22: 0.0720242167 | AD22: -0.0165120504 | AE22: 0.0005674026984 | AF22: -0.06503401685 | AG22: -0.003386608193 | AH22: 0.03954809545 | AI22: -0.01011652307 | AJ22: -0.004944156674 | AK22: 0.01971815086 | AL22: -0.02429321511 | AM22: 0.01004136114 | AN22: -0.002996539745 | AO22: 0.00869073147
N23: =OUT_Produktivitätsentwicklung!C20 -> Übrige Prozesse (15%) | O23: =TRANSPOSE(NR_Mittelwertberechnung!AG4:AG31) -> 0.04969489109 | P23: 0.04778229842 | Q23: -0.0223273081 | R23: 0.02327248633 | S23: 0.002170146374 | T23: 0.01569254058 | U23: -0.006664861327 | V23: -0.04040447533 | W23: -0.009559154001 | X23: -0.0200933681 | Y23: -0.02917592763 | Z23: -0.03656267266 | AA23: -0.02937617451 | AB23: -0.009359514705 | AC23: 0.03171148073 | AD23: 0.0352576755 | AE23: -0.00998872808 | AF23: -0.08241189243 | AG23: -0.007663000948 | AH23: 0.02731781095 | AI23: 0.006502295728 | AJ23: 0.02726596514 | AK23: -0.01557789888 | AL23: -0.001607014945 | AM23: 0.04222508741 | AN23: -0.02526009487 | AO23: 0.003823614523
M24: Synthetischer Index ∆ Arbeitsproduktivität
N25: =OUT_Produktivitätsentwicklung!C21 -> Annahme (10%) | O25: =TRANSPOSE(NR_Mittelwertberechnung!Z4:Z31) -> 0.01953140741 | P25: -0.04598439713 | Q25: 0.01608853006 | R25: 0.01523187051 | S25: -0.01831534039 | T25: -0.01095483027 | U25: 0.0009844325501 | V25: 0.005371133604 | W25: -0.008015836344 | X25: 0.02533637505 | Y25: -0.03691314968 | Z25: 0.01652984049 | AA25: -0.01767422427 | AB25: -0.01792769687 | AC25: 0.06073741907 | AD25: -0.0001111781192 | AE25: -0.0211752321 | AF25: 0.01197792669 | AG25: 0.02542856374 | AH25: -0.02135041257 | AI25: 0.0001290569466 | AJ25: -0.002662973011 | AK25: 0.02676705683 | AL25: 0.07500245067 | AM25: 0.02805040323 | AN25: 0.02751932997 | AO25: -0.006142822206
N26: =OUT_Produktivitätsentwicklung!C22 -> Sortierung (20%) | O26: =TRANSPOSE(NR_Mittelwertberechnung!AB4:AB31) -> 0.04319284708 | P26: 0.003181157241 | Q26: 0.08891592754 | R26: 0.01607113631 | S26: 0.03225130721 | T26: 0.109051305 | U26: 0.03562344599 | V26: -0.02851028971 | W26: 0.04705338303 | X26: 0.05612385562 | Y26: 0.07650192074 | Z26: 0.05979459 | AA26: 0.1188407721 | AB26: 0.103979277 | AC26: 0.04117825638 | AD26: 0.03034560035 | AE26: -0.08839589643 | AF26: -0.1131682589 | AG26: 0.04741439271 | AH26: 0.0008561394606 | AI26: -0.01597177063 | AJ26: -0.01235387991 | AK26: 0.001560436641 | AL26: -0.00118055427 | AM26: -0.01772281553 | AN26: -0.03189665685 | AO26: -0.0130054375
N27: =OUT_Produktivitätsentwicklung!C23 -> Transport (10%) | O27: =TRANSPOSE(NR_Mittelwertberechnung!AD4:AD31) -> -0.03011966742 | P27: 0.0254316875 | Q27: 0.07327661992 | R27: 0.1581568749 | S27: 0.08341786113 | T27: -0.01075758299 | U27: -0.0142486051 | V27: 0.121666392 | W27: -0.04421206872 | X27: -0.00786727286 | Y27: -0.01462779075 | Z27: -0.04109735877 | AA27: -0.002065388045 | AB27: 0.05720795207 | AC27: 0.08983448907 | AD27: 0.003902297296 | AE27: 0.01384370379 | AF27: -0.08411007764 | AG27: 0.01148031837 | AH27: 0.03823859575 | AI27: 0.0004607459763 | AJ27: -0.01576751055 | AK27: 0.01997916316 | AL27: -0.03849843591 | AM27: -0.03287763158 | AN27: 0.01515019291 | AO27: 0.01719491935
N28: =OUT_Produktivitätsentwicklung!C24 -> Zustellung (45%) | O28: =TRANSPOSE(NR_Mittelwertberechnung!AF4:AF31) -> -0.009688624158 | P28: -0.04634297705 | Q28: 0.04675794752 | R28: 0.0536401446 | S28: 0.0381945052 | T28: 0.03537975739 | U28: 0.009061645567 | V28: 0.00116844627 | W28: -0.01815984394 | X28: 0.03213156788 | Y28: 0.04578096576 | Z28: 0.05069792539 | AA28: 0.06337702374 | AB28: 0.03854024657 | AC28: 0.07284586132 | AD28: -0.01959409866 | AE28: 0.001692973314 | AF28: -0.05619891038 | AG28: 0.002069888807 | AH28: 0.03542279014 | AI28: -0.01372107145 | AJ28: -0.006763565868 | AK28: 0.01821946184 | AL28: -0.025623141 | AM28: 0.007220023562 | AN28: -0.004294091833 | AO28: 0.005164804684
N29: =OUT_Produktivitätsentwicklung!C25 -> Übrige Prozesse (15%) | O29: =TRANSPOSE(NR_Mittelwertberechnung!AH4:AH31) -> 0.004966413877 | P29: 0.006744465691 | Q29: -0.06681671686 | R29: -0.01135890297 | S29: -0.02028468917 | T29: -0.01207316893 | U29: -0.03419913761 | V29: -0.06504924688 | W29: -0.03384870401 | X29: -0.01841368061 | Y29: -0.02543426145 | Z29: -0.03459345969 | AA29: -0.03574953295 | AB29: -0.01278023547 | AC29: 0.02617405016 | AD29: 0.03830212235 | AE29: -0.002012471731 | AF29: -0.07017440521 | AG29: -0.001062708036 | AH29: 0.03298014436 | AI29: 0.008315551293 | AJ29: 0.03093466343 | AK29: -0.01057899192 | AL29: 0.00436775453 | AM29: 0.04836938041 | AN29: -0.02086963859 | AO29: 0.007896626231

Sheet ABB_Gesamt

Sheet ABB_Gesamt_TFP

Sheet ABB_Gesamt_Arbeit

Sheet ABB_Prozesse_Gesamt_TFP

Sheet ABB_Prozesse_Gesamt_Arbeit

Sheet ABB_Annahme

Sheet ABB_Sortierung

Sheet ABB_Transport

Sheet ABB_Zustellung

Sheet ABB_Übrige_Prozesse

Sheet NR_Mittelwertberechnung
B1: Synthetischer Index | E1: Post-, Kurier-, und Expressdienste | H1: Prozesse synthetischer Index | S1: Synthetischer Index | V1: Post-, Kurier-, und Expressdienste | Y1: Prozesse synthetischer Index
H2: Annahme | J2: Sortierung | L2: Transport | N2: Zustellung | P2: Übrige Prozesse | Y2: Annahme | AA2: Sortierung | AC2: Transport | AE2: Zustellung | AG2: Übrige Prozesse
B3: TFP | C3: Arbeitsproduktivität | E3: TFP | F3: Arbeitsproduktivität | H3: TFP | I3: Arbeitsproduktivität | J3: TFP | K3: Arbeitsproduktivität | L3: TFP | M3: Arbeitsproduktivität | N3: TFP | O3: Arbeitsproduktivität | P3: TFP | Q3: Arbeitsproduktivität | S3: TFP | T3: Arbeitsproduktivität | V3: TFP | W3: Arbeitsproduktivität | Y3: TFP | Z3: Arbeitsproduktivität | AA3: TFP | AB3: Arbeitsproduktivität | AC3: TFP | AD3: Arbeitsproduktivität | AE3: TFP | AF3: Arbeitsproduktivität | AG3: TFP | AH3: Arbeitsproduktivität
A4: 1992 | B4: =TRANSPOSE(NR_Synthetische_Indizes!D18:AE18) -> 0.9989250497 | C4: =TRANSPOSE(NR_Synthetische_Indizes!D34:AE34) -> 1.003964825 | E4: =TRANSPOSE(NR_Berechnungen_Post_direkt!C22:AD22) -> 0.9707741162 | F4: =TRANSPOSE(NR_Berechnungen_Post_direkt!C23:AD23) -> 0.9787698126 | H4: =TRANSPOSE(NR_Synthetische_Indizes!D54:AE54) -> 1.002810911 | I4: =TRANSPOSE(NR_Synthetische_Indizes!D136:AE136) -> 1.019531407 | J4: =TRANSPOSE(NR_Synthetische_Indizes!D70:AE70) -> 1.028975903 | K4: =TRANSPOSE(NR_Synthetische_Indizes!D152:AE152) -> 1.043192847 | L4: =TRANSPOSE(NR_Synthetische_Indizes!D86:AE86) -> 0.9505808644 | M4: =TRANSPOSE(NR_Synthetische_Indizes!D168:AE168) -> 0.9698803326 | N4: =TRANSPOSE(NR_Synthetische_Indizes!D102:AE102) -> 0.9785254619 | O4: =TRANSPOSE(NR_Synthetische_Indizes!D184:AE184) -> 0.9903113758 | P4: =TRANSPOSE(NR_Synthetische_Indizes!D118:AE118) -> 1.049694891 | Q4: =TRANSPOSE(NR_Synthetische_Indizes!D200:AE200) -> 1.004966414 | S4: =B4-1 -> -0.001074950332 | T4: =C4-1 -> 0.003964824625 | V4: -0.02922588381 | W4: -0.02123018741 | Y4: 0.002810911091 | Z4: 0.01953140741 | AA4: 0.02897590296 | AB4: 0.04319284708 | AC4: -0.04941913563 | AD4: -0.03011966742 | AE4: -0.02147453808 | AF4: -0.009688624158 | AG4: 0.04969489109 | AH4: 0.004966413877
A5: =A4+1 -> 1993 | B5: 0.9763135084 | C5: 0.9787382907 | E5: 0.9136674529 | F5: 0.9150910753 | H5: 0.9412436261 | I5: 0.9540156029 | J5: 0.9936497475 | K5: 1.003181157 | L5: 1.010644575 | M5: 1.025431687 | N5: 0.9449497645 | O5: 0.953657023 | P5: 1.047782298 | Q5: 1.006744466 | S5: =B5-1 -> -0.02368649158 | T5: -0.02126170933 | V5: -0.0863325471 | W5: -0.08490892465 | Y5: -0.05875637386 | Z5: -0.04598439713 | AA5: -0.006350252451 | AB5: 0.003181157241 | AC5: 0.01064457507 | AD5: 0.0254316875 | AE5: -0.0550502355 | AF5: -0.04634297705 | AG5: 0.04778229842 | AH5: 0.006744465691
A6: 1994 | B6: 1.036977961 | C6: 1.037738269 | E6: 1.031929734 | F6: 1.035150648 | H6: 1.007764467 | I6: 1.01608853 | J6: 1.080530855 | K6: 1.088915928 | L6: 1.060184635 | M6: 1.07327662 | N6: 1.03872439 | O6: 1.046757948 | P6: 0.9776726919 | Q6: 0.9331832831 | S6: 0.03697796064 | T6: 0.03773826936 | V6: 0.03192973389 | W6: 0.0351506484 | Y6: 0.007764467215 | Z6: 0.01608853006 | AA6: 0.08053085505 | AB6: 0.08891592754 | AC6: 0.06018463481 | AD6: 0.07327661992 | AE6: 0.03872439032 | AF6: 0.04675794752 | AG6: -0.0223273081 | AH6: -0.06681671686
A7: 1995 | B7: 1.039993853 | C7: 1.042987331 | E7: 1.035095269 | F7: 1.038083111 | H7: 1.006043062 | I7: 1.015231871 | J7: 1.008377918 | K7: 1.016071136 | L7: 1.144762141 | M7: 1.158156875 | N7: 1.043881947 | O7: 1.053640145 | P7: 1.023272486 | Q7: 0.988641097 | S7: 0.03999385275 | T7: 0.04298733142 | V7: 0.0350952687 | W7: 0.03808311147 | Y7: 0.006043062328 | Z7: 0.01523187051 | AA7: 0.008377917504 | AB7: 0.01607113631 | AC7: 0.144762141 | AD7: 0.1581568749 | AE7: 0.0438819466 | AF7: 0.0536401446 | AG7: 0.02327248633 | AH7: -0.01135890297
A8: 1996 | B8: 1.024204379 | C8: 1.027105337 | E8: 1.046163602 | F8: 1.046163602 | H8: 0.9733670782 | I8: 0.9816846596 | J8: 1.027545373 | K8: 1.032251307 | L8: 1.070174865 | M8: 1.083417861 | N8: 1.031145752 | O8: 1.038194505 | P8: 1.002170146 | Q8: 0.9797153108 | S8: 0.0242043794 | T8: 0.02710533748 | V8: 0.04616360178 | W8: 0.04616360178 | Y8: -0.02663292183 | Z8: -0.01831534039 | AA8: 0.02754537304 | AB8: 0.03225130721 | AC8: 0.07017486531 | AD8: 0.08341786113 | AE8: 0.0311457522 | AF8: 0.0381945052 | AG8: 0.002170146374 | AH8: -0.02028468917
A9: 1997 | B9: 1.032099101 | C9: 1.033748935 | E9: 1.043241594 | F9: 1.046841607 | H9: 0.9802611751 | I9: 0.9890451697 | J9: 1.105150454 | K9: 1.109051305 | L9: 0.9755213401 | M9: 0.989242417 | N9: 1.029193061 | O9: 1.035379757 | P9: 1.015692541 | Q9: 0.9879268311 | S9: 0.03209910089 | T9: 0.03374893516 | V9: 0.04324159382 | W9: 0.0468416074 | Y9: -0.0197388249 | Z9: -0.01095483027 | AA9: 0.1051504543 | AB9: 0.109051305 | AC9: -0.02447865986 | AD9: -0.01075758299 | AE9: 0.02919306094 | AF9: 0.03537975739 | AG9: 0.01569254058 | AH9: -0.01207316893
A10: 1998 | B10: 1.007294856 | C10: 1.004746142 | E10: 0.9792661055 | F10: 0.9834279937 | H10: 0.9920277966 | I10: 1.000984433 | J10: 1.036287465 | K10: 1.035623446 | L10: 0.9810762563 | M10: 0.9857513949 | N10: 1.008281527 | O10: 1.009061646 | P10: 0.9933351387 | Q10: 0.9658008624 | S10: 0.007294856146 | T10: 0.004746141808 | V10: -0.02073389445 | W10: -0.01657200626 | Y10: -0.007972203383 | Z10: 0.0009844325501 | AA10: 0.03628746496 | AB10: 0.03562344599 | AC10: -0.01892374371 | AD10: -0.0142486051 | AE10: 0.008281526807 | AF10: 0.009061645567 | AG10: -0.006664861327 | AH10: -0.03419913761
A11: 1999 | B11: 1.012616104 | C11: 0.9977701084 | E11: 1.009914068 | F11: 1.015725436 | H11: 0.9970707344 | I11: 1.005371134 | J11: 0.9293647896 | K11: 0.9714897103 | L11: 1.250074475 | M11: 1.121666392 | N11: 1.017976214 | O11: 1.001168446 | P11: 0.9595955247 | Q11: 0.9349507531 | S11: 0.01261610375 | T11: -0.002229891592 | V11: 0.009914067628 | W11: 0.01572543552 | Y11: -0.002929265634 | Z11: 0.005371133604 | AA11: -0.07063521036 | AB11: -0.02851028971 | AC11: 0.2500744747 | AD11: 0.121666392 | AE11: 0.01797621381 | AF11: 0.00116844627 | AG11: -0.04040447533 | AH11: -0.06504924688
A12: 2000 | B12: 0.9919730518 | C12: 0.9909386507 | E12: 1.003784728 | F12: 1.007186042 | H12: 0.9870009776 | I12: 0.9919841637 | J12: 1.047452106 | K12: 1.047053383 | L12: 0.9420084269 | M12: 0.9557879313 | N12: 0.9800345853 | O12: 0.9818401561 | P12: 0.990440846 | Q12: 0.966151296 | S12: -0.008026948184 | T12: -0.009061349273 | V12: 0.003784727508 | W12: 0.007186041817 | Y12: -0.01299902244 | Z12: -0.008015836344 | AA12: 0.04745210551 | AB12: 0.04705338303 | AC12: -0.0579915731 | AD12: -0.04421206872 | AE12: -0.01996541474 | AF12: -0.01815984394 | AG12: -0.009559154001 | AH12: -0.03384870401
A13: 2001 | B13: 1.018448594 | C13: 1.024668835 | E13: 0.9430056161 | F13: 0.9452312438 | H13: 1.015169016 | I13: 1.025336375 | J13: 1.052941588 | K13: 1.056123856 | L13: 0.9807989697 | M13: 0.9921327271 | N13: 1.025061073 | O13: 1.032131568 | P13: 0.9799066319 | Q13: 0.9815863194 | S13: 0.01844859385 | T13: 0.0246688348 | V13: -0.05699438391 | W13: -0.05476875617 | Y13: 0.01516901573 | Z13: 0.02533637505 | AA13: 0.05294158785 | AB13: 0.05612385562 | AC13: -0.01920103031 | AD13: -0.00786727286 | AE13: 0.02506107323 | AF13: 0.03213156788 | AG13: -0.0200933681 | AH13: -0.01841368061
A14: 2002 | B14: 1.021789569 | C14: 1.026932585 | E14: 1.023508594 | F14: 1.032321911 | H14: 0.9583818089 | I14: 0.9630868503 | J14: 1.071844916 | K14: 1.076501921 | L14: 0.9757671794 | M14: 0.9853722093 | N14: 1.040849057 | O14: 1.045780966 | P14: 0.9708240724 | Q14: 0.9745657385 | S14: 0.02178956855 | T14: 0.02693258548 | V14: 0.02350859385 | W14: 0.03232191138 | Y14: -0.0416181911 | Z14: -0.03691314968 | AA14: 0.07184491565 | AB14: 0.07650192074 | AC14: -0.02423282059 | AD14: -0.01462779075 | AE14: 0.04084905719 | AF14: 0.04578096576 | AG14: -0.02917592763 | AH14: -0.02543426145
A15: 2003 | B15: 1.022255258 | C15: 1.027127214 | E15: 1.038039378 | F15: 1.050599779 | H15: 1.007514735 | I15: 1.01652984 | J15: 1.055992688 | K15: 1.05979459 | L15: 0.9520374708 | M15: 0.9589026412 | N15: 1.045746446 | O15: 1.050697925 | P15: 0.9634373273 | Q15: 0.9654065403 | S15: 0.02225525804 | T15: 0.02712721364 | V15: 0.0380393781 | W15: 0.05059977889 | Y15: 0.007514734599 | Z15: 0.01652984049 | AA15: 0.05599268788 | AB15: 0.05979459 | AC15: -0.04796252922 | AD15: -0.04109735877 | AE15: 0.04574644627 | AF15: 0.05069792539 | AG15: -0.03656267266 | AH15: -0.03459345969
A16: 2004 | B16: 1.043089858 | C16: 1.044951424 | E16: 0.9413824957 | F16: 0.9494591163 | H16: 0.9830385823 | I16: 0.9823257757 | J16: 1.112336176 | K16: 1.118840772 | L16: 0.9980824824 | M16: 0.997934612 | N16: 1.059815427 | O16: 1.063377024 | P16: 0.9706238255 | Q16: 0.9642504671 | S16: 0.04308985775 | T16: 0.04495142393 | V16: -0.05861750432 | W16: -0.05054088374 | Y16: -0.01696141765 | Z16: -0.01767422427 | AA16: 0.1123361763 | AB16: 0.1188407721 | AC16: -0.001917517622 | AD16: -0.002065388045 | AE16: 0.0598154271 | AF16: 0.06337702374 | AG16: -0.02937617451 | AH16: -0.03574953295
A17: 2005 | B17: 1.035509334 | C17: 1.040149957 | E17: 0.9464735719 | F17: 0.9615636929 | H17: 0.9780223796 | I17: 0.9820723031 | J17: 1.097432216 | K17: 1.103979277 | L17: 1.051807856 | M17: 1.057207952 | N17: 1.032097321 | O17: 1.038540247 | P17: 0.9906404853 | Q17: 0.9872197645 | S17: 0.03550933396 | T17: 0.04014995656 | V17: -0.05352642809 | W17: -0.0384363071 | Y17: -0.02197762042 | Z17: -0.01792769687 | AA17: 0.09743221558 | AB17: 0.103979277 | AC17: 0.05180785645 | AD17: 0.05720795207 | AE17: 0.03209732099 | AF17: 0.03854024657 | AG17: -0.009359514705 | AH17: -0.01278023547
A18: 2006 | B18: 1.059976066 | C18: 1.059999587 | E18: 0.9817686668 | F18: 0.9903260016 | H18: 1.058462295 | I18: 1.060737419 | J18: 1.039709301 | K18: 1.041178256 | L18: 1.090203565 | M18: 1.089834489 | N18: 1.072024217 | O18: 1.072845861 | P18: 1.031711481 | Q18: 1.02617405 | S18: 0.0599760659 | T18: 0.05999958721 | V18: -0.01823133321 | W18: -0.009673998406 | Y18: 0.05846229525 | Z18: 0.06073741907 | AA18: 0.03970930122 | AB18: 0.04117825638 | AC18: 0.0902035651 | AD18: 0.08983448907 | AE18: 0.0720242167 | AF18: 0.07284586132 | AG18: 0.03171148073 | AH18: 0.02617405016
A19: 2007 | B19: 1.004824614 | C19: 1.003376206 | E19: 1.044740192 | F19: 1.044589803 | H19: 0.9987653366 | I19: 0.9998888219 | J19: 1.030973604 | K19: 1.0303456 | L19: 1.008951313 | M19: 1.003902297 | N19: 0.9834879496 | O19: 0.9804059013 | P19: 1.035257675 | Q19: 1.038302122 | S19: 0.004824614368 | T19: 0.003376205944 | V19: 0.04474019158 | W19: 0.04458980285 | Y19: -0.001234663358 | Z19: -0.0001111781192 | AA19: 0.03097360383 | AB19: 0.03034560035 | AC19: 0.008951312903 | AD19: 0.003902297296 | AE19: -0.0165120504 | AF19: -0.01959409866 | AG19: 0.0352576755 | AH19: 0.03830212235
A20: 2008 | B20: 0.9807184622 | C20: 0.9820476351 | E20: 1.037272759 | F20: 1.034836073 | H20: 0.9777632084 | I20: 0.9788247679 | J20: 0.9134478716 | K20: 0.9116041036 | L20: 1.014955451 | M20: 1.013843704 | N20: 1.000567403 | O20: 1.001692973 | P20: 0.9900112719 | Q20: 0.9979875283 | S20: -0.01928153778 | T20: =C20-1 -> -0.01795236489 | V20: =E20-1 -> 0.03727275879 | W20: =F20-1 -> 0.03483607348 | Y20: =H20-1 -> -0.02223679165 | Z20: =I20-1 -> -0.0211752321 | AA20: =J20-1 -> -0.0865521284 | AB20: =K20-1 -> -0.08839589643 | AC20: =L20-1 -> 0.01495545059 | AD20: =M20-1 -> 0.01384370379 | AE20: =N20-1 -> 0.0005674026984 | AF20: =O20-1 -> 0.001692973314 | AG20: =P20-1 -> -0.00998872808 | AH20: =Q20-1 -> -0.002012471731
A21: =A20+1 -> 2009 | B21: 0.926824933 | C21: 0.9343374627 | E21: 1.057125578 | F21: 1.056471546 | H21: 1.010251332 | I21: 1.011977927 | J21: 0.878007617 | K21: 0.8868317411 | L21: 0.9182536778 | M21: 0.9158899224 | N21: 0.9349659831 | O21: 0.9438010896 | P21: 0.9175881076 | Q21: 0.9298255948 | S21: -0.07317506704 | T21: -0.06566253733 | V21: 0.05712557751 | W21: 0.0564715457 | Y21: 0.01025133234 | Z21: 0.01197792669 | AA21: -0.121992383 | AB21: -0.1131682589 | AC21: -0.08174632225 | AD21: -0.08411007764 | AE21: -0.06503401685 | AF21: -0.05619891038 | AG21: -0.08241189243 | AH21: -0.07017440521
A22: 2010 | B22: 1.008918802 | C22: 1.013945811 | E22: 0.8801134955 | F22: 0.884047266 | H22: 1.024177346 | I22: 1.025428564 | J22: 1.037805164 | K22: 1.047414393 | L22: 1.016134584 | M22: 1.011480318 | N22: 0.9966133918 | O22: 1.002069889 | P22: 0.9923369991 | Q22: 0.998937292 | S22: 0.008918801958 | T22: 0.01394581051 | V22: -0.1198865045 | W22: -0.115952734 | Y22: 0.02417734562 | Z22: 0.02542856374 | AA22: 0.03780516433 | AB22: 0.04741439271 | AC22: 0.01613458359 | AD22: 0.01148031837 | AE22: -0.003386608193 | AF22: 0.002069888807 | AG22: -0.007663000948 | AH22: -0.001062708036
A23: 2011 | B23: 1.024668009 | C23: 1.022747323 | E23: 1.014273864 | F23: 1.014972773 | H23: 0.9777208145 | I23: 0.9786495874 | J23: 1.002683194 | K23: 1.000856139 | L23: 1.044649737 | M23: 1.038238596 | N23: 1.039548095 | O23: 1.03542279 | P23: 1.027317811 | Q23: 1.032980144 | S23: 0.02466800857 | T23: 0.02274732343 | V23: 0.01427386377 | W23: 0.01497277349 | Y23: -0.02227918547 | Z23: -0.02135041257 | AA23: 0.002683193926 | AB23: 0.0008561394606 | AC23: 0.0446497374 | AD23: 0.03823859575 | AE23: 0.03954809545 | AF23: 0.03542279014 | AG23: 0.02731781095 | AH23: 0.03298014436
A24: 2012 | B24: 0.9939046781 | C24: 0.9919374767 | E24: 0.9989246208 | F24: 0.9970735986 | H24: 0.9985757821 | I24: 1.000129057 | J24: 0.9847546679 | K24: 0.9840282294 | L24: 1.006732574 | M24: 1.000460746 | N24: 0.9898834769 | O24: 0.9862789285 | P24: 1.006502296 | Q24: 1.008315551 | S24: -0.006095321857 | T24: -0.008062523294 | V24: -0.001075379246 | W24: -0.00292640138 | Y24: -0.001424217852 | Z24: 0.0001290569466 | AA24: -0.01524533209 | AB24: -0.01597177063 | AC24: 0.006732573679 | AD24: 0.0004607459763 | AE24: -0.01011652307 | AF24: -0.01372107145 | AG24: 0.006502295728 | AH24: 0.008315551293
A25: 2013 | B25: 0.9978742944 | C25: 0.9972827705 | E25: 1.033447123 | F25: 1.031416079 | H25: 0.9955524698 | I25: 0.997337027 | J25: 0.9856947769 | K25: 0.9876461201 | L25: 0.9931506775 | M25: 0.9842324894 | N25: 0.9950558433 | O25: 0.9932364341 | P25: 1.027265965 | Q25: 1.030934663 | S25: -0.002125705621 | T25: -0.002717229465 | V25: 0.03344712314 | W25: 0.03141607862 | Y25: -0.004447530193 | Z25: -0.002662973011 | AA25: -0.0143052231 | AB25: -0.01235387991 | AC25: -0.006849322493 | AD25: -0.01576751055 | AE25: -0.004944156674 | AF25: -0.006763565868 | AG25: 0.02726596514 | AH25: 0.03093466343
A26: 2014 | B26: 1.011651495 | C26: 1.011598618 | E26: 1.026676358 | F26: 1.025107729 | H26: 1.025410759 | I26: 1.026767057 | J26: 1.003195415 | K26: 1.001560437 | L26: 1.019348531 | M26: 1.019979163 | N26: 1.019718151 | O26: 1.018219462 | P26: 0.9844221011 | Q26: 0.9894210081 | S26: 0.01165149501 | T26: 0.01159861837 | V26: 0.02667635775 | W26: 0.02510772938 | Y26: 0.02541075923 | Z26: 0.02676705683 | AA26: 0.00319541481 | AB26: 0.001560436641 | AC26: 0.01934853072 | AD26: 0.01997916316 | AE26: 0.01971815086 | AF26: 0.01821946184 | AG26: -0.01557789888 | AH26: -0.01057899192
A27: =A26+1 -> 2015 | B27: 0.992153798 | C27: 0.9925390404 | E27: 0.9983411545 | F27: 0.9938876971 | H27: 1.073427744 | I27: 1.075002451 | J27: 0.9977991185 | K27: 0.9988194457 | L27: 0.9642419893 | M27: 0.9615015641 | N27: 0.9757067849 | O27: 0.974376859 | P27: 0.9983929851 | Q27: 1.004367755 | S27: -0.007846201978 | T27: -0.007460959647 | V27: -0.00165884546 | W27: -0.006112302925 | Y27: 0.07342774432 | Z27: 0.07500245067 | AA27: -0.002200881502 | AB27: -0.00118055427 | AC27: -0.03575801067 | AD27: -0.03849843591 | AE27: -0.02429321511 | AF27: -0.025623141 | AG27: -0.001607014945 | AH27: 0.00436775453
A28: 2016 | B28: 1.006865537 | C28: 1.006477132 | E28: 1.009289377 | F28: 1.008395876 | H28: 1.025809589 | I28: 1.028050403 | J28: 0.9813233483 | K28: 0.9822771845 | L28: 0.9716753306 | M28: 0.9671223684 | N28: 1.010041361 | O28: 1.007220024 | P28: 1.042225087 | Q28: 1.04836938 | S28: 0.006865537238 | T28: 0.006477131723 | V28: 0.009289377238 | W28: 0.008395876289 | Y28: 0.02580958889 | Z28: 0.02805040323 | AA28: -0.01867665169 | AB28: -0.01772281553 | AC28: -0.02832466936 | AD28: -0.03287763158 | AE28: 0.01004136114 | AF28: 0.007220023562 | AG28: 0.04222508741 | AH28: 0.04836938041
A29: 2017 | B29: 0.9929885886 | C29: 0.9928248338 | E29: 0.9856169196 | F29: 0.9819811503 | H29: 1.02487525 | I29: 1.02751933 | J29: 0.9694878735 | K29: 0.9681033432 | L29: 1.01740946 | M29: 1.015150193 | N29: 0.9970034603 | O29: 0.9957059082 | P29: 0.9747399051 | Q29: 0.9791303614 | S29: -0.007011411408 | T29: -0.007175166194 | V29: -0.01438308044 | W29: -0.01801884968 | Y29: 0.02487524982 | Z29: 0.02751932997 | AA29: -0.03051212655 | AB29: -0.03189665685 | AC29: 0.01740946035 | AD29: 0.01515019291 | AE29: -0.002996539745 | AF29: -0.004294091833 | AG29: -0.02526009487 | AH29: -0.02086963859
A30: 2018 | B30: 1.00411359 | C30: 1.002012778 | E30: 0.9640598856 | F30: 0.9622187938 | H30: 0.9920352986 | I30: 0.9938571778 | J30: 0.991795091 | K30: 0.9869945625 | L30: 1.020666709 | M30: 1.017194919 | N30: 1.008690731 | O30: 1.005164805 | P30: 1.003823615 | Q30: 1.007896626 | S30: 0.004113590296 | T30: 0.002012778257 | V30: -0.03594011436 | W30: -0.03778120623 | Y30: -0.00796470143 | Z30: -0.006142822206 | AA30: -0.008204908965 | AB30: -0.0130054375 | AC30: 0.02066670892 | AD30: 0.01719491935 | AE30: 0.00869073147 | AF30: 0.005164804684 | AG30: 0.003823614523 | AH30: 0.007896626231
A31: 2019
A33: Arithmetisches Mittel | B33: =AVERAGE(INDIRECT(B37):INDIRECT(B39)) -> 0.9990303785 | C33: =AVERAGE(INDIRECT(C37):INDIRECT(C39)) -> 0.998463446 | D33: =AVERAGE(INDIRECT(D37):INDIRECT(D39)) ->  | E33: =AVERAGE(INDIRECT(E37):INDIRECT(E39)) -> 0.9893268342 | F33: =AVERAGE(INDIRECT(F37):INDIRECT(F39)) -> 0.9866208794 | H33: =AVERAGE(INDIRECT(H37):INDIRECT(H39)) -> 1.02903697 | I33: =AVERAGE(INDIRECT(I37):INDIRECT(I39)) -> 1.03110734 | J33: =AVERAGE(INDIRECT(J37):INDIRECT(J39)) -> 0.9851013578 | K33: =AVERAGE(INDIRECT(K37):INDIRECT(K39)) -> 0.984048634 | L33: =AVERAGE(INDIRECT(L37):INDIRECT(L39)) -> 0.9934983723 | M33: =AVERAGE(INDIRECT(M37):INDIRECT(M39)) -> 0.9902422612 | N33: =AVERAGE(INDIRECT(N37):INDIRECT(N39)) -> 0.9978605844 | O33: =AVERAGE(INDIRECT(O37):INDIRECT(O39)) -> 0.9956168989 | P33: =AVERAGE(INDIRECT(P37):INDIRECT(P39)) -> 1.004795398 | Q33: =AVERAGE(INDIRECT(Q37):INDIRECT(Q39)) -> 1.009941031
A34: Geometrisches Mittel | B34: =GEOMEAN(INDIRECT(B37):INDIRECT(B39)) -> 0.9990089857 | C34: =GEOMEAN(INDIRECT(C37):INDIRECT(C39)) -> 0.9984454689 | D34: =GEOMEAN(INDIRECT(D37):INDIRECT(D39)) ->  | E34: =GEOMEAN(INDIRECT(E37):INDIRECT(E39)) -> 0.9891831498 | F34: =GEOMEAN(INDIRECT(F37):INDIRECT(F39)) -> 0.9864755839 | H34: =GEOMEAN(INDIRECT(H37):INDIRECT(H39)) -> 1.028630566 | I34: =GEOMEAN(INDIRECT(I37):INDIRECT(I39)) -> 1.030705184 | J34: =GEOMEAN(INDIRECT(J37):INDIRECT(J39)) -> 0.9850423349 | K34: =GEOMEAN(INDIRECT(K37):INDIRECT(K39)) -> 0.9839870468 | L34: =GEOMEAN(INDIRECT(L37):INDIRECT(L39)) -> 0.9931657504 | M34: =GEOMEAN(INDIRECT(M37):INDIRECT(M39)) -> 0.9899003476 | N34: =GEOMEAN(INDIRECT(N37):INDIRECT(N39)) -> 0.9977650674 | O34: =GEOMEAN(INDIRECT(O37):INDIRECT(O39)) -> 0.9955312964 | P34: =GEOMEAN(INDIRECT(P37):INDIRECT(P39)) -> 1.004505455 | Q34: =GEOMEAN(INDIRECT(Q37):INDIRECT(Q39)) -> 1.009638492
A35: Arithmetisches Mittel in % | B35: =B33-1 -> -0.0009696214628 | C35: =C33-1 -> -0.001536553965 | D35: =D33-1 ->  | E35: -0.01067316576 | F35: -0.01337912064 | H35: =H33-1 -> 0.0290369704 | I35: 0.03110734042 | J35: -0.01489864218 | K35: -0.01595136604 | L35: -0.006501627688 | M35: -0.009757738805 | N35: -0.002139415562 | O35: -0.004383101146 | P35: 0.004795398029 | Q35: 0.009941030646
A36: Geometrisches Mittel in % | B36: =B34-1 -> -0.0009910143379 | C36: =C34-1 -> -0.001554531149 | D36: =D34-1 ->  | E36: -0.01081685015 | F36: -0.01352441614 | H36: =H34-1 -> 0.02863056591 | I36: 0.03070518395 | J36: -0.01495766514 | K36: -0.01601295324 | L36: -0.006834249566 | M36: -0.01009965242 | N36: -0.002234932636 | O36: -0.004468703599 | P36: 0.004505454869 | Q36: 0.009638492196
A37: Zelle Beginn | B37: =CONCATENATE("B",$B$38) -> B27 | C37: =CONCATENATE("C",$B$38) -> C27 | E37: =CONCATENATE("E",$B$38) -> E27 | F37: =CONCATENATE("F",$B$38) -> F27 | H37: =CONCATENATE("H",$B$38) -> H27 | I37: =CONCATENATE("I",$B$38) -> I27 | J37: =CONCATENATE("J",$B$38) -> J27 | K37: =CONCATENATE("K",$B$38) -> K27 | L37: =CONCATENATE("L",$B$38) -> L27 | M37: =CONCATENATE("M",$B$38) -> M27 | N37: =CONCATENATE("N",$B$38) -> N27 | O37: =CONCATENATE("O",$B$38) -> O27 | P37: =CONCATENATE("P",$B$38) -> P27 | Q37: =CONCATENATE("Q",$B$38) -> Q27
B38: =ROW(INDEX(A4:A31,MATCH(OUT_Produktivitätsentwicklung!D3,A4:A31))) -> 27
A39: Zelle Ende | B39: =CONCATENATE("B",$B$40) -> B30 | C39: =CONCATENATE("C",$B$40) -> C30 | E39: =CONCATENATE("E",$B$40) -> E30 | F39: =CONCATENATE("F",$B$40) -> F30 | H39: =CONCATENATE("H",$B$40) -> H30 | I39: =CONCATENATE("I",$B$40) -> I30 | J39: =CONCATENATE("J",$B$40) -> J30 | K39: =CONCATENATE("K",$B$40) -> K30 | L39: =CONCATENATE("L",$B$40) -> L30 | M39: =CONCATENATE("M",$B$40) -> M30 | N39: =CONCATENATE("N",$B$40) -> N30 | O39: =CONCATENATE("O",$B$40) -> O30 | P39: =CONCATENATE("P",$B$40) -> P30 | Q39: =CONCATENATE("Q",$B$40) -> Q30
B40: =ROW(INDEX(A4:A31,MATCH(OUT_Produktivitätsentwicklung!D4,A4:A31))) -> 30

Sheet NR_Synthetische_Indizes
A2: Synthetischer Index Gesamt
A4: ∆ TFP
A6: Nr. (WZ 2008) | B6: Branche | C6: Gewicht | D6: 1992 | E6: =D6+1 -> 1993 | F6: 1994 | G6: 1995 | H6: 1996 | I6: 1997 | J6: 1998 | K6: 1999 | L6: 2000 | M6: 2001 | N6: 2002 | O6: 2003 | P6: 2004 | Q6: 2005 | R6: 2006 | S6: 2007 | T6: 2008 | U6: 2009 | V6: 2010 | W6: 2011 | X6: 2012 | Y6: 2013 | Z6: 2014 | AA6: 2015 | AB6: 2016 | AC6: 2017 | AD6: =AC6+1 -> 2018 | AE6: =AD6+1 -> 2019 | AF6: =AE6+1 -> 2020
A7: C33 | B7: Reparatur und Installation von Maschinen und Ausrüstungen | C7: ='IN_Definition Index'!K7 -> 0.1 | D7: =$C7*NR_Reihen_Veränderungsraten!D4 -> 0.1085577245 | E7: =$C7*NR_Reihen_Veränderungsraten!E4 -> 0.09894188408 | F7: =$C7*NR_Reihen_Veränderungsraten!F4 -> 0.1114811158 | G7: =$C7*NR_Reihen_Veränderungsraten!G4 -> 0.1033315156 | H7: =$C7*NR_Reihen_Veränderungsraten!H4 -> 0.1021079231 | I7: =$C7*NR_Reihen_Veränderungsraten!I4 -> 0.1119336037 | J7: =$C7*NR_Reihen_Veränderungsraten!J4 -> 0.1044845827 | K7: =$C7*NR_Reihen_Veränderungsraten!K4 -> 0.1077102779 | L7: =$C7*NR_Reihen_Veränderungsraten!L4 -> 0.1074511522 | M7: =$C7*NR_Reihen_Veränderungsraten!M4 -> 0.1003262477 | N7: =$C7*NR_Reihen_Veränderungsraten!N4 -> 0.1047279448 | O7: =$C7*NR_Reihen_Veränderungsraten!O4 -> 0.1090661373 | P7: =$C7*NR_Reihen_Veränderungsraten!P4 -> 0.1106450974 | Q7: =$C7*NR_Reihen_Veränderungsraten!Q4 -> 0.1155344445 | R7: =$C7*NR_Reihen_Veränderungsraten!R4 -> 0.1017723603 | S7: =$C7*NR_Reihen_Veränderungsraten!S4 -> 0.1070158094 | T7: =$C7*NR_Reihen_Veränderungsraten!T4 -> 0.08721938988 | U7: =$C7*NR_Reihen_Veränderungsraten!U4 -> 0.08779006073 | V7: =$C7*NR_Reihen_Veränderungsraten!V4 -> 0.1016608965 | W7: =$C7*NR_Reihen_Veränderungsraten!W4 -> 0.1025198322 | X7: =$C7*NR_Reihen_Veränderungsraten!X4 -> 0.09769085272 | Y7: =$C7*NR_Reihen_Veränderungsraten!Y4 -> 0.09577383675 | Z7: =$C7*NR_Reihen_Veränderungsraten!Z4 -> 0.1009290657 | AA7: =$C7*NR_Reihen_Veränderungsraten!AA4 -> 0.1043869047 | AB7: =$C7*NR_Reihen_Veränderungsraten!AB4 -> 0.09626649487 | AC7: =$C7*NR_Reihen_Veränderungsraten!AC4 -> 0.09320801065 | AD7: =$C7*NR_Reihen_Veränderungsraten!AD4 -> 0.09620274472 | AE7: =$C7*NR_Reihen_Veränderungsraten!AE4 ->  | AF7: =$C7*NR_Reihen_Veränderungsraten!AF4 -> 
A8: G45 | B8: Handel mit Kraftfahrzeugen; Instandhaltung und Reparatur von Kraftfahrzeugen | C8: ='IN_Definition Index'!K8 -> 0.15 | D8: =$C8*NR_Reihen_Veränderungsraten!D5 -> 0.1518931441 | E8: =$C8*NR_Reihen_Veränderungsraten!E5 -> 0.1239486096 | F8: =$C8*NR_Reihen_Veränderungsraten!F5 -> 0.1514606977 | G8: =$C8*NR_Reihen_Veränderungsraten!G5 -> 0.150516453 | H8: =$C8*NR_Reihen_Veränderungsraten!H5 -> 0.1483876314 | I8: =$C8*NR_Reihen_Veränderungsraten!I5 -> 0.1531639457 | J8: =$C8*NR_Reihen_Veränderungsraten!J5 -> 0.1524058832 | K8: =$C8*NR_Reihen_Veränderungsraten!K5 -> 0.1533341049 | L8: =$C8*NR_Reihen_Veränderungsraten!L5 -> 0.1466553959 | M8: =$C8*NR_Reihen_Veränderungsraten!M5 -> 0.1487645327 | N8: =$C8*NR_Reihen_Veränderungsraten!N5 -> 0.1575554413 | O8: =$C8*NR_Reihen_Veränderungsraten!O5 -> 0.1745816798 | P8: =$C8*NR_Reihen_Veränderungsraten!P5 -> 0.1594713631 | Q8: =$C8*NR_Reihen_Veränderungsraten!Q5 -> 0.150744618 | R8: =$C8*NR_Reihen_Veränderungsraten!R5 -> 0.1596261128 | S8: =$C8*NR_Reihen_Veränderungsraten!S5 -> 0.1424585134 | T8: =$C8*NR_Reihen_Veränderungsraten!T5 -> 0.154806737 | U8: =$C8*NR_Reihen_Veränderungsraten!U5 -> 0.1512794468 | V8: =$C8*NR_Reihen_Veränderungsraten!V5 -> 0.1372056342 | W8: =$C8*NR_Reihen_Veränderungsraten!W5 -> 0.1640739724 | X8: =$C8*NR_Reihen_Veränderungsraten!X5 -> 0.1455475573 | Y8: =$C8*NR_Reihen_Veränderungsraten!Y5 -> 0.1467548499 | Z8: =$C8*NR_Reihen_Veränderungsraten!Z5 -> 0.1564058624 | AA8: =$C8*NR_Reihen_Veränderungsraten!AA5 -> 0.1516723763 | AB8: =$C8*NR_Reihen_Veränderungsraten!AB5 -> 0.1587700507 | AC8: =$C8*NR_Reihen_Veränderungsraten!AC5 -> 0.145005792 | AD8: =$C8*NR_Reihen_Veränderungsraten!AD5 -> 0.1475764126 | AE8: =$C8*NR_Reihen_Veränderungsraten!AE5 ->  | AF8: =$C8*NR_Reihen_Veränderungsraten!AF5 -> 
A9: G47 | B9: Einzelhandel (ohne Handel mit Kraftfahrzeugen) | C9: ='IN_Definition Index'!K9 -> 0.1 | D9: =$C9*NR_Reihen_Veränderungsraten!D6 -> 0.1002810911 | E9: =$C9*NR_Reihen_Veränderungsraten!E6 -> 0.09412436261 | F9: =$C9*NR_Reihen_Veränderungsraten!F6 -> 0.1007764467 | G9: =$C9*NR_Reihen_Veränderungsraten!G6 -> 0.1006043062 | H9: =$C9*NR_Reihen_Veränderungsraten!H6 -> 0.09733670782 | I9: =$C9*NR_Reihen_Veränderungsraten!I6 -> 0.09802611751 | J9: =$C9*NR_Reihen_Veränderungsraten!J6 -> 0.09920277966 | K9: =$C9*NR_Reihen_Veränderungsraten!K6 -> 0.09970707344 | L9: =$C9*NR_Reihen_Veränderungsraten!L6 -> 0.09870009776 | M9: =$C9*NR_Reihen_Veränderungsraten!M6 -> 0.1015169016 | N9: =$C9*NR_Reihen_Veränderungsraten!N6 -> 0.09583818089 | O9: =$C9*NR_Reihen_Veränderungsraten!O6 -> 0.1007514735 | P9: =$C9*NR_Reihen_Veränderungsraten!P6 -> 0.09830385823 | Q9: =$C9*NR_Reihen_Veränderungsraten!Q6 -> 0.09780223796 | R9: =$C9*NR_Reihen_Veränderungsraten!R6 -> 0.1058462295 | S9: =$C9*NR_Reihen_Veränderungsraten!S6 -> 0.09987653366 | T9: =$C9*NR_Reihen_Veränderungsraten!T6 -> 0.09777632084 | U9: =$C9*NR_Reihen_Veränderungsraten!U6 -> 0.1010251332 | V9: =$C9*NR_Reihen_Veränderungsraten!V6 -> 0.1024177346 | W9: =$C9*NR_Reihen_Veränderungsraten!W6 -> 0.09777208145 | X9: =$C9*NR_Reihen_Veränderungsraten!X6 -> 0.09985757821 | Y9: =$C9*NR_Reihen_Veränderungsraten!Y6 -> 0.09955524698 | Z9: =$C9*NR_Reihen_Veränderungsraten!Z6 -> 0.1025410759 | AA9: =$C9*NR_Reihen_Veränderungsraten!AA6 -> 0.1073427744 | AB9: =$C9*NR_Reihen_Veränderungsraten!AB6 -> 0.1025809589 | AC9: =$C9*NR_Reihen_Veränderungsraten!AC6 -> 0.102487525 | AD9: =$C9*NR_Reihen_Veränderungsraten!AD6 -> 0.09920352986 | AE9: =$C9*NR_Reihen_Veränderungsraten!AE6 ->  | AF9: =$C9*NR_Reihen_Veränderungsraten!AF6 -> 
A10: H49 | B10: Landverkehr und Transport in Rohrfernleitungen | C10: ='IN_Definition Index'!K10 -> 0.25 | D10: =$C10*NR_Reihen_Veränderungsraten!D7 -> 0.2376452161 | E10: =$C10*NR_Reihen_Veränderungsraten!E7 -> 0.2526611438 | F10: =$C10*NR_Reihen_Veränderungsraten!F7 -> 0.2650461587 | G10: =$C10*NR_Reihen_Veränderungsraten!G7 -> 0.2861905352 | H10: =$C10*NR_Reihen_Veränderungsraten!H7 -> 0.2675437163 | I10: =$C10*NR_Reihen_Veränderungsraten!I7 -> 0.243880335 | J10: =$C10*NR_Reihen_Veränderungsraten!J7 -> 0.2452690641 | K10: =$C10*NR_Reihen_Veränderungsraten!K7 -> 0.3125186187 | L10: =$C10*NR_Reihen_Veränderungsraten!L7 -> 0.2355021067 | M10: =$C10*NR_Reihen_Veränderungsraten!M7 -> 0.2451997424 | N10: =$C10*NR_Reihen_Veränderungsraten!N7 -> 0.2439417949 | O10: =$C10*NR_Reihen_Veränderungsraten!O7 -> 0.2380093677 | P10: =$C10*NR_Reihen_Veränderungsraten!P7 -> 0.2495206206 | Q10: =$C10*NR_Reihen_Veränderungsraten!Q7 -> 0.2629519641 | R10: =$C10*NR_Reihen_Veränderungsraten!R7 -> 0.2725508913 | S10: =$C10*NR_Reihen_Veränderungsraten!S7 -> 0.2522378282 | T10: =$C10*NR_Reihen_Veränderungsraten!T7 -> 0.2537388626 | U10: =$C10*NR_Reihen_Veränderungsraten!U7 -> 0.2295634194 | V10: =$C10*NR_Reihen_Veränderungsraten!V7 -> 0.2540336459 | W10: =$C10*NR_Reihen_Veränderungsraten!W7 -> 0.2611624343 | X10: =$C10*NR_Reihen_Veränderungsraten!X7 -> 0.2516831434 | Y10: =$C10*NR_Reihen_Veränderungsraten!Y7 -> 0.2482876694 | Z10: =$C10*NR_Reihen_Veränderungsraten!Z7 -> 0.2548371327 | AA10: =$C10*NR_Reihen_Veränderungsraten!AA7 -> 0.2410604973 | AB10: =$C10*NR_Reihen_Veränderungsraten!AB7 -> 0.2429188327 | AC10: =$C10*NR_Reihen_Veränderungsraten!AC7 -> 0.2543523651 | AD10: =$C10*NR_Reihen_Veränderungsraten!AD7 -> 0.2551666772 | AE10: =$C10*NR_Reihen_Veränderungsraten!AE7 ->  | AF10: =$C10*NR_Reihen_Veränderungsraten!AF7 -> 
A11: H52 | B11: Lagerei sowie Erbringung von sonstigen Dienstleistungen für den Verkehr | C11: ='IN_Definition Index'!K11 -> 0.25 | D11: =$C11*NR_Reihen_Veränderungsraten!D8 -> 0.2430936403 | E11: =$C11*NR_Reihen_Veränderungsraten!E8 -> 0.2494701636 | F11: =$C11*NR_Reihen_Veränderungsraten!F8 -> 0.2615626379 | G11: =$C11*NR_Reihen_Veränderungsraten!G8 -> 0.2458601697 | H11: =$C11*NR_Reihen_Veränderungsraten!H8 -> 0.2585028789 | I11: =$C11*NR_Reihen_Veränderungsraten!I8 -> 0.2727412179 | J11: =$C11*NR_Reihen_Veränderungsraten!J8 -> 0.2569322756 | K11: =$C11*NR_Reihen_Veränderungsraten!K8 -> 0.1954067001 | L11: =$C11*NR_Reihen_Veränderungsraten!L8 -> 0.2550981724 | M11: =$C11*NR_Reihen_Veränderungsraten!M8 -> 0.2756551746 | N11: =$C11*NR_Reihen_Veränderungsraten!N8 -> 0.2741025959 | O11: =$C11*NR_Reihen_Veränderungsraten!O8 -> 0.2553310007 | P11: =$C11*NR_Reihen_Veränderungsraten!P8 -> 0.2795553445 | Q11: =$C11*NR_Reihen_Veränderungsraten!Q8 -> 0.2598799966 | R11: =$C11*NR_Reihen_Veränderungsraten!R8 -> 0.26542375 | S11: =$C11*NR_Reihen_Veränderungsraten!S8 -> 0.2479472784 | T11: =$C11*NR_Reihen_Veränderungsraten!T8 -> 0.2386754611 | U11: =$C11*NR_Reihen_Veränderungsraten!U8 -> 0.2195286567 | V11: =$C11*NR_Reihen_Veränderungsraten!V8 -> 0.2647503409 | W11: =$C11*NR_Reihen_Veränderungsraten!W8 -> 0.2450420165 | X11: =$C11*NR_Reihen_Veränderungsraten!X8 -> 0.2481502022 | Y11: =$C11*NR_Reihen_Veränderungsraten!Y8 -> 0.2534127966 | Z11: =$C11*NR_Reihen_Veränderungsraten!Z8 -> 0.2492750431 | AA11: =$C11*NR_Reihen_Veränderungsraten!AA8 -> 0.2379322975 | AB11: =$C11*NR_Reihen_Veränderungsraten!AB8 -> 0.249995437 | AC11: =$C11*NR_Reihen_Veränderungsraten!AC8 -> 0.2517239101 | AD11: =$C11*NR_Reihen_Veränderungsraten!AD8 -> 0.2553906837 | AE11: =$C11*NR_Reihen_Veränderungsraten!AE8 ->  | AF11: =$C11*NR_Reihen_Veränderungsraten!AF8 -> 
A12: J61 | B12: Telekommunikation | C12: ='IN_Definition Index'!K12 -> 0 | D12: =$C12*NR_Reihen_Veränderungsraten!D9 -> 0 | E12: =$C12*NR_Reihen_Veränderungsraten!E9 -> 0 | F12: =$C12*NR_Reihen_Veränderungsraten!F9 -> 0 | G12: =$C12*NR_Reihen_Veränderungsraten!G9 -> 0 | H12: =$C12*NR_Reihen_Veränderungsraten!H9 -> 0 | I12: =$C12*NR_Reihen_Veränderungsraten!I9 -> 0 | J12: =$C12*NR_Reihen_Veränderungsraten!J9 -> 0 | K12: =$C12*NR_Reihen_Veränderungsraten!K9 -> 0 | L12: =$C12*NR_Reihen_Veränderungsraten!L9 -> 0 | M12: =$C12*NR_Reihen_Veränderungsraten!M9 -> 0 | N12: =$C12*NR_Reihen_Veränderungsraten!N9 -> 0 | O12: =$C12*NR_Reihen_Veränderungsraten!O9 -> 0 | P12: =$C12*NR_Reihen_Veränderungsraten!P9 -> 0 | Q12: =$C12*NR_Reihen_Veränderungsraten!Q9 -> 0 | R12: =$C12*NR_Reihen_Veränderungsraten!R9 -> 0 | S12: =$C12*NR_Reihen_Veränderungsraten!S9 -> 0 | T12: =$C12*NR_Reihen_Veränderungsraten!T9 -> 0 | U12: =$C12*NR_Reihen_Veränderungsraten!U9 -> 0 | V12: =$C12*NR_Reihen_Veränderungsraten!V9 -> 0 | W12: =$C12*NR_Reihen_Veränderungsraten!W9 -> 0 | X12: =$C12*NR_Reihen_Veränderungsraten!X9 -> 0 | Y12: =$C12*NR_Reihen_Veränderungsraten!Y9 -> 0 | Z12: =$C12*NR_Reihen_Veränderungsraten!Z9 -> 0 | AA12: =$C12*NR_Reihen_Veränderungsraten!AA9 -> 0 | AB12: =$C12*NR_Reihen_Veränderungsraten!AB9 -> 0 | AC12: =$C12*NR_Reihen_Veränderungsraten!AC9 -> 0 | AD12: =$C12*NR_Reihen_Veränderungsraten!AD9 -> 0 | AE12: =$C12*NR_Reihen_Veränderungsraten!AE9 ->  | AF12: =$C12*NR_Reihen_Veränderungsraten!AF9 -> 
A13: J62-01 | B13: IT- und Informationsdienstleister | C13: ='IN_Definition Index'!K13 -> 0.03 | D13: =$C13*NR_Reihen_Veränderungsraten!D10 -> 0.02988078633 | E13: =$C13*NR_Reihen_Veränderungsraten!E10 -> 0.03149215449 | F13: =$C13*NR_Reihen_Veränderungsraten!F10 -> 0.02681452288 | G13: =$C13*NR_Reihen_Veränderungsraten!G10 -> 0.03042758893 | H13: =$C13*NR_Reihen_Veränderungsraten!H10 -> 0.03230831067 | I13: =$C13*NR_Reihen_Veränderungsraten!I10 -> 0.03192684272 | J13: =$C13*NR_Reihen_Veränderungsraten!J10 -> 0.03355874655 | K13: =$C13*NR_Reihen_Veränderungsraten!K10 -> 0.0275839947 | L13: =$C13*NR_Reihen_Veränderungsraten!L10 -> 0.02922906445 | M13: =$C13*NR_Reihen_Veränderungsraten!M10 -> 0.03094435555 | N13: =$C13*NR_Reihen_Veränderungsraten!N10 -> 0.02991475231 | O13: =$C13*NR_Reihen_Veränderungsraten!O10 -> 0.02826549563 | P13: =$C13*NR_Reihen_Veränderungsraten!P10 -> 0.03005917997 | Q13: =$C13*NR_Reihen_Veränderungsraten!Q10 -> 0.03063462153 | R13: =$C13*NR_Reihen_Veränderungsraten!R10 -> 0.03204447346 | S13: =$C13*NR_Reihen_Veränderungsraten!S10 -> 0.0351836288 | T13: =$C13*NR_Reihen_Veränderungsraten!T10 -> 0.03028436982 | U13: =$C13*NR_Reihen_Veränderungsraten!U10 -> 0.02914106986 | V13: =$C13*NR_Reihen_Veränderungsraten!V10 -> 0.03024372594 | W13: =$C13*NR_Reihen_Veränderungsraten!W10 -> 0.03410184111 | X13: =$C13*NR_Reihen_Veränderungsraten!X10 -> 0.03086725309 | Y13: =$C13*NR_Reihen_Veränderungsraten!Y10 -> 0.03195279563 | Z13: =$C13*NR_Reihen_Veränderungsraten!Z10 -> 0.03093723886 | AA13: =$C13*NR_Reihen_Veränderungsraten!AA10 -> 0.02958893867 | AB13: =$C13*NR_Reihen_Veränderungsraten!AB10 -> 0.03056503655 | AC13: =$C13*NR_Reihen_Veränderungsraten!AC10 -> 0.03020162193 | AD13: =$C13*NR_Reihen_Veränderungsraten!AD10 -> 0.03166366549 | AE13: =$C13*NR_Reihen_Veränderungsraten!AE10 ->  | AF13: =$C13*NR_Reihen_Veränderungsraten!AF10 -> 
A14: M69-01 | B14: Unternehmensnahe Beratungsleistungen | C14: ='IN_Definition Index'!K14 -> 0.03 | D14: =$C14*NR_Reihen_Veränderungsraten!D11 -> 0.03172956144 | E14: =$C14*NR_Reihen_Veränderungsraten!E11 -> 0.03269538996 | F14: =$C14*NR_Reihen_Veränderungsraten!F11 -> 0.03000144336 | G14: =$C14*NR_Reihen_Veränderungsraten!G11 -> 0.03034251596 | H14: =$C14*NR_Reihen_Veränderungsraten!H11 -> 0.02983010907 | I14: =$C14*NR_Reihen_Veränderungsraten!I11 -> 0.02820986027 | J14: =$C14*NR_Reihen_Veränderungsraten!J11 -> 0.03043678388 | K14: =$C14*NR_Reihen_Veränderungsraten!K11 -> 0.03023245824 | L14: =$C14*NR_Reihen_Veränderungsraten!L11 -> 0.02889027013 | M14: =$C14*NR_Reihen_Veränderungsraten!M11 -> 0.03125790664 | N14: =$C14*NR_Reihen_Veränderungsraten!N11 -> 0.02990625288 | O14: =$C14*NR_Reihen_Veränderungsraten!O11 -> 0.02934661277 | P14: =$C14*NR_Reihen_Veränderungsraten!P11 -> 0.02790360205 | Q14: =$C14*NR_Reihen_Veränderungsraten!Q11 -> 0.02977863931 | R14: =$C14*NR_Reihen_Veränderungsraten!R11 -> 0.03011811593 | S14: =$C14*NR_Reihen_Veränderungsraten!S11 -> 0.02983314278 | T14: =$C14*NR_Reihen_Veränderungsraten!T11 -> 0.02959118724 | U14: =$C14*NR_Reihen_Veränderungsraten!U11 -> 0.02550905652 | V14: =$C14*NR_Reihen_Veränderungsraten!V11 -> 0.02988442599 | W14: =$C14*NR_Reihen_Veränderungsraten!W11 -> 0.02958561659 | X14: =$C14*NR_Reihen_Veränderungsraten!X11 -> 0.0301961713 | Y14: =$C14*NR_Reihen_Veränderungsraten!Y11 -> 0.02891963014 | Z14: =$C14*NR_Reihen_Veränderungsraten!Z11 -> 0.02930872154 | AA14: =$C14*NR_Reihen_Veränderungsraten!AA11 -> 0.03001853295 | AB14: =$C14*NR_Reihen_Veränderungsraten!AB11 -> 0.02966379889 | AC14: =$C14*NR_Reihen_Veränderungsraten!AC11 -> 0.03226917048 | AD14: =$C14*NR_Reihen_Veränderungsraten!AD11 -> 0.02947537435 | AE14: =$C14*NR_Reihen_Veränderungsraten!AE11 ->  | AF14: =$C14*NR_Reihen_Veränderungsraten!AF11 -> 
A15: M73 | B15: Werbung und Marktforschung | C15: ='IN_Definition Index'!K15 -> 0.03 | D15: =$C15*NR_Reihen_Veränderungsraten!D12 -> 0.0305388556 | E15: =$C15*NR_Reihen_Veränderungsraten!E12 -> 0.03293824669 | F15: =$C15*NR_Reihen_Veränderungsraten!F12 -> 0.03078069676 | G15: =$C15*NR_Reihen_Veränderungsraten!G12 -> 0.03025654518 | H15: =$C15*NR_Reihen_Veränderungsraten!H12 -> 0.02795795627 | I15: =$C15*NR_Reihen_Veränderungsraten!I12 -> 0.0304200064 | J15: =$C15*NR_Reihen_Veränderungsraten!J12 -> 0.02682435186 | K15: =$C15*NR_Reihen_Veränderungsraten!K12 -> 0.02976926585 | L15: =$C15*NR_Reihen_Veränderungsraten!L12 -> 0.0292419461 | M15: =$C15*NR_Reihen_Veränderungsraten!M12 -> 0.02559923752 | N15: =$C15*NR_Reihen_Veränderungsraten!N12 -> 0.0256519691 | O15: =$C15*NR_Reihen_Veränderungsraten!O12 -> 0.03051446124 | P15: =$C15*NR_Reihen_Veränderungsraten!P12 -> 0.03034537022 | Q15: =$C15*NR_Reihen_Veränderungsraten!Q12 -> 0.02800745507 | R15: =$C15*NR_Reihen_Veränderungsraten!R12 -> 0.03215557206 | S15: =$C15*NR_Reihen_Veränderungsraten!S12 -> 0.03005207314 | T15: =$C15*NR_Reihen_Veränderungsraten!T12 -> 0.03009183815 | U15: =$C15*NR_Reihen_Veränderungsraten!U12 -> 0.02546497168 | V15: =$C15*NR_Reihen_Veränderungsraten!V12 -> 0.03062821621 | W15: =$C15*NR_Reihen_Veränderungsraten!W12 -> 0.03019221539 | X15: =$C15*NR_Reihen_Veränderungsraten!X12 -> 0.02945774405 | Y15: =$C15*NR_Reihen_Veränderungsraten!Y12 -> 0.03294045735 | Z15: =$C15*NR_Reihen_Veränderungsraten!Z12 -> 0.02921395327 | AA15: =$C15*NR_Reihen_Veränderungsraten!AA12 -> 0.02959358335 | AB15: =$C15*NR_Reihen_Veränderungsraten!AB12 -> 0.02944593557 | AC15: =$C15*NR_Reihen_Veränderungsraten!AC12 -> 0.0291510698 | AD15: =$C15*NR_Reihen_Veränderungsraten!AD12 -> 0.02788200627 | AE15: =$C15*NR_Reihen_Veränderungsraten!AE12 ->  | AF15: =$C15*NR_Reihen_Veränderungsraten!AF12 -> 
A16: M74-01 | B16: Freiberufl.,wiss.,techn.DL a.n.g., Veterinärwesen | C16: ='IN_Definition Index'!K16 -> 0.03 | D16: =$C16*NR_Reihen_Veränderungsraten!D13 -> 0.03482929606 | E16: =$C16*NR_Reihen_Veränderungsraten!E13 -> 0.02963696476 | F16: =$C16*NR_Reihen_Veränderungsraten!F13 -> 0.02847858439 | G16: =$C16*NR_Reihen_Veränderungsraten!G13 -> 0.03077044825 | H16: =$C16*NR_Reihen_Veränderungsraten!H13 -> 0.02860553275 | I16: =$C16*NR_Reihen_Veränderungsraten!I13 -> 0.03182696326 | J16: =$C16*NR_Reihen_Veränderungsraten!J13 -> 0.02809594596 | K16: =$C16*NR_Reihen_Veränderungsraten!K13 -> 0.02745105316 | L16: =$C16*NR_Reihen_Veränderungsraten!L13 -> 0.03089927043 | M16: =$C16*NR_Reihen_Veränderungsraten!M13 -> 0.0286406575 | N16: =$C16*NR_Reihen_Veränderungsraten!N13 -> 0.02988999566 | O16: =$C16*NR_Reihen_Veränderungsraten!O13 -> 0.02636006249 | P16: =$C16*NR_Reihen_Veränderungsraten!P13 -> 0.0276834424 | Q16: =$C16*NR_Reihen_Veränderungsraten!Q13 -> 0.03003584116 | R16: =$C16*NR_Reihen_Veränderungsraten!R13 -> 0.03023595017 | S16: =$C16*NR_Reihen_Veränderungsraten!S13 -> 0.02988073091 | T16: =$C16*NR_Reihen_Veränderungsraten!T13 -> 0.0285618582 | U16: =$C16*NR_Reihen_Veränderungsraten!U13 -> 0.02733158434 | V16: =$C16*NR_Reihen_Veränderungsraten!V13 -> 0.02885503227 | W16: =$C16*NR_Reihen_Veränderungsraten!W13 -> 0.02939270234 | X16: =$C16*NR_Reihen_Veränderungsraten!X13 -> 0.03167664702 | Y16: =$C16*NR_Reihen_Veränderungsraten!Y13 -> 0.02995742185 | Z16: =$C16*NR_Reihen_Veränderungsraten!Z13 -> 0.02850792579 | AA16: =$C16*NR_Reihen_Veränderungsraten!AA13 -> 0.03057782159 | AB16: =$C16*NR_Reihen_Veränderungsraten!AB13 -> 0.0369279596 | AC16: =$C16*NR_Reihen_Veränderungsraten!AC13 -> 0.0250829892 | AD16: =$C16*NR_Reihen_Veränderungsraten!AD13 -> 0.03189985447 | AE16: =$C16*NR_Reihen_Veränderungsraten!AE13 ->  | AF16: =$C16*NR_Reihen_Veränderungsraten!AF13 -> 
A17: L | B17: Grundstücks- und Wohnungswesen | C17: ='IN_Definition Index'!K17 -> 0.03 | D17: =$C17*NR_Reihen_Veränderungsraten!D14 -> 0.03047573424 | E17: =$C17*NR_Reihen_Veränderungsraten!E14 -> 0.03040458886 | F17: =$C17*NR_Reihen_Veränderungsraten!F14 -> 0.0305756564 | G17: =$C17*NR_Reihen_Veränderungsraten!G14 -> 0.03169377463 | H17: =$C17*NR_Reihen_Veränderungsraten!H14 -> 0.03162361319 | I17: =$C17*NR_Reihen_Veränderungsraten!I14 -> 0.02997020844 | J17: =$C17*NR_Reihen_Veränderungsraten!J14 -> 0.03008444255 | K17: =$C17*NR_Reihen_Veränderungsraten!K14 -> 0.02890255675 | L17: =$C17*NR_Reihen_Veränderungsraten!L14 -> 0.03030557579 | M17: =$C17*NR_Reihen_Veränderungsraten!M14 -> 0.03054383757 | N17: =$C17*NR_Reihen_Veränderungsraten!N14 -> 0.0302606409 | O17: =$C17*NR_Reihen_Veränderungsraten!O14 -> 0.03002896697 | P17: =$C17*NR_Reihen_Veränderungsraten!P14 -> 0.02960197918 | Q17: =$C17*NR_Reihen_Veränderungsraten!Q14 -> 0.03013951573 | R17: =$C17*NR_Reihen_Veränderungsraten!R14 -> 0.03020261048 | S17: =$C17*NR_Reihen_Veränderungsraten!S14 -> 0.0303390757 | T17: =$C17*NR_Reihen_Veränderungsraten!T14 -> 0.02997243737 | U17: =$C17*NR_Reihen_Veränderungsraten!U14 -> 0.03019153373 | V17: =$C17*NR_Reihen_Veränderungsraten!V14 -> 0.02923914945 | W17: =$C17*NR_Reihen_Veränderungsraten!W14 -> 0.03082529621 | X17: =$C17*NR_Reihen_Veränderungsraten!X14 -> 0.0287775289 | Y17: =$C17*NR_Reihen_Veränderungsraten!Y14 -> 0.03031958979 | Z17: =$C17*NR_Reihen_Veränderungsraten!Z14 -> 0.02969547571 | AA17: =$C17*NR_Reihen_Veränderungsraten!AA14 -> 0.0299800712 | AB17: =$C17*NR_Reihen_Veränderungsraten!AB14 -> 0.0297310325 | AC17: =$C17*NR_Reihen_Veränderungsraten!AC14 -> 0.02950613436 | AD17: =$C17*NR_Reihen_Veränderungsraten!AD14 -> 0.0296526416 | AE17: =$C17*NR_Reihen_Veränderungsraten!AE14 -> 0.02984301668 | AF17: =$C17*NR_Reihen_Veränderungsraten!AF14 -> 
B18: Summe | C18: =SUM(C7:C17) -> 1 | D18: =SUM(D7:D17) -> 0.9989250497 | E18: =SUM(E7:E17) -> 0.9763135084 | F18: 1.036977961 | G18: 1.039993853 | H18: 1.024204379 | I18: 1.032099101 | J18: 1.007294856 | K18: 1.012616104 | L18: 0.9919730518 | M18: 1.018448594 | N18: 1.021789569 | O18: 1.022255258 | P18: 1.043089858 | Q18: 1.035509334 | R18: 1.059976066 | S18: 1.004824614 | T18: 0.9807184622 | U18: 0.926824933 | V18: 1.008918802 | W18: 1.024668009 | X18: 0.9939046781 | Y18: 0.9978742944 | Z18: 1.011651495 | AA18: 0.992153798 | AB18: 1.006865537 | AC18: 0.9929885886 | AD18: 1.00411359
A20: ∆ Arbeitsproduktivität
A22: Nr. (WZ 2008) | B22: Branche | C22: Gewicht | D22: 1992 | E22: =D22+1 -> 1993 | F22: 1994 | G22: 1995 | H22: 1996 | I22: 1997 | J22: 1998 | K22: 1999 | L22: 2000 | M22: 2001 | N22: 2002 | O22: 2003 | P22: 2004 | Q22: 2005 | R22: 2006 | S22: 2007 | T22: 2008 | U22: 2009 | V22: 2010 | W22: 2011 | X22: 2012 | Y22: 2013 | Z22: 2014 | AA22: 2015 | AB22: 2016 | AC22: 2017 | AD22: =AC22+1 -> 2018 | AE22: =AD22+1 -> 2019 | AF22: =AE22+1 -> 2020
A23: C33 | B23: Reparatur und Installation von Maschinen und Ausrüstungen | C23: ='IN_Definition Index'!K7 -> 0.1 | D23: =$C23*NR_Reihen_Veränderungsraten!D19 -> 0.1111928089 | E23: =$C23*NR_Reihen_Veränderungsraten!E19 -> 0.100339901 | F23: =$C23*NR_Reihen_Veränderungsraten!F19 -> 0.1127125794 | G23: =$C23*NR_Reihen_Veränderungsraten!G19 -> 0.1039543034 | H23: =$C23*NR_Reihen_Veränderungsraten!H19 -> 0.1023824495 | I23: =$C23*NR_Reihen_Veränderungsraten!I19 -> 0.1121367235 | J23: =$C23*NR_Reihen_Veränderungsraten!J19 -> 0.1044730275 | K23: =$C23*NR_Reihen_Veränderungsraten!K19 -> 0.107543136 | L23: =$C23*NR_Reihen_Veränderungsraten!L19 -> 0.1073174323 | M23: =$C23*NR_Reihen_Veränderungsraten!M19 -> 0.1003096449 | N23: =$C23*NR_Reihen_Veränderungsraten!N19 -> 0.1047728813 | O23: =$C23*NR_Reihen_Veränderungsraten!O19 -> 0.1091044861 | P23: =$C23*NR_Reihen_Veränderungsraten!P19 -> 0.1106239399 | Q23: =$C23*NR_Reihen_Veränderungsraten!Q19 -> 0.1156964889 | R23: =$C23*NR_Reihen_Veränderungsraten!R19 -> 0.1016245736 | S23: =$C23*NR_Reihen_Veränderungsraten!S19 -> 0.1068108765 | T23: =$C23*NR_Reihen_Veränderungsraten!T19 -> 0.08648566335 | U23: =$C23*NR_Reihen_Veränderungsraten!U19 -> 0.08739772636 | V23: =$C23*NR_Reihen_Veränderungsraten!V19 -> 0.1017068724 | W23: =$C23*NR_Reihen_Veränderungsraten!W19 -> 0.1025270621 | X23: =$C23*NR_Reihen_Veränderungsraten!X19 -> 0.09757433607 | Y23: =$C23*NR_Reihen_Veränderungsraten!Y19 -> 0.09576449934 | Z23: =$C23*NR_Reihen_Veränderungsraten!Z19 -> 0.1010214827 | AA23: =$C23*NR_Reihen_Veränderungsraten!AA19 -> 0.1050833437 | AB23: =$C23*NR_Reihen_Veränderungsraten!AB19 -> 0.09671 | AC23: =$C23*NR_Reihen_Veränderungsraten!AC19 -> 0.09294545569 | AD23: =$C23*NR_Reihen_Veränderungsraten!AD19 -> 0.09600226039 | AE23: =$C23*NR_Reihen_Veränderungsraten!AE19 ->  | AF23: =$C23*NR_Reihen_Veränderungsraten!AF19 -> 
A24: G45 | B24: Handel mit Kraftfahrzeugen; Instandhaltung und Reparatur von Kraftfahrzeugen | C24: ='IN_Definition Index'!K8 -> 0.15 | D24: =$C24*NR_Reihen_Veränderungsraten!D20 -> 0.1539894284 | E24: =$C24*NR_Reihen_Veränderungsraten!E20 -> 0.1248864115 | F24: =$C24*NR_Reihen_Veränderungsraten!F20 -> 0.1524436742 | G24: =$C24*NR_Reihen_Veränderungsraten!G20 -> 0.1515246481 | H24: =$C24*NR_Reihen_Veränderungsraten!H20 -> 0.1485731303 | I24: =$C24*NR_Reihen_Veränderungsraten!I20 -> 0.1530242221 | J24: =$C24*NR_Reihen_Veränderungsraten!J20 -> 0.1522375387 | K24: =$C24*NR_Reihen_Veränderungsraten!K20 -> 0.152143633 | L24: =$C24*NR_Reihen_Veränderungsraten!L20 -> 0.145320014 | M24: =$C24*NR_Reihen_Veränderungsraten!M20 -> 0.1492666071 | N24: =$C24*NR_Reihen_Veränderungsraten!N20 -> 0.1570043489 | O24: =$C24*NR_Reihen_Veränderungsraten!O20 -> 0.1746970224 | P24: =$C24*NR_Reihen_Veränderungsraten!P20 -> 0.1591131471 | Q24: =$C24*NR_Reihen_Veränderungsraten!Q20 -> 0.1511128683 | R24: =$C24*NR_Reihen_Veränderungsraten!R20 -> 0.1593888477 | S24: =$C24*NR_Reihen_Veränderungsraten!S20 -> 0.1417099457 | T24: =$C24*NR_Reihen_Veränderungsraten!T20 -> 0.1549325464 | U24: =$C24*NR_Reihen_Veränderungsraten!U20 -> 0.1523740692 | V24: =$C24*NR_Reihen_Veränderungsraten!V20 -> 0.137545393 | W24: =$C24*NR_Reihen_Veränderungsraten!W20 -> 0.1637382176 | X24: =$C24*NR_Reihen_Veränderungsraten!X20 -> 0.1449094412 | Y24: =$C24*NR_Reihen_Veränderungsraten!Y20 -> 0.1466744349 | Z24: =$C24*NR_Reihen_Veränderungsraten!Z20 -> 0.1562659765 | AA24: =$C24*NR_Reihen_Veränderungsraten!AA20 -> 0.1522235338 | AB24: =$C24*NR_Reihen_Veränderungsraten!AB20 -> 0.1585625 | AC24: =$C24*NR_Reihen_Veränderungsraten!AC20 -> 0.1447823103 | AD24: =$C24*NR_Reihen_Veränderungsraten!AD20 -> 0.147649946 | AE24: =$C24*NR_Reihen_Veränderungsraten!AE20 ->  | AF24: =$C24*NR_Reihen_Veränderungsraten!AF20 -> 
A25: G47 | B25: Einzelhandel (ohne Handel mit Kraftfahrzeugen) | C25: ='IN_Definition Index'!K9 -> 0.1 | D25: =$C25*NR_Reihen_Veränderungsraten!D21 -> 0.1019531407 | E25: =$C25*NR_Reihen_Veränderungsraten!E21 -> 0.09540156029 | F25: =$C25*NR_Reihen_Veränderungsraten!F21 -> 0.101608853 | G25: =$C25*NR_Reihen_Veränderungsraten!G21 -> 0.1015231871 | H25: =$C25*NR_Reihen_Veränderungsraten!H21 -> 0.09816846596 | I25: =$C25*NR_Reihen_Veränderungsraten!I21 -> 0.09890451697 | J25: =$C25*NR_Reihen_Veränderungsraten!J21 -> 0.1000984433 | K25: =$C25*NR_Reihen_Veränderungsraten!K21 -> 0.1005371134 | L25: =$C25*NR_Reihen_Veränderungsraten!L21 -> 0.09919841637 | M25: =$C25*NR_Reihen_Veränderungsraten!M21 -> 0.1025336375 | N25: =$C25*NR_Reihen_Veränderungsraten!N21 -> 0.09630868503 | O25: =$C25*NR_Reihen_Veränderungsraten!O21 -> 0.101652984 | P25: =$C25*NR_Reihen_Veränderungsraten!P21 -> 0.09823257757 | Q25: =$C25*NR_Reihen_Veränderungsraten!Q21 -> 0.09820723031 | R25: =$C25*NR_Reihen_Veränderungsraten!R21 -> 0.1060737419 | S25: =$C25*NR_Reihen_Veränderungsraten!S21 -> 0.09998888219 | T25: =$C25*NR_Reihen_Veränderungsraten!T21 -> 0.09788247679 | U25: =$C25*NR_Reihen_Veränderungsraten!U21 -> 0.1011977927 | V25: =$C25*NR_Reihen_Veränderungsraten!V21 -> 0.1025428564 | W25: =$C25*NR_Reihen_Veränderungsraten!W21 -> 0.09786495874 | X25: =$C25*NR_Reihen_Veränderungsraten!X21 -> 0.1000129057 | Y25: =$C25*NR_Reihen_Veränderungsraten!Y21 -> 0.0997337027 | Z25: =$C25*NR_Reihen_Veränderungsraten!Z21 -> 0.1026767057 | AA25: =$C25*NR_Reihen_Veränderungsraten!AA21 -> 0.1075002451 | AB25: =$C25*NR_Reihen_Veränderungsraten!AB21 -> 0.1028050403 | AC25: =$C25*NR_Reihen_Veränderungsraten!AC21 -> 0.102751933 | AD25: =$C25*NR_Reihen_Veränderungsraten!AD21 -> 0.09938571778 | AE25: =$C25*NR_Reihen_Veränderungsraten!AE21 ->  | AF25: =$C25*NR_Reihen_Veränderungsraten!AF21 -> 
A26: H49 | B26: Landverkehr und Transport in Rohrfernleitungen | C26: ='IN_Definition Index'!K10 -> 0.25 | D26: =$C26*NR_Reihen_Veränderungsraten!D22 -> 0.2424700831 | E26: =$C26*NR_Reihen_Veränderungsraten!E22 -> 0.2563579219 | F26: =$C26*NR_Reihen_Veränderungsraten!F22 -> 0.268319155 | G26: =$C26*NR_Reihen_Veränderungsraten!G22 -> 0.2895392187 | H26: =$C26*NR_Reihen_Veränderungsraten!H22 -> 0.2708544653 | I26: =$C26*NR_Reihen_Veränderungsraten!I22 -> 0.2473106043 | J26: =$C26*NR_Reihen_Veränderungsraten!J22 -> 0.2464378487 | K26: =$C26*NR_Reihen_Veränderungsraten!K22 -> 0.280416598 | L26: =$C26*NR_Reihen_Veränderungsraten!L22 -> 0.2389469828 | M26: =$C26*NR_Reihen_Veränderungsraten!M22 -> 0.2480331818 | N26: =$C26*NR_Reihen_Veränderungsraten!N22 -> 0.2463430523 | O26: =$C26*NR_Reihen_Veränderungsraten!O22 -> 0.2397256603 | P26: =$C26*NR_Reihen_Veränderungsraten!P22 -> 0.249483653 | Q26: =$C26*NR_Reihen_Veränderungsraten!Q22 -> 0.264301988 | R26: =$C26*NR_Reihen_Veränderungsraten!R22 -> 0.2724586223 | S26: =$C26*NR_Reihen_Veränderungsraten!S22 -> 0.2509755743 | T26: =$C26*NR_Reihen_Veränderungsraten!T22 -> 0.2534609259 | U26: =$C26*NR_Reihen_Veränderungsraten!U22 -> 0.2289724806 | V26: =$C26*NR_Reihen_Veränderungsraten!V22 -> 0.2528700796 | W26: =$C26*NR_Reihen_Veränderungsraten!W22 -> 0.2595596489 | X26: =$C26*NR_Reihen_Veränderungsraten!X22 -> 0.2501151865 | Y26: =$C26*NR_Reihen_Veränderungsraten!Y22 -> 0.2460581224 | Z26: =$C26*NR_Reihen_Veränderungsraten!Z22 -> 0.2549947908 | AA26: =$C26*NR_Reihen_Veränderungsraten!AA22 -> 0.240375391 | AB26: =$C26*NR_Reihen_Veränderungsraten!AB22 -> 0.2417805921 | AC26: =$C26*NR_Reihen_Veränderungsraten!AC22 -> 0.2537875482 | AD26: =$C26*NR_Reihen_Veränderungsraten!AD22 -> 0.2542987298 | AE26: =$C26*NR_Reihen_Veränderungsraten!AE22 ->  | AF26: =$C26*NR_Reihen_Veränderungsraten!AF22 -> 
A27: H52 | B27: Lagerei sowie Erbringung von sonstigen Dienstleistungen für den Verkehr | C27: ='IN_Definition Index'!K11 -> 0.25 | D27: =$C27*NR_Reihen_Veränderungsraten!D23 -> 0.2436144013 | E27: =$C27*NR_Reihen_Veränderungsraten!E23 -> 0.2507408262 | F27: =$C27*NR_Reihen_Veränderungsraten!F23 -> 0.2626765154 | G27: =$C27*NR_Reihen_Veränderungsraten!G23 -> 0.2481498096 | H27: =$C27*NR_Reihen_Veränderungsraten!H23 -> 0.2601695298 | I27: =$C27*NR_Reihen_Veränderungsraten!I23 -> 0.2741838437 | J27: =$C27*NR_Reihen_Veränderungsraten!J23 -> 0.2566291544 | K27: =$C27*NR_Reihen_Veränderungsraten!K23 -> 0.2168870151 | L27: =$C27*NR_Reihen_Veränderungsraten!L23 -> 0.2552331108 | M27: =$C27*NR_Reihen_Veränderungsraten!M23 -> 0.2772878157 | N27: =$C27*NR_Reihen_Veränderungsraten!N23 -> 0.2763187572 | O27: =$C27*NR_Reihen_Veränderungsraten!O23 -> 0.2571360797 | P27: =$C27*NR_Reihen_Veränderungsraten!P23 -> 0.2828605363 | Q27: =$C27*NR_Reihen_Veränderungsraten!Q23 -> 0.2627484164 | R27: =$C27*NR_Reihen_Veränderungsraten!R23 -> 0.2665276943 | S27: =$C27*NR_Reihen_Veränderungsraten!S23 -> 0.2481456089 | T27: =$C27*NR_Reihen_Veränderungsraten!T23 -> 0.2395878934 | U27: =$C27*NR_Reihen_Veränderungsraten!U23 -> 0.2249215547 | V27: =$C27*NR_Reihen_Veränderungsraten!V23 -> 0.2694400153 | W27: =$C27*NR_Reihen_Veränderungsraten!W23 -> 0.2441104144 | X27: =$C27*NR_Reihen_Veränderungsraten!X23 -> 0.2480782745 | Y27: =$C27*NR_Reihen_Veränderungsraten!Y23 -> 0.2544118117 | Z27: =$C27*NR_Reihen_Veränderungsraten!Z23 -> 0.2482265115 | AA27: =$C27*NR_Reihen_Veränderungsraten!AA23 -> 0.2367013636 | AB27: =$C27*NR_Reihen_Veränderungsraten!AB23 -> 0.2493635922 | AC27: =$C27*NR_Reihen_Veränderungsraten!AC23 -> 0.2516880323 | AD27: =$C27*NR_Reihen_Veränderungsraten!AD23 -> 0.2534916303 | AE27: =$C27*NR_Reihen_Veränderungsraten!AE23 ->  | AF27: =$C27*NR_Reihen_Veränderungsraten!AF23 -> 
A28: J61 | B28: Telekommunikation | C28: ='IN_Definition Index'!K12 -> 0 | D28: =$C28*NR_Reihen_Veränderungsraten!D24 -> 0 | E28: =$C28*NR_Reihen_Veränderungsraten!E24 -> 0 | F28: =$C28*NR_Reihen_Veränderungsraten!F24 -> 0 | G28: =$C28*NR_Reihen_Veränderungsraten!G24 -> 0 | H28: =$C28*NR_Reihen_Veränderungsraten!H24 -> 0 | I28: =$C28*NR_Reihen_Veränderungsraten!I24 -> 0 | J28: =$C28*NR_Reihen_Veränderungsraten!J24 -> 0 | K28: =$C28*NR_Reihen_Veränderungsraten!K24 -> 0 | L28: =$C28*NR_Reihen_Veränderungsraten!L24 -> 0 | M28: =$C28*NR_Reihen_Veränderungsraten!M24 -> 0 | N28: =$C28*NR_Reihen_Veränderungsraten!N24 -> 0 | O28: =$C28*NR_Reihen_Veränderungsraten!O24 -> 0 | P28: =$C28*NR_Reihen_Veränderungsraten!P24 -> 0 | Q28: =$C28*NR_Reihen_Veränderungsraten!Q24 -> 0 | R28: =$C28*NR_Reihen_Veränderungsraten!R24 -> 0 | S28: =$C28*NR_Reihen_Veränderungsraten!S24 -> 0 | T28: =$C28*NR_Reihen_Veränderungsraten!T24 -> 0 | U28: =$C28*NR_Reihen_Veränderungsraten!U24 -> 0 | V28: =$C28*NR_Reihen_Veränderungsraten!V24 -> 0 | W28: =$C28*NR_Reihen_Veränderungsraten!W24 -> 0 | X28: =$C28*NR_Reihen_Veränderungsraten!X24 -> 0 | Y28: =$C28*NR_Reihen_Veränderungsraten!Y24 -> 0 | Z28: =$C28*NR_Reihen_Veränderungsraten!Z24 -> 0 | AA28: =$C28*NR_Reihen_Veränderungsraten!AA24 -> 0 | AB28: =$C28*NR_Reihen_Veränderungsraten!AB24 -> 0 | AC28: =$C28*NR_Reihen_Veränderungsraten!AC24 -> 0 | AD28: =$C28*NR_Reihen_Veränderungsraten!AD24 -> 0 | AE28: =$C28*NR_Reihen_Veränderungsraten!AE24 ->  | AF28: =$C28*NR_Reihen_Veränderungsraten!AF24 -> 
A29: J62-01 | B29: IT- und Informationsdienstleister | C29: ='IN_Definition Index'!K13 -> 0.03 | D29: =$C29*NR_Reihen_Veränderungsraten!D25 -> 0.03034044273 | E29: =$C29*NR_Reihen_Veränderungsraten!E25 -> 0.03197934151 | F29: =$C29*NR_Reihen_Veränderungsraten!F25 -> 0.02718023256 | G29: =$C29*NR_Reihen_Veränderungsraten!G25 -> 0.03067422318 | H29: =$C29*NR_Reihen_Veränderungsraten!H25 -> 0.03278691708 | I29: =$C29*NR_Reihen_Veränderungsraten!I25 -> 0.03278329035 | J29: =$C29*NR_Reihen_Veränderungsraten!J25 -> 0.03418260859 | K29: =$C29*NR_Reihen_Veränderungsraten!K25 -> 0.02806607027 | L29: =$C29*NR_Reihen_Veränderungsraten!L25 -> 0.0294541957 | M29: =$C29*NR_Reihen_Veränderungsraten!M25 -> 0.03186830819 | N29: =$C29*NR_Reihen_Veränderungsraten!N25 -> 0.03037023924 | O29: =$C29*NR_Reihen_Veränderungsraten!O25 -> 0.02868694715 | P29: =$C29*NR_Reihen_Veränderungsraten!P25 -> 0.03027821241 | Q29: =$C29*NR_Reihen_Veränderungsraten!Q25 -> 0.03081154903 | R29: =$C29*NR_Reihen_Veränderungsraten!R25 -> 0.03214934458 | S29: =$C29*NR_Reihen_Veränderungsraten!S25 -> 0.03529812805 | T29: =$C29*NR_Reihen_Veränderungsraten!T25 -> 0.03049730744 | U29: =$C29*NR_Reihen_Veränderungsraten!U25 -> 0.0293685729 | V29: =$C29*NR_Reihen_Veränderungsraten!V25 -> 0.03049549655 | W29: =$C29*NR_Reihen_Veränderungsraten!W25 -> 0.03422507213 | X29: =$C29*NR_Reihen_Veränderungsraten!X25 -> 0.03094499979 | Y29: =$C29*NR_Reihen_Veränderungsraten!Y25 -> 0.03212190936 | Z29: =$C29*NR_Reihen_Veränderungsraten!Z25 -> 0.03111069472 | AA29: =$C29*NR_Reihen_Veränderungsraten!AA25 -> 0.0297410886 | AB29: =$C29*NR_Reihen_Veränderungsraten!AB25 -> 0.03071130477 | AC29: =$C29*NR_Reihen_Veränderungsraten!AC25 -> 0.03034714957 | AD29: =$C29*NR_Reihen_Veränderungsraten!AD25 -> 0.03171753791 | AE29: =$C29*NR_Reihen_Veränderungsraten!AE25 ->  | AF29: =$C29*NR_Reihen_Veränderungsraten!AF25 -> 
A30: M69-01 | B30: Unternehmensnahe Beratungsleistungen | C30: ='IN_Definition Index'!K14 -> 0.03 | D30: =$C30*NR_Reihen_Veränderungsraten!D26 -> 0.03050388934 | E30: =$C30*NR_Reihen_Veränderungsraten!E26 -> 0.03141557971 | F30: =$C30*NR_Reihen_Veränderungsraten!F26 -> 0.02879200814 | G30: =$C30*NR_Reihen_Veränderungsraten!G26 -> 0.02960011953 | H30: =$C30*NR_Reihen_Veränderungsraten!H26 -> 0.02927199757 | I30: =$C30*NR_Reihen_Veränderungsraten!I26 -> 0.02789732804 | J30: =$C30*NR_Reihen_Veränderungsraten!J26 -> 0.02993331994 | K30: =$C30*NR_Reihen_Veränderungsraten!K26 -> 0.02952175903 | L30: =$C30*NR_Reihen_Veränderungsraten!L26 -> 0.02906530539 | M30: =$C30*NR_Reihen_Veränderungsraten!M26 -> 0.03124169258 | N30: =$C30*NR_Reihen_Veränderungsraten!N26 -> 0.02993533087 | O30: =$C30*NR_Reihen_Veränderungsraten!O26 -> 0.0293499792 | P30: =$C30*NR_Reihen_Veränderungsraten!P26 -> 0.02768987811 | Q30: =$C30*NR_Reihen_Veränderungsraten!Q26 -> 0.02971150377 | R30: =$C30*NR_Reihen_Veränderungsraten!R26 -> 0.03002745076 | S30: =$C30*NR_Reihen_Veränderungsraten!S26 -> 0.02972921191 | T30: =$C30*NR_Reihen_Veränderungsraten!T26 -> 0.02955849233 | U30: =$C30*NR_Reihen_Veränderungsraten!U26 -> 0.02556613519 | V30: =$C30*NR_Reihen_Veränderungsraten!V26 -> 0.0298926528 | W30: =$C30*NR_Reihen_Veränderungsraten!W26 -> 0.02956131362 | X30: =$C30*NR_Reihen_Veränderungsraten!X26 -> 0.03015525967 | Y30: =$C30*NR_Reihen_Veränderungsraten!Y26 -> 0.02887140943 | Z30: =$C30*NR_Reihen_Veränderungsraten!Z26 -> 0.02930566865 | AA30: =$C30*NR_Reihen_Veränderungsraten!AA26 -> 0.03001070342 | AB30: =$C30*NR_Reihen_Veränderungsraten!AB26 -> 0.02969833747 | AC30: =$C30*NR_Reihen_Veränderungsraten!AC26 -> 0.03229984578 | AD30: =$C30*NR_Reihen_Veränderungsraten!AD26 -> 0.02947781177 | AE30: =$C30*NR_Reihen_Veränderungsraten!AE26 ->  | AF30: =$C30*NR_Reihen_Veränderungsraten!AF26 -> 
A31: M73 | B31: Werbung und Marktforschung | C31: ='IN_Definition Index'!K15 -> 0.03 | D31: =$C31*NR_Reihen_Veränderungsraten!D27 -> 0.02821680117 | E31: =$C31*NR_Reihen_Veränderungsraten!E27 -> 0.03068571638 | F31: =$C31*NR_Reihen_Veränderungsraten!F27 -> 0.02775332373 | G31: =$C31*NR_Reihen_Veränderungsraten!G27 -> 0.02832082486 | H31: =$C31*NR_Reihen_Veränderungsraten!H27 -> 0.02616034479 | I31: =$C31*NR_Reihen_Veränderungsraten!I27 -> 0.02890749484 | J31: =$C31*NR_Reihen_Veränderungsraten!J27 -> 0.0253649748 | K31: =$C31*NR_Reihen_Veränderungsraten!K27 -> 0.02779127734 | L31: =$C31*NR_Reihen_Veränderungsraten!L27 -> 0.02608530435 | M31: =$C31*NR_Reihen_Veränderungsraten!M27 -> 0.0243098694 | N31: =$C31*NR_Reihen_Veränderungsraten!N27 -> 0.02550280167 | O31: =$C31*NR_Reihen_Veränderungsraten!O27 -> 0.0304537055 | P31: =$C31*NR_Reihen_Veränderungsraten!P27 -> 0.02959047422 | Q31: =$C31*NR_Reihen_Veränderungsraten!Q27 -> 0.02755009262 | R31: =$C31*NR_Reihen_Veränderungsraten!R27 -> 0.03148796955 | S31: =$C31*NR_Reihen_Veränderungsraten!S27 -> 0.03015258138 | T31: =$C31*NR_Reihen_Veränderungsraten!T27 -> 0.03092212133 | U31: =$C31*NR_Reihen_Veränderungsraten!U27 -> 0.02655016476 | V31: =$C31*NR_Reihen_Veränderungsraten!V27 -> 0.03115209147 | W31: =$C31*NR_Reihen_Veränderungsraten!W27 -> 0.03042009885 | X31: =$C31*NR_Reihen_Veränderungsraten!X27 -> 0.02949735987 | Y31: =$C31*NR_Reihen_Veränderungsraten!Y27 -> 0.03312110096 | Z31: =$C31*NR_Reihen_Veränderungsraten!Z27 -> 0.02938492588 | AA31: =$C31*NR_Reihen_Veränderungsraten!AA27 -> 0.02980990818 | AB31: =$C31*NR_Reihen_Veränderungsraten!AB27 -> 0.029441412 | AC31: =$C31*NR_Reihen_Veränderungsraten!AC27 -> 0.02924939839 | AD31: =$C31*NR_Reihen_Veränderungsraten!AD27 -> 0.02812938695 | AE31: =$C31*NR_Reihen_Veränderungsraten!AE27 ->  | AF31: =$C31*NR_Reihen_Veränderungsraten!AF27 -> 
A32: M74-01 | B32: Freiberufl.,wiss.,techn.DL a.n.g., Veterinärwesen | C32: ='IN_Definition Index'!K16 -> 0.03 | D32: =$C32*NR_Reihen_Veränderungsraten!D28 -> 0.0323119228 | E32: =$C32*NR_Reihen_Veränderungsraten!E28 -> 0.02776046833 | F32: =$C32*NR_Reihen_Veränderungsraten!F28 -> 0.02659324762 | G32: =$C32*NR_Reihen_Veränderungsraten!G28 -> 0.02895420231 | H32: =$C32*NR_Reihen_Veränderungsraten!H28 -> 0.02727376197 | I32: =$C32*NR_Reihen_Veränderungsraten!I28 -> 0.03006308166 | J32: =$C32*NR_Reihen_Veränderungsraten!J28 -> 0.02679631535 | K32: =$C32*NR_Reihen_Veränderungsraten!K28 -> 0.0267814099 | L32: =$C32*NR_Reihen_Veränderungsraten!L28 -> 0.02986806764 | M32: =$C32*NR_Reihen_Veränderungsraten!M28 -> 0.02817278763 | N32: =$C32*NR_Reihen_Veränderungsraten!N28 -> 0.02955306893 | O32: =$C32*NR_Reihen_Veränderungsraten!O28 -> 0.02568675035 | P32: =$C32*NR_Reihen_Veränderungsraten!P28 -> 0.02711966502 | Q32: =$C32*NR_Reihen_Veränderungsraten!Q28 -> 0.02955937909 | R32: =$C32*NR_Reihen_Veränderungsraten!R28 -> 0.0300106413 | S32: =$C32*NR_Reihen_Veränderungsraten!S28 -> 0.02988902754 | T32: =$C32*NR_Reihen_Veränderungsraten!T28 -> 0.02846035247 | U32: =$C32*NR_Reihen_Veränderungsraten!U28 -> 0.02656211491 | V32: =$C32*NR_Reihen_Veränderungsraten!V28 -> 0.02857781576 | W32: =$C32*NR_Reihen_Veränderungsraten!W28 -> 0.02926434261 | X32: =$C32*NR_Reihen_Veränderungsraten!X28 -> 0.03157377158 | Y32: =$C32*NR_Reihen_Veränderungsraten!Y28 -> 0.02980416842 | Z32: =$C32*NR_Reihen_Veränderungsraten!Z28 -> 0.02864007387 | AA32: =$C32*NR_Reihen_Veränderungsraten!AA28 -> 0.03067675407 | AB32: =$C32*NR_Reihen_Veränderungsraten!AB28 -> 0.03717175325 | AC32: =$C32*NR_Reihen_Veränderungsraten!AC28 -> 0.02539494646 | AD32: =$C32*NR_Reihen_Veränderungsraten!AD28 -> 0.03201357041 | AE32: =$C32*NR_Reihen_Veränderungsraten!AE28 ->  | AF32: =$C32*NR_Reihen_Veränderungsraten!AF28 -> 
A33: L | B33: Grundstücks- und Wohnungswesen | C33: ='IN_Definition Index'!K17 -> 0.03 | D33: =$C33*NR_Reihen_Veränderungsraten!D29 -> 0.02937190604 | E33: =$C33*NR_Reihen_Veränderungsraten!E29 -> 0.02917056392 | F33: =$C33*NR_Reihen_Veränderungsraten!F29 -> 0.02965868042 | G33: =$C33*NR_Reihen_Veränderungsraten!G29 -> 0.03074679468 | H33: =$C33*NR_Reihen_Veränderungsraten!H29 -> 0.03146427521 | I33: =$C33*NR_Reihen_Veränderungsraten!I29 -> 0.02853782977 | J33: =$C33*NR_Reihen_Veränderungsraten!J29 -> 0.02859291068 | K33: =$C33*NR_Reihen_Veränderungsraten!K29 -> 0.02808209643 | L33: =$C33*NR_Reihen_Veränderungsraten!L29 -> 0.03044982132 | M33: =$C33*NR_Reihen_Veränderungsraten!M29 -> 0.03164529012 | N33: =$C33*NR_Reihen_Veränderungsraten!N29 -> 0.03082342007 | O33: =$C33*NR_Reihen_Veränderungsraten!O29 -> 0.03063359884 | P33: =$C33*NR_Reihen_Veränderungsraten!P29 -> 0.0299593403 | Q33: =$C33*NR_Reihen_Veränderungsraten!Q29 -> 0.03045044016 | R33: =$C33*NR_Reihen_Veränderungsraten!R29 -> 0.03025070134 | S33: =$C33*NR_Reihen_Veränderungsraten!S29 -> 0.03067636946 | T33: =$C33*NR_Reihen_Veränderungsraten!T29 -> 0.03025985567 | U33: =$C33*NR_Reihen_Veränderungsraten!U29 -> 0.03142685146 | V33: =$C33*NR_Reihen_Veränderungsraten!V29 -> 0.02972253722 | W33: =$C33*NR_Reihen_Veränderungsraten!W29 -> 0.03147619445 | X33: =$C33*NR_Reihen_Veränderungsraten!X29 -> 0.02907594178 | Y33: =$C33*NR_Reihen_Veränderungsraten!Y29 -> 0.03072161135 | Z33: =$C33*NR_Reihen_Veränderungsraten!Z29 -> 0.02997178808 | AA33: =$C33*NR_Reihen_Veränderungsraten!AA29 -> 0.03041670891 | AB33: =$C33*NR_Reihen_Veränderungsraten!AB29 -> 0.03023259957 | AC33: =$C33*NR_Reihen_Veränderungsraten!AC29 -> 0.02957821401 | AD33: =$C33*NR_Reihen_Veränderungsraten!AD29 -> 0.0298461869 | AE33: =$C33*NR_Reihen_Veränderungsraten!AE29 -> 0.03005171608 | AF33: =$C33*NR_Reihen_Veränderungsraten!AF29 -> 0.03004293462
B34: Summe | C34: =SUM(C23:C33) -> 1 | D34: =SUM(D23:D33) -> 1.003964825 | E34: =SUM(E23:E33) -> 0.9787382907 | F34: =SUM(F23:F33) -> 1.037738269 | G34: =SUM(G23:G33) -> 1.042987331 | H34: =SUM(H23:H33) -> 1.027105337 | I34: =SUM(I23:I33) -> 1.033748935 | J34: =SUM(J23:J33) -> 1.004746142 | K34: =SUM(K23:K33) -> 0.9977701084 | L34: =SUM(L23:L33) -> 0.9909386507 | M34: =SUM(M23:M33) -> 1.024668835 | N34: =SUM(N23:N33) -> 1.026932585 | O34: =SUM(O23:O33) -> 1.027127214 | P34: =SUM(P23:P33) -> 1.044951424 | Q34: =SUM(Q23:Q33) -> 1.040149957 | R34: =SUM(R23:R33) -> 1.059999587 | S34: =SUM(S23:S33) -> 1.003376206 | T34: =SUM(T23:T33) -> 0.9820476351 | U34: =SUM(U23:U33) -> 0.9343374627 | V34: =SUM(V23:V33) -> 1.013945811 | W34: =SUM(W23:W33) -> 1.022747323 | X34: =SUM(X23:X33) -> 0.9919374767 | Y34: =SUM(Y23:Y33) -> 0.9972827705 | Z34: =SUM(Z23:Z33) -> 1.011598618 | AA34: =SUM(AA23:AA33) -> 0.9925390404 | AB34: =SUM(AB23:AB33) -> 1.006477132 | AC34: =SUM(AC23:AC33) -> 0.9928248338 | AD34: 1.002012778
A36: Synthetischer Index Einzelprozesse
A38: ∆ TFP
A40: Annahme
A42: Nr. (WZ 2008) | B42: Branche | C42: Verwendung | D42: 1992 | E42: =D42+1 -> 1993 | F42: =E42+1 -> 1994 | G42: =F42+1 -> 1995 | H42: =G42+1 -> 1996 | I42: =H42+1 -> 1997 | J42: =I42+1 -> 1998 | K42: =J42+1 -> 1999 | L42: =K42+1 -> 2000 | M42: =L42+1 -> 2001 | N42: =M42+1 -> 2002 | O42: =N42+1 -> 2003 | P42: =O42+1 -> 2004 | Q42: =P42+1 -> 2005 | R42: =Q42+1 -> 2006 | S42: =R42+1 -> 2007 | T42: =S42+1 -> 2008 | U42: =T42+1 -> 2009 | V42: =U42+1 -> 2010 | W42: =V42+1 -> 2011 | X42: =W42+1 -> 2012 | Y42: =X42+1 -> 2013 | Z42: =Y42+1 -> 2014 | AA42: =Z42+1 -> 2015 | AB42: =AA42+1 -> 2016 | AC42: =AB42+1 -> 2017 | AD42: =AC42+1 -> 2018 | AE42: =AD42+1 -> 2019 | AF42: =AE42+1 -> 2020
A43: C33 | B43: Reparatur und Installation von Maschinen und Ausrüstungen | C43: ='IN_Definition Index'!E7 -> 0 | D43: =IF($C43=1,'IN_Definition Index'!$E$19*NR_Reihen_Veränderungsraten!D4,) -> 0 | E43: =IF($C43=1,'IN_Definition Index'!$E$19*NR_Reihen_Veränderungsraten!E4,) -> 0 | F43: =IF($C43=1,'IN_Definition Index'!$E$19*NR_Reihen_Veränderungsraten!F4,) -> 0 | G43: =IF($C43=1,'IN_Definition Index'!$E$19*NR_Reihen_Veränderungsraten!G4,) -> 0 | H43: =IF($C43=1,'IN_Definition Index'!$E$19*NR_Reihen_Veränderungsraten!H4,) -> 0 | I43: =IF($C43=1,'IN_Definition Index'!$E$19*NR_Reihen_Veränderungsraten!I4,) -> 0 | J43: =IF($C43=1,'IN_Definition Index'!$E$19*NR_Reihen_Veränderungsraten!J4,) -> 0 | K43: =IF($C43=1,'IN_Definition Index'!$E$19*NR_Reihen_Veränderungsraten!K4,) -> 0 | L43: =IF($C43=1,'IN_Definition Index'!$E$19*NR_Reihen_Veränderungsraten!L4,) -> 0 | M43: =IF($C43=1,'IN_Definition Index'!$E$19*NR_Reihen_Veränderungsraten!M4,) -> 0 | N43: =IF($C43=1,'IN_Definition Index'!$E$19*NR_Reihen_Veränderungsraten!N4,) -> 0 | O43: =IF($C43=1,'IN_Definition Index'!$E$19*NR_Reihen_Veränderungsraten!O4,) -> 0 | P43: =IF($C43=1,'IN_Definition Index'!$E$19*NR_Reihen_Veränderungsraten!P4,) -> 0 | Q43: =IF($C43=1,'IN_Definition Index'!$E$19*NR_Reihen_Veränderungsraten!Q4,) -> 0 | R43: =IF($C43=1,'IN_Definition Index'!$E$19*NR_Reihen_Veränderungsraten!R4,) -> 0 | S43: =IF($C43=1,'IN_Definition Index'!$E$19*NR_Reihen_Veränderungsraten!S4,) -> 0 | T43: =IF($C43=1,'IN_Definition Index'!$E$19*NR_Reihen_Veränderungsraten!T4,) -> 0 | U43: =IF($C43=1,'IN_Definition Index'!$E$19*NR_Reihen_Veränderungsraten!U4,) -> 0 | V43: =IF($C43=1,'IN_Definition Index'!$E$19*NR_Reihen_Veränderungsraten!V4,) -> 0 | W43: =IF($C43=1,'IN_Definition Index'!$E$19*NR_Reihen_Veränderungsraten!W4,) -> 0 | X43: =IF($C43=1,'IN_Definition Index'!$E$19*NR_Reihen_Veränderungsraten!X4,) -> 0 | Y43: =IF($C43=1,'IN_Definition Index'!$E$19*NR_Reihen_Veränderungsraten!Y4,) -> 0 | Z43: =IF($C43=1,'IN_Definition Index'!$E$19*NR_Reihen_Veränderungsraten!Z4,) -> 0 | AA43: =IF($C43=1,'IN_Definition Index'!$E$19*NR_Reihen_Veränderungsraten!AA4,) -> 0 | AB43: =IF($C43=1,'IN_Definition Index'!$E$19*NR_Reihen_Veränderungsraten!AB4,) -> 0 | AC43: =IF($C43=1,'IN_Definition Index'!$E$19*NR_Reihen_Veränderungsraten!AC4,) -> 0 | AD43: =IF($C43=1,'IN_Definition Index'!$E$19*NR_Reihen_Veränderungsraten!AD4,) -> 0 | AE43: =IF($C43=1,'IN_Definition Index'!$E$19*NR_Reihen_Veränderungsraten!AE4,) -> 0 | AF43: =IF($C43=1,'IN_Definition Index'!$E$19*NR_Reihen_Veränderungsraten!AF4,) -> 0
A44: G45 | B44: Handel mit Kraftfahrzeugen; Instandhaltung und Reparatur von Kraftfahrzeugen | C44: ='IN_Definition Index'!E8 -> 0 | D44: =IF($C44=1,'IN_Definition Index'!$E$19*NR_Reihen_Veränderungsraten!D5,) -> 0 | E44: =IF($C44=1,'IN_Definition Index'!$E$19*NR_Reihen_Veränderungsraten!E5,) -> 0 | F44: =IF($C44=1,'IN_Definition Index'!$E$19*NR_Reihen_Veränderungsraten!F5,) -> 0 | G44: =IF($C44=1,'IN_Definition Index'!$E$19*NR_Reihen_Veränderungsraten!G5,) -> 0 | H44: =IF($C44=1,'IN_Definition Index'!$E$19*NR_Reihen_Veränderungsraten!H5,) -> 0 | I44: =IF($C44=1,'IN_Definition Index'!$E$19*NR_Reihen_Veränderungsraten!I5,) -> 0 | J44: =IF($C44=1,'IN_Definition Index'!$E$19*NR_Reihen_Veränderungsraten!J5,) -> 0 | K44: =IF($C44=1,'IN_Definition Index'!$E$19*NR_Reihen_Veränderungsraten!K5,) -> 0 | L44: =IF($C44=1,'IN_Definition Index'!$E$19*NR_Reihen_Veränderungsraten!L5,) -> 0 | M44: =IF($C44=1,'IN_Definition Index'!$E$19*NR_Reihen_Veränderungsraten!M5,) -> 0 | N44: =IF($C44=1,'IN_Definition Index'!$E$19*NR_Reihen_Veränderungsraten!N5,) -> 0 | O44: =IF($C44=1,'IN_Definition Index'!$E$19*NR_Reihen_Veränderungsraten!O5,) -> 0 | P44: =IF($C44=1,'IN_Definition Index'!$E$19*NR_Reihen_Veränderungsraten!P5,) -> 0 | Q44: =IF($C44=1,'IN_Definition Index'!$E$19*NR_Reihen_Veränderungsraten!Q5,) -> 0 | R44: =IF($C44=1,'IN_Definition Index'!$E$19*NR_Reihen_Veränderungsraten!R5,) -> 0 | S44: =IF($C44=1,'IN_Definition Index'!$E$19*NR_Reihen_Veränderungsraten!S5,) -> 0 | T44: =IF($C44=1,'IN_Definition Index'!$E$19*NR_Reihen_Veränderungsraten!T5,) -> 0 | U44: =IF($C44=1,'IN_Definition Index'!$E$19*NR_Reihen_Veränderungsraten!U5,) -> 0 | V44: =IF($C44=1,'IN_Definition Index'!$E$19*NR_Reihen_Veränderungsraten!V5,) -> 0 | W44: =IF($C44=1,'IN_Definition Index'!$E$19*NR_Reihen_Veränderungsraten!W5,) -> 0 | X44: =IF($C44=1,'IN_Definition Index'!$E$19*NR_Reihen_Veränderungsraten!X5,) -> 0 | Y44: =IF($C44=1,'IN_Definition Index'!$E$19*NR_Reihen_Veränderungsraten!Y5,) -> 0 | Z44: =IF($C44=1,'IN_Definition Index'!$E$19*NR_Reihen_Veränderungsraten!Z5,) -> 0 | AA44: =IF($C44=1,'IN_Definition Index'!$E$19*NR_Reihen_Veränderungsraten!AA5,) -> 0 | AB44: =IF($C44=1,'IN_Definition Index'!$E$19*NR_Reihen_Veränderungsraten!AB5,) -> 0 | AC44: =IF($C44=1,'IN_Definition Index'!$E$19*NR_Reihen_Veränderungsraten!AC5,) -> 0 | AD44: =IF($C44=1,'IN_Definition Index'!$E$19*NR_Reihen_Veränderungsraten!AD5,) -> 0 | AE44: =IF($C44=1,'IN_Definition Index'!$E$19*NR_Reihen_Veränderungsraten!AE5,) -> 0 | AF44: =IF($C44=1,'IN_Definition Index'!$E$19*NR_Reihen_Veränderungsraten!AF5,) -> 0
A45: G47 | B45: Einzelhandel (ohne Handel mit Kraftfahrzeugen) | C45: ='IN_Definition Index'!E9 -> 1 | D45: =IF($C45=1,'IN_Definition Index'!$E$19*NR_Reihen_Veränderungsraten!D6,) -> 1.002810911 | E45: =IF($C45=1,'IN_Definition Index'!$E$19*NR_Reihen_Veränderungsraten!E6,) -> 0.9412436261 | F45: =IF($C45=1,'IN_Definition Index'!$E$19*NR_Reihen_Veränderungsraten!F6,) -> 1.007764467 | G45: =IF($C45=1,'IN_Definition Index'!$E$19*NR_Reihen_Veränderungsraten!G6,) -> 1.006043062 | H45: =IF($C45=1,'IN_Definition Index'!$E$19*NR_Reihen_Veränderungsraten!H6,) -> 0.9733670782 | I45: =IF($C45=1,'IN_Definition Index'!$E$19*NR_Reihen_Veränderungsraten!I6,) -> 0.9802611751 | J45: =IF($C45=1,'IN_Definition Index'!$E$19*NR_Reihen_Veränderungsraten!J6,) -> 0.9920277966 | K45: =IF($C45=1,'IN_Definition Index'!$E$19*NR_Reihen_Veränderungsraten!K6,) -> 0.9970707344 | L45: =IF($C45=1,'IN_Definition Index'!$E$19*NR_Reihen_Veränderungsraten!L6,) -> 0.9870009776 | M45: =IF($C45=1,'IN_Definition Index'!$E$19*NR_Reihen_Veränderungsraten!M6,) -> 1.015169016 | N45: =IF($C45=1,'IN_Definition Index'!$E$19*NR_Reihen_Veränderungsraten!N6,) -> 0.9583818089 | O45: =IF($C45=1,'IN_Definition Index'!$E$19*NR_Reihen_Veränderungsraten!O6,) -> 1.007514735 | P45: =IF($C45=1,'IN_Definition Index'!$E$19*NR_Reihen_Veränderungsraten!P6,) -> 0.9830385823 | Q45: =IF($C45=1,'IN_Definition Index'!$E$19*NR_Reihen_Veränderungsraten!Q6,) -> 0.9780223796 | R45: =IF($C45=1,'IN_Definition Index'!$E$19*NR_Reihen_Veränderungsraten!R6,) -> 1.058462295 | S45: =IF($C45=1,'IN_Definition Index'!$E$19*NR_Reihen_Veränderungsraten!S6,) -> 0.9987653366 | T45: =IF($C45=1,'IN_Definition Index'!$E$19*NR_Reihen_Veränderungsraten!T6,) -> 0.9777632084 | U45: =IF($C45=1,'IN_Definition Index'!$E$19*NR_Reihen_Veränderungsraten!U6,) -> 1.010251332 | V45: =IF($C45=1,'IN_Definition Index'!$E$19*NR_Reihen_Veränderungsraten!V6,) -> 1.024177346 | W45: =IF($C45=1,'IN_Definition Index'!$E$19*NR_Reihen_Veränderungsraten!W6,) -> 0.9777208145 | X45: =IF($C45=1,'IN_Definition Index'!$E$19*NR_Reihen_Veränderungsraten!X6,) -> 0.9985757821 | Y45: =IF($C45=1,'IN_Definition Index'!$E$19*NR_Reihen_Veränderungsraten!Y6,) -> 0.9955524698 | Z45: =IF($C45=1,'IN_Definition Index'!$E$19*NR_Reihen_Veränderungsraten!Z6,) -> 1.025410759 | AA45: =IF($C45=1,'IN_Definition Index'!$E$19*NR_Reihen_Veränderungsraten!AA6,) -> 1.073427744 | AB45: =IF($C45=1,'IN_Definition Index'!$E$19*NR_Reihen_Veränderungsraten!AB6,) -> 1.025809589 | AC45: =IF($C45=1,'IN_Definition Index'!$E$19*NR_Reihen_Veränderungsraten!AC6,) -> 1.02487525 | AD45: =IF($C45=1,'IN_Definition Index'!$E$19*NR_Reihen_Veränderungsraten!AD6,) -> 0.9920352986 | AE45: =IF($C45=1,'IN_Definition Index'!$E$19*NR_Reihen_Veränderungsraten!AE6,) ->  | AF45: =IF($C45=1,'IN_Definition Index'!$E$19*NR_Reihen_Veränderungsraten!AF6,) -> 
A46: H49 | B46: Landverkehr und Transport in Rohrfernleitungen | C46: ='IN_Definition Index'!E10 -> 0 | D46: =IF($C46=1,'IN_Definition Index'!$E$19*NR_Reihen_Veränderungsraten!D7,) -> 0 | E46: =IF($C46=1,'IN_Definition Index'!$E$19*NR_Reihen_Veränderungsraten!E7,) -> 0 | F46: =IF($C46=1,'IN_Definition Index'!$E$19*NR_Reihen_Veränderungsraten!F7,) -> 0 | G46: =IF($C46=1,'IN_Definition Index'!$E$19*NR_Reihen_Veränderungsraten!G7,) -> 0 | H46: =IF($C46=1,'IN_Definition Index'!$E$19*NR_Reihen_Veränderungsraten!H7,) -> 0 | I46: =IF($C46=1,'IN_Definition Index'!$E$19*NR_Reihen_Veränderungsraten!I7,) -> 0 | J46: =IF($C46=1,'IN_Definition Index'!$E$19*NR_Reihen_Veränderungsraten!J7,) -> 0 | K46: =IF($C46=1,'IN_Definition Index'!$E$19*NR_Reihen_Veränderungsraten!K7,) -> 0 | L46: =IF($C46=1,'IN_Definition Index'!$E$19*NR_Reihen_Veränderungsraten!L7,) -> 0 | M46: =IF($C46=1,'IN_Definition Index'!$E$19*NR_Reihen_Veränderungsraten!M7,) -> 0 | N46: =IF($C46=1,'IN_Definition Index'!$E$19*NR_Reihen_Veränderungsraten!N7,) -> 0 | O46: =IF($C46=1,'IN_Definition Index'!$E$19*NR_Reihen_Veränderungsraten!O7,) -> 0 | P46: =IF($C46=1,'IN_Definition Index'!$E$19*NR_Reihen_Veränderungsraten!P7,) -> 0 | Q46: =IF($C46=1,'IN_Definition Index'!$E$19*NR_Reihen_Veränderungsraten!Q7,) -> 0 | R46: =IF($C46=1,'IN_Definition Index'!$E$19*NR_Reihen_Veränderungsraten!R7,) -> 0 | S46: =IF($C46=1,'IN_Definition Index'!$E$19*NR_Reihen_Veränderungsraten!S7,) -> 0 | T46: =IF($C46=1,'IN_Definition Index'!$E$19*NR_Reihen_Veränderungsraten!T7,) -> 0 | U46: =IF($C46=1,'IN_Definition Index'!$E$19*NR_Reihen_Veränderungsraten!U7,) -> 0 | V46: =IF($C46=1,'IN_Definition Index'!$E$19*NR_Reihen_Veränderungsraten!V7,) -> 0 | W46: =IF($C46=1,'IN_Definition Index'!$E$19*NR_Reihen_Veränderungsraten!W7,) -> 0 | X46: =IF($C46=1,'IN_Definition Index'!$E$19*NR_Reihen_Veränderungsraten!X7,) -> 0 | Y46: =IF($C46=1,'IN_Definition Index'!$E$19*NR_Reihen_Veränderungsraten!Y7,) -> 0 | Z46: =IF($C46=1,'IN_Definition Index'!$E$19*NR_Reihen_Veränderungsraten!Z7,) -> 0 | AA46: =IF($C46=1,'IN_Definition Index'!$E$19*NR_Reihen_Veränderungsraten!AA7,) -> 0 | AB46: =IF($C46=1,'IN_Definition Index'!$E$19*NR_Reihen_Veränderungsraten!AB7,) -> 0 | AC46: =IF($C46=1,'IN_Definition Index'!$E$19*NR_Reihen_Veränderungsraten!AC7,) -> 0 | AD46: =IF($C46=1,'IN_Definition Index'!$E$19*NR_Reihen_Veränderungsraten!AD7,) -> 0 | AE46: =IF($C46=1,'IN_Definition Index'!$E$19*NR_Reihen_Veränderungsraten!AE7,) -> 0 | AF46: =IF($C46=1,'IN_Definition Index'!$E$19*NR_Reihen_Veränderungsraten!AF7,) -> 0
A47: H52 | B47: Lagerei sowie Erbringung von sonstigen Dienstleistungen für den Verkehr | C47: ='IN_Definition Index'!E11 -> 0 | D47: =IF($C47=1,'IN_Definition Index'!$E$19*NR_Reihen_Veränderungsraten!D8,) -> 0 | E47: =IF($C47=1,'IN_Definition Index'!$E$19*NR_Reihen_Veränderungsraten!E8,) -> 0 | F47: =IF($C47=1,'IN_Definition Index'!$E$19*NR_Reihen_Veränderungsraten!F8,) -> 0 | G47: =IF($C47=1,'IN_Definition Index'!$E$19*NR_Reihen_Veränderungsraten!G8,) -> 0 | H47: =IF($C47=1,'IN_Definition Index'!$E$19*NR_Reihen_Veränderungsraten!H8,) -> 0 | I47: =IF($C47=1,'IN_Definition Index'!$E$19*NR_Reihen_Veränderungsraten!I8,) -> 0 | J47: =IF($C47=1,'IN_Definition Index'!$E$19*NR_Reihen_Veränderungsraten!J8,) -> 0 | K47: =IF($C47=1,'IN_Definition Index'!$E$19*NR_Reihen_Veränderungsraten!K8,) -> 0 | L47: =IF($C47=1,'IN_Definition Index'!$E$19*NR_Reihen_Veränderungsraten!L8,) -> 0 | M47: =IF($C47=1,'IN_Definition Index'!$E$19*NR_Reihen_Veränderungsraten!M8,) -> 0 | N47: =IF($C47=1,'IN_Definition Index'!$E$19*NR_Reihen_Veränderungsraten!N8,) -> 0 | O47: =IF($C47=1,'IN_Definition Index'!$E$19*NR_Reihen_Veränderungsraten!O8,) -> 0 | P47: =IF($C47=1,'IN_Definition Index'!$E$19*NR_Reihen_Veränderungsraten!P8,) -> 0 | Q47: =IF($C47=1,'IN_Definition Index'!$E$19*NR_Reihen_Veränderungsraten!Q8,) -> 0 | R47: =IF($C47=1,'IN_Definition Index'!$E$19*NR_Reihen_Veränderungsraten!R8,) -> 0 | S47: =IF($C47=1,'IN_Definition Index'!$E$19*NR_Reihen_Veränderungsraten!S8,) -> 0 | T47: =IF($C47=1,'IN_Definition Index'!$E$19*NR_Reihen_Veränderungsraten!T8,) -> 0 | U47: =IF($C47=1,'IN_Definition Index'!$E$19*NR_Reihen_Veränderungsraten!U8,) -> 0 | V47: =IF($C47=1,'IN_Definition Index'!$E$19*NR_Reihen_Veränderungsraten!V8,) -> 0 | W47: =IF($C47=1,'IN_Definition Index'!$E$19*NR_Reihen_Veränderungsraten!W8,) -> 0 | X47: =IF($C47=1,'IN_Definition Index'!$E$19*NR_Reihen_Veränderungsraten!X8,) -> 0 | Y47: =IF($C47=1,'IN_Definition Index'!$E$19*NR_Reihen_Veränderungsraten!Y8,) -> 0 | Z47: =IF($C47=1,'IN_Definition Index'!$E$19*NR_Reihen_Veränderungsraten!Z8,) -> 0 | AA47: =IF($C47=1,'IN_Definition Index'!$E$19*NR_Reihen_Veränderungsraten!AA8,) -> 0 | AB47: =IF($C47=1,'IN_Definition Index'!$E$19*NR_Reihen_Veränderungsraten!AB8,) -> 0 | AC47: =IF($C47=1,'IN_Definition Index'!$E$19*NR_Reihen_Veränderungsraten!AC8,) -> 0 | AD47: =IF($C47=1,'IN_Definition Index'!$E$19*NR_Reihen_Veränderungsraten!AD8,) -> 0 | AE47: =IF($C47=1,'IN_Definition Index'!$E$19*NR_Reihen_Veränderungsraten!AE8,) -> 0 | AF47: =IF($C47=1,'IN_Definition Index'!$E$19*NR_Reihen_Veränderungsraten!AF8,) -> 0
A48: J61 | B48: Telekommunikation | C48: ='IN_Definition Index'!E12 -> 0 | D48: =IF($C48=1,'IN_Definition Index'!$E$19*NR_Reihen_Veränderungsraten!D9,) -> 0 | E48: =IF($C48=1,'IN_Definition Index'!$E$19*NR_Reihen_Veränderungsraten!E9,) -> 0 | F48: =IF($C48=1,'IN_Definition Index'!$E$19*NR_Reihen_Veränderungsraten!F9,) -> 0 | G48: =IF($C48=1,'IN_Definition Index'!$E$19*NR_Reihen_Veränderungsraten!G9,) -> 0 | H48: =IF($C48=1,'IN_Definition Index'!$E$19*NR_Reihen_Veränderungsraten!H9,) -> 0 | I48: =IF($C48=1,'IN_Definition Index'!$E$19*NR_Reihen_Veränderungsraten!I9,) -> 0 | J48: =IF($C48=1,'IN_Definition Index'!$E$19*NR_Reihen_Veränderungsraten!J9,) -> 0 | K48: =IF($C48=1,'IN_Definition Index'!$E$19*NR_Reihen_Veränderungsraten!K9,) -> 0 | L48: =IF($C48=1,'IN_Definition Index'!$E$19*NR_Reihen_Veränderungsraten!L9,) -> 0 | M48: =IF($C48=1,'IN_Definition Index'!$E$19*NR_Reihen_Veränderungsraten!M9,) -> 0 | N48: =IF($C48=1,'IN_Definition Index'!$E$19*NR_Reihen_Veränderungsraten!N9,) -> 0 | O48: =IF($C48=1,'IN_Definition Index'!$E$19*NR_Reihen_Veränderungsraten!O9,) -> 0 | P48: =IF($C48=1,'IN_Definition Index'!$E$19*NR_Reihen_Veränderungsraten!P9,) -> 0 | Q48: =IF($C48=1,'IN_Definition Index'!$E$19*NR_Reihen_Veränderungsraten!Q9,) -> 0 | R48: =IF($C48=1,'IN_Definition Index'!$E$19*NR_Reihen_Veränderungsraten!R9,) -> 0 | S48: =IF($C48=1,'IN_Definition Index'!$E$19*NR_Reihen_Veränderungsraten!S9,) -> 0 | T48: =IF($C48=1,'IN_Definition Index'!$E$19*NR_Reihen_Veränderungsraten!T9,) -> 0 | U48: =IF($C48=1,'IN_Definition Index'!$E$19*NR_Reihen_Veränderungsraten!U9,) -> 0 | V48: =IF($C48=1,'IN_Definition Index'!$E$19*NR_Reihen_Veränderungsraten!V9,) -> 0 | W48: =IF($C48=1,'IN_Definition Index'!$E$19*NR_Reihen_Veränderungsraten!W9,) -> 0 | X48: =IF($C48=1,'IN_Definition Index'!$E$19*NR_Reihen_Veränderungsraten!X9,) -> 0 | Y48: =IF($C48=1,'IN_Definition Index'!$E$19*NR_Reihen_Veränderungsraten!Y9,) -> 0 | Z48: =IF($C48=1,'IN_Definition Index'!$E$19*NR_Reihen_Veränderungsraten!Z9,) -> 0 | AA48: =IF($C48=1,'IN_Definition Index'!$E$19*NR_Reihen_Veränderungsraten!AA9,) -> 0 | AB48: =IF($C48=1,'IN_Definition Index'!$E$19*NR_Reihen_Veränderungsraten!AB9,) -> 0 | AC48: =IF($C48=1,'IN_Definition Index'!$E$19*NR_Reihen_Veränderungsraten!AC9,) -> 0 | AD48: =IF($C48=1,'IN_Definition Index'!$E$19*NR_Reihen_Veränderungsraten!AD9,) -> 0 | AE48: =IF($C48=1,'IN_Definition Index'!$E$19*NR_Reihen_Veränderungsraten!AE9,) -> 0 | AF48: =IF($C48=1,'IN_Definition Index'!$E$19*NR_Reihen_Veränderungsraten!AF9,) -> 0
A49: J62-01 | B49: IT- und Informationsdienstleister | C49: ='IN_Definition Index'!E13 -> 0 | D49: =IF($C49=1,'IN_Definition Index'!$E$19*NR_Reihen_Veränderungsraten!D10,) -> 0 | E49: =IF($C49=1,'IN_Definition Index'!$E$19*NR_Reihen_Veränderungsraten!E10,) -> 0 | F49: =IF($C49=1,'IN_Definition Index'!$E$19*NR_Reihen_Veränderungsraten!F10,) -> 0 | G49: =IF($C49=1,'IN_Definition Index'!$E$19*NR_Reihen_Veränderungsraten!G10,) -> 0 | H49: =IF($C49=1,'IN_Definition Index'!$E$19*NR_Reihen_Veränderungsraten!H10,) -> 0 | I49: =IF($C49=1,'IN_Definition Index'!$E$19*NR_Reihen_Veränderungsraten!I10,) -> 0 | J49: =IF($C49=1,'IN_Definition Index'!$E$19*NR_Reihen_Veränderungsraten!J10,) -> 0 | K49: =IF($C49=1,'IN_Definition Index'!$E$19*NR_Reihen_Veränderungsraten!K10,) -> 0 | L49: =IF($C49=1,'IN_Definition Index'!$E$19*NR_Reihen_Veränderungsraten!L10,) -> 0 | M49: =IF($C49=1,'IN_Definition Index'!$E$19*NR_Reihen_Veränderungsraten!M10,) -> 0 | N49: =IF($C49=1,'IN_Definition Index'!$E$19*NR_Reihen_Veränderungsraten!N10,) -> 0 | O49: =IF($C49=1,'IN_Definition Index'!$E$19*NR_Reihen_Veränderungsraten!O10,) -> 0 | P49: =IF($C49=1,'IN_Definition Index'!$E$19*NR_Reihen_Veränderungsraten!P10,) -> 0 | Q49: =IF($C49=1,'IN_Definition Index'!$E$19*NR_Reihen_Veränderungsraten!Q10,) -> 0 | R49: =IF($C49=1,'IN_Definition Index'!$E$19*NR_Reihen_Veränderungsraten!R10,) -> 0 | S49: =IF($C49=1,'IN_Definition Index'!$E$19*NR_Reihen_Veränderungsraten!S10,) -> 0 | T49: =IF($C49=1,'IN_Definition Index'!$E$19*NR_Reihen_Veränderungsraten!T10,) -> 0 | U49: =IF($C49=1,'IN_Definition Index'!$E$19*NR_Reihen_Veränderungsraten!U10,) -> 0 | V49: =IF($C49=1,'IN_Definition Index'!$E$19*NR_Reihen_Veränderungsraten!V10,) -> 0 | W49: =IF($C49=1,'IN_Definition Index'!$E$19*NR_Reihen_Veränderungsraten!W10,) -> 0 | X49: =IF($C49=1,'IN_Definition Index'!$E$19*NR_Reihen_Veränderungsraten!X10,) -> 0 | Y49: =IF($C49=1,'IN_Definition Index'!$E$19*NR_Reihen_Veränderungsraten!Y10,) -> 0 | Z49: =IF($C49=1,'IN_Definition Index'!$E$19*NR_Reihen_Veränderungsraten!Z10,) -> 0 | AA49: =IF($C49=1,'IN_Definition Index'!$E$19*NR_Reihen_Veränderungsraten!AA10,) -> 0 | AB49: =IF($C49=1,'IN_Definition Index'!$E$19*NR_Reihen_Veränderungsraten!AB10,) -> 0 | AC49: =IF($C49=1,'IN_Definition Index'!$E$19*NR_Reihen_Veränderungsraten!AC10,) -> 0 | AD49: =IF($C49=1,'IN_Definition Index'!$E$19*NR_Reihen_Veränderungsraten!AD10,) -> 0 | AE49: =IF($C49=1,'IN_Definition Index'!$E$19*NR_Reihen_Veränderungsraten!AE10,) -> 0 | AF49: =IF($C49=1,'IN_Definition Index'!$E$19*NR_Reihen_Veränderungsraten!AF10,) -> 0
A50: M69-01 | B50: Unternehmensnahe Beratungsleistungen | C50: ='IN_Definition Index'!E14 -> 0 | D50: =IF($C50=1,'IN_Definition Index'!$E$19*NR_Reihen_Veränderungsraten!D11,) -> 0 | E50: =IF($C50=1,'IN_Definition Index'!$E$19*NR_Reihen_Veränderungsraten!E11,) -> 0 | F50: =IF($C50=1,'IN_Definition Index'!$E$19*NR_Reihen_Veränderungsraten!F11,) -> 0 | G50: =IF($C50=1,'IN_Definition Index'!$E$19*NR_Reihen_Veränderungsraten!G11,) -> 0 | H50: =IF($C50=1,'IN_Definition Index'!$E$19*NR_Reihen_Veränderungsraten!H11,) -> 0 | I50: =IF($C50=1,'IN_Definition Index'!$E$19*NR_Reihen_Veränderungsraten!I11,) -> 0 | J50: =IF($C50=1,'IN_Definition Index'!$E$19*NR_Reihen_Veränderungsraten!J11,) -> 0 | K50: =IF($C50=1,'IN_Definition Index'!$E$19*NR_Reihen_Veränderungsraten!K11,) -> 0 | L50: =IF($C50=1,'IN_Definition Index'!$E$19*NR_Reihen_Veränderungsraten!L11,) -> 0 | M50: =IF($C50=1,'IN_Definition Index'!$E$19*NR_Reihen_Veränderungsraten!M11,) -> 0 | N50: =IF($C50=1,'IN_Definition Index'!$E$19*NR_Reihen_Veränderungsraten!N11,) -> 0 | O50: =IF($C50=1,'IN_Definition Index'!$E$19*NR_Reihen_Veränderungsraten!O11,) -> 0 | P50: =IF($C50=1,'IN_Definition Index'!$E$19*NR_Reihen_Veränderungsraten!P11,) -> 0 | Q50: =IF($C50=1,'IN_Definition Index'!$E$19*NR_Reihen_Veränderungsraten!Q11,) -> 0 | R50: =IF($C50=1,'IN_Definition Index'!$E$19*NR_Reihen_Veränderungsraten!R11,) -> 0 | S50: =IF($C50=1,'IN_Definition Index'!$E$19*NR_Reihen_Veränderungsraten!S11,) -> 0 | T50: =IF($C50=1,'IN_Definition Index'!$E$19*NR_Reihen_Veränderungsraten!T11,) -> 0 | U50: =IF($C50=1,'IN_Definition Index'!$E$19*NR_Reihen_Veränderungsraten!U11,) -> 0 | V50: =IF($C50=1,'IN_Definition Index'!$E$19*NR_Reihen_Veränderungsraten!V11,) -> 0 | W50: =IF($C50=1,'IN_Definition Index'!$E$19*NR_Reihen_Veränderungsraten!W11,) -> 0 | X50: =IF($C50=1,'IN_Definition Index'!$E$19*NR_Reihen_Veränderungsraten!X11,) -> 0 | Y50: =IF($C50=1,'IN_Definition Index'!$E$19*NR_Reihen_Veränderungsraten!Y11,) -> 0 | Z50: =IF($C50=1,'IN_Definition Index'!$E$19*NR_Reihen_Veränderungsraten!Z11,) -> 0 | AA50: =IF($C50=1,'IN_Definition Index'!$E$19*NR_Reihen_Veränderungsraten!AA11,) -> 0 | AB50: =IF($C50=1,'IN_Definition Index'!$E$19*NR_Reihen_Veränderungsraten!AB11,) -> 0 | AC50: =IF($C50=1,'IN_Definition Index'!$E$19*NR_Reihen_Veränderungsraten!AC11,) -> 0 | AD50: =IF($C50=1,'IN_Definition Index'!$E$19*NR_Reihen_Veränderungsraten!AD11,) -> 0 | AE50: =IF($C50=1,'IN_Definition Index'!$E$19*NR_Reihen_Veränderungsraten!AE11,) -> 0 | AF50: =IF($C50=1,'IN_Definition Index'!$E$19*NR_Reihen_Veränderungsraten!AF11,) -> 0
A51: M73 | B51: Werbung und Marktforschung | C51: ='IN_Definition Index'!E15 -> 0 | D51: =IF($C51=1,'IN_Definition Index'!$E$19*NR_Reihen_Veränderungsraten!D12,) -> 0 | E51: =IF($C51=1,'IN_Definition Index'!$E$19*NR_Reihen_Veränderungsraten!E12,) -> 0 | F51: =IF($C51=1,'IN_Definition Index'!$E$19*NR_Reihen_Veränderungsraten!F12,) -> 0 | G51: =IF($C51=1,'IN_Definition Index'!$E$19*NR_Reihen_Veränderungsraten!G12,) -> 0 | H51: =IF($C51=1,'IN_Definition Index'!$E$19*NR_Reihen_Veränderungsraten!H12,) -> 0 | I51: =IF($C51=1,'IN_Definition Index'!$E$19*NR_Reihen_Veränderungsraten!I12,) -> 0 | J51: =IF($C51=1,'IN_Definition Index'!$E$19*NR_Reihen_Veränderungsraten!J12,) -> 0 | K51: =IF($C51=1,'IN_Definition Index'!$E$19*NR_Reihen_Veränderungsraten!K12,) -> 0 | L51: =IF($C51=1,'IN_Definition Index'!$E$19*NR_Reihen_Veränderungsraten!L12,) -> 0 | M51: =IF($C51=1,'IN_Definition Index'!$E$19*NR_Reihen_Veränderungsraten!M12,) -> 0 | N51: =IF($C51=1,'IN_Definition Index'!$E$19*NR_Reihen_Veränderungsraten!N12,) -> 0 | O51: =IF($C51=1,'IN_Definition Index'!$E$19*NR_Reihen_Veränderungsraten!O12,) -> 0 | P51: =IF($C51=1,'IN_Definition Index'!$E$19*NR_Reihen_Veränderungsraten!P12,) -> 0 | Q51: =IF($C51=1,'IN_Definition Index'!$E$19*NR_Reihen_Veränderungsraten!Q12,) -> 0 | R51: =IF($C51=1,'IN_Definition Index'!$E$19*NR_Reihen_Veränderungsraten!R12,) -> 0 | S51: =IF($C51=1,'IN_Definition Index'!$E$19*NR_Reihen_Veränderungsraten!S12,) -> 0 | T51: =IF($C51=1,'IN_Definition Index'!$E$19*NR_Reihen_Veränderungsraten!T12,) -> 0 | U51: =IF($C51=1,'IN_Definition Index'!$E$19*NR_Reihen_Veränderungsraten!U12,) -> 0 | V51: =IF($C51=1,'IN_Definition Index'!$E$19*NR_Reihen_Veränderungsraten!V12,) -> 0 | W51: =IF($C51=1,'IN_Definition Index'!$E$19*NR_Reihen_Veränderungsraten!W12,) -> 0 | X51: =IF($C51=1,'IN_Definition Index'!$E$19*NR_Reihen_Veränderungsraten!X12,) -> 0 | Y51: =IF($C51=1,'IN_Definition Index'!$E$19*NR_Reihen_Veränderungsraten!Y12,) -> 0 | Z51: =IF($C51=1,'IN_Definition Index'!$E$19*NR_Reihen_Veränderungsraten!Z12,) -> 0 | AA51: =IF($C51=1,'IN_Definition Index'!$E$19*NR_Reihen_Veränderungsraten!AA12,) -> 0 | AB51: =IF($C51=1,'IN_Definition Index'!$E$19*NR_Reihen_Veränderungsraten!AB12,) -> 0 | AC51: =IF($C51=1,'IN_Definition Index'!$E$19*NR_Reihen_Veränderungsraten!AC12,) -> 0 | AD51: =IF($C51=1,'IN_Definition Index'!$E$19*NR_Reihen_Veränderungsraten!AD12,) -> 0 | AE51: =IF($C51=1,'IN_Definition Index'!$E$19*NR_Reihen_Veränderungsraten!AE12,) -> 0 | AF51: =IF($C51=1,'IN_Definition Index'!$E$19*NR_Reihen_Veränderungsraten!AF12,) -> 0
A52: M74-01 | B52: Freiberufl.,wiss.,techn.DL a.n.g., Veterinärwesen | C52: ='IN_Definition Index'!E16 -> 0 | D52: =IF($C52=1,'IN_Definition Index'!$E$19*NR_Reihen_Veränderungsraten!D13,) -> 0 | E52: =IF($C52=1,'IN_Definition Index'!$E$19*NR_Reihen_Veränderungsraten!E13,) -> 0 | F52: =IF($C52=1,'IN_Definition Index'!$E$19*NR_Reihen_Veränderungsraten!F13,) -> 0 | G52: =IF($C52=1,'IN_Definition Index'!$E$19*NR_Reihen_Veränderungsraten!G13,) -> 0 | H52: =IF($C52=1,'IN_Definition Index'!$E$19*NR_Reihen_Veränderungsraten!H13,) -> 0 | I52: =IF($C52=1,'IN_Definition Index'!$E$19*NR_Reihen_Veränderungsraten!I13,) -> 0 | J52: =IF($C52=1,'IN_Definition Index'!$E$19*NR_Reihen_Veränderungsraten!J13,) -> 0 | K52: =IF($C52=1,'IN_Definition Index'!$E$19*NR_Reihen_Veränderungsraten!K13,) -> 0 | L52: =IF($C52=1,'IN_Definition Index'!$E$19*NR_Reihen_Veränderungsraten!L13,) -> 0 | M52: =IF($C52=1,'IN_Definition Index'!$E$19*NR_Reihen_Veränderungsraten!M13,) -> 0 | N52: =IF($C52=1,'IN_Definition Index'!$E$19*NR_Reihen_Veränderungsraten!N13,) -> 0 | O52: =IF($C52=1,'IN_Definition Index'!$E$19*NR_Reihen_Veränderungsraten!O13,) -> 0 | P52: =IF($C52=1,'IN_Definition Index'!$E$19*NR_Reihen_Veränderungsraten!P13,) -> 0 | Q52: =IF($C52=1,'IN_Definition Index'!$E$19*NR_Reihen_Veränderungsraten!Q13,) -> 0 | R52: =IF($C52=1,'IN_Definition Index'!$E$19*NR_Reihen_Veränderungsraten!R13,) -> 0 | S52: =IF($C52=1,'IN_Definition Index'!$E$19*NR_Reihen_Veränderungsraten!S13,) -> 0 | T52: =IF($C52=1,'IN_Definition Index'!$E$19*NR_Reihen_Veränderungsraten!T13,) -> 0 | U52: =IF($C52=1,'IN_Definition Index'!$E$19*NR_Reihen_Veränderungsraten!U13,) -> 0 | V52: =IF($C52=1,'IN_Definition Index'!$E$19*NR_Reihen_Veränderungsraten!V13,) -> 0 | W52: =IF($C52=1,'IN_Definition Index'!$E$19*NR_Reihen_Veränderungsraten!W13,) -> 0 | X52: =IF($C52=1,'IN_Definition Index'!$E$19*NR_Reihen_Veränderungsraten!X13,) -> 0 | Y52: =IF($C52=1,'IN_Definition Index'!$E$19*NR_Reihen_Veränderungsraten!Y13,) -> 0 | Z52: =IF($C52=1,'IN_Definition Index'!$E$19*NR_Reihen_Veränderungsraten!Z13,) -> 0 | AA52: =IF($C52=1,'IN_Definition Index'!$E$19*NR_Reihen_Veränderungsraten!AA13,) -> 0 | AB52: =IF($C52=1,'IN_Definition Index'!$E$19*NR_Reihen_Veränderungsraten!AB13,) -> 0 | AC52: =IF($C52=1,'IN_Definition Index'!$E$19*NR_Reihen_Veränderungsraten!AC13,) -> 0 | AD52: =IF($C52=1,'IN_Definition Index'!$E$19*NR_Reihen_Veränderungsraten!AD13,) -> 0 | AE52: =IF($C52=1,'IN_Definition Index'!$E$19*NR_Reihen_Veränderungsraten!AE13,) -> 0 | AF52: =IF($C52=1,'IN_Definition Index'!$E$19*NR_Reihen_Veränderungsraten!AF13,) -> 0
A53: L | B53: Grundstücks- und Wohnungswesen | C53: ='IN_Definition Index'!E17 -> 0 | D53: =IF($C53=1,'IN_Definition Index'!$E$19*NR_Reihen_Veränderungsraten!D14,) -> 0 | E53: =IF($C53=1,'IN_Definition Index'!$E$19*NR_Reihen_Veränderungsraten!E14,) -> 0 | F53: =IF($C53=1,'IN_Definition Index'!$E$19*NR_Reihen_Veränderungsraten!F14,) -> 0 | G53: =IF($C53=1,'IN_Definition Index'!$E$19*NR_Reihen_Veränderungsraten!G14,) -> 0 | H53: =IF($C53=1,'IN_Definition Index'!$E$19*NR_Reihen_Veränderungsraten!H14,) -> 0 | I53: =IF($C53=1,'IN_Definition Index'!$E$19*NR_Reihen_Veränderungsraten!I14,) -> 0 | J53: =IF($C53=1,'IN_Definition Index'!$E$19*NR_Reihen_Veränderungsraten!J14,) -> 0 | K53: =IF($C53=1,'IN_Definition Index'!$E$19*NR_Reihen_Veränderungsraten!K14,) -> 0 | L53: =IF($C53=1,'IN_Definition Index'!$E$19*NR_Reihen_Veränderungsraten!L14,) -> 0 | M53: =IF($C53=1,'IN_Definition Index'!$E$19*NR_Reihen_Veränderungsraten!M14,) -> 0 | N53: =IF($C53=1,'IN_Definition Index'!$E$19*NR_Reihen_Veränderungsraten!N14,) -> 0 | O53: =IF($C53=1,'IN_Definition Index'!$E$19*NR_Reihen_Veränderungsraten!O14,) -> 0 | P53: =IF($C53=1,'IN_Definition Index'!$E$19*NR_Reihen_Veränderungsraten!P14,) -> 0 | Q53: =IF($C53=1,'IN_Definition Index'!$E$19*NR_Reihen_Veränderungsraten!Q14,) -> 0 | R53: =IF($C53=1,'IN_Definition Index'!$E$19*NR_Reihen_Veränderungsraten!R14,) -> 0 | S53: =IF($C53=1,'IN_Definition Index'!$E$19*NR_Reihen_Veränderungsraten!S14,) -> 0 | T53: =IF($C53=1,'IN_Definition Index'!$E$19*NR_Reihen_Veränderungsraten!T14,) -> 0 | U53: =IF($C53=1,'IN_Definition Index'!$E$19*NR_Reihen_Veränderungsraten!U14,) -> 0 | V53: =IF($C53=1,'IN_Definition Index'!$E$19*NR_Reihen_Veränderungsraten!V14,) -> 0 | W53: =IF($C53=1,'IN_Definition Index'!$E$19*NR_Reihen_Veränderungsraten!W14,) -> 0 | X53: =IF($C53=1,'IN_Definition Index'!$E$19*NR_Reihen_Veränderungsraten!X14,) -> 0 | Y53: =IF($C53=1,'IN_Definition Index'!$E$19*NR_Reihen_Veränderungsraten!Y14,) -> 0 | Z53: =IF($C53=1,'IN_Definition Index'!$E$19*NR_Reihen_Veränderungsraten!Z14,) -> 0 | AA53: =IF($C53=1,'IN_Definition Index'!$E$19*NR_Reihen_Veränderungsraten!AA14,) -> 0 | AB53: =IF($C53=1,'IN_Definition Index'!$E$19*NR_Reihen_Veränderungsraten!AB14,) -> 0 | AC53: =IF($C53=1,'IN_Definition Index'!$E$19*NR_Reihen_Veränderungsraten!AC14,) -> 0 | AD53: =IF($C53=1,'IN_Definition Index'!$E$19*NR_Reihen_Veränderungsraten!AD14,) -> 0 | AE53: =IF($C53=1,'IN_Definition Index'!$E$19*NR_Reihen_Veränderungsraten!AE14,) -> 0 | AF53: =IF($C53=1,'IN_Definition Index'!$E$19*NR_Reihen_Veränderungsraten!AF14,) -> 0
B54: Summe | D54: =SUM(D43:D53) -> 1.002810911 | E54: =SUM(E43:E53) -> 0.9412436261 | F54: =SUM(F43:F53) -> 1.007764467 | G54: =SUM(G43:G53) -> 1.006043062 | H54: =SUM(H43:H53) -> 0.9733670782 | I54: =SUM(I43:I53) -> 0.9802611751 | J54: =SUM(J43:J53) -> 0.9920277966 | K54: =SUM(K43:K53) -> 0.9970707344 | L54: =SUM(L43:L53) -> 0.9870009776 | M54: =SUM(M43:M53) -> 1.015169016 | N54: =SUM(N43:N53) -> 0.9583818089 | O54: =SUM(O43:O53) -> 1.007514735 | P54: =SUM(P43:P53) -> 0.9830385823 | Q54: =SUM(Q43:Q53) -> 0.9780223796 | R54: =SUM(R43:R53) -> 1.058462295 | S54: =SUM(S43:S53) -> 0.9987653366 | T54: =SUM(T43:T53) -> 0.9777632084 | U54: =SUM(U43:U53) -> 1.010251332 | V54: =SUM(V43:V53) -> 1.024177346 | W54: =SUM(W43:W53) -> 0.9777208145 | X54: =SUM(X43:X53) -> 0.9985757821 | Y54: =SUM(Y43:Y53) -> 0.9955524698 | Z54: =SUM(Z43:Z53) -> 1.025410759 | AA54: =SUM(AA43:AA53) -> 1.073427744 | AB54: =SUM(AB43:AB53) -> 1.025809589 | AC54: =SUM(AC43:AC53) -> 1.02487525 | AD54: 0.9920352986
A56: Sortierung
A58: Nr. (WZ 2008) | B58: Branche | C58: Verwendung | D58: 1992 | E58: =D58+1 -> 1993 | F58: =E58+1 -> 1994 | G58: =F58+1 -> 1995 | H58: =G58+1 -> 1996 | I58: =H58+1 -> 1997 | J58: =I58+1 -> 1998 | K58: =J58+1 -> 1999 | L58: =K58+1 -> 2000 | M58: =L58+1 -> 2001 | N58: =M58+1 -> 2002 | O58: =N58+1 -> 2003 | P58: =O58+1 -> 2004 | Q58: =P58+1 -> 2005 | R58: =Q58+1 -> 2006 | S58: =R58+1 -> 2007 | T58: =S58+1 -> 2008 | U58: =T58+1 -> 2009 | V58: =U58+1 -> 2010 | W58: =V58+1 -> 2011 | X58: =W58+1 -> 2012 | Y58: =X58+1 -> 2013 | Z58: =Y58+1 -> 2014 | AA58: =Z58+1 -> 2015 | AB58: =AA58+1 -> 2016 | AC58: =AB58+1 -> 2017 | AD58: =AC58+1 -> 2018 | AE58: =AD58+1 -> 2019 | AF58: =AE58+1 -> 2020
A59: C33 | B59: Reparatur und Installation von Maschinen und Ausrüstungen | C59: ='IN_Definition Index'!F7 -> 1 | D59: =IF($C59=1,'IN_Definition Index'!$F$19*NR_Reihen_Veränderungsraten!D4,) -> 0.5427886225 | E59: =IF($C59=1,'IN_Definition Index'!$F$19*NR_Reihen_Veränderungsraten!E4,) -> 0.4947094204 | F59: =IF($C59=1,'IN_Definition Index'!$F$19*NR_Reihen_Veränderungsraten!F4,) -> 0.5574055792 | G59: =IF($C59=1,'IN_Definition Index'!$F$19*NR_Reihen_Veränderungsraten!G4,) -> 0.516657578 | H59: =IF($C59=1,'IN_Definition Index'!$F$19*NR_Reihen_Veränderungsraten!H4,) -> 0.5105396153 | I59: =IF($C59=1,'IN_Definition Index'!$F$19*NR_Reihen_Veränderungsraten!I4,) -> 0.5596680184 | J59: =IF($C59=1,'IN_Definition Index'!$F$19*NR_Reihen_Veränderungsraten!J4,) -> 0.5224229137 | K59: =IF($C59=1,'IN_Definition Index'!$F$19*NR_Reihen_Veränderungsraten!K4,) -> 0.5385513894 | L59: =IF($C59=1,'IN_Definition Index'!$F$19*NR_Reihen_Veränderungsraten!L4,) -> 0.5372557608 | M59: =IF($C59=1,'IN_Definition Index'!$F$19*NR_Reihen_Veränderungsraten!M4,) -> 0.5016312386 | N59: =IF($C59=1,'IN_Definition Index'!$F$19*NR_Reihen_Veränderungsraten!N4,) -> 0.5236397239 | O59: =IF($C59=1,'IN_Definition Index'!$F$19*NR_Reihen_Veränderungsraten!O4,) -> 0.5453306864 | P59: =IF($C59=1,'IN_Definition Index'!$F$19*NR_Reihen_Veränderungsraten!P4,) -> 0.5532254872 | Q59: =IF($C59=1,'IN_Definition Index'!$F$19*NR_Reihen_Veränderungsraten!Q4,) -> 0.5776722223 | R59: =IF($C59=1,'IN_Definition Index'!$F$19*NR_Reihen_Veränderungsraten!R4,) -> 0.5088618013 | S59: =IF($C59=1,'IN_Definition Index'!$F$19*NR_Reihen_Veränderungsraten!S4,) -> 0.5350790471 | T59: =IF($C59=1,'IN_Definition Index'!$F$19*NR_Reihen_Veränderungsraten!T4,) -> 0.4360969494 | U59: =IF($C59=1,'IN_Definition Index'!$F$19*NR_Reihen_Veränderungsraten!U4,) -> 0.4389503036 | V59: =IF($C59=1,'IN_Definition Index'!$F$19*NR_Reihen_Veränderungsraten!V4,) -> 0.5083044824 | W59: =IF($C59=1,'IN_Definition Index'!$F$19*NR_Reihen_Veränderungsraten!W4,) -> 0.512599161 | X59: =IF($C59=1,'IN_Definition Index'!$F$19*NR_Reihen_Veränderungsraten!X4,) -> 0.4884542636 | Y59: =IF($C59=1,'IN_Definition Index'!$F$19*NR_Reihen_Veränderungsraten!Y4,) -> 0.4788691837 | Z59: =IF($C59=1,'IN_Definition Index'!$F$19*NR_Reihen_Veränderungsraten!Z4,) -> 0.5046453287 | AA59: =IF($C59=1,'IN_Definition Index'!$F$19*NR_Reihen_Veränderungsraten!AA4,) -> 0.5219345235 | AB59: =IF($C59=1,'IN_Definition Index'!$F$19*NR_Reihen_Veränderungsraten!AB4,) -> 0.4813324743 | AC59: =IF($C59=1,'IN_Definition Index'!$F$19*NR_Reihen_Veränderungsraten!AC4,) -> 0.4660400533 | AD59: =IF($C59=1,'IN_Definition Index'!$F$19*NR_Reihen_Veränderungsraten!AD4,) -> 0.4810137236 | AE59: =IF($C59=1,'IN_Definition Index'!$F$19*NR_Reihen_Veränderungsraten!AE4,) ->  | AF59: =IF($C59=1,'IN_Definition Index'!$F$19*NR_Reihen_Veränderungsraten!AF4,) -> 
A60: G45 | B60: Handel mit Kraftfahrzeugen; Instandhaltung und Reparatur von Kraftfahrzeugen | C60: ='IN_Definition Index'!F8 -> 0 | D60: =IF($C60=1,'IN_Definition Index'!$F$19*NR_Reihen_Veränderungsraten!D5,) -> 0 | E60: =IF($C60=1,'IN_Definition Index'!$F$19*NR_Reihen_Veränderungsraten!E5,) -> 0 | F60: =IF($C60=1,'IN_Definition Index'!$F$19*NR_Reihen_Veränderungsraten!F5,) -> 0 | G60: =IF($C60=1,'IN_Definition Index'!$F$19*NR_Reihen_Veränderungsraten!G5,) -> 0 | H60: =IF($C60=1,'IN_Definition Index'!$F$19*NR_Reihen_Veränderungsraten!H5,) -> 0 | I60: =IF($C60=1,'IN_Definition Index'!$F$19*NR_Reihen_Veränderungsraten!I5,) -> 0 | J60: =IF($C60=1,'IN_Definition Index'!$F$19*NR_Reihen_Veränderungsraten!J5,) -> 0 | K60: =IF($C60=1,'IN_Definition Index'!$F$19*NR_Reihen_Veränderungsraten!K5,) -> 0 | L60: =IF($C60=1,'IN_Definition Index'!$F$19*NR_Reihen_Veränderungsraten!L5,) -> 0 | M60: =IF($C60=1,'IN_Definition Index'!$F$19*NR_Reihen_Veränderungsraten!M5,) -> 0 | N60: =IF($C60=1,'IN_Definition Index'!$F$19*NR_Reihen_Veränderungsraten!N5,) -> 0 | O60: =IF($C60=1,'IN_Definition Index'!$F$19*NR_Reihen_Veränderungsraten!O5,) -> 0 | P60: =IF($C60=1,'IN_Definition Index'!$F$19*NR_Reihen_Veränderungsraten!P5,) -> 0 | Q60: =IF($C60=1,'IN_Definition Index'!$F$19*NR_Reihen_Veränderungsraten!Q5,) -> 0 | R60: =IF($C60=1,'IN_Definition Index'!$F$19*NR_Reihen_Veränderungsraten!R5,) -> 0 | S60: =IF($C60=1,'IN_Definition Index'!$F$19*NR_Reihen_Veränderungsraten!S5,) -> 0 | T60: =IF($C60=1,'IN_Definition Index'!$F$19*NR_Reihen_Veränderungsraten!T5,) -> 0 | U60: =IF($C60=1,'IN_Definition Index'!$F$19*NR_Reihen_Veränderungsraten!U5,) -> 0 | V60: =IF($C60=1,'IN_Definition Index'!$F$19*NR_Reihen_Veränderungsraten!V5,) -> 0 | W60: =IF($C60=1,'IN_Definition Index'!$F$19*NR_Reihen_Veränderungsraten!W5,) -> 0 | X60: =IF($C60=1,'IN_Definition Index'!$F$19*NR_Reihen_Veränderungsraten!X5,) -> 0 | Y60: =IF($C60=1,'IN_Definition Index'!$F$19*NR_Reihen_Veränderungsraten!Y5,) -> 0 | Z60: =IF($C60=1,'IN_Definition Index'!$F$19*NR_Reihen_Veränderungsraten!Z5,) -> 0 | AA60: =IF($C60=1,'IN_Definition Index'!$F$19*NR_Reihen_Veränderungsraten!AA5,) -> 0 | AB60: =IF($C60=1,'IN_Definition Index'!$F$19*NR_Reihen_Veränderungsraten!AB5,) -> 0 | AC60: =IF($C60=1,'IN_Definition Index'!$F$19*NR_Reihen_Veränderungsraten!AC5,) -> 0 | AD60: =IF($C60=1,'IN_Definition Index'!$F$19*NR_Reihen_Veränderungsraten!AD5,) -> 0 | AE60: =IF($C60=1,'IN_Definition Index'!$F$19*NR_Reihen_Veränderungsraten!AE5,) -> 0 | AF60: =IF($C60=1,'IN_Definition Index'!$F$19*NR_Reihen_Veränderungsraten!AF5,) -> 0
A61: G47 | B61: Einzelhandel (ohne Handel mit Kraftfahrzeugen) | C61: ='IN_Definition Index'!F9 -> 0 | D61: =IF($C61=1,'IN_Definition Index'!$F$19*NR_Reihen_Veränderungsraten!D6,) -> 0 | E61: =IF($C61=1,'IN_Definition Index'!$F$19*NR_Reihen_Veränderungsraten!E6,) -> 0 | F61: =IF($C61=1,'IN_Definition Index'!$F$19*NR_Reihen_Veränderungsraten!F6,) -> 0 | G61: =IF($C61=1,'IN_Definition Index'!$F$19*NR_Reihen_Veränderungsraten!G6,) -> 0 | H61: =IF($C61=1,'IN_Definition Index'!$F$19*NR_Reihen_Veränderungsraten!H6,) -> 0 | I61: =IF($C61=1,'IN_Definition Index'!$F$19*NR_Reihen_Veränderungsraten!I6,) -> 0 | J61: =IF($C61=1,'IN_Definition Index'!$F$19*NR_Reihen_Veränderungsraten!J6,) -> 0 | K61: =IF($C61=1,'IN_Definition Index'!$F$19*NR_Reihen_Veränderungsraten!K6,) -> 0 | L61: =IF($C61=1,'IN_Definition Index'!$F$19*NR_Reihen_Veränderungsraten!L6,) -> 0 | M61: =IF($C61=1,'IN_Definition Index'!$F$19*NR_Reihen_Veränderungsraten!M6,) -> 0 | N61: =IF($C61=1,'IN_Definition Index'!$F$19*NR_Reihen_Veränderungsraten!N6,) -> 0 | O61: =IF($C61=1,'IN_Definition Index'!$F$19*NR_Reihen_Veränderungsraten!O6,) -> 0 | P61: =IF($C61=1,'IN_Definition Index'!$F$19*NR_Reihen_Veränderungsraten!P6,) -> 0 | Q61: =IF($C61=1,'IN_Definition Index'!$F$19*NR_Reihen_Veränderungsraten!Q6,) -> 0 | R61: =IF($C61=1,'IN_Definition Index'!$F$19*NR_Reihen_Veränderungsraten!R6,) -> 0 | S61: =IF($C61=1,'IN_Definition Index'!$F$19*NR_Reihen_Veränderungsraten!S6,) -> 0 | T61: =IF($C61=1,'IN_Definition Index'!$F$19*NR_Reihen_Veränderungsraten!T6,) -> 0 | U61: =IF($C61=1,'IN_Definition Index'!$F$19*NR_Reihen_Veränderungsraten!U6,) -> 0 | V61: =IF($C61=1,'IN_Definition Index'!$F$19*NR_Reihen_Veränderungsraten!V6,) -> 0 | W61: =IF($C61=1,'IN_Definition Index'!$F$19*NR_Reihen_Veränderungsraten!W6,) -> 0 | X61: =IF($C61=1,'IN_Definition Index'!$F$19*NR_Reihen_Veränderungsraten!X6,) -> 0 | Y61: =IF($C61=1,'IN_Definition Index'!$F$19*NR_Reihen_Veränderungsraten!Y6,) -> 0 | Z61: =IF($C61=1,'IN_Definition Index'!$F$19*NR_Reihen_Veränderungsraten!Z6,) -> 0 | AA61: =IF($C61=1,'IN_Definition Index'!$F$19*NR_Reihen_Veränderungsraten!AA6,) -> 0 | AB61: =IF($C61=1,'IN_Definition Index'!$F$19*NR_Reihen_Veränderungsraten!AB6,) -> 0 | AC61: =IF($C61=1,'IN_Definition Index'!$F$19*NR_Reihen_Veränderungsraten!AC6,) -> 0 | AD61: =IF($C61=1,'IN_Definition Index'!$F$19*NR_Reihen_Veränderungsraten!AD6,) -> 0 | AE61: =IF($C61=1,'IN_Definition Index'!$F$19*NR_Reihen_Veränderungsraten!AE6,) -> 0 | AF61: =IF($C61=1,'IN_Definition Index'!$F$19*NR_Reihen_Veränderungsraten!AF6,) -> 0
A62: H49 | B62: Landverkehr und Transport in Rohrfernleitungen | C62: ='IN_Definition Index'!F10 -> 0 | D62: =IF($C62=1,'IN_Definition Index'!$F$19*NR_Reihen_Veränderungsraten!D7,) -> 0 | E62: =IF($C62=1,'IN_Definition Index'!$F$19*NR_Reihen_Veränderungsraten!E7,) -> 0 | F62: =IF($C62=1,'IN_Definition Index'!$F$19*NR_Reihen_Veränderungsraten!F7,) -> 0 | G62: =IF($C62=1,'IN_Definition Index'!$F$19*NR_Reihen_Veränderungsraten!G7,) -> 0 | H62: =IF($C62=1,'IN_Definition Index'!$F$19*NR_Reihen_Veränderungsraten!H7,) -> 0 | I62: =IF($C62=1,'IN_Definition Index'!$F$19*NR_Reihen_Veränderungsraten!I7,) -> 0 | J62: =IF($C62=1,'IN_Definition Index'!$F$19*NR_Reihen_Veränderungsraten!J7,) -> 0 | K62: =IF($C62=1,'IN_Definition Index'!$F$19*NR_Reihen_Veränderungsraten!K7,) -> 0 | L62: =IF($C62=1,'IN_Definition Index'!$F$19*NR_Reihen_Veränderungsraten!L7,) -> 0 | M62: =IF($C62=1,'IN_Definition Index'!$F$19*NR_Reihen_Veränderungsraten!M7,) -> 0 | N62: =IF($C62=1,'IN_Definition Index'!$F$19*NR_Reihen_Veränderungsraten!N7,) -> 0 | O62: =IF($C62=1,'IN_Definition Index'!$F$19*NR_Reihen_Veränderungsraten!O7,) -> 0 | P62: =IF($C62=1,'IN_Definition Index'!$F$19*NR_Reihen_Veränderungsraten!P7,) -> 0 | Q62: =IF($C62=1,'IN_Definition Index'!$F$19*NR_Reihen_Veränderungsraten!Q7,) -> 0 | R62: =IF($C62=1,'IN_Definition Index'!$F$19*NR_Reihen_Veränderungsraten!R7,) -> 0 | S62: =IF($C62=1,'IN_Definition Index'!$F$19*NR_Reihen_Veränderungsraten!S7,) -> 0 | T62: =IF($C62=1,'IN_Definition Index'!$F$19*NR_Reihen_Veränderungsraten!T7,) -> 0 | U62: =IF($C62=1,'IN_Definition Index'!$F$19*NR_Reihen_Veränderungsraten!U7,) -> 0 | V62: =IF($C62=1,'IN_Definition Index'!$F$19*NR_Reihen_Veränderungsraten!V7,) -> 0 | W62: =IF($C62=1,'IN_Definition Index'!$F$19*NR_Reihen_Veränderungsraten!W7,) -> 0 | X62: =IF($C62=1,'IN_Definition Index'!$F$19*NR_Reihen_Veränderungsraten!X7,) -> 0 | Y62: =IF($C62=1,'IN_Definition Index'!$F$19*NR_Reihen_Veränderungsraten!Y7,) -> 0 | Z62: =IF($C62=1,'IN_Definition Index'!$F$19*NR_Reihen_Veränderungsraten!Z7,) -> 0 | AA62: =IF($C62=1,'IN_Definition Index'!$F$19*NR_Reihen_Veränderungsraten!AA7,) -> 0 | AB62: =IF($C62=1,'IN_Definition Index'!$F$19*NR_Reihen_Veränderungsraten!AB7,) -> 0 | AC62: =IF($C62=1,'IN_Definition Index'!$F$19*NR_Reihen_Veränderungsraten!AC7,) -> 0 | AD62: =IF($C62=1,'IN_Definition Index'!$F$19*NR_Reihen_Veränderungsraten!AD7,) -> 0 | AE62: =IF($C62=1,'IN_Definition Index'!$F$19*NR_Reihen_Veränderungsraten!AE7,) -> 0 | AF62: =IF($C62=1,'IN_Definition Index'!$F$19*NR_Reihen_Veränderungsraten!AF7,) -> 0
A63: H52 | B63: Lagerei sowie Erbringung von sonstigen Dienstleistungen für den Verkehr | C63: ='IN_Definition Index'!F11 -> 1 | D63: =IF($C63=1,'IN_Definition Index'!$F$19*NR_Reihen_Veränderungsraten!D8,) -> 0.4861872805 | E63: =IF($C63=1,'IN_Definition Index'!$F$19*NR_Reihen_Veränderungsraten!E8,) -> 0.4989403271 | F63: =IF($C63=1,'IN_Definition Index'!$F$19*NR_Reihen_Veränderungsraten!F8,) -> 0.5231252759 | G63: =IF($C63=1,'IN_Definition Index'!$F$19*NR_Reihen_Veränderungsraten!G8,) -> 0.4917203395 | H63: =IF($C63=1,'IN_Definition Index'!$F$19*NR_Reihen_Veränderungsraten!H8,) -> 0.5170057577 | I63: =IF($C63=1,'IN_Definition Index'!$F$19*NR_Reihen_Veränderungsraten!I8,) -> 0.5454824358 | J63: =IF($C63=1,'IN_Definition Index'!$F$19*NR_Reihen_Veränderungsraten!J8,) -> 0.5138645512 | K63: =IF($C63=1,'IN_Definition Index'!$F$19*NR_Reihen_Veränderungsraten!K8,) -> 0.3908134002 | L63: =IF($C63=1,'IN_Definition Index'!$F$19*NR_Reihen_Veränderungsraten!L8,) -> 0.5101963447 | M63: =IF($C63=1,'IN_Definition Index'!$F$19*NR_Reihen_Veränderungsraten!M8,) -> 0.5513103492 | N63: =IF($C63=1,'IN_Definition Index'!$F$19*NR_Reihen_Veränderungsraten!N8,) -> 0.5482051918 | O63: =IF($C63=1,'IN_Definition Index'!$F$19*NR_Reihen_Veränderungsraten!O8,) -> 0.5106620014 | P63: =IF($C63=1,'IN_Definition Index'!$F$19*NR_Reihen_Veränderungsraten!P8,) -> 0.5591106891 | Q63: =IF($C63=1,'IN_Definition Index'!$F$19*NR_Reihen_Veränderungsraten!Q8,) -> 0.5197599932 | R63: =IF($C63=1,'IN_Definition Index'!$F$19*NR_Reihen_Veränderungsraten!R8,) -> 0.5308475 | S63: =IF($C63=1,'IN_Definition Index'!$F$19*NR_Reihen_Veränderungsraten!S8,) -> 0.4958945567 | T63: =IF($C63=1,'IN_Definition Index'!$F$19*NR_Reihen_Veränderungsraten!T8,) -> 0.4773509222 | U63: =IF($C63=1,'IN_Definition Index'!$F$19*NR_Reihen_Veränderungsraten!U8,) -> 0.4390573133 | V63: =IF($C63=1,'IN_Definition Index'!$F$19*NR_Reihen_Veränderungsraten!V8,) -> 0.5295006819 | W63: =IF($C63=1,'IN_Definition Index'!$F$19*NR_Reihen_Veränderungsraten!W8,) -> 0.490084033 | X63: =IF($C63=1,'IN_Definition Index'!$F$19*NR_Reihen_Veränderungsraten!X8,) -> 0.4963004043 | Y63: =IF($C63=1,'IN_Definition Index'!$F$19*NR_Reihen_Veränderungsraten!Y8,) -> 0.5068255932 | Z63: =IF($C63=1,'IN_Definition Index'!$F$19*NR_Reihen_Veränderungsraten!Z8,) -> 0.4985500862 | AA63: =IF($C63=1,'IN_Definition Index'!$F$19*NR_Reihen_Veränderungsraten!AA8,) -> 0.475864595 | AB63: =IF($C63=1,'IN_Definition Index'!$F$19*NR_Reihen_Veränderungsraten!AB8,) -> 0.499990874 | AC63: =IF($C63=1,'IN_Definition Index'!$F$19*NR_Reihen_Veränderungsraten!AC8,) -> 0.5034478202 | AD63: =IF($C63=1,'IN_Definition Index'!$F$19*NR_Reihen_Veränderungsraten!AD8,) -> 0.5107813674 | AE63: =IF($C63=1,'IN_Definition Index'!$F$19*NR_Reihen_Veränderungsraten!AE8,) ->  | AF63: =IF($C63=1,'IN_Definition Index'!$F$19*NR_Reihen_Veränderungsraten!AF8,) -> 
A64: J61 | B64: Telekommunikation | C64: ='IN_Definition Index'!F12 -> 0 | D64: =IF($C64=1,'IN_Definition Index'!$F$19*NR_Reihen_Veränderungsraten!D9,) -> 0 | E64: =IF($C64=1,'IN_Definition Index'!$F$19*NR_Reihen_Veränderungsraten!E9,) -> 0 | F64: =IF($C64=1,'IN_Definition Index'!$F$19*NR_Reihen_Veränderungsraten!F9,) -> 0 | G64: =IF($C64=1,'IN_Definition Index'!$F$19*NR_Reihen_Veränderungsraten!G9,) -> 0 | H64: =IF($C64=1,'IN_Definition Index'!$F$19*NR_Reihen_Veränderungsraten!H9,) -> 0 | I64: =IF($C64=1,'IN_Definition Index'!$F$19*NR_Reihen_Veränderungsraten!I9,) -> 0 | J64: =IF($C64=1,'IN_Definition Index'!$F$19*NR_Reihen_Veränderungsraten!J9,) -> 0 | K64: =IF($C64=1,'IN_Definition Index'!$F$19*NR_Reihen_Veränderungsraten!K9,) -> 0 | L64: =IF($C64=1,'IN_Definition Index'!$F$19*NR_Reihen_Veränderungsraten!L9,) -> 0 | M64: =IF($C64=1,'IN_Definition Index'!$F$19*NR_Reihen_Veränderungsraten!M9,) -> 0 | N64: =IF($C64=1,'IN_Definition Index'!$F$19*NR_Reihen_Veränderungsraten!N9,) -> 0 | O64: =IF($C64=1,'IN_Definition Index'!$F$19*NR_Reihen_Veränderungsraten!O9,) -> 0 | P64: =IF($C64=1,'IN_Definition Index'!$F$19*NR_Reihen_Veränderungsraten!P9,) -> 0 | Q64: =IF($C64=1,'IN_Definition Index'!$F$19*NR_Reihen_Veränderungsraten!Q9,) -> 0 | R64: =IF($C64=1,'IN_Definition Index'!$F$19*NR_Reihen_Veränderungsraten!R9,) -> 0 | S64: =IF($C64=1,'IN_Definition Index'!$F$19*NR_Reihen_Veränderungsraten!S9,) -> 0 | T64: =IF($C64=1,'IN_Definition Index'!$F$19*NR_Reihen_Veränderungsraten!T9,) -> 0 | U64: =IF($C64=1,'IN_Definition Index'!$F$19*NR_Reihen_Veränderungsraten!U9,) -> 0 | V64: =IF($C64=1,'IN_Definition Index'!$F$19*NR_Reihen_Veränderungsraten!V9,) -> 0 | W64: =IF($C64=1,'IN_Definition Index'!$F$19*NR_Reihen_Veränderungsraten!W9,) -> 0 | X64: =IF($C64=1,'IN_Definition Index'!$F$19*NR_Reihen_Veränderungsraten!X9,) -> 0 | Y64: =IF($C64=1,'IN_Definition Index'!$F$19*NR_Reihen_Veränderungsraten!Y9,) -> 0 | Z64: =IF($C64=1,'IN_Definition Index'!$F$19*NR_Reihen_Veränderungsraten!Z9,) -> 0 | AA64: =IF($C64=1,'IN_Definition Index'!$F$19*NR_Reihen_Veränderungsraten!AA9,) -> 0 | AB64: =IF($C64=1,'IN_Definition Index'!$F$19*NR_Reihen_Veränderungsraten!AB9,) -> 0 | AC64: =IF($C64=1,'IN_Definition Index'!$F$19*NR_Reihen_Veränderungsraten!AC9,) -> 0 | AD64: =IF($C64=1,'IN_Definition Index'!$F$19*NR_Reihen_Veränderungsraten!AD9,) -> 0 | AE64: =IF($C64=1,'IN_Definition Index'!$F$19*NR_Reihen_Veränderungsraten!AE9,) -> 0 | AF64: =IF($C64=1,'IN_Definition Index'!$F$19*NR_Reihen_Veränderungsraten!AF9,) -> 0
A65: J62-01 | B65: IT- und Informationsdienstleister | C65: ='IN_Definition Index'!F13 -> 0 | D65: =IF($C65=1,'IN_Definition Index'!$F$19*NR_Reihen_Veränderungsraten!D10,) -> 0 | E65: =IF($C65=1,'IN_Definition Index'!$F$19*NR_Reihen_Veränderungsraten!E10,) -> 0 | F65: =IF($C65=1,'IN_Definition Index'!$F$19*NR_Reihen_Veränderungsraten!F10,) -> 0 | G65: =IF($C65=1,'IN_Definition Index'!$F$19*NR_Reihen_Veränderungsraten!G10,) -> 0 | H65: =IF($C65=1,'IN_Definition Index'!$F$19*NR_Reihen_Veränderungsraten!H10,) -> 0 | I65: =IF($C65=1,'IN_Definition Index'!$F$19*NR_Reihen_Veränderungsraten!I10,) -> 0 | J65: =IF($C65=1,'IN_Definition Index'!$F$19*NR_Reihen_Veränderungsraten!J10,) -> 0 | K65: =IF($C65=1,'IN_Definition Index'!$F$19*NR_Reihen_Veränderungsraten!K10,) -> 0 | L65: =IF($C65=1,'IN_Definition Index'!$F$19*NR_Reihen_Veränderungsraten!L10,) -> 0 | M65: =IF($C65=1,'IN_Definition Index'!$F$19*NR_Reihen_Veränderungsraten!M10,) -> 0 | N65: =IF($C65=1,'IN_Definition Index'!$F$19*NR_Reihen_Veränderungsraten!N10,) -> 0 | O65: =IF($C65=1,'IN_Definition Index'!$F$19*NR_Reihen_Veränderungsraten!O10,) -> 0 | P65: =IF($C65=1,'IN_Definition Index'!$F$19*NR_Reihen_Veränderungsraten!P10,) -> 0 | Q65: =IF($C65=1,'IN_Definition Index'!$F$19*NR_Reihen_Veränderungsraten!Q10,) -> 0 | R65: =IF($C65=1,'IN_Definition Index'!$F$19*NR_Reihen_Veränderungsraten!R10,) -> 0 | S65: =IF($C65=1,'IN_Definition Index'!$F$19*NR_Reihen_Veränderungsraten!S10,) -> 0 | T65: =IF($C65=1,'IN_Definition Index'!$F$19*NR_Reihen_Veränderungsraten!T10,) -> 0 | U65: =IF($C65=1,'IN_Definition Index'!$F$19*NR_Reihen_Veränderungsraten!U10,) -> 0 | V65: =IF($C65=1,'IN_Definition Index'!$F$19*NR_Reihen_Veränderungsraten!V10,) -> 0 | W65: =IF($C65=1,'IN_Definition Index'!$F$19*NR_Reihen_Veränderungsraten!W10,) -> 0 | X65: =IF($C65=1,'IN_Definition Index'!$F$19*NR_Reihen_Veränderungsraten!X10,) -> 0 | Y65: =IF($C65=1,'IN_Definition Index'!$F$19*NR_Reihen_Veränderungsraten!Y10,) -> 0 | Z65: =IF($C65=1,'IN_Definition Index'!$F$19*NR_Reihen_Veränderungsraten!Z10,) -> 0 | AA65: =IF($C65=1,'IN_Definition Index'!$F$19*NR_Reihen_Veränderungsraten!AA10,) -> 0 | AB65: =IF($C65=1,'IN_Definition Index'!$F$19*NR_Reihen_Veränderungsraten!AB10,) -> 0 | AC65: =IF($C65=1,'IN_Definition Index'!$F$19*NR_Reihen_Veränderungsraten!AC10,) -> 0 | AD65: =IF($C65=1,'IN_Definition Index'!$F$19*NR_Reihen_Veränderungsraten!AD10,) -> 0 | AE65: =IF($C65=1,'IN_Definition Index'!$F$19*NR_Reihen_Veränderungsraten!AE10,) -> 0 | AF65: =IF($C65=1,'IN_Definition Index'!$F$19*NR_Reihen_Veränderungsraten!AF10,) -> 0
A66: M69-01 | B66: Unternehmensnahe Beratungsleistungen | C66: ='IN_Definition Index'!F14 -> 0 | D66: =IF($C66=1,'IN_Definition Index'!$F$19*NR_Reihen_Veränderungsraten!D11,) -> 0 | E66: =IF($C66=1,'IN_Definition Index'!$F$19*NR_Reihen_Veränderungsraten!E11,) -> 0 | F66: =IF($C66=1,'IN_Definition Index'!$F$19*NR_Reihen_Veränderungsraten!F11,) -> 0 | G66: =IF($C66=1,'IN_Definition Index'!$F$19*NR_Reihen_Veränderungsraten!G11,) -> 0 | H66: =IF($C66=1,'IN_Definition Index'!$F$19*NR_Reihen_Veränderungsraten!H11,) -> 0 | I66: =IF($C66=1,'IN_Definition Index'!$F$19*NR_Reihen_Veränderungsraten!I11,) -> 0 | J66: =IF($C66=1,'IN_Definition Index'!$F$19*NR_Reihen_Veränderungsraten!J11,) -> 0 | K66: =IF($C66=1,'IN_Definition Index'!$F$19*NR_Reihen_Veränderungsraten!K11,) -> 0 | L66: =IF($C66=1,'IN_Definition Index'!$F$19*NR_Reihen_Veränderungsraten!L11,) -> 0 | M66: =IF($C66=1,'IN_Definition Index'!$F$19*NR_Reihen_Veränderungsraten!M11,) -> 0 | N66: =IF($C66=1,'IN_Definition Index'!$F$19*NR_Reihen_Veränderungsraten!N11,) -> 0 | O66: =IF($C66=1,'IN_Definition Index'!$F$19*NR_Reihen_Veränderungsraten!O11,) -> 0 | P66: =IF($C66=1,'IN_Definition Index'!$F$19*NR_Reihen_Veränderungsraten!P11,) -> 0 | Q66: =IF($C66=1,'IN_Definition Index'!$F$19*NR_Reihen_Veränderungsraten!Q11,) -> 0 | R66: =IF($C66=1,'IN_Definition Index'!$F$19*NR_Reihen_Veränderungsraten!R11,) -> 0 | S66: =IF($C66=1,'IN_Definition Index'!$F$19*NR_Reihen_Veränderungsraten!S11,) -> 0 | T66: =IF($C66=1,'IN_Definition Index'!$F$19*NR_Reihen_Veränderungsraten!T11,) -> 0 | U66: =IF($C66=1,'IN_Definition Index'!$F$19*NR_Reihen_Veränderungsraten!U11,) -> 0 | V66: =IF($C66=1,'IN_Definition Index'!$F$19*NR_Reihen_Veränderungsraten!V11,) -> 0 | W66: =IF($C66=1,'IN_Definition Index'!$F$19*NR_Reihen_Veränderungsraten!W11,) -> 0 | X66: =IF($C66=1,'IN_Definition Index'!$F$19*NR_Reihen_Veränderungsraten!X11,) -> 0 | Y66: =IF($C66=1,'IN_Definition Index'!$F$19*NR_Reihen_Veränderungsraten!Y11,) -> 0 | Z66: =IF($C66=1,'IN_Definition Index'!$F$19*NR_Reihen_Veränderungsraten!Z11,) -> 0 | AA66: =IF($C66=1,'IN_Definition Index'!$F$19*NR_Reihen_Veränderungsraten!AA11,) -> 0 | AB66: =IF($C66=1,'IN_Definition Index'!$F$19*NR_Reihen_Veränderungsraten!AB11,) -> 0 | AC66: =IF($C66=1,'IN_Definition Index'!$F$19*NR_Reihen_Veränderungsraten!AC11,) -> 0 | AD66: =IF($C66=1,'IN_Definition Index'!$F$19*NR_Reihen_Veränderungsraten!AD11,) -> 0 | AE66: =IF($C66=1,'IN_Definition Index'!$F$19*NR_Reihen_Veränderungsraten!AE11,) -> 0 | AF66: =IF($C66=1,'IN_Definition Index'!$F$19*NR_Reihen_Veränderungsraten!AF11,) -> 0
A67: M73 | B67: Werbung und Marktforschung | C67: ='IN_Definition Index'!F15 -> 0 | D67: =IF($C67=1,'IN_Definition Index'!$F$19*NR_Reihen_Veränderungsraten!D12,) -> 0 | E67: =IF($C67=1,'IN_Definition Index'!$F$19*NR_Reihen_Veränderungsraten!E12,) -> 0 | F67: =IF($C67=1,'IN_Definition Index'!$F$19*NR_Reihen_Veränderungsraten!F12,) -> 0 | G67: =IF($C67=1,'IN_Definition Index'!$F$19*NR_Reihen_Veränderungsraten!G12,) -> 0 | H67: =IF($C67=1,'IN_Definition Index'!$F$19*NR_Reihen_Veränderungsraten!H12,) -> 0 | I67: =IF($C67=1,'IN_Definition Index'!$F$19*NR_Reihen_Veränderungsraten!I12,) -> 0 | J67: =IF($C67=1,'IN_Definition Index'!$F$19*NR_Reihen_Veränderungsraten!J12,) -> 0 | K67: =IF($C67=1,'IN_Definition Index'!$F$19*NR_Reihen_Veränderungsraten!K12,) -> 0 | L67: =IF($C67=1,'IN_Definition Index'!$F$19*NR_Reihen_Veränderungsraten!L12,) -> 0 | M67: =IF($C67=1,'IN_Definition Index'!$F$19*NR_Reihen_Veränderungsraten!M12,) -> 0 | N67: =IF($C67=1,'IN_Definition Index'!$F$19*NR_Reihen_Veränderungsraten!N12,) -> 0 | O67: =IF($C67=1,'IN_Definition Index'!$F$19*NR_Reihen_Veränderungsraten!O12,) -> 0 | P67: =IF($C67=1,'IN_Definition Index'!$F$19*NR_Reihen_Veränderungsraten!P12,) -> 0 | Q67: =IF($C67=1,'IN_Definition Index'!$F$19*NR_Reihen_Veränderungsraten!Q12,) -> 0 | R67: =IF($C67=1,'IN_Definition Index'!$F$19*NR_Reihen_Veränderungsraten!R12,) -> 0 | S67: =IF($C67=1,'IN_Definition Index'!$F$19*NR_Reihen_Veränderungsraten!S12,) -> 0 | T67: =IF($C67=1,'IN_Definition Index'!$F$19*NR_Reihen_Veränderungsraten!T12,) -> 0 | U67: =IF($C67=1,'IN_Definition Index'!$F$19*NR_Reihen_Veränderungsraten!U12,) -> 0 | V67: =IF($C67=1,'IN_Definition Index'!$F$19*NR_Reihen_Veränderungsraten!V12,) -> 0 | W67: =IF($C67=1,'IN_Definition Index'!$F$19*NR_Reihen_Veränderungsraten!W12,) -> 0 | X67: =IF($C67=1,'IN_Definition Index'!$F$19*NR_Reihen_Veränderungsraten!X12,) -> 0 | Y67: =IF($C67=1,'IN_Definition Index'!$F$19*NR_Reihen_Veränderungsraten!Y12,) -> 0 | Z67: =IF($C67=1,'IN_Definition Index'!$F$19*NR_Reihen_Veränderungsraten!Z12,) -> 0 | AA67: =IF($C67=1,'IN_Definition Index'!$F$19*NR_Reihen_Veränderungsraten!AA12,) -> 0 | AB67: =IF($C67=1,'IN_Definition Index'!$F$19*NR_Reihen_Veränderungsraten!AB12,) -> 0 | AC67: =IF($C67=1,'IN_Definition Index'!$F$19*NR_Reihen_Veränderungsraten!AC12,) -> 0 | AD67: =IF($C67=1,'IN_Definition Index'!$F$19*NR_Reihen_Veränderungsraten!AD12,) -> 0 | AE67: =IF($C67=1,'IN_Definition Index'!$F$19*NR_Reihen_Veränderungsraten!AE12,) -> 0 | AF67: =IF($C67=1,'IN_Definition Index'!$F$19*NR_Reihen_Veränderungsraten!AF12,) -> 0
A68: M74-01 | B68: Freiberufl.,wiss.,techn.DL a.n.g., Veterinärwesen | C68: ='IN_Definition Index'!F16 -> 0 | D68: =IF($C68=1,'IN_Definition Index'!$F$19*NR_Reihen_Veränderungsraten!D13,) -> 0 | E68: =IF($C68=1,'IN_Definition Index'!$F$19*NR_Reihen_Veränderungsraten!E13,) -> 0 | F68: =IF($C68=1,'IN_Definition Index'!$F$19*NR_Reihen_Veränderungsraten!F13,) -> 0 | G68: =IF($C68=1,'IN_Definition Index'!$F$19*NR_Reihen_Veränderungsraten!G13,) -> 0 | H68: =IF($C68=1,'IN_Definition Index'!$F$19*NR_Reihen_Veränderungsraten!H13,) -> 0 | I68: =IF($C68=1,'IN_Definition Index'!$F$19*NR_Reihen_Veränderungsraten!I13,) -> 0 | J68: =IF($C68=1,'IN_Definition Index'!$F$19*NR_Reihen_Veränderungsraten!J13,) -> 0 | K68: =IF($C68=1,'IN_Definition Index'!$F$19*NR_Reihen_Veränderungsraten!K13,) -> 0 | L68: =IF($C68=1,'IN_Definition Index'!$F$19*NR_Reihen_Veränderungsraten!L13,) -> 0 | M68: =IF($C68=1,'IN_Definition Index'!$F$19*NR_Reihen_Veränderungsraten!M13,) -> 0 | N68: =IF($C68=1,'IN_Definition Index'!$F$19*NR_Reihen_Veränderungsraten!N13,) -> 0 | O68: =IF($C68=1,'IN_Definition Index'!$F$19*NR_Reihen_Veränderungsraten!O13,) -> 0 | P68: =IF($C68=1,'IN_Definition Index'!$F$19*NR_Reihen_Veränderungsraten!P13,) -> 0 | Q68: =IF($C68=1,'IN_Definition Index'!$F$19*NR_Reihen_Veränderungsraten!Q13,) -> 0 | R68: =IF($C68=1,'IN_Definition Index'!$F$19*NR_Reihen_Veränderungsraten!R13,) -> 0 | S68: =IF($C68=1,'IN_Definition Index'!$F$19*NR_Reihen_Veränderungsraten!S13,) -> 0 | T68: =IF($C68=1,'IN_Definition Index'!$F$19*NR_Reihen_Veränderungsraten!T13,) -> 0 | U68: =IF($C68=1,'IN_Definition Index'!$F$19*NR_Reihen_Veränderungsraten!U13,) -> 0 | V68: =IF($C68=1,'IN_Definition Index'!$F$19*NR_Reihen_Veränderungsraten!V13,) -> 0 | W68: =IF($C68=1,'IN_Definition Index'!$F$19*NR_Reihen_Veränderungsraten!W13,) -> 0 | X68: =IF($C68=1,'IN_Definition Index'!$F$19*NR_Reihen_Veränderungsraten!X13,) -> 0 | Y68: =IF($C68=1,'IN_Definition Index'!$F$19*NR_Reihen_Veränderungsraten!Y13,) -> 0 | Z68: =IF($C68=1,'IN_Definition Index'!$F$19*NR_Reihen_Veränderungsraten!Z13,) -> 0 | AA68: =IF($C68=1,'IN_Definition Index'!$F$19*NR_Reihen_Veränderungsraten!AA13,) -> 0 | AB68: =IF($C68=1,'IN_Definition Index'!$F$19*NR_Reihen_Veränderungsraten!AB13,) -> 0 | AC68: =IF($C68=1,'IN_Definition Index'!$F$19*NR_Reihen_Veränderungsraten!AC13,) -> 0 | AD68: =IF($C68=1,'IN_Definition Index'!$F$19*NR_Reihen_Veränderungsraten!AD13,) -> 0 | AE68: =IF($C68=1,'IN_Definition Index'!$F$19*NR_Reihen_Veränderungsraten!AE13,) -> 0 | AF68: =IF($C68=1,'IN_Definition Index'!$F$19*NR_Reihen_Veränderungsraten!AF13,) -> 0
A69: L | B69: Grundstücks- und Wohnungswesen | C69: ='IN_Definition Index'!F17 -> 0 | D69: =IF($C69=1,'IN_Definition Index'!$F$19*NR_Reihen_Veränderungsraten!D14,) -> 0 | E69: =IF($C69=1,'IN_Definition Index'!$F$19*NR_Reihen_Veränderungsraten!E14,) -> 0 | F69: =IF($C69=1,'IN_Definition Index'!$F$19*NR_Reihen_Veränderungsraten!F14,) -> 0 | G69: =IF($C69=1,'IN_Definition Index'!$F$19*NR_Reihen_Veränderungsraten!G14,) -> 0 | H69: =IF($C69=1,'IN_Definition Index'!$F$19*NR_Reihen_Veränderungsraten!H14,) -> 0 | I69: =IF($C69=1,'IN_Definition Index'!$F$19*NR_Reihen_Veränderungsraten!I14,) -> 0 | J69: =IF($C69=1,'IN_Definition Index'!$F$19*NR_Reihen_Veränderungsraten!J14,) -> 0 | K69: =IF($C69=1,'IN_Definition Index'!$F$19*NR_Reihen_Veränderungsraten!K14,) -> 0 | L69: =IF($C69=1,'IN_Definition Index'!$F$19*NR_Reihen_Veränderungsraten!L14,) -> 0 | M69: =IF($C69=1,'IN_Definition Index'!$F$19*NR_Reihen_Veränderungsraten!M14,) -> 0 | N69: =IF($C69=1,'IN_Definition Index'!$F$19*NR_Reihen_Veränderungsraten!N14,) -> 0 | O69: =IF($C69=1,'IN_Definition Index'!$F$19*NR_Reihen_Veränderungsraten!O14,) -> 0 | P69: =IF($C69=1,'IN_Definition Index'!$F$19*NR_Reihen_Veränderungsraten!P14,) -> 0 | Q69: =IF($C69=1,'IN_Definition Index'!$F$19*NR_Reihen_Veränderungsraten!Q14,) -> 0 | R69: =IF($C69=1,'IN_Definition Index'!$F$19*NR_Reihen_Veränderungsraten!R14,) -> 0 | S69: =IF($C69=1,'IN_Definition Index'!$F$19*NR_Reihen_Veränderungsraten!S14,) -> 0 | T69: =IF($C69=1,'IN_Definition Index'!$F$19*NR_Reihen_Veränderungsraten!T14,) -> 0 | U69: =IF($C69=1,'IN_Definition Index'!$F$19*NR_Reihen_Veränderungsraten!U14,) -> 0 | V69: =IF($C69=1,'IN_Definition Index'!$F$19*NR_Reihen_Veränderungsraten!V14,) -> 0 | W69: =IF($C69=1,'IN_Definition Index'!$F$19*NR_Reihen_Veränderungsraten!W14,) -> 0 | X69: =IF($C69=1,'IN_Definition Index'!$F$19*NR_Reihen_Veränderungsraten!X14,) -> 0 | Y69: =IF($C69=1,'IN_Definition Index'!$F$19*NR_Reihen_Veränderungsraten!Y14,) -> 0 | Z69: =IF($C69=1,'IN_Definition Index'!$F$19*NR_Reihen_Veränderungsraten!Z14,) -> 0 | AA69: =IF($C69=1,'IN_Definition Index'!$F$19*NR_Reihen_Veränderungsraten!AA14,) -> 0 | AB69: =IF($C69=1,'IN_Definition Index'!$F$19*NR_Reihen_Veränderungsraten!AB14,) -> 0 | AC69: =IF($C69=1,'IN_Definition Index'!$F$19*NR_Reihen_Veränderungsraten!AC14,) -> 0 | AD69: =IF($C69=1,'IN_Definition Index'!$F$19*NR_Reihen_Veränderungsraten!AD14,) -> 0 | AE69: =IF($C69=1,'IN_Definition Index'!$F$19*NR_Reihen_Veränderungsraten!AE14,) -> 0 | AF69: =IF($C69=1,'IN_Definition Index'!$F$19*NR_Reihen_Veränderungsraten!AF14,) -> 0
B70: Summe | D70: =SUM(D59:D69) -> 1.028975903 | E70: =SUM(E59:E69) -> 0.9936497475 | F70: =SUM(F59:F69) -> 1.080530855 | G70: =SUM(G59:G69) -> 1.008377918 | H70: =SUM(H59:H69) -> 1.027545373 | I70: =SUM(I59:I69) -> 1.105150454 | J70: =SUM(J59:J69) -> 1.036287465 | K70: =SUM(K59:K69) -> 0.9293647896 | L70: =SUM(L59:L69) -> 1.047452106 | M70: =SUM(M59:M69) -> 1.052941588 | N70: =SUM(N59:N69) -> 1.071844916 | O70: =SUM(O59:O69) -> 1.055992688 | P70: =SUM(P59:P69) -> 1.112336176 | Q70: =SUM(Q59:Q69) -> 1.097432216 | R70: =SUM(R59:R69) -> 1.039709301 | S70: =SUM(S59:S69) -> 1.030973604 | T70: =SUM(T59:T69) -> 0.9134478716 | U70: =SUM(U59:U69) -> 0.878007617 | V70: =SUM(V59:V69) -> 1.037805164 | W70: =SUM(W59:W69) -> 1.002683194 | X70: =SUM(X59:X69) -> 0.9847546679 | Y70: =SUM(Y59:Y69) -> 0.9856947769 | Z70: =SUM(Z59:Z69) -> 1.003195415 | AA70: =SUM(AA59:AA69) -> 0.9977991185 | AB70: =SUM(AB59:AB69) -> 0.9813233483 | AC70: =SUM(AC59:AC69) -> 0.9694878735 | AD70: 0.991795091
A72: Transport
A74: Nr. (WZ 2008) | B74: Branche | C74: Verwendung | D74: 1992 | E74: =D74+1 -> 1993 | F74: =E74+1 -> 1994 | G74: =F74+1 -> 1995 | H74: =G74+1 -> 1996 | I74: =H74+1 -> 1997 | J74: =I74+1 -> 1998 | K74: =J74+1 -> 1999 | L74: =K74+1 -> 2000 | M74: =L74+1 -> 2001 | N74: =M74+1 -> 2002 | O74: =N74+1 -> 2003 | P74: =O74+1 -> 2004 | Q74: =P74+1 -> 2005 | R74: =Q74+1 -> 2006 | S74: =R74+1 -> 2007 | T74: =S74+1 -> 2008 | U74: =T74+1 -> 2009 | V74: =U74+1 -> 2010 | W74: =V74+1 -> 2011 | X74: =W74+1 -> 2012 | Y74: =X74+1 -> 2013 | Z74: =Y74+1 -> 2014 | AA74: =Z74+1 -> 2015 | AB74: =AA74+1 -> 2016 | AC74: =AB74+1 -> 2017 | AD74: =AC74+1 -> 2018 | AE74: =AD74+1 -> 2019 | AF74: =AE74+1 -> 2020
A75: C33 | B75: Reparatur und Installation von Maschinen und Ausrüstungen | C75: ='IN_Definition Index'!G7 -> 0 | D75: =IF($C75=1,'IN_Definition Index'!$G$19*NR_Reihen_Veränderungsraten!D4,) -> 0 | E75: =IF($C75=1,'IN_Definition Index'!$G$19*NR_Reihen_Veränderungsraten!E4,) -> 0 | F75: =IF($C75=1,'IN_Definition Index'!$G$19*NR_Reihen_Veränderungsraten!F4,) -> 0 | G75: =IF($C75=1,'IN_Definition Index'!$G$19*NR_Reihen_Veränderungsraten!G4,) -> 0 | H75: =IF($C75=1,'IN_Definition Index'!$G$19*NR_Reihen_Veränderungsraten!H4,) -> 0 | I75: =IF($C75=1,'IN_Definition Index'!$G$19*NR_Reihen_Veränderungsraten!I4,) -> 0 | J75: =IF($C75=1,'IN_Definition Index'!$G$19*NR_Reihen_Veränderungsraten!J4,) -> 0 | K75: =IF($C75=1,'IN_Definition Index'!$G$19*NR_Reihen_Veränderungsraten!K4,) -> 0 | L75: =IF($C75=1,'IN_Definition Index'!$G$19*NR_Reihen_Veränderungsraten!L4,) -> 0 | M75: =IF($C75=1,'IN_Definition Index'!$G$19*NR_Reihen_Veränderungsraten!M4,) -> 0 | N75: =IF($C75=1,'IN_Definition Index'!$G$19*NR_Reihen_Veränderungsraten!N4,) -> 0 | O75: =IF($C75=1,'IN_Definition Index'!$G$19*NR_Reihen_Veränderungsraten!O4,) -> 0 | P75: =IF($C75=1,'IN_Definition Index'!$G$19*NR_Reihen_Veränderungsraten!P4,) -> 0 | Q75: =IF($C75=1,'IN_Definition Index'!$G$19*NR_Reihen_Veränderungsraten!Q4,) -> 0 | R75: =IF($C75=1,'IN_Definition Index'!$G$19*NR_Reihen_Veränderungsraten!R4,) -> 0 | S75: =IF($C75=1,'IN_Definition Index'!$G$19*NR_Reihen_Veränderungsraten!S4,) -> 0 | T75: =IF($C75=1,'IN_Definition Index'!$G$19*NR_Reihen_Veränderungsraten!T4,) -> 0 | U75: =IF($C75=1,'IN_Definition Index'!$G$19*NR_Reihen_Veränderungsraten!U4,) -> 0 | V75: =IF($C75=1,'IN_Definition Index'!$G$19*NR_Reihen_Veränderungsraten!V4,) -> 0 | W75: =IF($C75=1,'IN_Definition Index'!$G$19*NR_Reihen_Veränderungsraten!W4,) -> 0 | X75: =IF($C75=1,'IN_Definition Index'!$G$19*NR_Reihen_Veränderungsraten!X4,) -> 0 | Y75: =IF($C75=1,'IN_Definition Index'!$G$19*NR_Reihen_Veränderungsraten!Y4,) -> 0 | Z75: =IF($C75=1,'IN_Definition Index'!$G$19*NR_Reihen_Veränderungsraten!Z4,) -> 0 | AA75: =IF($C75=1,'IN_Definition Index'!$G$19*NR_Reihen_Veränderungsraten!AA4,) -> 0 | AB75: =IF($C75=1,'IN_Definition Index'!$G$19*NR_Reihen_Veränderungsraten!AB4,) -> 0 | AC75: =IF($C75=1,'IN_Definition Index'!$G$19*NR_Reihen_Veränderungsraten!AC4,) -> 0 | AD75: =IF($C75=1,'IN_Definition Index'!$G$19*NR_Reihen_Veränderungsraten!AD4,) -> 0 | AE75: =IF($C75=1,'IN_Definition Index'!$G$19*NR_Reihen_Veränderungsraten!AE4,) -> 0 | AF75: =IF($C75=1,'IN_Definition Index'!$G$19*NR_Reihen_Veränderungsraten!AF4,) -> 0
A76: G45 | B76: Handel mit Kraftfahrzeugen; Instandhaltung und Reparatur von Kraftfahrzeugen | C76: ='IN_Definition Index'!G8 -> 0 | D76: =IF($C76=1,'IN_Definition Index'!$G$19*NR_Reihen_Veränderungsraten!D5,) -> 0 | E76: =IF($C76=1,'IN_Definition Index'!$G$19*NR_Reihen_Veränderungsraten!E5,) -> 0 | F76: =IF($C76=1,'IN_Definition Index'!$G$19*NR_Reihen_Veränderungsraten!F5,) -> 0 | G76: =IF($C76=1,'IN_Definition Index'!$G$19*NR_Reihen_Veränderungsraten!G5,) -> 0 | H76: =IF($C76=1,'IN_Definition Index'!$G$19*NR_Reihen_Veränderungsraten!H5,) -> 0 | I76: =IF($C76=1,'IN_Definition Index'!$G$19*NR_Reihen_Veränderungsraten!I5,) -> 0 | J76: =IF($C76=1,'IN_Definition Index'!$G$19*NR_Reihen_Veränderungsraten!J5,) -> 0 | K76: =IF($C76=1,'IN_Definition Index'!$G$19*NR_Reihen_Veränderungsraten!K5,) -> 0 | L76: =IF($C76=1,'IN_Definition Index'!$G$19*NR_Reihen_Veränderungsraten!L5,) -> 0 | M76: =IF($C76=1,'IN_Definition Index'!$G$19*NR_Reihen_Veränderungsraten!M5,) -> 0 | N76: =IF($C76=1,'IN_Definition Index'!$G$19*NR_Reihen_Veränderungsraten!N5,) -> 0 | O76: =IF($C76=1,'IN_Definition Index'!$G$19*NR_Reihen_Veränderungsraten!O5,) -> 0 | P76: =IF($C76=1,'IN_Definition Index'!$G$19*NR_Reihen_Veränderungsraten!P5,) -> 0 | Q76: =IF($C76=1,'IN_Definition Index'!$G$19*NR_Reihen_Veränderungsraten!Q5,) -> 0 | R76: =IF($C76=1,'IN_Definition Index'!$G$19*NR_Reihen_Veränderungsraten!R5,) -> 0 | S76: =IF($C76=1,'IN_Definition Index'!$G$19*NR_Reihen_Veränderungsraten!S5,) -> 0 | T76: =IF($C76=1,'IN_Definition Index'!$G$19*NR_Reihen_Veränderungsraten!T5,) -> 0 | U76: =IF($C76=1,'IN_Definition Index'!$G$19*NR_Reihen_Veränderungsraten!U5,) -> 0 | V76: =IF($C76=1,'IN_Definition Index'!$G$19*NR_Reihen_Veränderungsraten!V5,) -> 0 | W76: =IF($C76=1,'IN_Definition Index'!$G$19*NR_Reihen_Veränderungsraten!W5,) -> 0 | X76: =IF($C76=1,'IN_Definition Index'!$G$19*NR_Reihen_Veränderungsraten!X5,) -> 0 | Y76: =IF($C76=1,'IN_Definition Index'!$G$19*NR_Reihen_Veränderungsraten!Y5,) -> 0 | Z76: =IF($C76=1,'IN_Definition Index'!$G$19*NR_Reihen_Veränderungsraten!Z5,) -> 0 | AA76: =IF($C76=1,'IN_Definition Index'!$G$19*NR_Reihen_Veränderungsraten!AA5,) -> 0 | AB76: =IF($C76=1,'IN_Definition Index'!$G$19*NR_Reihen_Veränderungsraten!AB5,) -> 0 | AC76: =IF($C76=1,'IN_Definition Index'!$G$19*NR_Reihen_Veränderungsraten!AC5,) -> 0 | AD76: =IF($C76=1,'IN_Definition Index'!$G$19*NR_Reihen_Veränderungsraten!AD5,) -> 0 | AE76: =IF($C76=1,'IN_Definition Index'!$G$19*NR_Reihen_Veränderungsraten!AE5,) -> 0 | AF76: =IF($C76=1,'IN_Definition Index'!$G$19*NR_Reihen_Veränderungsraten!AF5,) -> 0
A77: G47 | B77: Einzelhandel (ohne Handel mit Kraftfahrzeugen) | C77: ='IN_Definition Index'!G9 -> 0 | D77: =IF($C77=1,'IN_Definition Index'!$G$19*NR_Reihen_Veränderungsraten!D6,) -> 0 | E77: =IF($C77=1,'IN_Definition Index'!$G$19*NR_Reihen_Veränderungsraten!E6,) -> 0 | F77: =IF($C77=1,'IN_Definition Index'!$G$19*NR_Reihen_Veränderungsraten!F6,) -> 0 | G77: =IF($C77=1,'IN_Definition Index'!$G$19*NR_Reihen_Veränderungsraten!G6,) -> 0 | H77: =IF($C77=1,'IN_Definition Index'!$G$19*NR_Reihen_Veränderungsraten!H6,) -> 0 | I77: =IF($C77=1,'IN_Definition Index'!$G$19*NR_Reihen_Veränderungsraten!I6,) -> 0 | J77: =IF($C77=1,'IN_Definition Index'!$G$19*NR_Reihen_Veränderungsraten!J6,) -> 0 | K77: =IF($C77=1,'IN_Definition Index'!$G$19*NR_Reihen_Veränderungsraten!K6,) -> 0 | L77: =IF($C77=1,'IN_Definition Index'!$G$19*NR_Reihen_Veränderungsraten!L6,) -> 0 | M77: =IF($C77=1,'IN_Definition Index'!$G$19*NR_Reihen_Veränderungsraten!M6,) -> 0 | N77: =IF($C77=1,'IN_Definition Index'!$G$19*NR_Reihen_Veränderungsraten!N6,) -> 0 | O77: =IF($C77=1,'IN_Definition Index'!$G$19*NR_Reihen_Veränderungsraten!O6,) -> 0 | P77: =IF($C77=1,'IN_Definition Index'!$G$19*NR_Reihen_Veränderungsraten!P6,) -> 0 | Q77: =IF($C77=1,'IN_Definition Index'!$G$19*NR_Reihen_Veränderungsraten!Q6,) -> 0 | R77: =IF($C77=1,'IN_Definition Index'!$G$19*NR_Reihen_Veränderungsraten!R6,) -> 0 | S77: =IF($C77=1,'IN_Definition Index'!$G$19*NR_Reihen_Veränderungsraten!S6,) -> 0 | T77: =IF($C77=1,'IN_Definition Index'!$G$19*NR_Reihen_Veränderungsraten!T6,) -> 0 | U77: =IF($C77=1,'IN_Definition Index'!$G$19*NR_Reihen_Veränderungsraten!U6,) -> 0 | V77: =IF($C77=1,'IN_Definition Index'!$G$19*NR_Reihen_Veränderungsraten!V6,) -> 0 | W77: =IF($C77=1,'IN_Definition Index'!$G$19*NR_Reihen_Veränderungsraten!W6,) -> 0 | X77: =IF($C77=1,'IN_Definition Index'!$G$19*NR_Reihen_Veränderungsraten!X6,) -> 0 | Y77: =IF($C77=1,'IN_Definition Index'!$G$19*NR_Reihen_Veränderungsraten!Y6,) -> 0 | Z77: =IF($C77=1,'IN_Definition Index'!$G$19*NR_Reihen_Veränderungsraten!Z6,) -> 0 | AA77: =IF($C77=1,'IN_Definition Index'!$G$19*NR_Reihen_Veränderungsraten!AA6,) -> 0 | AB77: =IF($C77=1,'IN_Definition Index'!$G$19*NR_Reihen_Veränderungsraten!AB6,) -> 0 | AC77: =IF($C77=1,'IN_Definition Index'!$G$19*NR_Reihen_Veränderungsraten!AC6,) -> 0 | AD77: =IF($C77=1,'IN_Definition Index'!$G$19*NR_Reihen_Veränderungsraten!AD6,) -> 0 | AE77: =IF($C77=1,'IN_Definition Index'!$G$19*NR_Reihen_Veränderungsraten!AE6,) -> 0 | AF77: =IF($C77=1,'IN_Definition Index'!$G$19*NR_Reihen_Veränderungsraten!AF6,) -> 0
A78: H49 | B78: Landverkehr und Transport in Rohrfernleitungen | C78: ='IN_Definition Index'!G10 -> 1 | D78: =IF($C78=1,'IN_Definition Index'!$G$19*NR_Reihen_Veränderungsraten!D7,) -> 0.9505808644 | E78: =IF($C78=1,'IN_Definition Index'!$G$19*NR_Reihen_Veränderungsraten!E7,) -> 1.010644575 | F78: =IF($C78=1,'IN_Definition Index'!$G$19*NR_Reihen_Veränderungsraten!F7,) -> 1.060184635 | G78: =IF($C78=1,'IN_Definition Index'!$G$19*NR_Reihen_Veränderungsraten!G7,) -> 1.144762141 | H78: =IF($C78=1,'IN_Definition Index'!$G$19*NR_Reihen_Veränderungsraten!H7,) -> 1.070174865 | I78: =IF($C78=1,'IN_Definition Index'!$G$19*NR_Reihen_Veränderungsraten!I7,) -> 0.9755213401 | J78: =IF($C78=1,'IN_Definition Index'!$G$19*NR_Reihen_Veränderungsraten!J7,) -> 0.9810762563 | K78: =IF($C78=1,'IN_Definition Index'!$G$19*NR_Reihen_Veränderungsraten!K7,) -> 1.250074475 | L78: =IF($C78=1,'IN_Definition Index'!$G$19*NR_Reihen_Veränderungsraten!L7,) -> 0.9420084269 | M78: =IF($C78=1,'IN_Definition Index'!$G$19*NR_Reihen_Veränderungsraten!M7,) -> 0.9807989697 | N78: =IF($C78=1,'IN_Definition Index'!$G$19*NR_Reihen_Veränderungsraten!N7,) -> 0.9757671794 | O78: =IF($C78=1,'IN_Definition Index'!$G$19*NR_Reihen_Veränderungsraten!O7,) -> 0.9520374708 | P78: =IF($C78=1,'IN_Definition Index'!$G$19*NR_Reihen_Veränderungsraten!P7,) -> 0.9980824824 | Q78: =IF($C78=1,'IN_Definition Index'!$G$19*NR_Reihen_Veränderungsraten!Q7,) -> 1.051807856 | R78: =IF($C78=1,'IN_Definition Index'!$G$19*NR_Reihen_Veränderungsraten!R7,) -> 1.090203565 | S78: =IF($C78=1,'IN_Definition Index'!$G$19*NR_Reihen_Veränderungsraten!S7,) -> 1.008951313 | T78: =IF($C78=1,'IN_Definition Index'!$G$19*NR_Reihen_Veränderungsraten!T7,) -> 1.014955451 | U78: =IF($C78=1,'IN_Definition Index'!$G$19*NR_Reihen_Veränderungsraten!U7,) -> 0.9182536778 | V78: =IF($C78=1,'IN_Definition Index'!$G$19*NR_Reihen_Veränderungsraten!V7,) -> 1.016134584 | W78: =IF($C78=1,'IN_Definition Index'!$G$19*NR_Reihen_Veränderungsraten!W7,) -> 1.044649737 | X78: =IF($C78=1,'IN_Definition Index'!$G$19*NR_Reihen_Veränderungsraten!X7,) -> 1.006732574 | Y78: =IF($C78=1,'IN_Definition Index'!$G$19*NR_Reihen_Veränderungsraten!Y7,) -> 0.9931506775 | Z78: =IF($C78=1,'IN_Definition Index'!$G$19*NR_Reihen_Veränderungsraten!Z7,) -> 1.019348531 | AA78: =IF($C78=1,'IN_Definition Index'!$G$19*NR_Reihen_Veränderungsraten!AA7,) -> 0.9642419893 | AB78: =IF($C78=1,'IN_Definition Index'!$G$19*NR_Reihen_Veränderungsraten!AB7,) -> 0.9716753306 | AC78: =IF($C78=1,'IN_Definition Index'!$G$19*NR_Reihen_Veränderungsraten!AC7,) -> 1.01740946 | AD78: =IF($C78=1,'IN_Definition Index'!$G$19*NR_Reihen_Veränderungsraten!AD7,) -> 1.020666709 | AE78: =IF($C78=1,'IN_Definition Index'!$G$19*NR_Reihen_Veränderungsraten!AE7,) ->  | AF78: =IF($C78=1,'IN_Definition Index'!$G$19*NR_Reihen_Veränderungsraten!AF7,) -> 
A79: H52 | B79: Lagerei sowie Erbringung von sonstigen Dienstleistungen für den Verkehr | C79: ='IN_Definition Index'!G11 -> 0 | D79: =IF($C79=1,'IN_Definition Index'!$G$19*NR_Reihen_Veränderungsraten!D8,) -> 0 | E79: =IF($C79=1,'IN_Definition Index'!$G$19*NR_Reihen_Veränderungsraten!E8,) -> 0 | F79: =IF($C79=1,'IN_Definition Index'!$G$19*NR_Reihen_Veränderungsraten!F8,) -> 0 | G79: =IF($C79=1,'IN_Definition Index'!$G$19*NR_Reihen_Veränderungsraten!G8,) -> 0 | H79: =IF($C79=1,'IN_Definition Index'!$G$19*NR_Reihen_Veränderungsraten!H8,) -> 0 | I79: =IF($C79=1,'IN_Definition Index'!$G$19*NR_Reihen_Veränderungsraten!I8,) -> 0 | J79: =IF($C79=1,'IN_Definition Index'!$G$19*NR_Reihen_Veränderungsraten!J8,) -> 0 | K79: =IF($C79=1,'IN_Definition Index'!$G$19*NR_Reihen_Veränderungsraten!K8,) -> 0 | L79: =IF($C79=1,'IN_Definition Index'!$G$19*NR_Reihen_Veränderungsraten!L8,) -> 0 | M79: =IF($C79=1,'IN_Definition Index'!$G$19*NR_Reihen_Veränderungsraten!M8,) -> 0 | N79: =IF($C79=1,'IN_Definition Index'!$G$19*NR_Reihen_Veränderungsraten!N8,) -> 0 | O79: =IF($C79=1,'IN_Definition Index'!$G$19*NR_Reihen_Veränderungsraten!O8,) -> 0 | P79: =IF($C79=1,'IN_Definition Index'!$G$19*NR_Reihen_Veränderungsraten!P8,) -> 0 | Q79: =IF($C79=1,'IN_Definition Index'!$G$19*NR_Reihen_Veränderungsraten!Q8,) -> 0 | R79: =IF($C79=1,'IN_Definition Index'!$G$19*NR_Reihen_Veränderungsraten!R8,) -> 0 | S79: =IF($C79=1,'IN_Definition Index'!$G$19*NR_Reihen_Veränderungsraten!S8,) -> 0 | T79: =IF($C79=1,'IN_Definition Index'!$G$19*NR_Reihen_Veränderungsraten!T8,) -> 0 | U79: =IF($C79=1,'IN_Definition Index'!$G$19*NR_Reihen_Veränderungsraten!U8,) -> 0 | V79: =IF($C79=1,'IN_Definition Index'!$G$19*NR_Reihen_Veränderungsraten!V8,) -> 0 | W79: =IF($C79=1,'IN_Definition Index'!$G$19*NR_Reihen_Veränderungsraten!W8,) -> 0 | X79: =IF($C79=1,'IN_Definition Index'!$G$19*NR_Reihen_Veränderungsraten!X8,) -> 0 | Y79: =IF($C79=1,'IN_Definition Index'!$G$19*NR_Reihen_Veränderungsraten!Y8,) -> 0 | Z79: =IF($C79=1,'IN_Definition Index'!$G$19*NR_Reihen_Veränderungsraten!Z8,) -> 0 | AA79: =IF($C79=1,'IN_Definition Index'!$G$19*NR_Reihen_Veränderungsraten!AA8,) -> 0 | AB79: =IF($C79=1,'IN_Definition Index'!$G$19*NR_Reihen_Veränderungsraten!AB8,) -> 0 | AC79: =IF($C79=1,'IN_Definition Index'!$G$19*NR_Reihen_Veränderungsraten!AC8,) -> 0 | AD79: =IF($C79=1,'IN_Definition Index'!$G$19*NR_Reihen_Veränderungsraten!AD8,) -> 0 | AE79: =IF($C79=1,'IN_Definition Index'!$G$19*NR_Reihen_Veränderungsraten!AE8,) -> 0 | AF79: =IF($C79=1,'IN_Definition Index'!$G$19*NR_Reihen_Veränderungsraten!AF8,) -> 0
A80: J61 | B80: Telekommunikation | C80: ='IN_Definition Index'!G12 -> 0 | D80: =IF($C80=1,'IN_Definition Index'!$G$19*NR_Reihen_Veränderungsraten!D9,) -> 0 | E80: =IF($C80=1,'IN_Definition Index'!$G$19*NR_Reihen_Veränderungsraten!E9,) -> 0 | F80: =IF($C80=1,'IN_Definition Index'!$G$19*NR_Reihen_Veränderungsraten!F9,) -> 0 | G80: =IF($C80=1,'IN_Definition Index'!$G$19*NR_Reihen_Veränderungsraten!G9,) -> 0 | H80: =IF($C80=1,'IN_Definition Index'!$G$19*NR_Reihen_Veränderungsraten!H9,) -> 0 | I80: =IF($C80=1,'IN_Definition Index'!$G$19*NR_Reihen_Veränderungsraten!I9,) -> 0 | J80: =IF($C80=1,'IN_Definition Index'!$G$19*NR_Reihen_Veränderungsraten!J9,) -> 0 | K80: =IF($C80=1,'IN_Definition Index'!$G$19*NR_Reihen_Veränderungsraten!K9,) -> 0 | L80: =IF($C80=1,'IN_Definition Index'!$G$19*NR_Reihen_Veränderungsraten!L9,) -> 0 | M80: =IF($C80=1,'IN_Definition Index'!$G$19*NR_Reihen_Veränderungsraten!M9,) -> 0 | N80: =IF($C80=1,'IN_Definition Index'!$G$19*NR_Reihen_Veränderungsraten!N9,) -> 0 | O80: =IF($C80=1,'IN_Definition Index'!$G$19*NR_Reihen_Veränderungsraten!O9,) -> 0 | P80: =IF($C80=1,'IN_Definition Index'!$G$19*NR_Reihen_Veränderungsraten!P9,) -> 0 | Q80: =IF($C80=1,'IN_Definition Index'!$G$19*NR_Reihen_Veränderungsraten!Q9,) -> 0 | R80: =IF($C80=1,'IN_Definition Index'!$G$19*NR_Reihen_Veränderungsraten!R9,) -> 0 | S80: =IF($C80=1,'IN_Definition Index'!$G$19*NR_Reihen_Veränderungsraten!S9,) -> 0 | T80: =IF($C80=1,'IN_Definition Index'!$G$19*NR_Reihen_Veränderungsraten!T9,) -> 0 | U80: =IF($C80=1,'IN_Definition Index'!$G$19*NR_Reihen_Veränderungsraten!U9,) -> 0 | V80: =IF($C80=1,'IN_Definition Index'!$G$19*NR_Reihen_Veränderungsraten!V9,) -> 0 | W80: =IF($C80=1,'IN_Definition Index'!$G$19*NR_Reihen_Veränderungsraten!W9,) -> 0 | X80: =IF($C80=1,'IN_Definition Index'!$G$19*NR_Reihen_Veränderungsraten!X9,) -> 0 | Y80: =IF($C80=1,'IN_Definition Index'!$G$19*NR_Reihen_Veränderungsraten!Y9,) -> 0 | Z80: =IF($C80=1,'IN_Definition Index'!$G$19*NR_Reihen_Veränderungsraten!Z9,) -> 0 | AA80: =IF($C80=1,'IN_Definition Index'!$G$19*NR_Reihen_Veränderungsraten!AA9,) -> 0 | AB80: =IF($C80=1,'IN_Definition Index'!$G$19*NR_Reihen_Veränderungsraten!AB9,) -> 0 | AC80: =IF($C80=1,'IN_Definition Index'!$G$19*NR_Reihen_Veränderungsraten!AC9,) -> 0 | AD80: =IF($C80=1,'IN_Definition Index'!$G$19*NR_Reihen_Veränderungsraten!AD9,) -> 0 | AE80: =IF($C80=1,'IN_Definition Index'!$G$19*NR_Reihen_Veränderungsraten!AE9,) -> 0 | AF80: =IF($C80=1,'IN_Definition Index'!$G$19*NR_Reihen_Veränderungsraten!AF9,) -> 0
A81: J62-01 | B81: IT- und Informationsdienstleister | C81: ='IN_Definition Index'!G13 -> 0 | D81: =IF($C81=1,'IN_Definition Index'!$G$19*NR_Reihen_Veränderungsraten!D10,) -> 0 | E81: =IF($C81=1,'IN_Definition Index'!$G$19*NR_Reihen_Veränderungsraten!E10,) -> 0 | F81: =IF($C81=1,'IN_Definition Index'!$G$19*NR_Reihen_Veränderungsraten!F10,) -> 0 | G81: =IF($C81=1,'IN_Definition Index'!$G$19*NR_Reihen_Veränderungsraten!G10,) -> 0 | H81: =IF($C81=1,'IN_Definition Index'!$G$19*NR_Reihen_Veränderungsraten!H10,) -> 0 | I81: =IF($C81=1,'IN_Definition Index'!$G$19*NR_Reihen_Veränderungsraten!I10,) -> 0 | J81: =IF($C81=1,'IN_Definition Index'!$G$19*NR_Reihen_Veränderungsraten!J10,) -> 0 | K81: =IF($C81=1,'IN_Definition Index'!$G$19*NR_Reihen_Veränderungsraten!K10,) -> 0 | L81: =IF($C81=1,'IN_Definition Index'!$G$19*NR_Reihen_Veränderungsraten!L10,) -> 0 | M81: =IF($C81=1,'IN_Definition Index'!$G$19*NR_Reihen_Veränderungsraten!M10,) -> 0 | N81: =IF($C81=1,'IN_Definition Index'!$G$19*NR_Reihen_Veränderungsraten!N10,) -> 0 | O81: =IF($C81=1,'IN_Definition Index'!$G$19*NR_Reihen_Veränderungsraten!O10,) -> 0 | P81: =IF($C81=1,'IN_Definition Index'!$G$19*NR_Reihen_Veränderungsraten!P10,) -> 0 | Q81: =IF($C81=1,'IN_Definition Index'!$G$19*NR_Reihen_Veränderungsraten!Q10,) -> 0 | R81: =IF($C81=1,'IN_Definition Index'!$G$19*NR_Reihen_Veränderungsraten!R10,) -> 0 | S81: =IF($C81=1,'IN_Definition Index'!$G$19*NR_Reihen_Veränderungsraten!S10,) -> 0 | T81: =IF($C81=1,'IN_Definition Index'!$G$19*NR_Reihen_Veränderungsraten!T10,) -> 0 | U81: =IF($C81=1,'IN_Definition Index'!$G$19*NR_Reihen_Veränderungsraten!U10,) -> 0 | V81: =IF($C81=1,'IN_Definition Index'!$G$19*NR_Reihen_Veränderungsraten!V10,) -> 0 | W81: =IF($C81=1,'IN_Definition Index'!$G$19*NR_Reihen_Veränderungsraten!W10,) -> 0 | X81: =IF($C81=1,'IN_Definition Index'!$G$19*NR_Reihen_Veränderungsraten!X10,) -> 0 | Y81: =IF($C81=1,'IN_Definition Index'!$G$19*NR_Reihen_Veränderungsraten!Y10,) -> 0 | Z81: =IF($C81=1,'IN_Definition Index'!$G$19*NR_Reihen_Veränderungsraten!Z10,) -> 0 | AA81: =IF($C81=1,'IN_Definition Index'!$G$19*NR_Reihen_Veränderungsraten!AA10,) -> 0 | AB81: =IF($C81=1,'IN_Definition Index'!$G$19*NR_Reihen_Veränderungsraten!AB10,) -> 0 | AC81: =IF($C81=1,'IN_Definition Index'!$G$19*NR_Reihen_Veränderungsraten!AC10,) -> 0 | AD81: =IF($C81=1,'IN_Definition Index'!$G$19*NR_Reihen_Veränderungsraten!AD10,) -> 0 | AE81: =IF($C81=1,'IN_Definition Index'!$G$19*NR_Reihen_Veränderungsraten!AE10,) -> 0 | AF81: =IF($C81=1,'IN_Definition Index'!$G$19*NR_Reihen_Veränderungsraten!AF10,) -> 0
A82: M69-01 | B82: Unternehmensnahe Beratungsleistungen | C82: ='IN_Definition Index'!G14 -> 0 | D82: =IF($C82=1,'IN_Definition Index'!$G$19*NR_Reihen_Veränderungsraten!D11,) -> 0 | E82: =IF($C82=1,'IN_Definition Index'!$G$19*NR_Reihen_Veränderungsraten!E11,) -> 0 | F82: =IF($C82=1,'IN_Definition Index'!$G$19*NR_Reihen_Veränderungsraten!F11,) -> 0 | G82: =IF($C82=1,'IN_Definition Index'!$G$19*NR_Reihen_Veränderungsraten!G11,) -> 0 | H82: =IF($C82=1,'IN_Definition Index'!$G$19*NR_Reihen_Veränderungsraten!H11,) -> 0 | I82: =IF($C82=1,'IN_Definition Index'!$G$19*NR_Reihen_Veränderungsraten!I11,) -> 0 | J82: =IF($C82=1,'IN_Definition Index'!$G$19*NR_Reihen_Veränderungsraten!J11,) -> 0 | K82: =IF($C82=1,'IN_Definition Index'!$G$19*NR_Reihen_Veränderungsraten!K11,) -> 0 | L82: =IF($C82=1,'IN_Definition Index'!$G$19*NR_Reihen_Veränderungsraten!L11,) -> 0 | M82: =IF($C82=1,'IN_Definition Index'!$G$19*NR_Reihen_Veränderungsraten!M11,) -> 0 | N82: =IF($C82=1,'IN_Definition Index'!$G$19*NR_Reihen_Veränderungsraten!N11,) -> 0 | O82: =IF($C82=1,'IN_Definition Index'!$G$19*NR_Reihen_Veränderungsraten!O11,) -> 0 | P82: =IF($C82=1,'IN_Definition Index'!$G$19*NR_Reihen_Veränderungsraten!P11,) -> 0 | Q82: =IF($C82=1,'IN_Definition Index'!$G$19*NR_Reihen_Veränderungsraten!Q11,) -> 0 | R82: =IF($C82=1,'IN_Definition Index'!$G$19*NR_Reihen_Veränderungsraten!R11,) -> 0 | S82: =IF($C82=1,'IN_Definition Index'!$G$19*NR_Reihen_Veränderungsraten!S11,) -> 0 | T82: =IF($C82=1,'IN_Definition Index'!$G$19*NR_Reihen_Veränderungsraten!T11,) -> 0 | U82: =IF($C82=1,'IN_Definition Index'!$G$19*NR_Reihen_Veränderungsraten!U11,) -> 0 | V82: =IF($C82=1,'IN_Definition Index'!$G$19*NR_Reihen_Veränderungsraten!V11,) -> 0 | W82: =IF($C82=1,'IN_Definition Index'!$G$19*NR_Reihen_Veränderungsraten!W11,) -> 0 | X82: =IF($C82=1,'IN_Definition Index'!$G$19*NR_Reihen_Veränderungsraten!X11,) -> 0 | Y82: =IF($C82=1,'IN_Definition Index'!$G$19*NR_Reihen_Veränderungsraten!Y11,) -> 0 | Z82: =IF($C82=1,'IN_Definition Index'!$G$19*NR_Reihen_Veränderungsraten!Z11,) -> 0 | AA82: =IF($C82=1,'IN_Definition Index'!$G$19*NR_Reihen_Veränderungsraten!AA11,) -> 0 | AB82: =IF($C82=1,'IN_Definition Index'!$G$19*NR_Reihen_Veränderungsraten!AB11,) -> 0 | AC82: =IF($C82=1,'IN_Definition Index'!$G$19*NR_Reihen_Veränderungsraten!AC11,) -> 0 | AD82: =IF($C82=1,'IN_Definition Index'!$G$19*NR_Reihen_Veränderungsraten!AD11,) -> 0 | AE82: =IF($C82=1,'IN_Definition Index'!$G$19*NR_Reihen_Veränderungsraten!AE11,) -> 0 | AF82: =IF($C82=1,'IN_Definition Index'!$G$19*NR_Reihen_Veränderungsraten!AF11,) -> 0
A83: M73 | B83: Werbung und Marktforschung | C83: ='IN_Definition Index'!G15 -> 0 | D83: =IF($C83=1,'IN_Definition Index'!$G$19*NR_Reihen_Veränderungsraten!D12,) -> 0 | E83: =IF($C83=1,'IN_Definition Index'!$G$19*NR_Reihen_Veränderungsraten!E12,) -> 0 | F83: =IF($C83=1,'IN_Definition Index'!$G$19*NR_Reihen_Veränderungsraten!F12,) -> 0 | G83: =IF($C83=1,'IN_Definition Index'!$G$19*NR_Reihen_Veränderungsraten!G12,) -> 0 | H83: =IF($C83=1,'IN_Definition Index'!$G$19*NR_Reihen_Veränderungsraten!H12,) -> 0 | I83: =IF($C83=1,'IN_Definition Index'!$G$19*NR_Reihen_Veränderungsraten!I12,) -> 0 | J83: =IF($C83=1,'IN_Definition Index'!$G$19*NR_Reihen_Veränderungsraten!J12,) -> 0 | K83: =IF($C83=1,'IN_Definition Index'!$G$19*NR_Reihen_Veränderungsraten!K12,) -> 0 | L83: =IF($C83=1,'IN_Definition Index'!$G$19*NR_Reihen_Veränderungsraten!L12,) -> 0 | M83: =IF($C83=1,'IN_Definition Index'!$G$19*NR_Reihen_Veränderungsraten!M12,) -> 0 | N83: =IF($C83=1,'IN_Definition Index'!$G$19*NR_Reihen_Veränderungsraten!N12,) -> 0 | O83: =IF($C83=1,'IN_Definition Index'!$G$19*NR_Reihen_Veränderungsraten!O12,) -> 0 | P83: =IF($C83=1,'IN_Definition Index'!$G$19*NR_Reihen_Veränderungsraten!P12,) -> 0 | Q83: =IF($C83=1,'IN_Definition Index'!$G$19*NR_Reihen_Veränderungsraten!Q12,) -> 0 | R83: =IF($C83=1,'IN_Definition Index'!$G$19*NR_Reihen_Veränderungsraten!R12,) -> 0 | S83: =IF($C83=1,'IN_Definition Index'!$G$19*NR_Reihen_Veränderungsraten!S12,) -> 0 | T83: =IF($C83=1,'IN_Definition Index'!$G$19*NR_Reihen_Veränderungsraten!T12,) -> 0 | U83: =IF($C83=1,'IN_Definition Index'!$G$19*NR_Reihen_Veränderungsraten!U12,) -> 0 | V83: =IF($C83=1,'IN_Definition Index'!$G$19*NR_Reihen_Veränderungsraten!V12,) -> 0 | W83: =IF($C83=1,'IN_Definition Index'!$G$19*NR_Reihen_Veränderungsraten!W12,) -> 0 | X83: =IF($C83=1,'IN_Definition Index'!$G$19*NR_Reihen_Veränderungsraten!X12,) -> 0 | Y83: =IF($C83=1,'IN_Definition Index'!$G$19*NR_Reihen_Veränderungsraten!Y12,) -> 0 | Z83: =IF($C83=1,'IN_Definition Index'!$G$19*NR_Reihen_Veränderungsraten!Z12,) -> 0 | AA83: =IF($C83=1,'IN_Definition Index'!$G$19*NR_Reihen_Veränderungsraten!AA12,) -> 0 | AB83: =IF($C83=1,'IN_Definition Index'!$G$19*NR_Reihen_Veränderungsraten!AB12,) -> 0 | AC83: =IF($C83=1,'IN_Definition Index'!$G$19*NR_Reihen_Veränderungsraten!AC12,) -> 0 | AD83: =IF($C83=1,'IN_Definition Index'!$G$19*NR_Reihen_Veränderungsraten!AD12,) -> 0 | AE83: =IF($C83=1,'IN_Definition Index'!$G$19*NR_Reihen_Veränderungsraten!AE12,) -> 0 | AF83: =IF($C83=1,'IN_Definition Index'!$G$19*NR_Reihen_Veränderungsraten!AF12,) -> 0
A84: M74-01 | B84: Freiberufl.,wiss.,techn.DL a.n.g., Veterinärwesen | C84: ='IN_Definition Index'!G16 -> 0 | D84: =IF($C84=1,'IN_Definition Index'!$G$19*NR_Reihen_Veränderungsraten!D13,) -> 0 | E84: =IF($C84=1,'IN_Definition Index'!$G$19*NR_Reihen_Veränderungsraten!E13,) -> 0 | F84: =IF($C84=1,'IN_Definition Index'!$G$19*NR_Reihen_Veränderungsraten!F13,) -> 0 | G84: =IF($C84=1,'IN_Definition Index'!$G$19*NR_Reihen_Veränderungsraten!G13,) -> 0 | H84: =IF($C84=1,'IN_Definition Index'!$G$19*NR_Reihen_Veränderungsraten!H13,) -> 0 | I84: =IF($C84=1,'IN_Definition Index'!$G$19*NR_Reihen_Veränderungsraten!I13,) -> 0 | J84: =IF($C84=1,'IN_Definition Index'!$G$19*NR_Reihen_Veränderungsraten!J13,) -> 0 | K84: =IF($C84=1,'IN_Definition Index'!$G$19*NR_Reihen_Veränderungsraten!K13,) -> 0 | L84: =IF($C84=1,'IN_Definition Index'!$G$19*NR_Reihen_Veränderungsraten!L13,) -> 0 | M84: =IF($C84=1,'IN_Definition Index'!$G$19*NR_Reihen_Veränderungsraten!M13,) -> 0 | N84: =IF($C84=1,'IN_Definition Index'!$G$19*NR_Reihen_Veränderungsraten!N13,) -> 0 | O84: =IF($C84=1,'IN_Definition Index'!$G$19*NR_Reihen_Veränderungsraten!O13,) -> 0 | P84: =IF($C84=1,'IN_Definition Index'!$G$19*NR_Reihen_Veränderungsraten!P13,) -> 0 | Q84: =IF($C84=1,'IN_Definition Index'!$G$19*NR_Reihen_Veränderungsraten!Q13,) -> 0 | R84: =IF($C84=1,'IN_Definition Index'!$G$19*NR_Reihen_Veränderungsraten!R13,) -> 0 | S84: =IF($C84=1,'IN_Definition Index'!$G$19*NR_Reihen_Veränderungsraten!S13,) -> 0 | T84: =IF($C84=1,'IN_Definition Index'!$G$19*NR_Reihen_Veränderungsraten!T13,) -> 0 | U84: =IF($C84=1,'IN_Definition Index'!$G$19*NR_Reihen_Veränderungsraten!U13,) -> 0 | V84: =IF($C84=1,'IN_Definition Index'!$G$19*NR_Reihen_Veränderungsraten!V13,) -> 0 | W84: =IF($C84=1,'IN_Definition Index'!$G$19*NR_Reihen_Veränderungsraten!W13,) -> 0 | X84: =IF($C84=1,'IN_Definition Index'!$G$19*NR_Reihen_Veränderungsraten!X13,) -> 0 | Y84: =IF($C84=1,'IN_Definition Index'!$G$19*NR_Reihen_Veränderungsraten!Y13,) -> 0 | Z84: =IF($C84=1,'IN_Definition Index'!$G$19*NR_Reihen_Veränderungsraten!Z13,) -> 0 | AA84: =IF($C84=1,'IN_Definition Index'!$G$19*NR_Reihen_Veränderungsraten!AA13,) -> 0 | AB84: =IF($C84=1,'IN_Definition Index'!$G$19*NR_Reihen_Veränderungsraten!AB13,) -> 0 | AC84: =IF($C84=1,'IN_Definition Index'!$G$19*NR_Reihen_Veränderungsraten!AC13,) -> 0 | AD84: =IF($C84=1,'IN_Definition Index'!$G$19*NR_Reihen_Veränderungsraten!AD13,) -> 0 | AE84: =IF($C84=1,'IN_Definition Index'!$G$19*NR_Reihen_Veränderungsraten!AE13,) -> 0 | AF84: =IF($C84=1,'IN_Definition Index'!$G$19*NR_Reihen_Veränderungsraten!AF13,) -> 0
A85: L | B85: Grundstücks- und Wohnungswesen | C85: ='IN_Definition Index'!G17 -> 0 | D85: =IF($C85=1,'IN_Definition Index'!$G$19*NR_Reihen_Veränderungsraten!D14,) -> 0 | E85: =IF($C85=1,'IN_Definition Index'!$G$19*NR_Reihen_Veränderungsraten!E14,) -> 0 | F85: =IF($C85=1,'IN_Definition Index'!$G$19*NR_Reihen_Veränderungsraten!F14,) -> 0 | G85: =IF($C85=1,'IN_Definition Index'!$G$19*NR_Reihen_Veränderungsraten!G14,) -> 0 | H85: =IF($C85=1,'IN_Definition Index'!$G$19*NR_Reihen_Veränderungsraten!H14,) -> 0 | I85: =IF($C85=1,'IN_Definition Index'!$G$19*NR_Reihen_Veränderungsraten!I14,) -> 0 | J85: =IF($C85=1,'IN_Definition Index'!$G$19*NR_Reihen_Veränderungsraten!J14,) -> 0 | K85: =IF($C85=1,'IN_Definition Index'!$G$19*NR_Reihen_Veränderungsraten!K14,) -> 0 | L85: =IF($C85=1,'IN_Definition Index'!$G$19*NR_Reihen_Veränderungsraten!L14,) -> 0 | M85: =IF($C85=1,'IN_Definition Index'!$G$19*NR_Reihen_Veränderungsraten!M14,) -> 0 | N85: =IF($C85=1,'IN_Definition Index'!$G$19*NR_Reihen_Veränderungsraten!N14,) -> 0 | O85: =IF($C85=1,'IN_Definition Index'!$G$19*NR_Reihen_Veränderungsraten!O14,) -> 0 | P85: =IF($C85=1,'IN_Definition Index'!$G$19*NR_Reihen_Veränderungsraten!P14,) -> 0 | Q85: =IF($C85=1,'IN_Definition Index'!$G$19*NR_Reihen_Veränderungsraten!Q14,) -> 0 | R85: =IF($C85=1,'IN_Definition Index'!$G$19*NR_Reihen_Veränderungsraten!R14,) -> 0 | S85: =IF($C85=1,'IN_Definition Index'!$G$19*NR_Reihen_Veränderungsraten!S14,) -> 0 | T85: =IF($C85=1,'IN_Definition Index'!$G$19*NR_Reihen_Veränderungsraten!T14,) -> 0 | U85: =IF($C85=1,'IN_Definition Index'!$G$19*NR_Reihen_Veränderungsraten!U14,) -> 0 | V85: =IF($C85=1,'IN_Definition Index'!$G$19*NR_Reihen_Veränderungsraten!V14,) -> 0 | W85: =IF($C85=1,'IN_Definition Index'!$G$19*NR_Reihen_Veränderungsraten!W14,) -> 0 | X85: =IF($C85=1,'IN_Definition Index'!$G$19*NR_Reihen_Veränderungsraten!X14,) -> 0 | Y85: =IF($C85=1,'IN_Definition Index'!$G$19*NR_Reihen_Veränderungsraten!Y14,) -> 0 | Z85: =IF($C85=1,'IN_Definition Index'!$G$19*NR_Reihen_Veränderungsraten!Z14,) -> 0 | AA85: =IF($C85=1,'IN_Definition Index'!$G$19*NR_Reihen_Veränderungsraten!AA14,) -> 0 | AB85: =IF($C85=1,'IN_Definition Index'!$G$19*NR_Reihen_Veränderungsraten!AB14,) -> 0 | AC85: =IF($C85=1,'IN_Definition Index'!$G$19*NR_Reihen_Veränderungsraten!AC14,) -> 0 | AD85: =IF($C85=1,'IN_Definition Index'!$G$19*NR_Reihen_Veränderungsraten!AD14,) -> 0 | AE85: =IF($C85=1,'IN_Definition Index'!$G$19*NR_Reihen_Veränderungsraten!AE14,) -> 0 | AF85: =IF($C85=1,'IN_Definition Index'!$G$19*NR_Reihen_Veränderungsraten!AF14,) -> 0
B86: Summe | D86: =SUM(D75:D85) -> 0.9505808644 | E86: =SUM(E75:E85) -> 1.010644575 | F86: =SUM(F75:F85) -> 1.060184635 | G86: =SUM(G75:G85) -> 1.144762141 | H86: =SUM(H75:H85) -> 1.070174865 | I86: =SUM(I75:I85) -> 0.9755213401 | J86: =SUM(J75:J85) -> 0.9810762563 | K86: =SUM(K75:K85) -> 1.250074475 | L86: =SUM(L75:L85) -> 0.9420084269 | M86: =SUM(M75:M85) -> 0.9807989697 | N86: =SUM(N75:N85) -> 0.9757671794 | O86: =SUM(O75:O85) -> 0.9520374708 | P86: =SUM(P75:P85) -> 0.9980824824 | Q86: =SUM(Q75:Q85) -> 1.051807856 | R86: =SUM(R75:R85) -> 1.090203565 | S86: =SUM(S75:S85) -> 1.008951313 | T86: =SUM(T75:T85) -> 1.014955451 | U86: =SUM(U75:U85) -> 0.9182536778 | V86: =SUM(V75:V85) -> 1.016134584 | W86: =SUM(W75:W85) -> 1.044649737 | X86: =SUM(X75:X85) -> 1.006732574 | Y86: =SUM(Y75:Y85) -> 0.9931506775 | Z86: =SUM(Z75:Z85) -> 1.019348531 | AA86: =SUM(AA75:AA85) -> 0.9642419893 | AB86: =SUM(AB75:AB85) -> 0.9716753306 | AC86: =SUM(AC75:AC85) -> 1.01740946 | AD86: 1.020666709
A88: Zustellung
A90: Nr. (WZ 2008) | B90: Branche | C90: Verwendung | D90: 1992 | E90: =D90+1 -> 1993 | F90: =E90+1 -> 1994 | G90: =F90+1 -> 1995 | H90: =G90+1 -> 1996 | I90: =H90+1 -> 1997 | J90: =I90+1 -> 1998 | K90: =J90+1 -> 1999 | L90: =K90+1 -> 2000 | M90: =L90+1 -> 2001 | N90: =M90+1 -> 2002 | O90: =N90+1 -> 2003 | P90: =O90+1 -> 2004 | Q90: =P90+1 -> 2005 | R90: =Q90+1 -> 2006 | S90: =R90+1 -> 2007 | T90: =S90+1 -> 2008 | U90: =T90+1 -> 2009 | V90: =U90+1 -> 2010 | W90: =V90+1 -> 2011 | X90: =W90+1 -> 2012 | Y90: =X90+1 -> 2013 | Z90: =Y90+1 -> 2014 | AA90: =Z90+1 -> 2015 | AB90: =AA90+1 -> 2016 | AC90: =AB90+1 -> 2017 | AD90: =AC90+1 -> 2018 | AE90: =AD90+1 -> 2019 | AF90: =AE90+1 -> 2020
A91: C33 | B91: Reparatur und Installation von Maschinen und Ausrüstungen | C91: ='IN_Definition Index'!H7 -> 0 | D91: =IF($C91=1,'IN_Definition Index'!$H$19*NR_Reihen_Veränderungsraten!D4,) -> 0 | E91: =IF($C91=1,'IN_Definition Index'!$H$19*NR_Reihen_Veränderungsraten!E4,) -> 0 | F91: =IF($C91=1,'IN_Definition Index'!$H$19*NR_Reihen_Veränderungsraten!F4,) -> 0 | G91: =IF($C91=1,'IN_Definition Index'!$H$19*NR_Reihen_Veränderungsraten!G4,) -> 0 | H91: =IF($C91=1,'IN_Definition Index'!$H$19*NR_Reihen_Veränderungsraten!H4,) -> 0 | I91: =IF($C91=1,'IN_Definition Index'!$H$19*NR_Reihen_Veränderungsraten!I4,) -> 0 | J91: =IF($C91=1,'IN_Definition Index'!$H$19*NR_Reihen_Veränderungsraten!J4,) -> 0 | K91: =IF($C91=1,'IN_Definition Index'!$H$19*NR_Reihen_Veränderungsraten!K4,) -> 0 | L91: =IF($C91=1,'IN_Definition Index'!$H$19*NR_Reihen_Veränderungsraten!L4,) -> 0 | M91: =IF($C91=1,'IN_Definition Index'!$H$19*NR_Reihen_Veränderungsraten!M4,) -> 0 | N91: =IF($C91=1,'IN_Definition Index'!$H$19*NR_Reihen_Veränderungsraten!N4,) -> 0 | O91: =IF($C91=1,'IN_Definition Index'!$H$19*NR_Reihen_Veränderungsraten!O4,) -> 0 | P91: =IF($C91=1,'IN_Definition Index'!$H$19*NR_Reihen_Veränderungsraten!P4,) -> 0 | Q91: =IF($C91=1,'IN_Definition Index'!$H$19*NR_Reihen_Veränderungsraten!Q4,) -> 0 | R91: =IF($C91=1,'IN_Definition Index'!$H$19*NR_Reihen_Veränderungsraten!R4,) -> 0 | S91: =IF($C91=1,'IN_Definition Index'!$H$19*NR_Reihen_Veränderungsraten!S4,) -> 0 | T91: =IF($C91=1,'IN_Definition Index'!$H$19*NR_Reihen_Veränderungsraten!T4,) -> 0 | U91: =IF($C91=1,'IN_Definition Index'!$H$19*NR_Reihen_Veränderungsraten!U4,) -> 0 | V91: =IF($C91=1,'IN_Definition Index'!$H$19*NR_Reihen_Veränderungsraten!V4,) -> 0 | W91: =IF($C91=1,'IN_Definition Index'!$H$19*NR_Reihen_Veränderungsraten!W4,) -> 0 | X91: =IF($C91=1,'IN_Definition Index'!$H$19*NR_Reihen_Veränderungsraten!X4,) -> 0 | Y91: =IF($C91=1,'IN_Definition Index'!$H$19*NR_Reihen_Veränderungsraten!Y4,) -> 0 | Z91: =IF($C91=1,'IN_Definition Index'!$H$19*NR_Reihen_Veränderungsraten!Z4,) -> 0 | AA91: =IF($C91=1,'IN_Definition Index'!$H$19*NR_Reihen_Veränderungsraten!AA4,) -> 0 | AB91: =IF($C91=1,'IN_Definition Index'!$H$19*NR_Reihen_Veränderungsraten!AB4,) -> 0 | AC91: =IF($C91=1,'IN_Definition Index'!$H$19*NR_Reihen_Veränderungsraten!AC4,) -> 0 | AD91: =IF($C91=1,'IN_Definition Index'!$H$19*NR_Reihen_Veränderungsraten!AD4,) -> 0 | AE91: =IF($C91=1,'IN_Definition Index'!$H$19*NR_Reihen_Veränderungsraten!AE4,) -> 0 | AF91: =IF($C91=1,'IN_Definition Index'!$H$19*NR_Reihen_Veränderungsraten!AF4,) -> 0
A92: G45 | B92: Handel mit Kraftfahrzeugen; Instandhaltung und Reparatur von Kraftfahrzeugen | C92: ='IN_Definition Index'!H8 -> 1 | D92: =IF($C92=1,'IN_Definition Index'!$H$19*NR_Reihen_Veränderungsraten!D5,) -> 0.3375403201 | E92: =IF($C92=1,'IN_Definition Index'!$H$19*NR_Reihen_Veränderungsraten!E5,) -> 0.2754413547 | F92: =IF($C92=1,'IN_Definition Index'!$H$19*NR_Reihen_Veränderungsraten!F5,) -> 0.3365793281 | G92: =IF($C92=1,'IN_Definition Index'!$H$19*NR_Reihen_Veränderungsraten!G5,) -> 0.3344810066 | H92: =IF($C92=1,'IN_Definition Index'!$H$19*NR_Reihen_Veränderungsraten!H5,) -> 0.329750292 | I92: =IF($C92=1,'IN_Definition Index'!$H$19*NR_Reihen_Veränderungsraten!I5,) -> 0.3403643237 | J92: =IF($C92=1,'IN_Definition Index'!$H$19*NR_Reihen_Veränderungsraten!J5,) -> 0.3386797406 | K92: =IF($C92=1,'IN_Definition Index'!$H$19*NR_Reihen_Veränderungsraten!K5,) -> 0.3407424554 | L92: =IF($C92=1,'IN_Definition Index'!$H$19*NR_Reihen_Veränderungsraten!L5,) -> 0.3259008798 | M92: =IF($C92=1,'IN_Definition Index'!$H$19*NR_Reihen_Veränderungsraten!M5,) -> 0.3305878505 | N92: =IF($C92=1,'IN_Definition Index'!$H$19*NR_Reihen_Veränderungsraten!N5,) -> 0.3501232029 | O92: =IF($C92=1,'IN_Definition Index'!$H$19*NR_Reihen_Veränderungsraten!O5,) -> 0.3879592884 | P92: =IF($C92=1,'IN_Definition Index'!$H$19*NR_Reihen_Veränderungsraten!P5,) -> 0.3543808069 | Q92: =IF($C92=1,'IN_Definition Index'!$H$19*NR_Reihen_Veränderungsraten!Q5,) -> 0.33498804 | R92: =IF($C92=1,'IN_Definition Index'!$H$19*NR_Reihen_Veränderungsraten!R5,) -> 0.354724695 | S92: =IF($C92=1,'IN_Definition Index'!$H$19*NR_Reihen_Veränderungsraten!S5,) -> 0.3165744742 | T92: =IF($C92=1,'IN_Definition Index'!$H$19*NR_Reihen_Veränderungsraten!T5,) -> 0.344014971 | U92: =IF($C92=1,'IN_Definition Index'!$H$19*NR_Reihen_Veränderungsraten!U5,) -> 0.3361765483 | V92: =IF($C92=1,'IN_Definition Index'!$H$19*NR_Reihen_Veränderungsraten!V5,) -> 0.3049014093 | W92: =IF($C92=1,'IN_Definition Index'!$H$19*NR_Reihen_Veränderungsraten!W5,) -> 0.3646088277 | X92: =IF($C92=1,'IN_Definition Index'!$H$19*NR_Reihen_Veränderungsraten!X5,) -> 0.3234390162 | Y92: =IF($C92=1,'IN_Definition Index'!$H$19*NR_Reihen_Veränderungsraten!Y5,) -> 0.3261218887 | Z92: =IF($C92=1,'IN_Definition Index'!$H$19*NR_Reihen_Veränderungsraten!Z5,) -> 0.3475685832 | AA92: =IF($C92=1,'IN_Definition Index'!$H$19*NR_Reihen_Veränderungsraten!AA5,) -> 0.3370497251 | AB92: =IF($C92=1,'IN_Definition Index'!$H$19*NR_Reihen_Veränderungsraten!AB5,) -> 0.3528223349 | AC92: =IF($C92=1,'IN_Definition Index'!$H$19*NR_Reihen_Veränderungsraten!AC5,) -> 0.3222350933 | AD92: =IF($C92=1,'IN_Definition Index'!$H$19*NR_Reihen_Veränderungsraten!AD5,) -> 0.3279475835 | AE92: =IF($C92=1,'IN_Definition Index'!$H$19*NR_Reihen_Veränderungsraten!AE5,) ->  | AF92: =IF($C92=1,'IN_Definition Index'!$H$19*NR_Reihen_Veränderungsraten!AF5,) -> 
A93: G47 | B93: Einzelhandel (ohne Handel mit Kraftfahrzeugen) | C93: ='IN_Definition Index'!H9 -> 0 | D93: =IF($C93=1,'IN_Definition Index'!$H$19*NR_Reihen_Veränderungsraten!D6,) -> 0 | E93: =IF($C93=1,'IN_Definition Index'!$H$19*NR_Reihen_Veränderungsraten!E6,) -> 0 | F93: =IF($C93=1,'IN_Definition Index'!$H$19*NR_Reihen_Veränderungsraten!F6,) -> 0 | G93: =IF($C93=1,'IN_Definition Index'!$H$19*NR_Reihen_Veränderungsraten!G6,) -> 0 | H93: =IF($C93=1,'IN_Definition Index'!$H$19*NR_Reihen_Veränderungsraten!H6,) -> 0 | I93: =IF($C93=1,'IN_Definition Index'!$H$19*NR_Reihen_Veränderungsraten!I6,) -> 0 | J93: =IF($C93=1,'IN_Definition Index'!$H$19*NR_Reihen_Veränderungsraten!J6,) -> 0 | K93: =IF($C93=1,'IN_Definition Index'!$H$19*NR_Reihen_Veränderungsraten!K6,) -> 0 | L93: =IF($C93=1,'IN_Definition Index'!$H$19*NR_Reihen_Veränderungsraten!L6,) -> 0 | M93: =IF($C93=1,'IN_Definition Index'!$H$19*NR_Reihen_Veränderungsraten!M6,) -> 0 | N93: =IF($C93=1,'IN_Definition Index'!$H$19*NR_Reihen_Veränderungsraten!N6,) -> 0 | O93: =IF($C93=1,'IN_Definition Index'!$H$19*NR_Reihen_Veränderungsraten!O6,) -> 0 | P93: =IF($C93=1,'IN_Definition Index'!$H$19*NR_Reihen_Veränderungsraten!P6,) -> 0 | Q93: =IF($C93=1,'IN_Definition Index'!$H$19*NR_Reihen_Veränderungsraten!Q6,) -> 0 | R93: =IF($C93=1,'IN_Definition Index'!$H$19*NR_Reihen_Veränderungsraten!R6,) -> 0 | S93: =IF($C93=1,'IN_Definition Index'!$H$19*NR_Reihen_Veränderungsraten!S6,) -> 0 | T93: =IF($C93=1,'IN_Definition Index'!$H$19*NR_Reihen_Veränderungsraten!T6,) -> 0 | U93: =IF($C93=1,'IN_Definition Index'!$H$19*NR_Reihen_Veränderungsraten!U6,) -> 0 | V93: =IF($C93=1,'IN_Definition Index'!$H$19*NR_Reihen_Veränderungsraten!V6,) -> 0 | W93: =IF($C93=1,'IN_Definition Index'!$H$19*NR_Reihen_Veränderungsraten!W6,) -> 0 | X93: =IF($C93=1,'IN_Definition Index'!$H$19*NR_Reihen_Veränderungsraten!X6,) -> 0 | Y93: =IF($C93=1,'IN_Definition Index'!$H$19*NR_Reihen_Veränderungsraten!Y6,) -> 0 | Z93: =IF($C93=1,'IN_Definition Index'!$H$19*NR_Reihen_Veränderungsraten!Z6,) -> 0 | AA93: =IF($C93=1,'IN_Definition Index'!$H$19*NR_Reihen_Veränderungsraten!AA6,) -> 0 | AB93: =IF($C93=1,'IN_Definition Index'!$H$19*NR_Reihen_Veränderungsraten!AB6,) -> 0 | AC93: =IF($C93=1,'IN_Definition Index'!$H$19*NR_Reihen_Veränderungsraten!AC6,) -> 0 | AD93: =IF($C93=1,'IN_Definition Index'!$H$19*NR_Reihen_Veränderungsraten!AD6,) -> 0 | AE93: =IF($C93=1,'IN_Definition Index'!$H$19*NR_Reihen_Veränderungsraten!AE6,) -> 0 | AF93: =IF($C93=1,'IN_Definition Index'!$H$19*NR_Reihen_Veränderungsraten!AF6,) -> 0
A94: H49 | B94: Landverkehr und Transport in Rohrfernleitungen | C94: ='IN_Definition Index'!H10 -> 1 | D94: =IF($C94=1,'IN_Definition Index'!$H$19*NR_Reihen_Veränderungsraten!D7,) -> 0.3168602881 | E94: =IF($C94=1,'IN_Definition Index'!$H$19*NR_Reihen_Veränderungsraten!E7,) -> 0.336881525 | F94: =IF($C94=1,'IN_Definition Index'!$H$19*NR_Reihen_Veränderungsraten!F7,) -> 0.3533948783 | G94: =IF($C94=1,'IN_Definition Index'!$H$19*NR_Reihen_Veränderungsraten!G7,) -> 0.3815873803 | H94: =IF($C94=1,'IN_Definition Index'!$H$19*NR_Reihen_Veränderungsraten!H7,) -> 0.3567249551 | I94: =IF($C94=1,'IN_Definition Index'!$H$19*NR_Reihen_Veränderungsraten!I7,) -> 0.32517378 | J94: =IF($C94=1,'IN_Definition Index'!$H$19*NR_Reihen_Veränderungsraten!J7,) -> 0.3270254188 | K94: =IF($C94=1,'IN_Definition Index'!$H$19*NR_Reihen_Veränderungsraten!K7,) -> 0.4166914916 | L94: =IF($C94=1,'IN_Definition Index'!$H$19*NR_Reihen_Veränderungsraten!L7,) -> 0.314002809 | M94: =IF($C94=1,'IN_Definition Index'!$H$19*NR_Reihen_Veränderungsraten!M7,) -> 0.3269329899 | N94: =IF($C94=1,'IN_Definition Index'!$H$19*NR_Reihen_Veränderungsraten!N7,) -> 0.3252557265 | O94: =IF($C94=1,'IN_Definition Index'!$H$19*NR_Reihen_Veränderungsraten!O7,) -> 0.3173458236 | P94: =IF($C94=1,'IN_Definition Index'!$H$19*NR_Reihen_Veränderungsraten!P7,) -> 0.3326941608 | Q94: =IF($C94=1,'IN_Definition Index'!$H$19*NR_Reihen_Veränderungsraten!Q7,) -> 0.3506026188 | R94: =IF($C94=1,'IN_Definition Index'!$H$19*NR_Reihen_Veränderungsraten!R7,) -> 0.3634011884 | S94: =IF($C94=1,'IN_Definition Index'!$H$19*NR_Reihen_Veränderungsraten!S7,) -> 0.3363171043 | T94: =IF($C94=1,'IN_Definition Index'!$H$19*NR_Reihen_Veränderungsraten!T7,) -> 0.3383184835 | U94: =IF($C94=1,'IN_Definition Index'!$H$19*NR_Reihen_Veränderungsraten!U7,) -> 0.3060845593 | V94: =IF($C94=1,'IN_Definition Index'!$H$19*NR_Reihen_Veränderungsraten!V7,) -> 0.3387115279 | W94: =IF($C94=1,'IN_Definition Index'!$H$19*NR_Reihen_Veränderungsraten!W7,) -> 0.3482165791 | X94: =IF($C94=1,'IN_Definition Index'!$H$19*NR_Reihen_Veränderungsraten!X7,) -> 0.3355775246 | Y94: =IF($C94=1,'IN_Definition Index'!$H$19*NR_Reihen_Veränderungsraten!Y7,) -> 0.3310502258 | Z94: =IF($C94=1,'IN_Definition Index'!$H$19*NR_Reihen_Veränderungsraten!Z7,) -> 0.3397828436 | AA94: =IF($C94=1,'IN_Definition Index'!$H$19*NR_Reihen_Veränderungsraten!AA7,) -> 0.3214139964 | AB94: =IF($C94=1,'IN_Definition Index'!$H$19*NR_Reihen_Veränderungsraten!AB7,) -> 0.3238917769 | AC94: =IF($C94=1,'IN_Definition Index'!$H$19*NR_Reihen_Veränderungsraten!AC7,) -> 0.3391364868 | AD94: =IF($C94=1,'IN_Definition Index'!$H$19*NR_Reihen_Veränderungsraten!AD7,) -> 0.3402222363 | AE94: =IF($C94=1,'IN_Definition Index'!$H$19*NR_Reihen_Veränderungsraten!AE7,) ->  | AF94: =IF($C94=1,'IN_Definition Index'!$H$19*NR_Reihen_Veränderungsraten!AF7,) -> 
A95: H52 | B95: Lagerei sowie Erbringung von sonstigen Dienstleistungen für den Verkehr | C95: ='IN_Definition Index'!H11 -> 1 | D95: =IF($C95=1,'IN_Definition Index'!$H$19*NR_Reihen_Veränderungsraten!D8,) -> 0.3241248537 | E95: =IF($C95=1,'IN_Definition Index'!$H$19*NR_Reihen_Veränderungsraten!E8,) -> 0.3326268848 | F95: =IF($C95=1,'IN_Definition Index'!$H$19*NR_Reihen_Veränderungsraten!F8,) -> 0.3487501839 | G95: =IF($C95=1,'IN_Definition Index'!$H$19*NR_Reihen_Veränderungsraten!G8,) -> 0.3278135596 | H95: =IF($C95=1,'IN_Definition Index'!$H$19*NR_Reihen_Veränderungsraten!H8,) -> 0.3446705051 | I95: =IF($C95=1,'IN_Definition Index'!$H$19*NR_Reihen_Veränderungsraten!I8,) -> 0.3636549572 | J95: =IF($C95=1,'IN_Definition Index'!$H$19*NR_Reihen_Veränderungsraten!J8,) -> 0.3425763675 | K95: =IF($C95=1,'IN_Definition Index'!$H$19*NR_Reihen_Veränderungsraten!K8,) -> 0.2605422668 | L95: =IF($C95=1,'IN_Definition Index'!$H$19*NR_Reihen_Veränderungsraten!L8,) -> 0.3401308965 | M95: =IF($C95=1,'IN_Definition Index'!$H$19*NR_Reihen_Veränderungsraten!M8,) -> 0.3675402328 | N95: =IF($C95=1,'IN_Definition Index'!$H$19*NR_Reihen_Veränderungsraten!N8,) -> 0.3654701278 | O95: =IF($C95=1,'IN_Definition Index'!$H$19*NR_Reihen_Veränderungsraten!O8,) -> 0.3404413343 | P95: =IF($C95=1,'IN_Definition Index'!$H$19*NR_Reihen_Veränderungsraten!P8,) -> 0.3727404594 | Q95: =IF($C95=1,'IN_Definition Index'!$H$19*NR_Reihen_Veränderungsraten!Q8,) -> 0.3465066622 | R95: =IF($C95=1,'IN_Definition Index'!$H$19*NR_Reihen_Veränderungsraten!R8,) -> 0.3538983333 | S95: =IF($C95=1,'IN_Definition Index'!$H$19*NR_Reihen_Veränderungsraten!S8,) -> 0.3305963711 | T95: =IF($C95=1,'IN_Definition Index'!$H$19*NR_Reihen_Veränderungsraten!T8,) -> 0.3182339481 | U95: =IF($C95=1,'IN_Definition Index'!$H$19*NR_Reihen_Veränderungsraten!U8,) -> 0.2927048756 | V95: =IF($C95=1,'IN_Definition Index'!$H$19*NR_Reihen_Veränderungsraten!V8,) -> 0.3530004546 | W95: =IF($C95=1,'IN_Definition Index'!$H$19*NR_Reihen_Veränderungsraten!W8,) -> 0.3267226886 | X95: =IF($C95=1,'IN_Definition Index'!$H$19*NR_Reihen_Veränderungsraten!X8,) -> 0.3308669362 | Y95: =IF($C95=1,'IN_Definition Index'!$H$19*NR_Reihen_Veränderungsraten!Y8,) -> 0.3378837288 | Z95: =IF($C95=1,'IN_Definition Index'!$H$19*NR_Reihen_Veränderungsraten!Z8,) -> 0.3323667241 | AA95: =IF($C95=1,'IN_Definition Index'!$H$19*NR_Reihen_Veränderungsraten!AA8,) -> 0.3172430633 | AB95: =IF($C95=1,'IN_Definition Index'!$H$19*NR_Reihen_Veränderungsraten!AB8,) -> 0.3333272493 | AC95: =IF($C95=1,'IN_Definition Index'!$H$19*NR_Reihen_Veränderungsraten!AC8,) -> 0.3356318801 | AD95: =IF($C95=1,'IN_Definition Index'!$H$19*NR_Reihen_Veränderungsraten!AD8,) -> 0.3405209116 | AE95: =IF($C95=1,'IN_Definition Index'!$H$19*NR_Reihen_Veränderungsraten!AE8,) ->  | AF95: =IF($C95=1,'IN_Definition Index'!$H$19*NR_Reihen_Veränderungsraten!AF8,) -> 
A96: J61 | B96: Telekommunikation | C96: ='IN_Definition Index'!H12 -> 0 | D96: =IF($C96=1,'IN_Definition Index'!$H$19*NR_Reihen_Veränderungsraten!D9,) -> 0 | E96: =IF($C96=1,'IN_Definition Index'!$H$19*NR_Reihen_Veränderungsraten!E9,) -> 0 | F96: =IF($C96=1,'IN_Definition Index'!$H$19*NR_Reihen_Veränderungsraten!F9,) -> 0 | G96: =IF($C96=1,'IN_Definition Index'!$H$19*NR_Reihen_Veränderungsraten!G9,) -> 0 | H96: =IF($C96=1,'IN_Definition Index'!$H$19*NR_Reihen_Veränderungsraten!H9,) -> 0 | I96: =IF($C96=1,'IN_Definition Index'!$H$19*NR_Reihen_Veränderungsraten!I9,) -> 0 | J96: =IF($C96=1,'IN_Definition Index'!$H$19*NR_Reihen_Veränderungsraten!J9,) -> 0 | K96: =IF($C96=1,'IN_Definition Index'!$H$19*NR_Reihen_Veränderungsraten!K9,) -> 0 | L96: =IF($C96=1,'IN_Definition Index'!$H$19*NR_Reihen_Veränderungsraten!L9,) -> 0 | M96: =IF($C96=1,'IN_Definition Index'!$H$19*NR_Reihen_Veränderungsraten!M9,) -> 0 | N96: =IF($C96=1,'IN_Definition Index'!$H$19*NR_Reihen_Veränderungsraten!N9,) -> 0 | O96: =IF($C96=1,'IN_Definition Index'!$H$19*NR_Reihen_Veränderungsraten!O9,) -> 0 | P96: =IF($C96=1,'IN_Definition Index'!$H$19*NR_Reihen_Veränderungsraten!P9,) -> 0 | Q96: =IF($C96=1,'IN_Definition Index'!$H$19*NR_Reihen_Veränderungsraten!Q9,) -> 0 | R96: =IF($C96=1,'IN_Definition Index'!$H$19*NR_Reihen_Veränderungsraten!R9,) -> 0 | S96: =IF($C96=1,'IN_Definition Index'!$H$19*NR_Reihen_Veränderungsraten!S9,) -> 0 | T96: =IF($C96=1,'IN_Definition Index'!$H$19*NR_Reihen_Veränderungsraten!T9,) -> 0 | U96: =IF($C96=1,'IN_Definition Index'!$H$19*NR_Reihen_Veränderungsraten!U9,) -> 0 | V96: =IF($C96=1,'IN_Definition Index'!$H$19*NR_Reihen_Veränderungsraten!V9,) -> 0 | W96: =IF($C96=1,'IN_Definition Index'!$H$19*NR_Reihen_Veränderungsraten!W9,) -> 0 | X96: =IF($C96=1,'IN_Definition Index'!$H$19*NR_Reihen_Veränderungsraten!X9,) -> 0 | Y96: =IF($C96=1,'IN_Definition Index'!$H$19*NR_Reihen_Veränderungsraten!Y9,) -> 0 | Z96: =IF($C96=1,'IN_Definition Index'!$H$19*NR_Reihen_Veränderungsraten!Z9,) -> 0 | AA96: =IF($C96=1,'IN_Definition Index'!$H$19*NR_Reihen_Veränderungsraten!AA9,) -> 0 | AB96: =IF($C96=1,'IN_Definition Index'!$H$19*NR_Reihen_Veränderungsraten!AB9,) -> 0 | AC96: =IF($C96=1,'IN_Definition Index'!$H$19*NR_Reihen_Veränderungsraten!AC9,) -> 0 | AD96: =IF($C96=1,'IN_Definition Index'!$H$19*NR_Reihen_Veränderungsraten!AD9,) -> 0 | AE96: =IF($C96=1,'IN_Definition Index'!$H$19*NR_Reihen_Veränderungsraten!AE9,) -> 0 | AF96: =IF($C96=1,'IN_Definition Index'!$H$19*NR_Reihen_Veränderungsraten!AF9,) -> 0
A97: J62-01 | B97: IT- und Informationsdienstleister | C97: ='IN_Definition Index'!H13 -> 0 | D97: =IF($C97=1,'IN_Definition Index'!$H$19*NR_Reihen_Veränderungsraten!D10,) -> 0 | E97: =IF($C97=1,'IN_Definition Index'!$H$19*NR_Reihen_Veränderungsraten!E10,) -> 0 | F97: =IF($C97=1,'IN_Definition Index'!$H$19*NR_Reihen_Veränderungsraten!F10,) -> 0 | G97: =IF($C97=1,'IN_Definition Index'!$H$19*NR_Reihen_Veränderungsraten!G10,) -> 0 | H97: =IF($C97=1,'IN_Definition Index'!$H$19*NR_Reihen_Veränderungsraten!H10,) -> 0 | I97: =IF($C97=1,'IN_Definition Index'!$H$19*NR_Reihen_Veränderungsraten!I10,) -> 0 | J97: =IF($C97=1,'IN_Definition Index'!$H$19*NR_Reihen_Veränderungsraten!J10,) -> 0 | K97: =IF($C97=1,'IN_Definition Index'!$H$19*NR_Reihen_Veränderungsraten!K10,) -> 0 | L97: =IF($C97=1,'IN_Definition Index'!$H$19*NR_Reihen_Veränderungsraten!L10,) -> 0 | M97: =IF($C97=1,'IN_Definition Index'!$H$19*NR_Reihen_Veränderungsraten!M10,) -> 0 | N97: =IF($C97=1,'IN_Definition Index'!$H$19*NR_Reihen_Veränderungsraten!N10,) -> 0 | O97: =IF($C97=1,'IN_Definition Index'!$H$19*NR_Reihen_Veränderungsraten!O10,) -> 0 | P97: =IF($C97=1,'IN_Definition Index'!$H$19*NR_Reihen_Veränderungsraten!P10,) -> 0 | Q97: =IF($C97=1,'IN_Definition Index'!$H$19*NR_Reihen_Veränderungsraten!Q10,) -> 0 | R97: =IF($C97=1,'IN_Definition Index'!$H$19*NR_Reihen_Veränderungsraten!R10,) -> 0 | S97: =IF($C97=1,'IN_Definition Index'!$H$19*NR_Reihen_Veränderungsraten!S10,) -> 0 | T97: =IF($C97=1,'IN_Definition Index'!$H$19*NR_Reihen_Veränderungsraten!T10,) -> 0 | U97: =IF($C97=1,'IN_Definition Index'!$H$19*NR_Reihen_Veränderungsraten!U10,) -> 0 | V97: =IF($C97=1,'IN_Definition Index'!$H$19*NR_Reihen_Veränderungsraten!V10,) -> 0 | W97: =IF($C97=1,'IN_Definition Index'!$H$19*NR_Reihen_Veränderungsraten!W10,) -> 0 | X97: =IF($C97=1,'IN_Definition Index'!$H$19*NR_Reihen_Veränderungsraten!X10,) -> 0 | Y97: =IF($C97=1,'IN_Definition Index'!$H$19*NR_Reihen_Veränderungsraten!Y10,) -> 0 | Z97: =IF($C97=1,'IN_Definition Index'!$H$19*NR_Reihen_Veränderungsraten!Z10,) -> 0 | AA97: =IF($C97=1,'IN_Definition Index'!$H$19*NR_Reihen_Veränderungsraten!AA10,) -> 0 | AB97: =IF($C97=1,'IN_Definition Index'!$H$19*NR_Reihen_Veränderungsraten!AB10,) -> 0 | AC97: =IF($C97=1,'IN_Definition Index'!$H$19*NR_Reihen_Veränderungsraten!AC10,) -> 0 | AD97: =IF($C97=1,'IN_Definition Index'!$H$19*NR_Reihen_Veränderungsraten!AD10,) -> 0 | AE97: =IF($C97=1,'IN_Definition Index'!$H$19*NR_Reihen_Veränderungsraten!AE10,) -> 0 | AF97: =IF($C97=1,'IN_Definition Index'!$H$19*NR_Reihen_Veränderungsraten!AF10,) -> 0
A98: M69-01 | B98: Unternehmensnahe Beratungsleistungen | C98: ='IN_Definition Index'!H14 -> 0 | D98: =IF($C98=1,'IN_Definition Index'!$H$19*NR_Reihen_Veränderungsraten!D11,) -> 0 | E98: =IF($C98=1,'IN_Definition Index'!$H$19*NR_Reihen_Veränderungsraten!E11,) -> 0 | F98: =IF($C98=1,'IN_Definition Index'!$H$19*NR_Reihen_Veränderungsraten!F11,) -> 0 | G98: =IF($C98=1,'IN_Definition Index'!$H$19*NR_Reihen_Veränderungsraten!G11,) -> 0 | H98: =IF($C98=1,'IN_Definition Index'!$H$19*NR_Reihen_Veränderungsraten!H11,) -> 0 | I98: =IF($C98=1,'IN_Definition Index'!$H$19*NR_Reihen_Veränderungsraten!I11,) -> 0 | J98: =IF($C98=1,'IN_Definition Index'!$H$19*NR_Reihen_Veränderungsraten!J11,) -> 0 | K98: =IF($C98=1,'IN_Definition Index'!$H$19*NR_Reihen_Veränderungsraten!K11,) -> 0 | L98: =IF($C98=1,'IN_Definition Index'!$H$19*NR_Reihen_Veränderungsraten!L11,) -> 0 | M98: =IF($C98=1,'IN_Definition Index'!$H$19*NR_Reihen_Veränderungsraten!M11,) -> 0 | N98: =IF($C98=1,'IN_Definition Index'!$H$19*NR_Reihen_Veränderungsraten!N11,) -> 0 | O98: =IF($C98=1,'IN_Definition Index'!$H$19*NR_Reihen_Veränderungsraten!O11,) -> 0 | P98: =IF($C98=1,'IN_Definition Index'!$H$19*NR_Reihen_Veränderungsraten!P11,) -> 0 | Q98: =IF($C98=1,'IN_Definition Index'!$H$19*NR_Reihen_Veränderungsraten!Q11,) -> 0 | R98: =IF($C98=1,'IN_Definition Index'!$H$19*NR_Reihen_Veränderungsraten!R11,) -> 0 | S98: =IF($C98=1,'IN_Definition Index'!$H$19*NR_Reihen_Veränderungsraten!S11,) -> 0 | T98: =IF($C98=1,'IN_Definition Index'!$H$19*NR_Reihen_Veränderungsraten!T11,) -> 0 | U98: =IF($C98=1,'IN_Definition Index'!$H$19*NR_Reihen_Veränderungsraten!U11,) -> 0 | V98: =IF($C98=1,'IN_Definition Index'!$H$19*NR_Reihen_Veränderungsraten!V11,) -> 0 | W98: =IF($C98=1,'IN_Definition Index'!$H$19*NR_Reihen_Veränderungsraten!W11,) -> 0 | X98: =IF($C98=1,'IN_Definition Index'!$H$19*NR_Reihen_Veränderungsraten!X11,) -> 0 | Y98: =IF($C98=1,'IN_Definition Index'!$H$19*NR_Reihen_Veränderungsraten!Y11,) -> 0 | Z98: =IF($C98=1,'IN_Definition Index'!$H$19*NR_Reihen_Veränderungsraten!Z11,) -> 0 | AA98: =IF($C98=1,'IN_Definition Index'!$H$19*NR_Reihen_Veränderungsraten!AA11,) -> 0 | AB98: =IF($C98=1,'IN_Definition Index'!$H$19*NR_Reihen_Veränderungsraten!AB11,) -> 0 | AC98: =IF($C98=1,'IN_Definition Index'!$H$19*NR_Reihen_Veränderungsraten!AC11,) -> 0 | AD98: =IF($C98=1,'IN_Definition Index'!$H$19*NR_Reihen_Veränderungsraten!AD11,) -> 0 | AE98: =IF($C98=1,'IN_Definition Index'!$H$19*NR_Reihen_Veränderungsraten!AE11,) -> 0 | AF98: =IF($C98=1,'IN_Definition Index'!$H$19*NR_Reihen_Veränderungsraten!AF11,) -> 0
A99: M73 | B99: Werbung und Marktforschung | C99: ='IN_Definition Index'!H15 -> 0 | D99: =IF($C99=1,'IN_Definition Index'!$H$19*NR_Reihen_Veränderungsraten!D12,) -> 0 | E99: =IF($C99=1,'IN_Definition Index'!$H$19*NR_Reihen_Veränderungsraten!E12,) -> 0 | F99: =IF($C99=1,'IN_Definition Index'!$H$19*NR_Reihen_Veränderungsraten!F12,) -> 0 | G99: =IF($C99=1,'IN_Definition Index'!$H$19*NR_Reihen_Veränderungsraten!G12,) -> 0 | H99: =IF($C99=1,'IN_Definition Index'!$H$19*NR_Reihen_Veränderungsraten!H12,) -> 0 | I99: =IF($C99=1,'IN_Definition Index'!$H$19*NR_Reihen_Veränderungsraten!I12,) -> 0 | J99: =IF($C99=1,'IN_Definition Index'!$H$19*NR_Reihen_Veränderungsraten!J12,) -> 0 | K99: =IF($C99=1,'IN_Definition Index'!$H$19*NR_Reihen_Veränderungsraten!K12,) -> 0 | L99: =IF($C99=1,'IN_Definition Index'!$H$19*NR_Reihen_Veränderungsraten!L12,) -> 0 | M99: =IF($C99=1,'IN_Definition Index'!$H$19*NR_Reihen_Veränderungsraten!M12,) -> 0 | N99: =IF($C99=1,'IN_Definition Index'!$H$19*NR_Reihen_Veränderungsraten!N12,) -> 0 | O99: =IF($C99=1,'IN_Definition Index'!$H$19*NR_Reihen_Veränderungsraten!O12,) -> 0 | P99: =IF($C99=1,'IN_Definition Index'!$H$19*NR_Reihen_Veränderungsraten!P12,) -> 0 | Q99: =IF($C99=1,'IN_Definition Index'!$H$19*NR_Reihen_Veränderungsraten!Q12,) -> 0 | R99: =IF($C99=1,'IN_Definition Index'!$H$19*NR_Reihen_Veränderungsraten!R12,) -> 0 | S99: =IF($C99=1,'IN_Definition Index'!$H$19*NR_Reihen_Veränderungsraten!S12,) -> 0 | T99: =IF($C99=1,'IN_Definition Index'!$H$19*NR_Reihen_Veränderungsraten!T12,) -> 0 | U99: =IF($C99=1,'IN_Definition Index'!$H$19*NR_Reihen_Veränderungsraten!U12,) -> 0 | V99: =IF($C99=1,'IN_Definition Index'!$H$19*NR_Reihen_Veränderungsraten!V12,) -> 0 | W99: =IF($C99=1,'IN_Definition Index'!$H$19*NR_Reihen_Veränderungsraten!W12,) -> 0 | X99: =IF($C99=1,'IN_Definition Index'!$H$19*NR_Reihen_Veränderungsraten!X12,) -> 0 | Y99: =IF($C99=1,'IN_Definition Index'!$H$19*NR_Reihen_Veränderungsraten!Y12,) -> 0 | Z99: =IF($C99=1,'IN_Definition Index'!$H$19*NR_Reihen_Veränderungsraten!Z12,) -> 0 | AA99: =IF($C99=1,'IN_Definition Index'!$H$19*NR_Reihen_Veränderungsraten!AA12,) -> 0 | AB99: =IF($C99=1,'IN_Definition Index'!$H$19*NR_Reihen_Veränderungsraten!AB12,) -> 0 | AC99: =IF($C99=1,'IN_Definition Index'!$H$19*NR_Reihen_Veränderungsraten!AC12,) -> 0 | AD99: =IF($C99=1,'IN_Definition Index'!$H$19*NR_Reihen_Veränderungsraten!AD12,) -> 0 | AE99: =IF($C99=1,'IN_Definition Index'!$H$19*NR_Reihen_Veränderungsraten!AE12,) -> 0 | AF99: =IF($C99=1,'IN_Definition Index'!$H$19*NR_Reihen_Veränderungsraten!AF12,) -> 0
A100: M74-01 | B100: Freiberufl.,wiss.,techn.DL a.n.g., Veterinärwesen | C100: ='IN_Definition Index'!H16 -> 0 | D100: =IF($C100=1,'IN_Definition Index'!$H$19*NR_Reihen_Veränderungsraten!D13,) -> 0 | E100: =IF($C100=1,'IN_Definition Index'!$H$19*NR_Reihen_Veränderungsraten!E13,) -> 0 | F100: =IF($C100=1,'IN_Definition Index'!$H$19*NR_Reihen_Veränderungsraten!F13,) -> 0 | G100: =IF($C100=1,'IN_Definition Index'!$H$19*NR_Reihen_Veränderungsraten!G13,) -> 0 | H100: =IF($C100=1,'IN_Definition Index'!$H$19*NR_Reihen_Veränderungsraten!H13,) -> 0 | I100: =IF($C100=1,'IN_Definition Index'!$H$19*NR_Reihen_Veränderungsraten!I13,) -> 0 | J100: =IF($C100=1,'IN_Definition Index'!$H$19*NR_Reihen_Veränderungsraten!J13,) -> 0 | K100: =IF($C100=1,'IN_Definition Index'!$H$19*NR_Reihen_Veränderungsraten!K13,) -> 0 | L100: =IF($C100=1,'IN_Definition Index'!$H$19*NR_Reihen_Veränderungsraten!L13,) -> 0 | M100: =IF($C100=1,'IN_Definition Index'!$H$19*NR_Reihen_Veränderungsraten!M13,) -> 0 | N100: =IF($C100=1,'IN_Definition Index'!$H$19*NR_Reihen_Veränderungsraten!N13,) -> 0 | O100: =IF($C100=1,'IN_Definition Index'!$H$19*NR_Reihen_Veränderungsraten!O13,) -> 0 | P100: =IF($C100=1,'IN_Definition Index'!$H$19*NR_Reihen_Veränderungsraten!P13,) -> 0 | Q100: =IF($C100=1,'IN_Definition Index'!$H$19*NR_Reihen_Veränderungsraten!Q13,) -> 0 | R100: =IF($C100=1,'IN_Definition Index'!$H$19*NR_Reihen_Veränderungsraten!R13,) -> 0 | S100: =IF($C100=1,'IN_Definition Index'!$H$19*NR_Reihen_Veränderungsraten!S13,) -> 0 | T100: =IF($C100=1,'IN_Definition Index'!$H$19*NR_Reihen_Veränderungsraten!T13,) -> 0 | U100: =IF($C100=1,'IN_Definition Index'!$H$19*NR_Reihen_Veränderungsraten!U13,) -> 0 | V100: =IF($C100=1,'IN_Definition Index'!$H$19*NR_Reihen_Veränderungsraten!V13,) -> 0 | W100: =IF($C100=1,'IN_Definition Index'!$H$19*NR_Reihen_Veränderungsraten!W13,) -> 0 | X100: =IF($C100=1,'IN_Definition Index'!$H$19*NR_Reihen_Veränderungsraten!X13,) -> 0 | Y100: =IF($C100=1,'IN_Definition Index'!$H$19*NR_Reihen_Veränderungsraten!Y13,) -> 0 | Z100: =IF($C100=1,'IN_Definition Index'!$H$19*NR_Reihen_Veränderungsraten!Z13,) -> 0 | AA100: =IF($C100=1,'IN_Definition Index'!$H$19*NR_Reihen_Veränderungsraten!AA13,) -> 0 | AB100: =IF($C100=1,'IN_Definition Index'!$H$19*NR_Reihen_Veränderungsraten!AB13,) -> 0 | AC100: =IF($C100=1,'IN_Definition Index'!$H$19*NR_Reihen_Veränderungsraten!AC13,) -> 0 | AD100: =IF($C100=1,'IN_Definition Index'!$H$19*NR_Reihen_Veränderungsraten!AD13,) -> 0 | AE100: =IF($C100=1,'IN_Definition Index'!$H$19*NR_Reihen_Veränderungsraten!AE13,) -> 0 | AF100: =IF($C100=1,'IN_Definition Index'!$H$19*NR_Reihen_Veränderungsraten!AF13,) -> 0
A101: L | B101: Grundstücks- und Wohnungswesen | C101: ='IN_Definition Index'!H17 -> 0 | D101: =IF($C101=1,'IN_Definition Index'!$H$19*NR_Reihen_Veränderungsraten!D14,) -> 0 | E101: =IF($C101=1,'IN_Definition Index'!$H$19*NR_Reihen_Veränderungsraten!E14,) -> 0 | F101: =IF($C101=1,'IN_Definition Index'!$H$19*NR_Reihen_Veränderungsraten!F14,) -> 0 | G101: =IF($C101=1,'IN_Definition Index'!$H$19*NR_Reihen_Veränderungsraten!G14,) -> 0 | H101: =IF($C101=1,'IN_Definition Index'!$H$19*NR_Reihen_Veränderungsraten!H14,) -> 0 | I101: =IF($C101=1,'IN_Definition Index'!$H$19*NR_Reihen_Veränderungsraten!I14,) -> 0 | J101: =IF($C101=1,'IN_Definition Index'!$H$19*NR_Reihen_Veränderungsraten!J14,) -> 0 | K101: =IF($C101=1,'IN_Definition Index'!$H$19*NR_Reihen_Veränderungsraten!K14,) -> 0 | L101: =IF($C101=1,'IN_Definition Index'!$H$19*NR_Reihen_Veränderungsraten!L14,) -> 0 | M101: =IF($C101=1,'IN_Definition Index'!$H$19*NR_Reihen_Veränderungsraten!M14,) -> 0 | N101: =IF($C101=1,'IN_Definition Index'!$H$19*NR_Reihen_Veränderungsraten!N14,) -> 0 | O101: =IF($C101=1,'IN_Definition Index'!$H$19*NR_Reihen_Veränderungsraten!O14,) -> 0 | P101: =IF($C101=1,'IN_Definition Index'!$H$19*NR_Reihen_Veränderungsraten!P14,) -> 0 | Q101: =IF($C101=1,'IN_Definition Index'!$H$19*NR_Reihen_Veränderungsraten!Q14,) -> 0 | R101: =IF($C101=1,'IN_Definition Index'!$H$19*NR_Reihen_Veränderungsraten!R14,) -> 0 | S101: =IF($C101=1,'IN_Definition Index'!$H$19*NR_Reihen_Veränderungsraten!S14,) -> 0 | T101: =IF($C101=1,'IN_Definition Index'!$H$19*NR_Reihen_Veränderungsraten!T14,) -> 0 | U101: =IF($C101=1,'IN_Definition Index'!$H$19*NR_Reihen_Veränderungsraten!U14,) -> 0 | V101: =IF($C101=1,'IN_Definition Index'!$H$19*NR_Reihen_Veränderungsraten!V14,) -> 0 | W101: =IF($C101=1,'IN_Definition Index'!$H$19*NR_Reihen_Veränderungsraten!W14,) -> 0 | X101: =IF($C101=1,'IN_Definition Index'!$H$19*NR_Reihen_Veränderungsraten!X14,) -> 0 | Y101: =IF($C101=1,'IN_Definition Index'!$H$19*NR_Reihen_Veränderungsraten!Y14,) -> 0 | Z101: =IF($C101=1,'IN_Definition Index'!$H$19*NR_Reihen_Veränderungsraten!Z14,) -> 0 | AA101: =IF($C101=1,'IN_Definition Index'!$H$19*NR_Reihen_Veränderungsraten!AA14,) -> 0 | AB101: =IF($C101=1,'IN_Definition Index'!$H$19*NR_Reihen_Veränderungsraten!AB14,) -> 0 | AC101: =IF($C101=1,'IN_Definition Index'!$H$19*NR_Reihen_Veränderungsraten!AC14,) -> 0 | AD101: =IF($C101=1,'IN_Definition Index'!$H$19*NR_Reihen_Veränderungsraten!AD14,) -> 0 | AE101: =IF($C101=1,'IN_Definition Index'!$H$19*NR_Reihen_Veränderungsraten!AE14,) -> 0 | AF101: =IF($C101=1,'IN_Definition Index'!$H$19*NR_Reihen_Veränderungsraten!AF14,) -> 0
B102: Summe | D102: =SUM(D91:D101) -> 0.9785254619 | E102: =SUM(E91:E101) -> 0.9449497645 | F102: =SUM(F91:F101) -> 1.03872439 | G102: =SUM(G91:G101) -> 1.043881947 | H102: =SUM(H91:H101) -> 1.031145752 | I102: =SUM(I91:I101) -> 1.029193061 | J102: =SUM(J91:J101) -> 1.008281527 | K102: =SUM(K91:K101) -> 1.017976214 | L102: =SUM(L91:L101) -> 0.9800345853 | M102: =SUM(M91:M101) -> 1.025061073 | N102: =SUM(N91:N101) -> 1.040849057 | O102: =SUM(O91:O101) -> 1.045746446 | P102: =SUM(P91:P101) -> 1.059815427 | Q102: =SUM(Q91:Q101) -> 1.032097321 | R102: =SUM(R91:R101) -> 1.072024217 | S102: =SUM(S91:S101) -> 0.9834879496 | T102: =SUM(T91:T101) -> 1.000567403 | U102: =SUM(U91:U101) -> 0.9349659831 | V102: =SUM(V91:V101) -> 0.9966133918 | W102: =SUM(W91:W101) -> 1.039548095 | X102: =SUM(X91:X101) -> 0.9898834769 | Y102: =SUM(Y91:Y101) -> 0.9950558433 | Z102: =SUM(Z91:Z101) -> 1.019718151 | AA102: =SUM(AA91:AA101) -> 0.9757067849 | AB102: =SUM(AB91:AB101) -> 1.010041361 | AC102: =SUM(AC91:AC101) -> 0.9970034603 | AD102: 1.008690731
A104: Übrige Prozesse
A106: Nr. (WZ 2008) | B106: Branche | C106: Verwendung | D106: 1992 | E106: =D106+1 -> 1993 | F106: =E106+1 -> 1994 | G106: =F106+1 -> 1995 | H106: =G106+1 -> 1996 | I106: =H106+1 -> 1997 | J106: =I106+1 -> 1998 | K106: =J106+1 -> 1999 | L106: =K106+1 -> 2000 | M106: =L106+1 -> 2001 | N106: =M106+1 -> 2002 | O106: =N106+1 -> 2003 | P106: =O106+1 -> 2004 | Q106: =P106+1 -> 2005 | R106: =Q106+1 -> 2006 | S106: =R106+1 -> 2007 | T106: =S106+1 -> 2008 | U106: =T106+1 -> 2009 | V106: =U106+1 -> 2010 | W106: =V106+1 -> 2011 | X106: =W106+1 -> 2012 | Y106: =X106+1 -> 2013 | Z106: =Y106+1 -> 2014 | AA106: =Z106+1 -> 2015 | AB106: =AA106+1 -> 2016 | AC106: =AB106+1 -> 2017 | AD106: =AC106+1 -> 2018 | AE106: =AD106+1 -> 2019 | AF106: =AE106+1 -> 2020
A107: C33 | B107: Reparatur und Installation von Maschinen und Ausrüstungen | C107: ='IN_Definition Index'!I7 -> 0 | D107: =IF($C107=1,'IN_Definition Index'!$I$19*NR_Reihen_Veränderungsraten!D4,) -> 0 | E107: =IF($C107=1,'IN_Definition Index'!$I$19*NR_Reihen_Veränderungsraten!E4,) -> 0 | F107: =IF($C107=1,'IN_Definition Index'!$I$19*NR_Reihen_Veränderungsraten!F4,) -> 0 | G107: =IF($C107=1,'IN_Definition Index'!$I$19*NR_Reihen_Veränderungsraten!G4,) -> 0 | H107: =IF($C107=1,'IN_Definition Index'!$I$19*NR_Reihen_Veränderungsraten!H4,) -> 0 | I107: =IF($C107=1,'IN_Definition Index'!$I$19*NR_Reihen_Veränderungsraten!I4,) -> 0 | J107: =IF($C107=1,'IN_Definition Index'!$I$19*NR_Reihen_Veränderungsraten!J4,) -> 0 | K107: =IF($C107=1,'IN_Definition Index'!$I$19*NR_Reihen_Veränderungsraten!K4,) -> 0 | L107: =IF($C107=1,'IN_Definition Index'!$I$19*NR_Reihen_Veränderungsraten!L4,) -> 0 | M107: =IF($C107=1,'IN_Definition Index'!$I$19*NR_Reihen_Veränderungsraten!M4,) -> 0 | N107: =IF($C107=1,'IN_Definition Index'!$I$19*NR_Reihen_Veränderungsraten!N4,) -> 0 | O107: =IF($C107=1,'IN_Definition Index'!$I$19*NR_Reihen_Veränderungsraten!O4,) -> 0 | P107: =IF($C107=1,'IN_Definition Index'!$I$19*NR_Reihen_Veränderungsraten!P4,) -> 0 | Q107: =IF($C107=1,'IN_Definition Index'!$I$19*NR_Reihen_Veränderungsraten!Q4,) -> 0 | R107: =IF($C107=1,'IN_Definition Index'!$I$19*NR_Reihen_Veränderungsraten!R4,) -> 0 | S107: =IF($C107=1,'IN_Definition Index'!$I$19*NR_Reihen_Veränderungsraten!S4,) -> 0 | T107: =IF($C107=1,'IN_Definition Index'!$I$19*NR_Reihen_Veränderungsraten!T4,) -> 0 | U107: =IF($C107=1,'IN_Definition Index'!$I$19*NR_Reihen_Veränderungsraten!U4,) -> 0 | V107: =IF($C107=1,'IN_Definition Index'!$I$19*NR_Reihen_Veränderungsraten!V4,) -> 0 | W107: =IF($C107=1,'IN_Definition Index'!$I$19*NR_Reihen_Veränderungsraten!W4,) -> 0 | X107: =IF($C107=1,'IN_Definition Index'!$I$19*NR_Reihen_Veränderungsraten!X4,) -> 0 | Y107: =IF($C107=1,'IN_Definition Index'!$I$19*NR_Reihen_Veränderungsraten!Y4,) -> 0 | Z107: =IF($C107=1,'IN_Definition Index'!$I$19*NR_Reihen_Veränderungsraten!Z4,) -> 0 | AA107: =IF($C107=1,'IN_Definition Index'!$I$19*NR_Reihen_Veränderungsraten!AA4,) -> 0 | AB107: =IF($C107=1,'IN_Definition Index'!$I$19*NR_Reihen_Veränderungsraten!AB4,) -> 0 | AC107: =IF($C107=1,'IN_Definition Index'!$I$19*NR_Reihen_Veränderungsraten!AC4,) -> 0 | AD107: =IF($C107=1,'IN_Definition Index'!$I$19*NR_Reihen_Veränderungsraten!AD4,) -> 0 | AE107: =IF($C107=1,'IN_Definition Index'!$I$19*NR_Reihen_Veränderungsraten!AE4,) -> 0 | AF107: =IF($C107=1,'IN_Definition Index'!$I$19*NR_Reihen_Veränderungsraten!AF4,) -> 0
A108: G45 | B108: Handel mit Kraftfahrzeugen; Instandhaltung und Reparatur von Kraftfahrzeugen | C108: ='IN_Definition Index'!I8 -> 0 | D108: =IF($C108=1,'IN_Definition Index'!$I$19*NR_Reihen_Veränderungsraten!D5,) -> 0 | E108: =IF($C108=1,'IN_Definition Index'!$I$19*NR_Reihen_Veränderungsraten!E5,) -> 0 | F108: =IF($C108=1,'IN_Definition Index'!$I$19*NR_Reihen_Veränderungsraten!F5,) -> 0 | G108: =IF($C108=1,'IN_Definition Index'!$I$19*NR_Reihen_Veränderungsraten!G5,) -> 0 | H108: =IF($C108=1,'IN_Definition Index'!$I$19*NR_Reihen_Veränderungsraten!H5,) -> 0 | I108: =IF($C108=1,'IN_Definition Index'!$I$19*NR_Reihen_Veränderungsraten!I5,) -> 0 | J108: =IF($C108=1,'IN_Definition Index'!$I$19*NR_Reihen_Veränderungsraten!J5,) -> 0 | K108: =IF($C108=1,'IN_Definition Index'!$I$19*NR_Reihen_Veränderungsraten!K5,) -> 0 | L108: =IF($C108=1,'IN_Definition Index'!$I$19*NR_Reihen_Veränderungsraten!L5,) -> 0 | M108: =IF($C108=1,'IN_Definition Index'!$I$19*NR_Reihen_Veränderungsraten!M5,) -> 0 | N108: =IF($C108=1,'IN_Definition Index'!$I$19*NR_Reihen_Veränderungsraten!N5,) -> 0 | O108: =IF($C108=1,'IN_Definition Index'!$I$19*NR_Reihen_Veränderungsraten!O5,) -> 0 | P108: =IF($C108=1,'IN_Definition Index'!$I$19*NR_Reihen_Veränderungsraten!P5,) -> 0 | Q108: =IF($C108=1,'IN_Definition Index'!$I$19*NR_Reihen_Veränderungsraten!Q5,) -> 0 | R108: =IF($C108=1,'IN_Definition Index'!$I$19*NR_Reihen_Veränderungsraten!R5,) -> 0 | S108: =IF($C108=1,'IN_Definition Index'!$I$19*NR_Reihen_Veränderungsraten!S5,) -> 0 | T108: =IF($C108=1,'IN_Definition Index'!$I$19*NR_Reihen_Veränderungsraten!T5,) -> 0 | U108: =IF($C108=1,'IN_Definition Index'!$I$19*NR_Reihen_Veränderungsraten!U5,) -> 0 | V108: =IF($C108=1,'IN_Definition Index'!$I$19*NR_Reihen_Veränderungsraten!V5,) -> 0 | W108: =IF($C108=1,'IN_Definition Index'!$I$19*NR_Reihen_Veränderungsraten!W5,) -> 0 | X108: =IF($C108=1,'IN_Definition Index'!$I$19*NR_Reihen_Veränderungsraten!X5,) -> 0 | Y108: =IF($C108=1,'IN_Definition Index'!$I$19*NR_Reihen_Veränderungsraten!Y5,) -> 0 | Z108: =IF($C108=1,'IN_Definition Index'!$I$19*NR_Reihen_Veränderungsraten!Z5,) -> 0 | AA108: =IF($C108=1,'IN_Definition Index'!$I$19*NR_Reihen_Veränderungsraten!AA5,) -> 0 | AB108: =IF($C108=1,'IN_Definition Index'!$I$19*NR_Reihen_Veränderungsraten!AB5,) -> 0 | AC108: =IF($C108=1,'IN_Definition Index'!$I$19*NR_Reihen_Veränderungsraten!AC5,) -> 0 | AD108: =IF($C108=1,'IN_Definition Index'!$I$19*NR_Reihen_Veränderungsraten!AD5,) -> 0 | AE108: =IF($C108=1,'IN_Definition Index'!$I$19*NR_Reihen_Veränderungsraten!AE5,) -> 0 | AF108: =IF($C108=1,'IN_Definition Index'!$I$19*NR_Reihen_Veränderungsraten!AF5,) -> 0
A109: G47 | B109: Einzelhandel (ohne Handel mit Kraftfahrzeugen) | C109: ='IN_Definition Index'!I9 -> 0 | D109: =IF($C109=1,'IN_Definition Index'!$I$19*NR_Reihen_Veränderungsraten!D6,) -> 0 | E109: =IF($C109=1,'IN_Definition Index'!$I$19*NR_Reihen_Veränderungsraten!E6,) -> 0 | F109: =IF($C109=1,'IN_Definition Index'!$I$19*NR_Reihen_Veränderungsraten!F6,) -> 0 | G109: =IF($C109=1,'IN_Definition Index'!$I$19*NR_Reihen_Veränderungsraten!G6,) -> 0 | H109: =IF($C109=1,'IN_Definition Index'!$I$19*NR_Reihen_Veränderungsraten!H6,) -> 0 | I109: =IF($C109=1,'IN_Definition Index'!$I$19*NR_Reihen_Veränderungsraten!I6,) -> 0 | J109: =IF($C109=1,'IN_Definition Index'!$I$19*NR_Reihen_Veränderungsraten!J6,) -> 0 | K109: =IF($C109=1,'IN_Definition Index'!$I$19*NR_Reihen_Veränderungsraten!K6,) -> 0 | L109: =IF($C109=1,'IN_Definition Index'!$I$19*NR_Reihen_Veränderungsraten!L6,) -> 0 | M109: =IF($C109=1,'IN_Definition Index'!$I$19*NR_Reihen_Veränderungsraten!M6,) -> 0 | N109: =IF($C109=1,'IN_Definition Index'!$I$19*NR_Reihen_Veränderungsraten!N6,) -> 0 | O109: =IF($C109=1,'IN_Definition Index'!$I$19*NR_Reihen_Veränderungsraten!O6,) -> 0 | P109: =IF($C109=1,'IN_Definition Index'!$I$19*NR_Reihen_Veränderungsraten!P6,) -> 0 | Q109: =IF($C109=1,'IN_Definition Index'!$I$19*NR_Reihen_Veränderungsraten!Q6,) -> 0 | R109: =IF($C109=1,'IN_Definition Index'!$I$19*NR_Reihen_Veränderungsraten!R6,) -> 0 | S109: =IF($C109=1,'IN_Definition Index'!$I$19*NR_Reihen_Veränderungsraten!S6,) -> 0 | T109: =IF($C109=1,'IN_Definition Index'!$I$19*NR_Reihen_Veränderungsraten!T6,) -> 0 | U109: =IF($C109=1,'IN_Definition Index'!$I$19*NR_Reihen_Veränderungsraten!U6,) -> 0 | V109: =IF($C109=1,'IN_Definition Index'!$I$19*NR_Reihen_Veränderungsraten!V6,) -> 0 | W109: =IF($C109=1,'IN_Definition Index'!$I$19*NR_Reihen_Veränderungsraten!W6,) -> 0 | X109: =IF($C109=1,'IN_Definition Index'!$I$19*NR_Reihen_Veränderungsraten!X6,) -> 0 | Y109: =IF($C109=1,'IN_Definition Index'!$I$19*NR_Reihen_Veränderungsraten!Y6,) -> 0 | Z109: =IF($C109=1,'IN_Definition Index'!$I$19*NR_Reihen_Veränderungsraten!Z6,) -> 0 | AA109: =IF($C109=1,'IN_Definition Index'!$I$19*NR_Reihen_Veränderungsraten!AA6,) -> 0 | AB109: =IF($C109=1,'IN_Definition Index'!$I$19*NR_Reihen_Veränderungsraten!AB6,) -> 0 | AC109: =IF($C109=1,'IN_Definition Index'!$I$19*NR_Reihen_Veränderungsraten!AC6,) -> 0 | AD109: =IF($C109=1,'IN_Definition Index'!$I$19*NR_Reihen_Veränderungsraten!AD6,) -> 0 | AE109: =IF($C109=1,'IN_Definition Index'!$I$19*NR_Reihen_Veränderungsraten!AE6,) -> 0 | AF109: =IF($C109=1,'IN_Definition Index'!$I$19*NR_Reihen_Veränderungsraten!AF6,) -> 0
A110: H49 | B110: Landverkehr und Transport in Rohrfernleitungen | C110: ='IN_Definition Index'!I10 -> 0 | D110: =IF($C110=1,'IN_Definition Index'!$I$19*NR_Reihen_Veränderungsraten!D7,) -> 0 | E110: =IF($C110=1,'IN_Definition Index'!$I$19*NR_Reihen_Veränderungsraten!E7,) -> 0 | F110: =IF($C110=1,'IN_Definition Index'!$I$19*NR_Reihen_Veränderungsraten!F7,) -> 0 | G110: =IF($C110=1,'IN_Definition Index'!$I$19*NR_Reihen_Veränderungsraten!G7,) -> 0 | H110: =IF($C110=1,'IN_Definition Index'!$I$19*NR_Reihen_Veränderungsraten!H7,) -> 0 | I110: =IF($C110=1,'IN_Definition Index'!$I$19*NR_Reihen_Veränderungsraten!I7,) -> 0 | J110: =IF($C110=1,'IN_Definition Index'!$I$19*NR_Reihen_Veränderungsraten!J7,) -> 0 | K110: =IF($C110=1,'IN_Definition Index'!$I$19*NR_Reihen_Veränderungsraten!K7,) -> 0 | L110: =IF($C110=1,'IN_Definition Index'!$I$19*NR_Reihen_Veränderungsraten!L7,) -> 0 | M110: =IF($C110=1,'IN_Definition Index'!$I$19*NR_Reihen_Veränderungsraten!M7,) -> 0 | N110: =IF($C110=1,'IN_Definition Index'!$I$19*NR_Reihen_Veränderungsraten!N7,) -> 0 | O110: =IF($C110=1,'IN_Definition Index'!$I$19*NR_Reihen_Veränderungsraten!O7,) -> 0 | P110: =IF($C110=1,'IN_Definition Index'!$I$19*NR_Reihen_Veränderungsraten!P7,) -> 0 | Q110: =IF($C110=1,'IN_Definition Index'!$I$19*NR_Reihen_Veränderungsraten!Q7,) -> 0 | R110: =IF($C110=1,'IN_Definition Index'!$I$19*NR_Reihen_Veränderungsraten!R7,) -> 0 | S110: =IF($C110=1,'IN_Definition Index'!$I$19*NR_Reihen_Veränderungsraten!S7,) -> 0 | T110: =IF($C110=1,'IN_Definition Index'!$I$19*NR_Reihen_Veränderungsraten!T7,) -> 0 | U110: =IF($C110=1,'IN_Definition Index'!$I$19*NR_Reihen_Veränderungsraten!U7,) -> 0 | V110: =IF($C110=1,'IN_Definition Index'!$I$19*NR_Reihen_Veränderungsraten!V7,) -> 0 | W110: =IF($C110=1,'IN_Definition Index'!$I$19*NR_Reihen_Veränderungsraten!W7,) -> 0 | X110: =IF($C110=1,'IN_Definition Index'!$I$19*NR_Reihen_Veränderungsraten!X7,) -> 0 | Y110: =IF($C110=1,'IN_Definition Index'!$I$19*NR_Reihen_Veränderungsraten!Y7,) -> 0 | Z110: =IF($C110=1,'IN_Definition Index'!$I$19*NR_Reihen_Veränderungsraten!Z7,) -> 0 | AA110: =IF($C110=1,'IN_Definition Index'!$I$19*NR_Reihen_Veränderungsraten!AA7,) -> 0 | AB110: =IF($C110=1,'IN_Definition Index'!$I$19*NR_Reihen_Veränderungsraten!AB7,) -> 0 | AC110: =IF($C110=1,'IN_Definition Index'!$I$19*NR_Reihen_Veränderungsraten!AC7,) -> 0 | AD110: =IF($C110=1,'IN_Definition Index'!$I$19*NR_Reihen_Veränderungsraten!AD7,) -> 0 | AE110: =IF($C110=1,'IN_Definition Index'!$I$19*NR_Reihen_Veränderungsraten!AE7,) -> 0 | AF110: =IF($C110=1,'IN_Definition Index'!$I$19*NR_Reihen_Veränderungsraten!AF7,) -> 0
A111: H52 | B111: Lagerei sowie Erbringung von sonstigen Dienstleistungen für den Verkehr | C111: ='IN_Definition Index'!I11 -> 0 | D111: =IF($C111=1,'IN_Definition Index'!$I$19*NR_Reihen_Veränderungsraten!D8,) -> 0 | E111: =IF($C111=1,'IN_Definition Index'!$I$19*NR_Reihen_Veränderungsraten!E8,) -> 0 | F111: =IF($C111=1,'IN_Definition Index'!$I$19*NR_Reihen_Veränderungsraten!F8,) -> 0 | G111: =IF($C111=1,'IN_Definition Index'!$I$19*NR_Reihen_Veränderungsraten!G8,) -> 0 | H111: =IF($C111=1,'IN_Definition Index'!$I$19*NR_Reihen_Veränderungsraten!H8,) -> 0 | I111: =IF($C111=1,'IN_Definition Index'!$I$19*NR_Reihen_Veränderungsraten!I8,) -> 0 | J111: =IF($C111=1,'IN_Definition Index'!$I$19*NR_Reihen_Veränderungsraten!J8,) -> 0 | K111: =IF($C111=1,'IN_Definition Index'!$I$19*NR_Reihen_Veränderungsraten!K8,) -> 0 | L111: =IF($C111=1,'IN_Definition Index'!$I$19*NR_Reihen_Veränderungsraten!L8,) -> 0 | M111: =IF($C111=1,'IN_Definition Index'!$I$19*NR_Reihen_Veränderungsraten!M8,) -> 0 | N111: =IF($C111=1,'IN_Definition Index'!$I$19*NR_Reihen_Veränderungsraten!N8,) -> 0 | O111: =IF($C111=1,'IN_Definition Index'!$I$19*NR_Reihen_Veränderungsraten!O8,) -> 0 | P111: =IF($C111=1,'IN_Definition Index'!$I$19*NR_Reihen_Veränderungsraten!P8,) -> 0 | Q111: =IF($C111=1,'IN_Definition Index'!$I$19*NR_Reihen_Veränderungsraten!Q8,) -> 0 | R111: =IF($C111=1,'IN_Definition Index'!$I$19*NR_Reihen_Veränderungsraten!R8,) -> 0 | S111: =IF($C111=1,'IN_Definition Index'!$I$19*NR_Reihen_Veränderungsraten!S8,) -> 0 | T111: =IF($C111=1,'IN_Definition Index'!$I$19*NR_Reihen_Veränderungsraten!T8,) -> 0 | U111: =IF($C111=1,'IN_Definition Index'!$I$19*NR_Reihen_Veränderungsraten!U8,) -> 0 | V111: =IF($C111=1,'IN_Definition Index'!$I$19*NR_Reihen_Veränderungsraten!V8,) -> 0 | W111: =IF($C111=1,'IN_Definition Index'!$I$19*NR_Reihen_Veränderungsraten!W8,) -> 0 | X111: =IF($C111=1,'IN_Definition Index'!$I$19*NR_Reihen_Veränderungsraten!X8,) -> 0 | Y111: =IF($C111=1,'IN_Definition Index'!$I$19*NR_Reihen_Veränderungsraten!Y8,) -> 0 | Z111: =IF($C111=1,'IN_Definition Index'!$I$19*NR_Reihen_Veränderungsraten!Z8,) -> 0 | AA111: =IF($C111=1,'IN_Definition Index'!$I$19*NR_Reihen_Veränderungsraten!AA8,) -> 0 | AB111: =IF($C111=1,'IN_Definition Index'!$I$19*NR_Reihen_Veränderungsraten!AB8,) -> 0 | AC111: =IF($C111=1,'IN_Definition Index'!$I$19*NR_Reihen_Veränderungsraten!AC8,) -> 0 | AD111: =IF($C111=1,'IN_Definition Index'!$I$19*NR_Reihen_Veränderungsraten!AD8,) -> 0 | AE111: =IF($C111=1,'IN_Definition Index'!$I$19*NR_Reihen_Veränderungsraten!AE8,) -> 0 | AF111: =IF($C111=1,'IN_Definition Index'!$I$19*NR_Reihen_Veränderungsraten!AF8,) -> 0
A112: J61 | B112: Telekommunikation | C112: ='IN_Definition Index'!I12 -> 0 | D112: =IF($C112=1,'IN_Definition Index'!$I$19*NR_Reihen_Veränderungsraten!D9,) -> 0 | E112: =IF($C112=1,'IN_Definition Index'!$I$19*NR_Reihen_Veränderungsraten!E9,) -> 0 | F112: =IF($C112=1,'IN_Definition Index'!$I$19*NR_Reihen_Veränderungsraten!F9,) -> 0 | G112: =IF($C112=1,'IN_Definition Index'!$I$19*NR_Reihen_Veränderungsraten!G9,) -> 0 | H112: =IF($C112=1,'IN_Definition Index'!$I$19*NR_Reihen_Veränderungsraten!H9,) -> 0 | I112: =IF($C112=1,'IN_Definition Index'!$I$19*NR_Reihen_Veränderungsraten!I9,) -> 0 | J112: =IF($C112=1,'IN_Definition Index'!$I$19*NR_Reihen_Veränderungsraten!J9,) -> 0 | K112: =IF($C112=1,'IN_Definition Index'!$I$19*NR_Reihen_Veränderungsraten!K9,) -> 0 | L112: =IF($C112=1,'IN_Definition Index'!$I$19*NR_Reihen_Veränderungsraten!L9,) -> 0 | M112: =IF($C112=1,'IN_Definition Index'!$I$19*NR_Reihen_Veränderungsraten!M9,) -> 0 | N112: =IF($C112=1,'IN_Definition Index'!$I$19*NR_Reihen_Veränderungsraten!N9,) -> 0 | O112: =IF($C112=1,'IN_Definition Index'!$I$19*NR_Reihen_Veränderungsraten!O9,) -> 0 | P112: =IF($C112=1,'IN_Definition Index'!$I$19*NR_Reihen_Veränderungsraten!P9,) -> 0 | Q112: =IF($C112=1,'IN_Definition Index'!$I$19*NR_Reihen_Veränderungsraten!Q9,) -> 0 | R112: =IF($C112=1,'IN_Definition Index'!$I$19*NR_Reihen_Veränderungsraten!R9,) -> 0 | S112: =IF($C112=1,'IN_Definition Index'!$I$19*NR_Reihen_Veränderungsraten!S9,) -> 0 | T112: =IF($C112=1,'IN_Definition Index'!$I$19*NR_Reihen_Veränderungsraten!T9,) -> 0 | U112: =IF($C112=1,'IN_Definition Index'!$I$19*NR_Reihen_Veränderungsraten!U9,) -> 0 | V112: =IF($C112=1,'IN_Definition Index'!$I$19*NR_Reihen_Veränderungsraten!V9,) -> 0 | W112: =IF($C112=1,'IN_Definition Index'!$I$19*NR_Reihen_Veränderungsraten!W9,) -> 0 | X112: =IF($C112=1,'IN_Definition Index'!$I$19*NR_Reihen_Veränderungsraten!X9,) -> 0 | Y112: =IF($C112=1,'IN_Definition Index'!$I$19*NR_Reihen_Veränderungsraten!Y9,) -> 0 | Z112: =IF($C112=1,'IN_Definition Index'!$I$19*NR_Reihen_Veränderungsraten!Z9,) -> 0 | AA112: =IF($C112=1,'IN_Definition Index'!$I$19*NR_Reihen_Veränderungsraten!AA9,) -> 0 | AB112: =IF($C112=1,'IN_Definition Index'!$I$19*NR_Reihen_Veränderungsraten!AB9,) -> 0 | AC112: =IF($C112=1,'IN_Definition Index'!$I$19*NR_Reihen_Veränderungsraten!AC9,) -> 0 | AD112: =IF($C112=1,'IN_Definition Index'!$I$19*NR_Reihen_Veränderungsraten!AD9,) -> 0 | AE112: =IF($C112=1,'IN_Definition Index'!$I$19*NR_Reihen_Veränderungsraten!AE9,) -> 0 | AF112: =IF($C112=1,'IN_Definition Index'!$I$19*NR_Reihen_Veränderungsraten!AF9,) -> 0
A113: J62-01 | B113: IT- und Informationsdienstleister | C113: ='IN_Definition Index'!I13 -> 1 | D113: =IF($C113=1,'IN_Definition Index'!$I$19*NR_Reihen_Veränderungsraten!D10,) -> 0.1992052422 | E113: =IF($C113=1,'IN_Definition Index'!$I$19*NR_Reihen_Veränderungsraten!E10,) -> 0.2099476966 | F113: =IF($C113=1,'IN_Definition Index'!$I$19*NR_Reihen_Veränderungsraten!F10,) -> 0.1787634859 | G113: =IF($C113=1,'IN_Definition Index'!$I$19*NR_Reihen_Veränderungsraten!G10,) -> 0.2028505929 | H113: =IF($C113=1,'IN_Definition Index'!$I$19*NR_Reihen_Veränderungsraten!H10,) -> 0.2153887378 | I113: =IF($C113=1,'IN_Definition Index'!$I$19*NR_Reihen_Veränderungsraten!I10,) -> 0.2128456181 | J113: =IF($C113=1,'IN_Definition Index'!$I$19*NR_Reihen_Veränderungsraten!J10,) -> 0.223724977 | K113: =IF($C113=1,'IN_Definition Index'!$I$19*NR_Reihen_Veränderungsraten!K10,) -> 0.183893298 | L113: =IF($C113=1,'IN_Definition Index'!$I$19*NR_Reihen_Veränderungsraten!L10,) -> 0.1948604297 | M113: =IF($C113=1,'IN_Definition Index'!$I$19*NR_Reihen_Veränderungsraten!M10,) -> 0.2062957037 | N113: =IF($C113=1,'IN_Definition Index'!$I$19*NR_Reihen_Veränderungsraten!N10,) -> 0.1994316821 | O113: =IF($C113=1,'IN_Definition Index'!$I$19*NR_Reihen_Veränderungsraten!O10,) -> 0.1884366376 | P113: =IF($C113=1,'IN_Definition Index'!$I$19*NR_Reihen_Veränderungsraten!P10,) -> 0.2003945331 | Q113: =IF($C113=1,'IN_Definition Index'!$I$19*NR_Reihen_Veränderungsraten!Q10,) -> 0.2042308102 | R113: =IF($C113=1,'IN_Definition Index'!$I$19*NR_Reihen_Veränderungsraten!R10,) -> 0.2136298231 | S113: =IF($C113=1,'IN_Definition Index'!$I$19*NR_Reihen_Veränderungsraten!S10,) -> 0.2345575253 | T113: =IF($C113=1,'IN_Definition Index'!$I$19*NR_Reihen_Veränderungsraten!T10,) -> 0.2018957988 | U113: =IF($C113=1,'IN_Definition Index'!$I$19*NR_Reihen_Veränderungsraten!U10,) -> 0.1942737991 | V113: =IF($C113=1,'IN_Definition Index'!$I$19*NR_Reihen_Veränderungsraten!V10,) -> 0.2016248396 | W113: =IF($C113=1,'IN_Definition Index'!$I$19*NR_Reihen_Veränderungsraten!W10,) -> 0.2273456074 | X113: =IF($C113=1,'IN_Definition Index'!$I$19*NR_Reihen_Veränderungsraten!X10,) -> 0.2057816872 | Y113: =IF($C113=1,'IN_Definition Index'!$I$19*NR_Reihen_Veränderungsraten!Y10,) -> 0.2130186376 | Z113: =IF($C113=1,'IN_Definition Index'!$I$19*NR_Reihen_Veränderungsraten!Z10,) -> 0.206248259 | AA113: =IF($C113=1,'IN_Definition Index'!$I$19*NR_Reihen_Veränderungsraten!AA10,) -> 0.1972595911 | AB113: =IF($C113=1,'IN_Definition Index'!$I$19*NR_Reihen_Veränderungsraten!AB10,) -> 0.2037669103 | AC113: =IF($C113=1,'IN_Definition Index'!$I$19*NR_Reihen_Veränderungsraten!AC10,) -> 0.2013441462 | AD113: =IF($C113=1,'IN_Definition Index'!$I$19*NR_Reihen_Veränderungsraten!AD10,) -> 0.2110911033 | AE113: =IF($C113=1,'IN_Definition Index'!$I$19*NR_Reihen_Veränderungsraten!AE10,) ->  | AF113: =IF($C113=1,'IN_Definition Index'!$I$19*NR_Reihen_Veränderungsraten!AF10,) -> 
A114: M69-01 | B114: Unternehmensnahe Beratungsleistungen | C114: ='IN_Definition Index'!I14 -> 1 | D114: =IF($C114=1,'IN_Definition Index'!$I$19*NR_Reihen_Veränderungsraten!D11,) -> 0.2115304096 | E114: =IF($C114=1,'IN_Definition Index'!$I$19*NR_Reihen_Veränderungsraten!E11,) -> 0.2179692664 | F114: =IF($C114=1,'IN_Definition Index'!$I$19*NR_Reihen_Veränderungsraten!F11,) -> 0.2000096224 | G114: =IF($C114=1,'IN_Definition Index'!$I$19*NR_Reihen_Veränderungsraten!G11,) -> 0.2022834397 | H114: =IF($C114=1,'IN_Definition Index'!$I$19*NR_Reihen_Veränderungsraten!H11,) -> 0.1988673938 | I114: =IF($C114=1,'IN_Definition Index'!$I$19*NR_Reihen_Veränderungsraten!I11,) -> 0.1880657351 | J114: =IF($C114=1,'IN_Definition Index'!$I$19*NR_Reihen_Veränderungsraten!J11,) -> 0.2029118925 | K114: =IF($C114=1,'IN_Definition Index'!$I$19*NR_Reihen_Veränderungsraten!K11,) -> 0.2015497216 | L114: =IF($C114=1,'IN_Definition Index'!$I$19*NR_Reihen_Veränderungsraten!L11,) -> 0.1926018009 | M114: =IF($C114=1,'IN_Definition Index'!$I$19*NR_Reihen_Veränderungsraten!M11,) -> 0.2083860443 | N114: =IF($C114=1,'IN_Definition Index'!$I$19*NR_Reihen_Veränderungsraten!N11,) -> 0.1993750192 | O114: =IF($C114=1,'IN_Definition Index'!$I$19*NR_Reihen_Veränderungsraten!O11,) -> 0.1956440851 | P114: =IF($C114=1,'IN_Definition Index'!$I$19*NR_Reihen_Veränderungsraten!P11,) -> 0.1860240137 | Q114: =IF($C114=1,'IN_Definition Index'!$I$19*NR_Reihen_Veränderungsraten!Q11,) -> 0.1985242621 | R114: =IF($C114=1,'IN_Definition Index'!$I$19*NR_Reihen_Veränderungsraten!R11,) -> 0.2007874395 | S114: =IF($C114=1,'IN_Definition Index'!$I$19*NR_Reihen_Veränderungsraten!S11,) -> 0.1988876185 | T114: =IF($C114=1,'IN_Definition Index'!$I$19*NR_Reihen_Veränderungsraten!T11,) -> 0.1972745816 | U114: =IF($C114=1,'IN_Definition Index'!$I$19*NR_Reihen_Veränderungsraten!U11,) -> 0.1700603768 | V114: =IF($C114=1,'IN_Definition Index'!$I$19*NR_Reihen_Veränderungsraten!V11,) -> 0.1992295066 | W114: =IF($C114=1,'IN_Definition Index'!$I$19*NR_Reihen_Veränderungsraten!W11,) -> 0.1972374439 | X114: =IF($C114=1,'IN_Definition Index'!$I$19*NR_Reihen_Veränderungsraten!X11,) -> 0.2013078087 | Y114: =IF($C114=1,'IN_Definition Index'!$I$19*NR_Reihen_Veränderungsraten!Y11,) -> 0.1927975343 | Z114: =IF($C114=1,'IN_Definition Index'!$I$19*NR_Reihen_Veränderungsraten!Z11,) -> 0.1953914769 | AA114: =IF($C114=1,'IN_Definition Index'!$I$19*NR_Reihen_Veränderungsraten!AA11,) -> 0.200123553 | AB114: =IF($C114=1,'IN_Definition Index'!$I$19*NR_Reihen_Veränderungsraten!AB11,) -> 0.1977586592 | AC114: =IF($C114=1,'IN_Definition Index'!$I$19*NR_Reihen_Veränderungsraten!AC11,) -> 0.2151278032 | AD114: =IF($C114=1,'IN_Definition Index'!$I$19*NR_Reihen_Veränderungsraten!AD11,) -> 0.1965024956 | AE114: =IF($C114=1,'IN_Definition Index'!$I$19*NR_Reihen_Veränderungsraten!AE11,) ->  | AF114: =IF($C114=1,'IN_Definition Index'!$I$19*NR_Reihen_Veränderungsraten!AF11,) -> 
A115: M73 | B115: Werbung und Marktforschung | C115: ='IN_Definition Index'!I15 -> 1 | D115: =IF($C115=1,'IN_Definition Index'!$I$19*NR_Reihen_Veränderungsraten!D12,) -> 0.2035923707 | E115: =IF($C115=1,'IN_Definition Index'!$I$19*NR_Reihen_Veränderungsraten!E12,) -> 0.2195883113 | F115: =IF($C115=1,'IN_Definition Index'!$I$19*NR_Reihen_Veränderungsraten!F12,) -> 0.2052046451 | G115: =IF($C115=1,'IN_Definition Index'!$I$19*NR_Reihen_Veränderungsraten!G12,) -> 0.2017103012 | H115: =IF($C115=1,'IN_Definition Index'!$I$19*NR_Reihen_Veränderungsraten!H12,) -> 0.1863863752 | I115: =IF($C115=1,'IN_Definition Index'!$I$19*NR_Reihen_Veränderungsraten!I12,) -> 0.2028000426 | J115: =IF($C115=1,'IN_Definition Index'!$I$19*NR_Reihen_Veränderungsraten!J12,) -> 0.1788290124 | K115: =IF($C115=1,'IN_Definition Index'!$I$19*NR_Reihen_Veränderungsraten!K12,) -> 0.1984617723 | L115: =IF($C115=1,'IN_Definition Index'!$I$19*NR_Reihen_Veränderungsraten!L12,) -> 0.1949463073 | M115: =IF($C115=1,'IN_Definition Index'!$I$19*NR_Reihen_Veränderungsraten!M12,) -> 0.1706615835 | N115: =IF($C115=1,'IN_Definition Index'!$I$19*NR_Reihen_Veränderungsraten!N12,) -> 0.1710131273 | O115: =IF($C115=1,'IN_Definition Index'!$I$19*NR_Reihen_Veränderungsraten!O12,) -> 0.2034297416 | P115: =IF($C115=1,'IN_Definition Index'!$I$19*NR_Reihen_Veränderungsraten!P12,) -> 0.2023024681 | Q115: =IF($C115=1,'IN_Definition Index'!$I$19*NR_Reihen_Veränderungsraten!Q12,) -> 0.1867163671 | R115: =IF($C115=1,'IN_Definition Index'!$I$19*NR_Reihen_Veränderungsraten!R12,) -> 0.2143704804 | S115: =IF($C115=1,'IN_Definition Index'!$I$19*NR_Reihen_Veränderungsraten!S12,) -> 0.2003471542 | T115: =IF($C115=1,'IN_Definition Index'!$I$19*NR_Reihen_Veränderungsraten!T12,) -> 0.2006122543 | U115: =IF($C115=1,'IN_Definition Index'!$I$19*NR_Reihen_Veränderungsraten!U12,) -> 0.1697664779 | V115: =IF($C115=1,'IN_Definition Index'!$I$19*NR_Reihen_Veränderungsraten!V12,) -> 0.2041881081 | W115: =IF($C115=1,'IN_Definition Index'!$I$19*NR_Reihen_Veränderungsraten!W12,) -> 0.2012814359 | X115: =IF($C115=1,'IN_Definition Index'!$I$19*NR_Reihen_Veränderungsraten!X12,) -> 0.1963849603 | Y115: =IF($C115=1,'IN_Definition Index'!$I$19*NR_Reihen_Veränderungsraten!Y12,) -> 0.219603049 | Z115: =IF($C115=1,'IN_Definition Index'!$I$19*NR_Reihen_Veränderungsraten!Z12,) -> 0.1947596884 | AA115: =IF($C115=1,'IN_Definition Index'!$I$19*NR_Reihen_Veränderungsraten!AA12,) -> 0.1972905557 | AB115: =IF($C115=1,'IN_Definition Index'!$I$19*NR_Reihen_Veränderungsraten!AB12,) -> 0.1963062371 | AC115: =IF($C115=1,'IN_Definition Index'!$I$19*NR_Reihen_Veränderungsraten!AC12,) -> 0.1943404653 | AD115: =IF($C115=1,'IN_Definition Index'!$I$19*NR_Reihen_Veränderungsraten!AD12,) -> 0.1858800418 | AE115: =IF($C115=1,'IN_Definition Index'!$I$19*NR_Reihen_Veränderungsraten!AE12,) ->  | AF115: =IF($C115=1,'IN_Definition Index'!$I$19*NR_Reihen_Veränderungsraten!AF12,) -> 
A116: M74-01 | B116: Freiberufl.,wiss.,techn.DL a.n.g., Veterinärwesen | C116: ='IN_Definition Index'!I16 -> 1 | D116: =IF($C116=1,'IN_Definition Index'!$I$19*NR_Reihen_Veränderungsraten!D13,) -> 0.2321953071 | E116: =IF($C116=1,'IN_Definition Index'!$I$19*NR_Reihen_Veränderungsraten!E13,) -> 0.1975797651 | F116: =IF($C116=1,'IN_Definition Index'!$I$19*NR_Reihen_Veränderungsraten!F13,) -> 0.1898572293 | G116: =IF($C116=1,'IN_Definition Index'!$I$19*NR_Reihen_Veränderungsraten!G13,) -> 0.2051363217 | H116: =IF($C116=1,'IN_Definition Index'!$I$19*NR_Reihen_Veränderungsraten!H13,) -> 0.1907035517 | I116: =IF($C116=1,'IN_Definition Index'!$I$19*NR_Reihen_Veränderungsraten!I13,) -> 0.2121797551 | J116: =IF($C116=1,'IN_Definition Index'!$I$19*NR_Reihen_Veränderungsraten!J13,) -> 0.1873063064 | K116: =IF($C116=1,'IN_Definition Index'!$I$19*NR_Reihen_Veränderungsraten!K13,) -> 0.1830070211 | L116: =IF($C116=1,'IN_Definition Index'!$I$19*NR_Reihen_Veränderungsraten!L13,) -> 0.2059951362 | M116: =IF($C116=1,'IN_Definition Index'!$I$19*NR_Reihen_Veränderungsraten!M13,) -> 0.1909377167 | N116: =IF($C116=1,'IN_Definition Index'!$I$19*NR_Reihen_Veränderungsraten!N13,) -> 0.1992666377 | O116: =IF($C116=1,'IN_Definition Index'!$I$19*NR_Reihen_Veränderungsraten!O13,) -> 0.1757337499 | P116: =IF($C116=1,'IN_Definition Index'!$I$19*NR_Reihen_Veränderungsraten!P13,) -> 0.1845562827 | Q116: =IF($C116=1,'IN_Definition Index'!$I$19*NR_Reihen_Veränderungsraten!Q13,) -> 0.2002389411 | R116: =IF($C116=1,'IN_Definition Index'!$I$19*NR_Reihen_Veränderungsraten!R13,) -> 0.2015730011 | S116: =IF($C116=1,'IN_Definition Index'!$I$19*NR_Reihen_Veränderungsraten!S13,) -> 0.1992048728 | T116: =IF($C116=1,'IN_Definition Index'!$I$19*NR_Reihen_Veränderungsraten!T13,) -> 0.190412388 | U116: =IF($C116=1,'IN_Definition Index'!$I$19*NR_Reihen_Veränderungsraten!U13,) -> 0.1822105623 | V116: =IF($C116=1,'IN_Definition Index'!$I$19*NR_Reihen_Veränderungsraten!V13,) -> 0.1923668818 | W116: =IF($C116=1,'IN_Definition Index'!$I$19*NR_Reihen_Veränderungsraten!W13,) -> 0.1959513489 | X116: =IF($C116=1,'IN_Definition Index'!$I$19*NR_Reihen_Veränderungsraten!X13,) -> 0.2111776468 | Y116: =IF($C116=1,'IN_Definition Index'!$I$19*NR_Reihen_Veränderungsraten!Y13,) -> 0.1997161457 | Z116: =IF($C116=1,'IN_Definition Index'!$I$19*NR_Reihen_Veränderungsraten!Z13,) -> 0.1900528386 | AA116: =IF($C116=1,'IN_Definition Index'!$I$19*NR_Reihen_Veränderungsraten!AA13,) -> 0.2038521439 | AB116: =IF($C116=1,'IN_Definition Index'!$I$19*NR_Reihen_Veränderungsraten!AB13,) -> 0.2461863974 | AC116: =IF($C116=1,'IN_Definition Index'!$I$19*NR_Reihen_Veränderungsraten!AC13,) -> 0.167219928 | AD116: =IF($C116=1,'IN_Definition Index'!$I$19*NR_Reihen_Veränderungsraten!AD13,) -> 0.2126656965 | AE116: =IF($C116=1,'IN_Definition Index'!$I$19*NR_Reihen_Veränderungsraten!AE13,) ->  | AF116: =IF($C116=1,'IN_Definition Index'!$I$19*NR_Reihen_Veränderungsraten!AF13,) -> 
A117: L | B117: Grundstücks- und Wohnungswesen | C117: ='IN_Definition Index'!I17 -> 1 | D117: =IF($C117=1,'IN_Definition Index'!$I$19*NR_Reihen_Veränderungsraten!D14,) -> 0.2031715616 | E117: =IF($C117=1,'IN_Definition Index'!$I$19*NR_Reihen_Veränderungsraten!E14,) -> 0.2026972591 | F117: =IF($C117=1,'IN_Definition Index'!$I$19*NR_Reihen_Veränderungsraten!F14,) -> 0.2038377093 | G117: =IF($C117=1,'IN_Definition Index'!$I$19*NR_Reihen_Veränderungsraten!G14,) -> 0.2112918308 | H117: =IF($C117=1,'IN_Definition Index'!$I$19*NR_Reihen_Veränderungsraten!H14,) -> 0.210824088 | I117: =IF($C117=1,'IN_Definition Index'!$I$19*NR_Reihen_Veränderungsraten!I14,) -> 0.1998013896 | J117: =IF($C117=1,'IN_Definition Index'!$I$19*NR_Reihen_Veränderungsraten!J14,) -> 0.2005629504 | K117: =IF($C117=1,'IN_Definition Index'!$I$19*NR_Reihen_Veränderungsraten!K14,) -> 0.1926837116 | L117: =IF($C117=1,'IN_Definition Index'!$I$19*NR_Reihen_Veränderungsraten!L14,) -> 0.2020371719 | M117: =IF($C117=1,'IN_Definition Index'!$I$19*NR_Reihen_Veränderungsraten!M14,) -> 0.2036255838 | N117: =IF($C117=1,'IN_Definition Index'!$I$19*NR_Reihen_Veränderungsraten!N14,) -> 0.201737606 | O117: =IF($C117=1,'IN_Definition Index'!$I$19*NR_Reihen_Veränderungsraten!O14,) -> 0.2001931131 | P117: =IF($C117=1,'IN_Definition Index'!$I$19*NR_Reihen_Veränderungsraten!P14,) -> 0.1973465279 | Q117: =IF($C117=1,'IN_Definition Index'!$I$19*NR_Reihen_Veränderungsraten!Q14,) -> 0.2009301048 | R117: =IF($C117=1,'IN_Definition Index'!$I$19*NR_Reihen_Veränderungsraten!R14,) -> 0.2013507366 | S117: =IF($C117=1,'IN_Definition Index'!$I$19*NR_Reihen_Veränderungsraten!S14,) -> 0.2022605046 | T117: =IF($C117=1,'IN_Definition Index'!$I$19*NR_Reihen_Veränderungsraten!T14,) -> 0.1998162491 | U117: =IF($C117=1,'IN_Definition Index'!$I$19*NR_Reihen_Veränderungsraten!U14,) -> 0.2012768915 | V117: =IF($C117=1,'IN_Definition Index'!$I$19*NR_Reihen_Veränderungsraten!V14,) -> 0.194927663 | W117: =IF($C117=1,'IN_Definition Index'!$I$19*NR_Reihen_Veränderungsraten!W14,) -> 0.2055019747 | X117: =IF($C117=1,'IN_Definition Index'!$I$19*NR_Reihen_Veränderungsraten!X14,) -> 0.1918501927 | Y117: =IF($C117=1,'IN_Definition Index'!$I$19*NR_Reihen_Veränderungsraten!Y14,) -> 0.2021305986 | Z117: =IF($C117=1,'IN_Definition Index'!$I$19*NR_Reihen_Veränderungsraten!Z14,) -> 0.1979698381 | AA117: =IF($C117=1,'IN_Definition Index'!$I$19*NR_Reihen_Veränderungsraten!AA14,) -> 0.1998671413 | AB117: =IF($C117=1,'IN_Definition Index'!$I$19*NR_Reihen_Veränderungsraten!AB14,) -> 0.1982068834 | AC117: =IF($C117=1,'IN_Definition Index'!$I$19*NR_Reihen_Veränderungsraten!AC14,) -> 0.1967075624 | AD117: =IF($C117=1,'IN_Definition Index'!$I$19*NR_Reihen_Veränderungsraten!AD14,) -> 0.1976842773 | AE117: =IF($C117=1,'IN_Definition Index'!$I$19*NR_Reihen_Veränderungsraten!AE14,) -> 0.1989534446 | AF117: =IF($C117=1,'IN_Definition Index'!$I$19*NR_Reihen_Veränderungsraten!AF14,) -> 
B118: Summe | D118: =SUM(D107:D117) -> 1.049694891 | E118: =SUM(E107:E117) -> 1.047782298 | F118: =SUM(F107:F117) -> 0.9776726919 | G118: =SUM(G107:G117) -> 1.023272486 | H118: =SUM(H107:H117) -> 1.002170146 | I118: =SUM(I107:I117) -> 1.015692541 | J118: =SUM(J107:J117) -> 0.9933351387 | K118: =SUM(K107:K117) -> 0.9595955247 | L118: =SUM(L107:L117) -> 0.990440846 | M118: =SUM(M107:M117) -> 0.9799066319 | N118: =SUM(N107:N117) -> 0.9708240724 | O118: =SUM(O107:O117) -> 0.9634373273 | P118: =SUM(P107:P117) -> 0.9706238255 | Q118: =SUM(Q107:Q117) -> 0.9906404853 | R118: =SUM(R107:R117) -> 1.031711481 | S118: =SUM(S107:S117) -> 1.035257675 | T118: =SUM(T107:T117) -> 0.9900112719 | U118: =SUM(U107:U117) -> 0.9175881076 | V118: =SUM(V107:V117) -> 0.9923369991 | W118: =SUM(W107:W117) -> 1.027317811 | X118: =SUM(X107:X117) -> 1.006502296 | Y118: =SUM(Y107:Y117) -> 1.027265965 | Z118: =SUM(Z107:Z117) -> 0.9844221011 | AA118: =SUM(AA107:AA117) -> 0.9983929851 | AB118: =SUM(AB107:AB117) -> 1.042225087 | AC118: =SUM(AC107:AC117) -> 0.9747399051 | AD118: 1.003823615
A120: ∆ Arbeitsproduktivität
A122: Annahme
A124: Nr. (WZ 2008) | B124: Branche | C124: Verwendung | D124: 1992 | E124: =D124+1 -> 1993 | F124: =E124+1 -> 1994 | G124: =F124+1 -> 1995 | H124: =G124+1 -> 1996 | I124: =H124+1 -> 1997 | J124: =I124+1 -> 1998 | K124: =J124+1 -> 1999 | L124: =K124+1 -> 2000 | M124: =L124+1 -> 2001 | N124: =M124+1 -> 2002 | O124: =N124+1 -> 2003 | P124: =O124+1 -> 2004 | Q124: =P124+1 -> 2005 | R124: =Q124+1 -> 2006 | S124: =R124+1 -> 2007 | T124: =S124+1 -> 2008 | U124: =T124+1 -> 2009 | V124: =U124+1 -> 2010 | W124: =V124+1 -> 2011 | X124: =W124+1 -> 2012 | Y124: =X124+1 -> 2013 | Z124: =Y124+1 -> 2014 | AA124: =Z124+1 -> 2015 | AB124: =AA124+1 -> 2016 | AC124: =AB124+1 -> 2017 | AD124: =AC124+1 -> 2018 | AE124: =AD124+1 -> 2019 | AF124: =AE124+1 -> 2020
A125: C33 | B125: Reparatur und Installation von Maschinen und Ausrüstungen | C125: ='IN_Definition Index'!E7 -> 0 | D125: =IF($C125=1,'IN_Definition Index'!$E$19*NR_Reihen_Veränderungsraten!D19,) -> 0 | E125: =IF($C125=1,'IN_Definition Index'!$E$19*NR_Reihen_Veränderungsraten!E19,) -> 0 | F125: =IF($C125=1,'IN_Definition Index'!$E$19*NR_Reihen_Veränderungsraten!F19,) -> 0 | G125: =IF($C125=1,'IN_Definition Index'!$E$19*NR_Reihen_Veränderungsraten!G19,) -> 0 | H125: =IF($C125=1,'IN_Definition Index'!$E$19*NR_Reihen_Veränderungsraten!H19,) -> 0 | I125: =IF($C125=1,'IN_Definition Index'!$E$19*NR_Reihen_Veränderungsraten!I19,) -> 0 | J125: =IF($C125=1,'IN_Definition Index'!$E$19*NR_Reihen_Veränderungsraten!J19,) -> 0 | K125: =IF($C125=1,'IN_Definition Index'!$E$19*NR_Reihen_Veränderungsraten!K19,) -> 0 | L125: =IF($C125=1,'IN_Definition Index'!$E$19*NR_Reihen_Veränderungsraten!L19,) -> 0 | M125: =IF($C125=1,'IN_Definition Index'!$E$19*NR_Reihen_Veränderungsraten!M19,) -> 0 | N125: =IF($C125=1,'IN_Definition Index'!$E$19*NR_Reihen_Veränderungsraten!N19,) -> 0 | O125: =IF($C125=1,'IN_Definition Index'!$E$19*NR_Reihen_Veränderungsraten!O19,) -> 0 | P125: =IF($C125=1,'IN_Definition Index'!$E$19*NR_Reihen_Veränderungsraten!P19,) -> 0 | Q125: =IF($C125=1,'IN_Definition Index'!$E$19*NR_Reihen_Veränderungsraten!Q19,) -> 0 | R125: =IF($C125=1,'IN_Definition Index'!$E$19*NR_Reihen_Veränderungsraten!R19,) -> 0 | S125: =IF($C125=1,'IN_Definition Index'!$E$19*NR_Reihen_Veränderungsraten!S19,) -> 0 | T125: =IF($C125=1,'IN_Definition Index'!$E$19*NR_Reihen_Veränderungsraten!T19,) -> 0 | U125: =IF($C125=1,'IN_Definition Index'!$E$19*NR_Reihen_Veränderungsraten!U19,) -> 0 | V125: =IF($C125=1,'IN_Definition Index'!$E$19*NR_Reihen_Veränderungsraten!V19,) -> 0 | W125: =IF($C125=1,'IN_Definition Index'!$E$19*NR_Reihen_Veränderungsraten!W19,) -> 0 | X125: =IF($C125=1,'IN_Definition Index'!$E$19*NR_Reihen_Veränderungsraten!X19,) -> 0 | Y125: =IF($C125=1,'IN_Definition Index'!$E$19*NR_Reihen_Veränderungsraten!Y19,) -> 0 | Z125: =IF($C125=1,'IN_Definition Index'!$E$19*NR_Reihen_Veränderungsraten!Z19,) -> 0 | AA125: =IF($C125=1,'IN_Definition Index'!$E$19*NR_Reihen_Veränderungsraten!AA19,) -> 0 | AB125: =IF($C125=1,'IN_Definition Index'!$E$19*NR_Reihen_Veränderungsraten!AB19,) -> 0 | AC125: =IF($C125=1,'IN_Definition Index'!$E$19*NR_Reihen_Veränderungsraten!AC19,) -> 0 | AD125: =IF($C125=1,'IN_Definition Index'!$E$19*NR_Reihen_Veränderungsraten!AD19,) -> 0 | AE125: =IF($C125=1,'IN_Definition Index'!$E$19*NR_Reihen_Veränderungsraten!AE19,) -> 0 | AF125: =IF($C125=1,'IN_Definition Index'!$E$19*NR_Reihen_Veränderungsraten!AF19,) -> 0
A126: G45 | B126: Handel mit Kraftfahrzeugen; Instandhaltung und Reparatur von Kraftfahrzeugen | C126: ='IN_Definition Index'!E8 -> 0 | D126: =IF($C126=1,'IN_Definition Index'!$E$19*NR_Reihen_Veränderungsraten!D20,) -> 0 | E126: =IF($C126=1,'IN_Definition Index'!$E$19*NR_Reihen_Veränderungsraten!E20,) -> 0 | F126: =IF($C126=1,'IN_Definition Index'!$E$19*NR_Reihen_Veränderungsraten!F20,) -> 0 | G126: =IF($C126=1,'IN_Definition Index'!$E$19*NR_Reihen_Veränderungsraten!G20,) -> 0 | H126: =IF($C126=1,'IN_Definition Index'!$E$19*NR_Reihen_Veränderungsraten!H20,) -> 0 | I126: =IF($C126=1,'IN_Definition Index'!$E$19*NR_Reihen_Veränderungsraten!I20,) -> 0 | J126: =IF($C126=1,'IN_Definition Index'!$E$19*NR_Reihen_Veränderungsraten!J20,) -> 0 | K126: =IF($C126=1,'IN_Definition Index'!$E$19*NR_Reihen_Veränderungsraten!K20,) -> 0 | L126: =IF($C126=1,'IN_Definition Index'!$E$19*NR_Reihen_Veränderungsraten!L20,) -> 0 | M126: =IF($C126=1,'IN_Definition Index'!$E$19*NR_Reihen_Veränderungsraten!M20,) -> 0 | N126: =IF($C126=1,'IN_Definition Index'!$E$19*NR_Reihen_Veränderungsraten!N20,) -> 0 | O126: =IF($C126=1,'IN_Definition Index'!$E$19*NR_Reihen_Veränderungsraten!O20,) -> 0 | P126: =IF($C126=1,'IN_Definition Index'!$E$19*NR_Reihen_Veränderungsraten!P20,) -> 0 | Q126: =IF($C126=1,'IN_Definition Index'!$E$19*NR_Reihen_Veränderungsraten!Q20,) -> 0 | R126: =IF($C126=1,'IN_Definition Index'!$E$19*NR_Reihen_Veränderungsraten!R20,) -> 0 | S126: =IF($C126=1,'IN_Definition Index'!$E$19*NR_Reihen_Veränderungsraten!S20,) -> 0 | T126: =IF($C126=1,'IN_Definition Index'!$E$19*NR_Reihen_Veränderungsraten!T20,) -> 0 | U126: =IF($C126=1,'IN_Definition Index'!$E$19*NR_Reihen_Veränderungsraten!U20,) -> 0 | V126: =IF($C126=1,'IN_Definition Index'!$E$19*NR_Reihen_Veränderungsraten!V20,) -> 0 | W126: =IF($C126=1,'IN_Definition Index'!$E$19*NR_Reihen_Veränderungsraten!W20,) -> 0 | X126: =IF($C126=1,'IN_Definition Index'!$E$19*NR_Reihen_Veränderungsraten!X20,) -> 0 | Y126: =IF($C126=1,'IN_Definition Index'!$E$19*NR_Reihen_Veränderungsraten!Y20,) -> 0 | Z126: =IF($C126=1,'IN_Definition Index'!$E$19*NR_Reihen_Veränderungsraten!Z20,) -> 0 | AA126: =IF($C126=1,'IN_Definition Index'!$E$19*NR_Reihen_Veränderungsraten!AA20,) -> 0 | AB126: =IF($C126=1,'IN_Definition Index'!$E$19*NR_Reihen_Veränderungsraten!AB20,) -> 0 | AC126: =IF($C126=1,'IN_Definition Index'!$E$19*NR_Reihen_Veränderungsraten!AC20,) -> 0 | AD126: =IF($C126=1,'IN_Definition Index'!$E$19*NR_Reihen_Veränderungsraten!AD20,) -> 0 | AE126: =IF($C126=1,'IN_Definition Index'!$E$19*NR_Reihen_Veränderungsraten!AE20,) -> 0 | AF126: =IF($C126=1,'IN_Definition Index'!$E$19*NR_Reihen_Veränderungsraten!AF20,) -> 0
A127: G47 | B127: Einzelhandel (ohne Handel mit Kraftfahrzeugen) | C127: ='IN_Definition Index'!E9 -> 1 | D127: =IF($C127=1,'IN_Definition Index'!$E$19*NR_Reihen_Veränderungsraten!D21,) -> 1.019531407 | E127: =IF($C127=1,'IN_Definition Index'!$E$19*NR_Reihen_Veränderungsraten!E21,) -> 0.9540156029 | F127: =IF($C127=1,'IN_Definition Index'!$E$19*NR_Reihen_Veränderungsraten!F21,) -> 1.01608853 | G127: =IF($C127=1,'IN_Definition Index'!$E$19*NR_Reihen_Veränderungsraten!G21,) -> 1.015231871 | H127: =IF($C127=1,'IN_Definition Index'!$E$19*NR_Reihen_Veränderungsraten!H21,) -> 0.9816846596 | I127: =IF($C127=1,'IN_Definition Index'!$E$19*NR_Reihen_Veränderungsraten!I21,) -> 0.9890451697 | J127: =IF($C127=1,'IN_Definition Index'!$E$19*NR_Reihen_Veränderungsraten!J21,) -> 1.000984433 | K127: =IF($C127=1,'IN_Definition Index'!$E$19*NR_Reihen_Veränderungsraten!K21,) -> 1.005371134 | L127: =IF($C127=1,'IN_Definition Index'!$E$19*NR_Reihen_Veränderungsraten!L21,) -> 0.9919841637 | M127: =IF($C127=1,'IN_Definition Index'!$E$19*NR_Reihen_Veränderungsraten!M21,) -> 1.025336375 | N127: =IF($C127=1,'IN_Definition Index'!$E$19*NR_Reihen_Veränderungsraten!N21,) -> 0.9630868503 | O127: =IF($C127=1,'IN_Definition Index'!$E$19*NR_Reihen_Veränderungsraten!O21,) -> 1.01652984 | P127: =IF($C127=1,'IN_Definition Index'!$E$19*NR_Reihen_Veränderungsraten!P21,) -> 0.9823257757 | Q127: =IF($C127=1,'IN_Definition Index'!$E$19*NR_Reihen_Veränderungsraten!Q21,) -> 0.9820723031 | R127: =IF($C127=1,'IN_Definition Index'!$E$19*NR_Reihen_Veränderungsraten!R21,) -> 1.060737419 | S127: =IF($C127=1,'IN_Definition Index'!$E$19*NR_Reihen_Veränderungsraten!S21,) -> 0.9998888219 | T127: =IF($C127=1,'IN_Definition Index'!$E$19*NR_Reihen_Veränderungsraten!T21,) -> 0.9788247679 | U127: =IF($C127=1,'IN_Definition Index'!$E$19*NR_Reihen_Veränderungsraten!U21,) -> 1.011977927 | V127: =IF($C127=1,'IN_Definition Index'!$E$19*NR_Reihen_Veränderungsraten!V21,) -> 1.025428564 | W127: =IF($C127=1,'IN_Definition Index'!$E$19*NR_Reihen_Veränderungsraten!W21,) -> 0.9786495874 | X127: =IF($C127=1,'IN_Definition Index'!$E$19*NR_Reihen_Veränderungsraten!X21,) -> 1.000129057 | Y127: =IF($C127=1,'IN_Definition Index'!$E$19*NR_Reihen_Veränderungsraten!Y21,) -> 0.997337027 | Z127: =IF($C127=1,'IN_Definition Index'!$E$19*NR_Reihen_Veränderungsraten!Z21,) -> 1.026767057 | AA127: =IF($C127=1,'IN_Definition Index'!$E$19*NR_Reihen_Veränderungsraten!AA21,) -> 1.075002451 | AB127: =IF($C127=1,'IN_Definition Index'!$E$19*NR_Reihen_Veränderungsraten!AB21,) -> 1.028050403 | AC127: =IF($C127=1,'IN_Definition Index'!$E$19*NR_Reihen_Veränderungsraten!AC21,) -> 1.02751933 | AD127: =IF($C127=1,'IN_Definition Index'!$E$19*NR_Reihen_Veränderungsraten!AD21,) -> 0.9938571778 | AE127: =IF($C127=1,'IN_Definition Index'!$E$19*NR_Reihen_Veränderungsraten!AE21,) ->  | AF127: =IF($C127=1,'IN_Definition Index'!$E$19*NR_Reihen_Veränderungsraten!AF21,) -> 
A128: H49 | B128: Landverkehr und Transport in Rohrfernleitungen | C128: ='IN_Definition Index'!E10 -> 0 | D128: =IF($C128=1,'IN_Definition Index'!$E$19*NR_Reihen_Veränderungsraten!D22,) -> 0 | E128: =IF($C128=1,'IN_Definition Index'!$E$19*NR_Reihen_Veränderungsraten!E22,) -> 0 | F128: =IF($C128=1,'IN_Definition Index'!$E$19*NR_Reihen_Veränderungsraten!F22,) -> 0 | G128: =IF($C128=1,'IN_Definition Index'!$E$19*NR_Reihen_Veränderungsraten!G22,) -> 0 | H128: =IF($C128=1,'IN_Definition Index'!$E$19*NR_Reihen_Veränderungsraten!H22,) -> 0 | I128: =IF($C128=1,'IN_Definition Index'!$E$19*NR_Reihen_Veränderungsraten!I22,) -> 0 | J128: =IF($C128=1,'IN_Definition Index'!$E$19*NR_Reihen_Veränderungsraten!J22,) -> 0 | K128: =IF($C128=1,'IN_Definition Index'!$E$19*NR_Reihen_Veränderungsraten!K22,) -> 0 | L128: =IF($C128=1,'IN_Definition Index'!$E$19*NR_Reihen_Veränderungsraten!L22,) -> 0 | M128: =IF($C128=1,'IN_Definition Index'!$E$19*NR_Reihen_Veränderungsraten!M22,) -> 0 | N128: =IF($C128=1,'IN_Definition Index'!$E$19*NR_Reihen_Veränderungsraten!N22,) -> 0 | O128: =IF($C128=1,'IN_Definition Index'!$E$19*NR_Reihen_Veränderungsraten!O22,) -> 0 | P128: =IF($C128=1,'IN_Definition Index'!$E$19*NR_Reihen_Veränderungsraten!P22,) -> 0 | Q128: =IF($C128=1,'IN_Definition Index'!$E$19*NR_Reihen_Veränderungsraten!Q22,) -> 0 | R128: =IF($C128=1,'IN_Definition Index'!$E$19*NR_Reihen_Veränderungsraten!R22,) -> 0 | S128: =IF($C128=1,'IN_Definition Index'!$E$19*NR_Reihen_Veränderungsraten!S22,) -> 0 | T128: =IF($C128=1,'IN_Definition Index'!$E$19*NR_Reihen_Veränderungsraten!T22,) -> 0 | U128: =IF($C128=1,'IN_Definition Index'!$E$19*NR_Reihen_Veränderungsraten!U22,) -> 0 | V128: =IF($C128=1,'IN_Definition Index'!$E$19*NR_Reihen_Veränderungsraten!V22,) -> 0 | W128: =IF($C128=1,'IN_Definition Index'!$E$19*NR_Reihen_Veränderungsraten!W22,) -> 0 | X128: =IF($C128=1,'IN_Definition Index'!$E$19*NR_Reihen_Veränderungsraten!X22,) -> 0 | Y128: =IF($C128=1,'IN_Definition Index'!$E$19*NR_Reihen_Veränderungsraten!Y22,) -> 0 | Z128: =IF($C128=1,'IN_Definition Index'!$E$19*NR_Reihen_Veränderungsraten!Z22,) -> 0 | AA128: =IF($C128=1,'IN_Definition Index'!$E$19*NR_Reihen_Veränderungsraten!AA22,) -> 0 | AB128: =IF($C128=1,'IN_Definition Index'!$E$19*NR_Reihen_Veränderungsraten!AB22,) -> 0 | AC128: =IF($C128=1,'IN_Definition Index'!$E$19*NR_Reihen_Veränderungsraten!AC22,) -> 0 | AD128: =IF($C128=1,'IN_Definition Index'!$E$19*NR_Reihen_Veränderungsraten!AD22,) -> 0 | AE128: =IF($C128=1,'IN_Definition Index'!$E$19*NR_Reihen_Veränderungsraten!AE22,) -> 0 | AF128: =IF($C128=1,'IN_Definition Index'!$E$19*NR_Reihen_Veränderungsraten!AF22,) -> 0
A129: H52 | B129: Lagerei sowie Erbringung von sonstigen Dienstleistungen für den Verkehr | C129: ='IN_Definition Index'!E11 -> 0 | D129: =IF($C129=1,'IN_Definition Index'!$E$19*NR_Reihen_Veränderungsraten!D23,) -> 0 | E129: =IF($C129=1,'IN_Definition Index'!$E$19*NR_Reihen_Veränderungsraten!E23,) -> 0 | F129: =IF($C129=1,'IN_Definition Index'!$E$19*NR_Reihen_Veränderungsraten!F23,) -> 0 | G129: =IF($C129=1,'IN_Definition Index'!$E$19*NR_Reihen_Veränderungsraten!G23,) -> 0 | H129: =IF($C129=1,'IN_Definition Index'!$E$19*NR_Reihen_Veränderungsraten!H23,) -> 0 | I129: =IF($C129=1,'IN_Definition Index'!$E$19*NR_Reihen_Veränderungsraten!I23,) -> 0 | J129: =IF($C129=1,'IN_Definition Index'!$E$19*NR_Reihen_Veränderungsraten!J23,) -> 0 | K129: =IF($C129=1,'IN_Definition Index'!$E$19*NR_Reihen_Veränderungsraten!K23,) -> 0 | L129: =IF($C129=1,'IN_Definition Index'!$E$19*NR_Reihen_Veränderungsraten!L23,) -> 0 | M129: =IF($C129=1,'IN_Definition Index'!$E$19*NR_Reihen_Veränderungsraten!M23,) -> 0 | N129: =IF($C129=1,'IN_Definition Index'!$E$19*NR_Reihen_Veränderungsraten!N23,) -> 0 | O129: =IF($C129=1,'IN_Definition Index'!$E$19*NR_Reihen_Veränderungsraten!O23,) -> 0 | P129: =IF($C129=1,'IN_Definition Index'!$E$19*NR_Reihen_Veränderungsraten!P23,) -> 0 | Q129: =IF($C129=1,'IN_Definition Index'!$E$19*NR_Reihen_Veränderungsraten!Q23,) -> 0 | R129: =IF($C129=1,'IN_Definition Index'!$E$19*NR_Reihen_Veränderungsraten!R23,) -> 0 | S129: =IF($C129=1,'IN_Definition Index'!$E$19*NR_Reihen_Veränderungsraten!S23,) -> 0 | T129: =IF($C129=1,'IN_Definition Index'!$E$19*NR_Reihen_Veränderungsraten!T23,) -> 0 | U129: =IF($C129=1,'IN_Definition Index'!$E$19*NR_Reihen_Veränderungsraten!U23,) -> 0 | V129: =IF($C129=1,'IN_Definition Index'!$E$19*NR_Reihen_Veränderungsraten!V23,) -> 0 | W129: =IF($C129=1,'IN_Definition Index'!$E$19*NR_Reihen_Veränderungsraten!W23,) -> 0 | X129: =IF($C129=1,'IN_Definition Index'!$E$19*NR_Reihen_Veränderungsraten!X23,) -> 0 | Y129: =IF($C129=1,'IN_Definition Index'!$E$19*NR_Reihen_Veränderungsraten!Y23,) -> 0 | Z129: =IF($C129=1,'IN_Definition Index'!$E$19*NR_Reihen_Veränderungsraten!Z23,) -> 0 | AA129: =IF($C129=1,'IN_Definition Index'!$E$19*NR_Reihen_Veränderungsraten!AA23,) -> 0 | AB129: =IF($C129=1,'IN_Definition Index'!$E$19*NR_Reihen_Veränderungsraten!AB23,) -> 0 | AC129: =IF($C129=1,'IN_Definition Index'!$E$19*NR_Reihen_Veränderungsraten!AC23,) -> 0 | AD129: =IF($C129=1,'IN_Definition Index'!$E$19*NR_Reihen_Veränderungsraten!AD23,) -> 0 | AE129: =IF($C129=1,'IN_Definition Index'!$E$19*NR_Reihen_Veränderungsraten!AE23,) -> 0 | AF129: =IF($C129=1,'IN_Definition Index'!$E$19*NR_Reihen_Veränderungsraten!AF23,) -> 0
A130: J61 | B130: Telekommunikation | C130: ='IN_Definition Index'!E12 -> 0 | D130: =IF($C130=1,'IN_Definition Index'!$E$19*NR_Reihen_Veränderungsraten!D24,) -> 0 | E130: =IF($C130=1,'IN_Definition Index'!$E$19*NR_Reihen_Veränderungsraten!E24,) -> 0 | F130: =IF($C130=1,'IN_Definition Index'!$E$19*NR_Reihen_Veränderungsraten!F24,) -> 0 | G130: =IF($C130=1,'IN_Definition Index'!$E$19*NR_Reihen_Veränderungsraten!G24,) -> 0 | H130: =IF($C130=1,'IN_Definition Index'!$E$19*NR_Reihen_Veränderungsraten!H24,) -> 0 | I130: =IF($C130=1,'IN_Definition Index'!$E$19*NR_Reihen_Veränderungsraten!I24,) -> 0 | J130: =IF($C130=1,'IN_Definition Index'!$E$19*NR_Reihen_Veränderungsraten!J24,) -> 0 | K130: =IF($C130=1,'IN_Definition Index'!$E$19*NR_Reihen_Veränderungsraten!K24,) -> 0 | L130: =IF($C130=1,'IN_Definition Index'!$E$19*NR_Reihen_Veränderungsraten!L24,) -> 0 | M130: =IF($C130=1,'IN_Definition Index'!$E$19*NR_Reihen_Veränderungsraten!M24,) -> 0 | N130: =IF($C130=1,'IN_Definition Index'!$E$19*NR_Reihen_Veränderungsraten!N24,) -> 0 | O130: =IF($C130=1,'IN_Definition Index'!$E$19*NR_Reihen_Veränderungsraten!O24,) -> 0 | P130: =IF($C130=1,'IN_Definition Index'!$E$19*NR_Reihen_Veränderungsraten!P24,) -> 0 | Q130: =IF($C130=1,'IN_Definition Index'!$E$19*NR_Reihen_Veränderungsraten!Q24,) -> 0 | R130: =IF($C130=1,'IN_Definition Index'!$E$19*NR_Reihen_Veränderungsraten!R24,) -> 0 | S130: =IF($C130=1,'IN_Definition Index'!$E$19*NR_Reihen_Veränderungsraten!S24,) -> 0 | T130: =IF($C130=1,'IN_Definition Index'!$E$19*NR_Reihen_Veränderungsraten!T24,) -> 0 | U130: =IF($C130=1,'IN_Definition Index'!$E$19*NR_Reihen_Veränderungsraten!U24,) -> 0 | V130: =IF($C130=1,'IN_Definition Index'!$E$19*NR_Reihen_Veränderungsraten!V24,) -> 0 | W130: =IF($C130=1,'IN_Definition Index'!$E$19*NR_Reihen_Veränderungsraten!W24,) -> 0 | X130: =IF($C130=1,'IN_Definition Index'!$E$19*NR_Reihen_Veränderungsraten!X24,) -> 0 | Y130: =IF($C130=1,'IN_Definition Index'!$E$19*NR_Reihen_Veränderungsraten!Y24,) -> 0 | Z130: =IF($C130=1,'IN_Definition Index'!$E$19*NR_Reihen_Veränderungsraten!Z24,) -> 0 | AA130: =IF($C130=1,'IN_Definition Index'!$E$19*NR_Reihen_Veränderungsraten!AA24,) -> 0 | AB130: =IF($C130=1,'IN_Definition Index'!$E$19*NR_Reihen_Veränderungsraten!AB24,) -> 0 | AC130: =IF($C130=1,'IN_Definition Index'!$E$19*NR_Reihen_Veränderungsraten!AC24,) -> 0 | AD130: =IF($C130=1,'IN_Definition Index'!$E$19*NR_Reihen_Veränderungsraten!AD24,) -> 0 | AE130: =IF($C130=1,'IN_Definition Index'!$E$19*NR_Reihen_Veränderungsraten!AE24,) -> 0 | AF130: =IF($C130=1,'IN_Definition Index'!$E$19*NR_Reihen_Veränderungsraten!AF24,) -> 0
A131: J62-01 | B131: IT- und Informationsdienstleister | C131: ='IN_Definition Index'!E13 -> 0 | D131: =IF($C131=1,'IN_Definition Index'!$E$19*NR_Reihen_Veränderungsraten!D25,) -> 0 | E131: =IF($C131=1,'IN_Definition Index'!$E$19*NR_Reihen_Veränderungsraten!E25,) -> 0 | F131: =IF($C131=1,'IN_Definition Index'!$E$19*NR_Reihen_Veränderungsraten!F25,) -> 0 | G131: =IF($C131=1,'IN_Definition Index'!$E$19*NR_Reihen_Veränderungsraten!G25,) -> 0 | H131: =IF($C131=1,'IN_Definition Index'!$E$19*NR_Reihen_Veränderungsraten!H25,) -> 0 | I131: =IF($C131=1,'IN_Definition Index'!$E$19*NR_Reihen_Veränderungsraten!I25,) -> 0 | J131: =IF($C131=1,'IN_Definition Index'!$E$19*NR_Reihen_Veränderungsraten!J25,) -> 0 | K131: =IF($C131=1,'IN_Definition Index'!$E$19*NR_Reihen_Veränderungsraten!K25,) -> 0 | L131: =IF($C131=1,'IN_Definition Index'!$E$19*NR_Reihen_Veränderungsraten!L25,) -> 0 | M131: =IF($C131=1,'IN_Definition Index'!$E$19*NR_Reihen_Veränderungsraten!M25,) -> 0 | N131: =IF($C131=1,'IN_Definition Index'!$E$19*NR_Reihen_Veränderungsraten!N25,) -> 0 | O131: =IF($C131=1,'IN_Definition Index'!$E$19*NR_Reihen_Veränderungsraten!O25,) -> 0 | P131: =IF($C131=1,'IN_Definition Index'!$E$19*NR_Reihen_Veränderungsraten!P25,) -> 0 | Q131: =IF($C131=1,'IN_Definition Index'!$E$19*NR_Reihen_Veränderungsraten!Q25,) -> 0 | R131: =IF($C131=1,'IN_Definition Index'!$E$19*NR_Reihen_Veränderungsraten!R25,) -> 0 | S131: =IF($C131=1,'IN_Definition Index'!$E$19*NR_Reihen_Veränderungsraten!S25,) -> 0 | T131: =IF($C131=1,'IN_Definition Index'!$E$19*NR_Reihen_Veränderungsraten!T25,) -> 0 | U131: =IF($C131=1,'IN_Definition Index'!$E$19*NR_Reihen_Veränderungsraten!U25,) -> 0 | V131: =IF($C131=1,'IN_Definition Index'!$E$19*NR_Reihen_Veränderungsraten!V25,) -> 0 | W131: =IF($C131=1,'IN_Definition Index'!$E$19*NR_Reihen_Veränderungsraten!W25,) -> 0 | X131: =IF($C131=1,'IN_Definition Index'!$E$19*NR_Reihen_Veränderungsraten!X25,) -> 0 | Y131: =IF($C131=1,'IN_Definition Index'!$E$19*NR_Reihen_Veränderungsraten!Y25,) -> 0 | Z131: =IF($C131=1,'IN_Definition Index'!$E$19*NR_Reihen_Veränderungsraten!Z25,) -> 0 | AA131: =IF($C131=1,'IN_Definition Index'!$E$19*NR_Reihen_Veränderungsraten!AA25,) -> 0 | AB131: =IF($C131=1,'IN_Definition Index'!$E$19*NR_Reihen_Veränderungsraten!AB25,) -> 0 | AC131: =IF($C131=1,'IN_Definition Index'!$E$19*NR_Reihen_Veränderungsraten!AC25,) -> 0 | AD131: =IF($C131=1,'IN_Definition Index'!$E$19*NR_Reihen_Veränderungsraten!AD25,) -> 0 | AE131: =IF($C131=1,'IN_Definition Index'!$E$19*NR_Reihen_Veränderungsraten!AE25,) -> 0 | AF131: =IF($C131=1,'IN_Definition Index'!$E$19*NR_Reihen_Veränderungsraten!AF25,) -> 0
A132: M69-01 | B132: Unternehmensnahe Beratungsleistungen | C132: ='IN_Definition Index'!E14 -> 0 | D132: =IF($C132=1,'IN_Definition Index'!$E$19*NR_Reihen_Veränderungsraten!D26,) -> 0 | E132: =IF($C132=1,'IN_Definition Index'!$E$19*NR_Reihen_Veränderungsraten!E26,) -> 0 | F132: =IF($C132=1,'IN_Definition Index'!$E$19*NR_Reihen_Veränderungsraten!F26,) -> 0 | G132: =IF($C132=1,'IN_Definition Index'!$E$19*NR_Reihen_Veränderungsraten!G26,) -> 0 | H132: =IF($C132=1,'IN_Definition Index'!$E$19*NR_Reihen_Veränderungsraten!H26,) -> 0 | I132: =IF($C132=1,'IN_Definition Index'!$E$19*NR_Reihen_Veränderungsraten!I26,) -> 0 | J132: =IF($C132=1,'IN_Definition Index'!$E$19*NR_Reihen_Veränderungsraten!J26,) -> 0 | K132: =IF($C132=1,'IN_Definition Index'!$E$19*NR_Reihen_Veränderungsraten!K26,) -> 0 | L132: =IF($C132=1,'IN_Definition Index'!$E$19*NR_Reihen_Veränderungsraten!L26,) -> 0 | M132: =IF($C132=1,'IN_Definition Index'!$E$19*NR_Reihen_Veränderungsraten!M26,) -> 0 | N132: =IF($C132=1,'IN_Definition Index'!$E$19*NR_Reihen_Veränderungsraten!N26,) -> 0 | O132: =IF($C132=1,'IN_Definition Index'!$E$19*NR_Reihen_Veränderungsraten!O26,) -> 0 | P132: =IF($C132=1,'IN_Definition Index'!$E$19*NR_Reihen_Veränderungsraten!P26,) -> 0 | Q132: =IF($C132=1,'IN_Definition Index'!$E$19*NR_Reihen_Veränderungsraten!Q26,) -> 0 | R132: =IF($C132=1,'IN_Definition Index'!$E$19*NR_Reihen_Veränderungsraten!R26,) -> 0 | S132: =IF($C132=1,'IN_Definition Index'!$E$19*NR_Reihen_Veränderungsraten!S26,) -> 0 | T132: =IF($C132=1,'IN_Definition Index'!$E$19*NR_Reihen_Veränderungsraten!T26,) -> 0 | U132: =IF($C132=1,'IN_Definition Index'!$E$19*NR_Reihen_Veränderungsraten!U26,) -> 0 | V132: =IF($C132=1,'IN_Definition Index'!$E$19*NR_Reihen_Veränderungsraten!V26,) -> 0 | W132: =IF($C132=1,'IN_Definition Index'!$E$19*NR_Reihen_Veränderungsraten!W26,) -> 0 | X132: =IF($C132=1,'IN_Definition Index'!$E$19*NR_Reihen_Veränderungsraten!X26,) -> 0 | Y132: =IF($C132=1,'IN_Definition Index'!$E$19*NR_Reihen_Veränderungsraten!Y26,) -> 0 | Z132: =IF($C132=1,'IN_Definition Index'!$E$19*NR_Reihen_Veränderungsraten!Z26,) -> 0 | AA132: =IF($C132=1,'IN_Definition Index'!$E$19*NR_Reihen_Veränderungsraten!AA26,) -> 0 | AB132: =IF($C132=1,'IN_Definition Index'!$E$19*NR_Reihen_Veränderungsraten!AB26,) -> 0 | AC132: =IF($C132=1,'IN_Definition Index'!$E$19*NR_Reihen_Veränderungsraten!AC26,) -> 0 | AD132: =IF($C132=1,'IN_Definition Index'!$E$19*NR_Reihen_Veränderungsraten!AD26,) -> 0 | AE132: =IF($C132=1,'IN_Definition Index'!$E$19*NR_Reihen_Veränderungsraten!AE26,) -> 0 | AF132: =IF($C132=1,'IN_Definition Index'!$E$19*NR_Reihen_Veränderungsraten!AF26,) -> 0
A133: M73 | B133: Werbung und Marktforschung | C133: ='IN_Definition Index'!E15 -> 0 | D133: =IF($C133=1,'IN_Definition Index'!$E$19*NR_Reihen_Veränderungsraten!D27,) -> 0 | E133: =IF($C133=1,'IN_Definition Index'!$E$19*NR_Reihen_Veränderungsraten!E27,) -> 0 | F133: =IF($C133=1,'IN_Definition Index'!$E$19*NR_Reihen_Veränderungsraten!F27,) -> 0 | G133: =IF($C133=1,'IN_Definition Index'!$E$19*NR_Reihen_Veränderungsraten!G27,) -> 0 | H133: =IF($C133=1,'IN_Definition Index'!$E$19*NR_Reihen_Veränderungsraten!H27,) -> 0 | I133: =IF($C133=1,'IN_Definition Index'!$E$19*NR_Reihen_Veränderungsraten!I27,) -> 0 | J133: =IF($C133=1,'IN_Definition Index'!$E$19*NR_Reihen_Veränderungsraten!J27,) -> 0 | K133: =IF($C133=1,'IN_Definition Index'!$E$19*NR_Reihen_Veränderungsraten!K27,) -> 0 | L133: =IF($C133=1,'IN_Definition Index'!$E$19*NR_Reihen_Veränderungsraten!L27,) -> 0 | M133: =IF($C133=1,'IN_Definition Index'!$E$19*NR_Reihen_Veränderungsraten!M27,) -> 0 | N133: =IF($C133=1,'IN_Definition Index'!$E$19*NR_Reihen_Veränderungsraten!N27,) -> 0 | O133: =IF($C133=1,'IN_Definition Index'!$E$19*NR_Reihen_Veränderungsraten!O27,) -> 0 | P133: =IF($C133=1,'IN_Definition Index'!$E$19*NR_Reihen_Veränderungsraten!P27,) -> 0 | Q133: =IF($C133=1,'IN_Definition Index'!$E$19*NR_Reihen_Veränderungsraten!Q27,) -> 0 | R133: =IF($C133=1,'IN_Definition Index'!$E$19*NR_Reihen_Veränderungsraten!R27,) -> 0 | S133: =IF($C133=1,'IN_Definition Index'!$E$19*NR_Reihen_Veränderungsraten!S27,) -> 0 | T133: =IF($C133=1,'IN_Definition Index'!$E$19*NR_Reihen_Veränderungsraten!T27,) -> 0 | U133: =IF($C133=1,'IN_Definition Index'!$E$19*NR_Reihen_Veränderungsraten!U27,) -> 0 | V133: =IF($C133=1,'IN_Definition Index'!$E$19*NR_Reihen_Veränderungsraten!V27,) -> 0 | W133: =IF($C133=1,'IN_Definition Index'!$E$19*NR_Reihen_Veränderungsraten!W27,) -> 0 | X133: =IF($C133=1,'IN_Definition Index'!$E$19*NR_Reihen_Veränderungsraten!X27,) -> 0 | Y133: =IF($C133=1,'IN_Definition Index'!$E$19*NR_Reihen_Veränderungsraten!Y27,) -> 0 | Z133: =IF($C133=1,'IN_Definition Index'!$E$19*NR_Reihen_Veränderungsraten!Z27,) -> 0 | AA133: =IF($C133=1,'IN_Definition Index'!$E$19*NR_Reihen_Veränderungsraten!AA27,) -> 0 | AB133: =IF($C133=1,'IN_Definition Index'!$E$19*NR_Reihen_Veränderungsraten!AB27,) -> 0 | AC133: =IF($C133=1,'IN_Definition Index'!$E$19*NR_Reihen_Veränderungsraten!AC27,) -> 0 | AD133: =IF($C133=1,'IN_Definition Index'!$E$19*NR_Reihen_Veränderungsraten!AD27,) -> 0 | AE133: =IF($C133=1,'IN_Definition Index'!$E$19*NR_Reihen_Veränderungsraten!AE27,) -> 0 | AF133: =IF($C133=1,'IN_Definition Index'!$E$19*NR_Reihen_Veränderungsraten!AF27,) -> 0
A134: M74-01 | B134: Freiberufl.,wiss.,techn.DL a.n.g., Veterinärwesen | C134: ='IN_Definition Index'!E16 -> 0 | D134: =IF($C134=1,'IN_Definition Index'!$E$19*NR_Reihen_Veränderungsraten!D28,) -> 0 | E134: =IF($C134=1,'IN_Definition Index'!$E$19*NR_Reihen_Veränderungsraten!E28,) -> 0 | F134: =IF($C134=1,'IN_Definition Index'!$E$19*NR_Reihen_Veränderungsraten!F28,) -> 0 | G134: =IF($C134=1,'IN_Definition Index'!$E$19*NR_Reihen_Veränderungsraten!G28,) -> 0 | H134: =IF($C134=1,'IN_Definition Index'!$E$19*NR_Reihen_Veränderungsraten!H28,) -> 0 | I134: =IF($C134=1,'IN_Definition Index'!$E$19*NR_Reihen_Veränderungsraten!I28,) -> 0 | J134: =IF($C134=1,'IN_Definition Index'!$E$19*NR_Reihen_Veränderungsraten!J28,) -> 0 | K134: =IF($C134=1,'IN_Definition Index'!$E$19*NR_Reihen_Veränderungsraten!K28,) -> 0 | L134: =IF($C134=1,'IN_Definition Index'!$E$19*NR_Reihen_Veränderungsraten!L28,) -> 0 | M134: =IF($C134=1,'IN_Definition Index'!$E$19*NR_Reihen_Veränderungsraten!M28,) -> 0 | N134: =IF($C134=1,'IN_Definition Index'!$E$19*NR_Reihen_Veränderungsraten!N28,) -> 0 | O134: =IF($C134=1,'IN_Definition Index'!$E$19*NR_Reihen_Veränderungsraten!O28,) -> 0 | P134: =IF($C134=1,'IN_Definition Index'!$E$19*NR_Reihen_Veränderungsraten!P28,) -> 0 | Q134: =IF($C134=1,'IN_Definition Index'!$E$19*NR_Reihen_Veränderungsraten!Q28,) -> 0 | R134: =IF($C134=1,'IN_Definition Index'!$E$19*NR_Reihen_Veränderungsraten!R28,) -> 0 | S134: =IF($C134=1,'IN_Definition Index'!$E$19*NR_Reihen_Veränderungsraten!S28,) -> 0 | T134: =IF($C134=1,'IN_Definition Index'!$E$19*NR_Reihen_Veränderungsraten!T28,) -> 0 | U134: =IF($C134=1,'IN_Definition Index'!$E$19*NR_Reihen_Veränderungsraten!U28,) -> 0 | V134: =IF($C134=1,'IN_Definition Index'!$E$19*NR_Reihen_Veränderungsraten!V28,) -> 0 | W134: =IF($C134=1,'IN_Definition Index'!$E$19*NR_Reihen_Veränderungsraten!W28,) -> 0 | X134: =IF($C134=1,'IN_Definition Index'!$E$19*NR_Reihen_Veränderungsraten!X28,) -> 0 | Y134: =IF($C134=1,'IN_Definition Index'!$E$19*NR_Reihen_Veränderungsraten!Y28,) -> 0 | Z134: =IF($C134=1,'IN_Definition Index'!$E$19*NR_Reihen_Veränderungsraten!Z28,) -> 0 | AA134: =IF($C134=1,'IN_Definition Index'!$E$19*NR_Reihen_Veränderungsraten!AA28,) -> 0 | AB134: =IF($C134=1,'IN_Definition Index'!$E$19*NR_Reihen_Veränderungsraten!AB28,) -> 0 | AC134: =IF($C134=1,'IN_Definition Index'!$E$19*NR_Reihen_Veränderungsraten!AC28,) -> 0 | AD134: =IF($C134=1,'IN_Definition Index'!$E$19*NR_Reihen_Veränderungsraten!AD28,) -> 0 | AE134: =IF($C134=1,'IN_Definition Index'!$E$19*NR_Reihen_Veränderungsraten!AE28,) -> 0 | AF134: =IF($C134=1,'IN_Definition Index'!$E$19*NR_Reihen_Veränderungsraten!AF28,) -> 0
A135: L | B135: Grundstücks- und Wohnungswesen | C135: ='IN_Definition Index'!E17 -> 0 | D135: =IF($C135=1,'IN_Definition Index'!$E$19*NR_Reihen_Veränderungsraten!D29,) -> 0 | E135: =IF($C135=1,'IN_Definition Index'!$E$19*NR_Reihen_Veränderungsraten!E29,) -> 0 | F135: =IF($C135=1,'IN_Definition Index'!$E$19*NR_Reihen_Veränderungsraten!F29,) -> 0 | G135: =IF($C135=1,'IN_Definition Index'!$E$19*NR_Reihen_Veränderungsraten!G29,) -> 0 | H135: =IF($C135=1,'IN_Definition Index'!$E$19*NR_Reihen_Veränderungsraten!H29,) -> 0 | I135: =IF($C135=1,'IN_Definition Index'!$E$19*NR_Reihen_Veränderungsraten!I29,) -> 0 | J135: =IF($C135=1,'IN_Definition Index'!$E$19*NR_Reihen_Veränderungsraten!J29,) -> 0 | K135: =IF($C135=1,'IN_Definition Index'!$E$19*NR_Reihen_Veränderungsraten!K29,) -> 0 | L135: =IF($C135=1,'IN_Definition Index'!$E$19*NR_Reihen_Veränderungsraten!L29,) -> 0 | M135: =IF($C135=1,'IN_Definition Index'!$E$19*NR_Reihen_Veränderungsraten!M29,) -> 0 | N135: =IF($C135=1,'IN_Definition Index'!$E$19*NR_Reihen_Veränderungsraten!N29,) -> 0 | O135: =IF($C135=1,'IN_Definition Index'!$E$19*NR_Reihen_Veränderungsraten!O29,) -> 0 | P135: =IF($C135=1,'IN_Definition Index'!$E$19*NR_Reihen_Veränderungsraten!P29,) -> 0 | Q135: =IF($C135=1,'IN_Definition Index'!$E$19*NR_Reihen_Veränderungsraten!Q29,) -> 0 | R135: =IF($C135=1,'IN_Definition Index'!$E$19*NR_Reihen_Veränderungsraten!R29,) -> 0 | S135: =IF($C135=1,'IN_Definition Index'!$E$19*NR_Reihen_Veränderungsraten!S29,) -> 0 | T135: =IF($C135=1,'IN_Definition Index'!$E$19*NR_Reihen_Veränderungsraten!T29,) -> 0 | U135: =IF($C135=1,'IN_Definition Index'!$E$19*NR_Reihen_Veränderungsraten!U29,) -> 0 | V135: =IF($C135=1,'IN_Definition Index'!$E$19*NR_Reihen_Veränderungsraten!V29,) -> 0 | W135: =IF($C135=1,'IN_Definition Index'!$E$19*NR_Reihen_Veränderungsraten!W29,) -> 0 | X135: =IF($C135=1,'IN_Definition Index'!$E$19*NR_Reihen_Veränderungsraten!X29,) -> 0 | Y135: =IF($C135=1,'IN_Definition Index'!$E$19*NR_Reihen_Veränderungsraten!Y29,) -> 0 | Z135: =IF($C135=1,'IN_Definition Index'!$E$19*NR_Reihen_Veränderungsraten!Z29,) -> 0 | AA135: =IF($C135=1,'IN_Definition Index'!$E$19*NR_Reihen_Veränderungsraten!AA29,) -> 0 | AB135: =IF($C135=1,'IN_Definition Index'!$E$19*NR_Reihen_Veränderungsraten!AB29,) -> 0 | AC135: =IF($C135=1,'IN_Definition Index'!$E$19*NR_Reihen_Veränderungsraten!AC29,) -> 0 | AD135: =IF($C135=1,'IN_Definition Index'!$E$19*NR_Reihen_Veränderungsraten!AD29,) -> 0 | AE135: =IF($C135=1,'IN_Definition Index'!$E$19*NR_Reihen_Veränderungsraten!AE29,) -> 0 | AF135: =IF($C135=1,'IN_Definition Index'!$E$19*NR_Reihen_Veränderungsraten!AF29,) -> 0
B136: Summe | D136: =SUM(D125:D135) -> 1.019531407 | E136: =SUM(E125:E135) -> 0.9540156029 | F136: =SUM(F125:F135) -> 1.01608853 | G136: =SUM(G125:G135) -> 1.015231871 | H136: =SUM(H125:H135) -> 0.9816846596 | I136: =SUM(I125:I135) -> 0.9890451697 | J136: =SUM(J125:J135) -> 1.000984433 | K136: =SUM(K125:K135) -> 1.005371134 | L136: =SUM(L125:L135) -> 0.9919841637 | M136: =SUM(M125:M135) -> 1.025336375 | N136: =SUM(N125:N135) -> 0.9630868503 | O136: =SUM(O125:O135) -> 1.01652984 | P136: =SUM(P125:P135) -> 0.9823257757 | Q136: =SUM(Q125:Q135) -> 0.9820723031 | R136: =SUM(R125:R135) -> 1.060737419 | S136: =SUM(S125:S135) -> 0.9998888219 | T136: =SUM(T125:T135) -> 0.9788247679 | U136: =SUM(U125:U135) -> 1.011977927 | V136: =SUM(V125:V135) -> 1.025428564 | W136: =SUM(W125:W135) -> 0.9786495874 | X136: =SUM(X125:X135) -> 1.000129057 | Y136: =SUM(Y125:Y135) -> 0.997337027 | Z136: =SUM(Z125:Z135) -> 1.026767057 | AA136: =SUM(AA125:AA135) -> 1.075002451 | AB136: =SUM(AB125:AB135) -> 1.028050403 | AC136: =SUM(AC125:AC135) -> 1.02751933 | AD136: 0.9938571778
A138: Sortierung
A140: Nr. (WZ 2008) | B140: Branche | C140: Verwendung | D140: 1992 | E140: =D140+1 -> 1993 | F140: =E140+1 -> 1994 | G140: =F140+1 -> 1995 | H140: =G140+1 -> 1996 | I140: =H140+1 -> 1997 | J140: =I140+1 -> 1998 | K140: =J140+1 -> 1999 | L140: =K140+1 -> 2000 | M140: =L140+1 -> 2001 | N140: =M140+1 -> 2002 | O140: =N140+1 -> 2003 | P140: =O140+1 -> 2004 | Q140: =P140+1 -> 2005 | R140: =Q140+1 -> 2006 | S140: =R140+1 -> 2007 | T140: =S140+1 -> 2008 | U140: =T140+1 -> 2009 | V140: =U140+1 -> 2010 | W140: =V140+1 -> 2011 | X140: =W140+1 -> 2012 | Y140: =X140+1 -> 2013 | Z140: =Y140+1 -> 2014 | AA140: =Z140+1 -> 2015 | AB140: =AA140+1 -> 2016 | AC140: =AB140+1 -> 2017 | AD140: =AC140+1 -> 2018 | AE140: =AD140+1 -> 2019 | AF140: =AE140+1 -> 2020
A141: C33 | B141: Reparatur und Installation von Maschinen und Ausrüstungen | C141: ='IN_Definition Index'!F7 -> 1 | D141: =IF($C141=1,'IN_Definition Index'!$F$19*NR_Reihen_Veränderungsraten!D19,) -> 0.5559640444 | E141: =IF($C141=1,'IN_Definition Index'!$F$19*NR_Reihen_Veränderungsraten!E19,) -> 0.5016995048 | F141: =IF($C141=1,'IN_Definition Index'!$F$19*NR_Reihen_Veränderungsraten!F19,) -> 0.5635628968 | G141: =IF($C141=1,'IN_Definition Index'!$F$19*NR_Reihen_Veränderungsraten!G19,) -> 0.5197715172 | H141: =IF($C141=1,'IN_Definition Index'!$F$19*NR_Reihen_Veränderungsraten!H19,) -> 0.5119122476 | I141: =IF($C141=1,'IN_Definition Index'!$F$19*NR_Reihen_Veränderungsraten!I19,) -> 0.5606836176 | J141: =IF($C141=1,'IN_Definition Index'!$F$19*NR_Reihen_Veränderungsraten!J19,) -> 0.5223651373 | K141: =IF($C141=1,'IN_Definition Index'!$F$19*NR_Reihen_Veränderungsraten!K19,) -> 0.5377156801 | L141: =IF($C141=1,'IN_Definition Index'!$F$19*NR_Reihen_Veränderungsraten!L19,) -> 0.5365871614 | M141: =IF($C141=1,'IN_Definition Index'!$F$19*NR_Reihen_Veränderungsraten!M19,) -> 0.5015482243 | N141: =IF($C141=1,'IN_Definition Index'!$F$19*NR_Reihen_Veränderungsraten!N19,) -> 0.5238644063 | O141: =IF($C141=1,'IN_Definition Index'!$F$19*NR_Reihen_Veränderungsraten!O19,) -> 0.5455224307 | P141: =IF($C141=1,'IN_Definition Index'!$F$19*NR_Reihen_Veränderungsraten!P19,) -> 0.5531196996 | Q141: =IF($C141=1,'IN_Definition Index'!$F$19*NR_Reihen_Veränderungsraten!Q19,) -> 0.5784824443 | R141: =IF($C141=1,'IN_Definition Index'!$F$19*NR_Reihen_Veränderungsraten!R19,) -> 0.5081228679 | S141: =IF($C141=1,'IN_Definition Index'!$F$19*NR_Reihen_Veränderungsraten!S19,) -> 0.5340543826 | T141: =IF($C141=1,'IN_Definition Index'!$F$19*NR_Reihen_Veränderungsraten!T19,) -> 0.4324283167 | U141: =IF($C141=1,'IN_Definition Index'!$F$19*NR_Reihen_Veränderungsraten!U19,) -> 0.4369886318 | V141: =IF($C141=1,'IN_Definition Index'!$F$19*NR_Reihen_Veränderungsraten!V19,) -> 0.5085343622 | W141: =IF($C141=1,'IN_Definition Index'!$F$19*NR_Reihen_Veränderungsraten!W19,) -> 0.5126353107 | X141: =IF($C141=1,'IN_Definition Index'!$F$19*NR_Reihen_Veränderungsraten!X19,) -> 0.4878716803 | Y141: =IF($C141=1,'IN_Definition Index'!$F$19*NR_Reihen_Veränderungsraten!Y19,) -> 0.4788224967 | Z141: =IF($C141=1,'IN_Definition Index'!$F$19*NR_Reihen_Veränderungsraten!Z19,) -> 0.5051074136 | AA141: =IF($C141=1,'IN_Definition Index'!$F$19*NR_Reihen_Veränderungsraten!AA19,) -> 0.5254167185 | AB141: =IF($C141=1,'IN_Definition Index'!$F$19*NR_Reihen_Veränderungsraten!AB19,) -> 0.48355 | AC141: =IF($C141=1,'IN_Definition Index'!$F$19*NR_Reihen_Veränderungsraten!AC19,) -> 0.4647272785 | AD141: =IF($C141=1,'IN_Definition Index'!$F$19*NR_Reihen_Veränderungsraten!AD19,) -> 0.4800113019 | AE141: =IF($C141=1,'IN_Definition Index'!$F$19*NR_Reihen_Veränderungsraten!AE19,) ->  | AF141: =IF($C141=1,'IN_Definition Index'!$F$19*NR_Reihen_Veränderungsraten!AF19,) -> 
A142: G45 | B142: Handel mit Kraftfahrzeugen; Instandhaltung und Reparatur von Kraftfahrzeugen | C142: ='IN_Definition Index'!F8 -> 0 | D142: =IF($C142=1,'IN_Definition Index'!$F$19*NR_Reihen_Veränderungsraten!D20,) -> 0 | E142: =IF($C142=1,'IN_Definition Index'!$F$19*NR_Reihen_Veränderungsraten!E20,) -> 0 | F142: =IF($C142=1,'IN_Definition Index'!$F$19*NR_Reihen_Veränderungsraten!F20,) -> 0 | G142: =IF($C142=1,'IN_Definition Index'!$F$19*NR_Reihen_Veränderungsraten!G20,) -> 0 | H142: =IF($C142=1,'IN_Definition Index'!$F$19*NR_Reihen_Veränderungsraten!H20,) -> 0 | I142: =IF($C142=1,'IN_Definition Index'!$F$19*NR_Reihen_Veränderungsraten!I20,) -> 0 | J142: =IF($C142=1,'IN_Definition Index'!$F$19*NR_Reihen_Veränderungsraten!J20,) -> 0 | K142: =IF($C142=1,'IN_Definition Index'!$F$19*NR_Reihen_Veränderungsraten!K20,) -> 0 | L142: =IF($C142=1,'IN_Definition Index'!$F$19*NR_Reihen_Veränderungsraten!L20,) -> 0 | M142: =IF($C142=1,'IN_Definition Index'!$F$19*NR_Reihen_Veränderungsraten!M20,) -> 0 | N142: =IF($C142=1,'IN_Definition Index'!$F$19*NR_Reihen_Veränderungsraten!N20,) -> 0 | O142: =IF($C142=1,'IN_Definition Index'!$F$19*NR_Reihen_Veränderungsraten!O20,) -> 0 | P142: =IF($C142=1,'IN_Definition Index'!$F$19*NR_Reihen_Veränderungsraten!P20,) -> 0 | Q142: =IF($C142=1,'IN_Definition Index'!$F$19*NR_Reihen_Veränderungsraten!Q20,) -> 0 | R142: =IF($C142=1,'IN_Definition Index'!$F$19*NR_Reihen_Veränderungsraten!R20,) -> 0 | S142: =IF($C142=1,'IN_Definition Index'!$F$19*NR_Reihen_Veränderungsraten!S20,) -> 0 | T142: =IF($C142=1,'IN_Definition Index'!$F$19*NR_Reihen_Veränderungsraten!T20,) -> 0 | U142: =IF($C142=1,'IN_Definition Index'!$F$19*NR_Reihen_Veränderungsraten!U20,) -> 0 | V142: =IF($C142=1,'IN_Definition Index'!$F$19*NR_Reihen_Veränderungsraten!V20,) -> 0 | W142: =IF($C142=1,'IN_Definition Index'!$F$19*NR_Reihen_Veränderungsraten!W20,) -> 0 | X142: =IF($C142=1,'IN_Definition Index'!$F$19*NR_Reihen_Veränderungsraten!X20,) -> 0 | Y142: =IF($C142=1,'IN_Definition Index'!$F$19*NR_Reihen_Veränderungsraten!Y20,) -> 0 | Z142: =IF($C142=1,'IN_Definition Index'!$F$19*NR_Reihen_Veränderungsraten!Z20,) -> 0 | AA142: =IF($C142=1,'IN_Definition Index'!$F$19*NR_Reihen_Veränderungsraten!AA20,) -> 0 | AB142: =IF($C142=1,'IN_Definition Index'!$F$19*NR_Reihen_Veränderungsraten!AB20,) -> 0 | AC142: =IF($C142=1,'IN_Definition Index'!$F$19*NR_Reihen_Veränderungsraten!AC20,) -> 0 | AD142: =IF($C142=1,'IN_Definition Index'!$F$19*NR_Reihen_Veränderungsraten!AD20,) -> 0 | AE142: =IF($C142=1,'IN_Definition Index'!$F$19*NR_Reihen_Veränderungsraten!AE20,) -> 0 | AF142: =IF($C142=1,'IN_Definition Index'!$F$19*NR_Reihen_Veränderungsraten!AF20,) -> 0
A143: G47 | B143: Einzelhandel (ohne Handel mit Kraftfahrzeugen) | C143: ='IN_Definition Index'!F9 -> 0 | D143: =IF($C143=1,'IN_Definition Index'!$F$19*NR_Reihen_Veränderungsraten!D21,) -> 0 | E143: =IF($C143=1,'IN_Definition Index'!$F$19*NR_Reihen_Veränderungsraten!E21,) -> 0 | F143: =IF($C143=1,'IN_Definition Index'!$F$19*NR_Reihen_Veränderungsraten!F21,) -> 0 | G143: =IF($C143=1,'IN_Definition Index'!$F$19*NR_Reihen_Veränderungsraten!G21,) -> 0 | H143: =IF($C143=1,'IN_Definition Index'!$F$19*NR_Reihen_Veränderungsraten!H21,) -> 0 | I143: =IF($C143=1,'IN_Definition Index'!$F$19*NR_Reihen_Veränderungsraten!I21,) -> 0 | J143: =IF($C143=1,'IN_Definition Index'!$F$19*NR_Reihen_Veränderungsraten!J21,) -> 0 | K143: =IF($C143=1,'IN_Definition Index'!$F$19*NR_Reihen_Veränderungsraten!K21,) -> 0 | L143: =IF($C143=1,'IN_Definition Index'!$F$19*NR_Reihen_Veränderungsraten!L21,) -> 0 | M143: =IF($C143=1,'IN_Definition Index'!$F$19*NR_Reihen_Veränderungsraten!M21,) -> 0 | N143: =IF($C143=1,'IN_Definition Index'!$F$19*NR_Reihen_Veränderungsraten!N21,) -> 0 | O143: =IF($C143=1,'IN_Definition Index'!$F$19*NR_Reihen_Veränderungsraten!O21,) -> 0 | P143: =IF($C143=1,'IN_Definition Index'!$F$19*NR_Reihen_Veränderungsraten!P21,) -> 0 | Q143: =IF($C143=1,'IN_Definition Index'!$F$19*NR_Reihen_Veränderungsraten!Q21,) -> 0 | R143: =IF($C143=1,'IN_Definition Index'!$F$19*NR_Reihen_Veränderungsraten!R21,) -> 0 | S143: =IF($C143=1,'IN_Definition Index'!$F$19*NR_Reihen_Veränderungsraten!S21,) -> 0 | T143: =IF($C143=1,'IN_Definition Index'!$F$19*NR_Reihen_Veränderungsraten!T21,) -> 0 | U143: =IF($C143=1,'IN_Definition Index'!$F$19*NR_Reihen_Veränderungsraten!U21,) -> 0 | V143: =IF($C143=1,'IN_Definition Index'!$F$19*NR_Reihen_Veränderungsraten!V21,) -> 0 | W143: =IF($C143=1,'IN_Definition Index'!$F$19*NR_Reihen_Veränderungsraten!W21,) -> 0 | X143: =IF($C143=1,'IN_Definition Index'!$F$19*NR_Reihen_Veränderungsraten!X21,) -> 0 | Y143: =IF($C143=1,'IN_Definition Index'!$F$19*NR_Reihen_Veränderungsraten!Y21,) -> 0 | Z143: =IF($C143=1,'IN_Definition Index'!$F$19*NR_Reihen_Veränderungsraten!Z21,) -> 0 | AA143: =IF($C143=1,'IN_Definition Index'!$F$19*NR_Reihen_Veränderungsraten!AA21,) -> 0 | AB143: =IF($C143=1,'IN_Definition Index'!$F$19*NR_Reihen_Veränderungsraten!AB21,) -> 0 | AC143: =IF($C143=1,'IN_Definition Index'!$F$19*NR_Reihen_Veränderungsraten!AC21,) -> 0 | AD143: =IF($C143=1,'IN_Definition Index'!$F$19*NR_Reihen_Veränderungsraten!AD21,) -> 0 | AE143: =IF($C143=1,'IN_Definition Index'!$F$19*NR_Reihen_Veränderungsraten!AE21,) -> 0 | AF143: =IF($C143=1,'IN_Definition Index'!$F$19*NR_Reihen_Veränderungsraten!AF21,) -> 0
A144: H49 | B144: Landverkehr und Transport in Rohrfernleitungen | C144: ='IN_Definition Index'!F10 -> 0 | D144: =IF($C144=1,'IN_Definition Index'!$F$19*NR_Reihen_Veränderungsraten!D22,) -> 0 | E144: =IF($C144=1,'IN_Definition Index'!$F$19*NR_Reihen_Veränderungsraten!E22,) -> 0 | F144: =IF($C144=1,'IN_Definition Index'!$F$19*NR_Reihen_Veränderungsraten!F22,) -> 0 | G144: =IF($C144=1,'IN_Definition Index'!$F$19*NR_Reihen_Veränderungsraten!G22,) -> 0 | H144: =IF($C144=1,'IN_Definition Index'!$F$19*NR_Reihen_Veränderungsraten!H22,) -> 0 | I144: =IF($C144=1,'IN_Definition Index'!$F$19*NR_Reihen_Veränderungsraten!I22,) -> 0 | J144: =IF($C144=1,'IN_Definition Index'!$F$19*NR_Reihen_Veränderungsraten!J22,) -> 0 | K144: =IF($C144=1,'IN_Definition Index'!$F$19*NR_Reihen_Veränderungsraten!K22,) -> 0 | L144: =IF($C144=1,'IN_Definition Index'!$F$19*NR_Reihen_Veränderungsraten!L22,) -> 0 | M144: =IF($C144=1,'IN_Definition Index'!$F$19*NR_Reihen_Veränderungsraten!M22,) -> 0 | N144: =IF($C144=1,'IN_Definition Index'!$F$19*NR_Reihen_Veränderungsraten!N22,) -> 0 | O144: =IF($C144=1,'IN_Definition Index'!$F$19*NR_Reihen_Veränderungsraten!O22,) -> 0 | P144: =IF($C144=1,'IN_Definition Index'!$F$19*NR_Reihen_Veränderungsraten!P22,) -> 0 | Q144: =IF($C144=1,'IN_Definition Index'!$F$19*NR_Reihen_Veränderungsraten!Q22,) -> 0 | R144: =IF($C144=1,'IN_Definition Index'!$F$19*NR_Reihen_Veränderungsraten!R22,) -> 0 | S144: =IF($C144=1,'IN_Definition Index'!$F$19*NR_Reihen_Veränderungsraten!S22,) -> 0 | T144: =IF($C144=1,'IN_Definition Index'!$F$19*NR_Reihen_Veränderungsraten!T22,) -> 0 | U144: =IF($C144=1,'IN_Definition Index'!$F$19*NR_Reihen_Veränderungsraten!U22,) -> 0 | V144: =IF($C144=1,'IN_Definition Index'!$F$19*NR_Reihen_Veränderungsraten!V22,) -> 0 | W144: =IF($C144=1,'IN_Definition Index'!$F$19*NR_Reihen_Veränderungsraten!W22,) -> 0 | X144: =IF($C144=1,'IN_Definition Index'!$F$19*NR_Reihen_Veränderungsraten!X22,) -> 0 | Y144: =IF($C144=1,'IN_Definition Index'!$F$19*NR_Reihen_Veränderungsraten!Y22,) -> 0 | Z144: =IF($C144=1,'IN_Definition Index'!$F$19*NR_Reihen_Veränderungsraten!Z22,) -> 0 | AA144: =IF($C144=1,'IN_Definition Index'!$F$19*NR_Reihen_Veränderungsraten!AA22,) -> 0 | AB144: =IF($C144=1,'IN_Definition Index'!$F$19*NR_Reihen_Veränderungsraten!AB22,) -> 0 | AC144: =IF($C144=1,'IN_Definition Index'!$F$19*NR_Reihen_Veränderungsraten!AC22,) -> 0 | AD144: =IF($C144=1,'IN_Definition Index'!$F$19*NR_Reihen_Veränderungsraten!AD22,) -> 0 | AE144: =IF($C144=1,'IN_Definition Index'!$F$19*NR_Reihen_Veränderungsraten!AE22,) -> 0 | AF144: =IF($C144=1,'IN_Definition Index'!$F$19*NR_Reihen_Veränderungsraten!AF22,) -> 0
A145: H52 | B145: Lagerei sowie Erbringung von sonstigen Dienstleistungen für den Verkehr | C145: ='IN_Definition Index'!F11 -> 1 | D145: =IF($C145=1,'IN_Definition Index'!$F$19*NR_Reihen_Veränderungsraten!D23,) -> 0.4872288027 | E145: =IF($C145=1,'IN_Definition Index'!$F$19*NR_Reihen_Veränderungsraten!E23,) -> 0.5014816525 | F145: =IF($C145=1,'IN_Definition Index'!$F$19*NR_Reihen_Veränderungsraten!F23,) -> 0.5253530307 | G145: =IF($C145=1,'IN_Definition Index'!$F$19*NR_Reihen_Veränderungsraten!G23,) -> 0.4962996191 | H145: =IF($C145=1,'IN_Definition Index'!$F$19*NR_Reihen_Veränderungsraten!H23,) -> 0.5203390596 | I145: =IF($C145=1,'IN_Definition Index'!$F$19*NR_Reihen_Veränderungsraten!I23,) -> 0.5483676874 | J145: =IF($C145=1,'IN_Definition Index'!$F$19*NR_Reihen_Veränderungsraten!J23,) -> 0.5132583087 | K145: =IF($C145=1,'IN_Definition Index'!$F$19*NR_Reihen_Veränderungsraten!K23,) -> 0.4337740302 | L145: =IF($C145=1,'IN_Definition Index'!$F$19*NR_Reihen_Veränderungsraten!L23,) -> 0.5104662217 | M145: =IF($C145=1,'IN_Definition Index'!$F$19*NR_Reihen_Veränderungsraten!M23,) -> 0.5545756313 | N145: =IF($C145=1,'IN_Definition Index'!$F$19*NR_Reihen_Veränderungsraten!N23,) -> 0.5526375145 | O145: =IF($C145=1,'IN_Definition Index'!$F$19*NR_Reihen_Veränderungsraten!O23,) -> 0.5142721593 | P145: =IF($C145=1,'IN_Definition Index'!$F$19*NR_Reihen_Veränderungsraten!P23,) -> 0.5657210725 | Q145: =IF($C145=1,'IN_Definition Index'!$F$19*NR_Reihen_Veränderungsraten!Q23,) -> 0.5254968327 | R145: =IF($C145=1,'IN_Definition Index'!$F$19*NR_Reihen_Veränderungsraten!R23,) -> 0.5330553885 | S145: =IF($C145=1,'IN_Definition Index'!$F$19*NR_Reihen_Veränderungsraten!S23,) -> 0.4962912177 | T145: =IF($C145=1,'IN_Definition Index'!$F$19*NR_Reihen_Veränderungsraten!T23,) -> 0.4791757868 | U145: =IF($C145=1,'IN_Definition Index'!$F$19*NR_Reihen_Veränderungsraten!U23,) -> 0.4498431093 | V145: =IF($C145=1,'IN_Definition Index'!$F$19*NR_Reihen_Veränderungsraten!V23,) -> 0.5388800305 | W145: =IF($C145=1,'IN_Definition Index'!$F$19*NR_Reihen_Veränderungsraten!W23,) -> 0.4882208288 | X145: =IF($C145=1,'IN_Definition Index'!$F$19*NR_Reihen_Veränderungsraten!X23,) -> 0.496156549 | Y145: =IF($C145=1,'IN_Definition Index'!$F$19*NR_Reihen_Veränderungsraten!Y23,) -> 0.5088236234 | Z145: =IF($C145=1,'IN_Definition Index'!$F$19*NR_Reihen_Veränderungsraten!Z23,) -> 0.496453023 | AA145: =IF($C145=1,'IN_Definition Index'!$F$19*NR_Reihen_Veränderungsraten!AA23,) -> 0.4734027272 | AB145: =IF($C145=1,'IN_Definition Index'!$F$19*NR_Reihen_Veränderungsraten!AB23,) -> 0.4987271845 | AC145: =IF($C145=1,'IN_Definition Index'!$F$19*NR_Reihen_Veränderungsraten!AC23,) -> 0.5033760647 | AD145: =IF($C145=1,'IN_Definition Index'!$F$19*NR_Reihen_Veränderungsraten!AD23,) -> 0.5069832606 | AE145: =IF($C145=1,'IN_Definition Index'!$F$19*NR_Reihen_Veränderungsraten!AE23,) ->  | AF145: =IF($C145=1,'IN_Definition Index'!$F$19*NR_Reihen_Veränderungsraten!AF23,) -> 
A146: J61 | B146: Telekommunikation | C146: ='IN_Definition Index'!F12 -> 0 | D146: =IF($C146=1,'IN_Definition Index'!$F$19*NR_Reihen_Veränderungsraten!D24,) -> 0 | E146: =IF($C146=1,'IN_Definition Index'!$F$19*NR_Reihen_Veränderungsraten!E24,) -> 0 | F146: =IF($C146=1,'IN_Definition Index'!$F$19*NR_Reihen_Veränderungsraten!F24,) -> 0 | G146: =IF($C146=1,'IN_Definition Index'!$F$19*NR_Reihen_Veränderungsraten!G24,) -> 0 | H146: =IF($C146=1,'IN_Definition Index'!$F$19*NR_Reihen_Veränderungsraten!H24,) -> 0 | I146: =IF($C146=1,'IN_Definition Index'!$F$19*NR_Reihen_Veränderungsraten!I24,) -> 0 | J146: =IF($C146=1,'IN_Definition Index'!$F$19*NR_Reihen_Veränderungsraten!J24,) -> 0 | K146: =IF($C146=1,'IN_Definition Index'!$F$19*NR_Reihen_Veränderungsraten!K24,) -> 0 | L146: =IF($C146=1,'IN_Definition Index'!$F$19*NR_Reihen_Veränderungsraten!L24,) -> 0 | M146: =IF($C146=1,'IN_Definition Index'!$F$19*NR_Reihen_Veränderungsraten!M24,) -> 0 | N146: =IF($C146=1,'IN_Definition Index'!$F$19*NR_Reihen_Veränderungsraten!N24,) -> 0 | O146: =IF($C146=1,'IN_Definition Index'!$F$19*NR_Reihen_Veränderungsraten!O24,) -> 0 | P146: =IF($C146=1,'IN_Definition Index'!$F$19*NR_Reihen_Veränderungsraten!P24,) -> 0 | Q146: =IF($C146=1,'IN_Definition Index'!$F$19*NR_Reihen_Veränderungsraten!Q24,) -> 0 | R146: =IF($C146=1,'IN_Definition Index'!$F$19*NR_Reihen_Veränderungsraten!R24,) -> 0 | S146: =IF($C146=1,'IN_Definition Index'!$F$19*NR_Reihen_Veränderungsraten!S24,) -> 0 | T146: =IF($C146=1,'IN_Definition Index'!$F$19*NR_Reihen_Veränderungsraten!T24,) -> 0 | U146: =IF($C146=1,'IN_Definition Index'!$F$19*NR_Reihen_Veränderungsraten!U24,) -> 0 | V146: =IF($C146=1,'IN_Definition Index'!$F$19*NR_Reihen_Veränderungsraten!V24,) -> 0 | W146: =IF($C146=1,'IN_Definition Index'!$F$19*NR_Reihen_Veränderungsraten!W24,) -> 0 | X146: =IF($C146=1,'IN_Definition Index'!$F$19*NR_Reihen_Veränderungsraten!X24,) -> 0 | Y146: =IF($C146=1,'IN_Definition Index'!$F$19*NR_Reihen_Veränderungsraten!Y24,) -> 0 | Z146: =IF($C146=1,'IN_Definition Index'!$F$19*NR_Reihen_Veränderungsraten!Z24,) -> 0 | AA146: =IF($C146=1,'IN_Definition Index'!$F$19*NR_Reihen_Veränderungsraten!AA24,) -> 0 | AB146: =IF($C146=1,'IN_Definition Index'!$F$19*NR_Reihen_Veränderungsraten!AB24,) -> 0 | AC146: =IF($C146=1,'IN_Definition Index'!$F$19*NR_Reihen_Veränderungsraten!AC24,) -> 0 | AD146: =IF($C146=1,'IN_Definition Index'!$F$19*NR_Reihen_Veränderungsraten!AD24,) -> 0 | AE146: =IF($C146=1,'IN_Definition Index'!$F$19*NR_Reihen_Veränderungsraten!AE24,) -> 0 | AF146: =IF($C146=1,'IN_Definition Index'!$F$19*NR_Reihen_Veränderungsraten!AF24,) -> 0
A147: J62-01 | B147: IT- und Informationsdienstleister | C147: ='IN_Definition Index'!F13 -> 0 | D147: =IF($C147=1,'IN_Definition Index'!$F$19*NR_Reihen_Veränderungsraten!D25,) -> 0 | E147: =IF($C147=1,'IN_Definition Index'!$F$19*NR_Reihen_Veränderungsraten!E25,) -> 0 | F147: =IF($C147=1,'IN_Definition Index'!$F$19*NR_Reihen_Veränderungsraten!F25,) -> 0 | G147: =IF($C147=1,'IN_Definition Index'!$F$19*NR_Reihen_Veränderungsraten!G25,) -> 0 | H147: =IF($C147=1,'IN_Definition Index'!$F$19*NR_Reihen_Veränderungsraten!H25,) -> 0 | I147: =IF($C147=1,'IN_Definition Index'!$F$19*NR_Reihen_Veränderungsraten!I25,) -> 0 | J147: =IF($C147=1,'IN_Definition Index'!$F$19*NR_Reihen_Veränderungsraten!J25,) -> 0 | K147: =IF($C147=1,'IN_Definition Index'!$F$19*NR_Reihen_Veränderungsraten!K25,) -> 0 | L147: =IF($C147=1,'IN_Definition Index'!$F$19*NR_Reihen_Veränderungsraten!L25,) -> 0 | M147: =IF($C147=1,'IN_Definition Index'!$F$19*NR_Reihen_Veränderungsraten!M25,) -> 0 | N147: =IF($C147=1,'IN_Definition Index'!$F$19*NR_Reihen_Veränderungsraten!N25,) -> 0 | O147: =IF($C147=1,'IN_Definition Index'!$F$19*NR_Reihen_Veränderungsraten!O25,) -> 0 | P147: =IF($C147=1,'IN_Definition Index'!$F$19*NR_Reihen_Veränderungsraten!P25,) -> 0 | Q147: =IF($C147=1,'IN_Definition Index'!$F$19*NR_Reihen_Veränderungsraten!Q25,) -> 0 | R147: =IF($C147=1,'IN_Definition Index'!$F$19*NR_Reihen_Veränderungsraten!R25,) -> 0 | S147: =IF($C147=1,'IN_Definition Index'!$F$19*NR_Reihen_Veränderungsraten!S25,) -> 0 | T147: =IF($C147=1,'IN_Definition Index'!$F$19*NR_Reihen_Veränderungsraten!T25,) -> 0 | U147: =IF($C147=1,'IN_Definition Index'!$F$19*NR_Reihen_Veränderungsraten!U25,) -> 0 | V147: =IF($C147=1,'IN_Definition Index'!$F$19*NR_Reihen_Veränderungsraten!V25,) -> 0 | W147: =IF($C147=1,'IN_Definition Index'!$F$19*NR_Reihen_Veränderungsraten!W25,) -> 0 | X147: =IF($C147=1,'IN_Definition Index'!$F$19*NR_Reihen_Veränderungsraten!X25,) -> 0 | Y147: =IF($C147=1,'IN_Definition Index'!$F$19*NR_Reihen_Veränderungsraten!Y25,) -> 0 | Z147: =IF($C147=1,'IN_Definition Index'!$F$19*NR_Reihen_Veränderungsraten!Z25,) -> 0 | AA147: =IF($C147=1,'IN_Definition Index'!$F$19*NR_Reihen_Veränderungsraten!AA25,) -> 0 | AB147: =IF($C147=1,'IN_Definition Index'!$F$19*NR_Reihen_Veränderungsraten!AB25,) -> 0 | AC147: =IF($C147=1,'IN_Definition Index'!$F$19*NR_Reihen_Veränderungsraten!AC25,) -> 0 | AD147: =IF($C147=1,'IN_Definition Index'!$F$19*NR_Reihen_Veränderungsraten!AD25,) -> 0 | AE147: =IF($C147=1,'IN_Definition Index'!$F$19*NR_Reihen_Veränderungsraten!AE25,) -> 0 | AF147: =IF($C147=1,'IN_Definition Index'!$F$19*NR_Reihen_Veränderungsraten!AF25,) -> 0
A148: M69-01 | B148: Unternehmensnahe Beratungsleistungen | C148: ='IN_Definition Index'!F14 -> 0 | D148: =IF($C148=1,'IN_Definition Index'!$F$19*NR_Reihen_Veränderungsraten!D26,) -> 0 | E148: =IF($C148=1,'IN_Definition Index'!$F$19*NR_Reihen_Veränderungsraten!E26,) -> 0 | F148: =IF($C148=1,'IN_Definition Index'!$F$19*NR_Reihen_Veränderungsraten!F26,) -> 0 | G148: =IF($C148=1,'IN_Definition Index'!$F$19*NR_Reihen_Veränderungsraten!G26,) -> 0 | H148: =IF($C148=1,'IN_Definition Index'!$F$19*NR_Reihen_Veränderungsraten!H26,) -> 0 | I148: =IF($C148=1,'IN_Definition Index'!$F$19*NR_Reihen_Veränderungsraten!I26,) -> 0 | J148: =IF($C148=1,'IN_Definition Index'!$F$19*NR_Reihen_Veränderungsraten!J26,) -> 0 | K148: =IF($C148=1,'IN_Definition Index'!$F$19*NR_Reihen_Veränderungsraten!K26,) -> 0 | L148: =IF($C148=1,'IN_Definition Index'!$F$19*NR_Reihen_Veränderungsraten!L26,) -> 0 | M148: =IF($C148=1,'IN_Definition Index'!$F$19*NR_Reihen_Veränderungsraten!M26,) -> 0 | N148: =IF($C148=1,'IN_Definition Index'!$F$19*NR_Reihen_Veränderungsraten!N26,) -> 0 | O148: =IF($C148=1,'IN_Definition Index'!$F$19*NR_Reihen_Veränderungsraten!O26,) -> 0 | P148: =IF($C148=1,'IN_Definition Index'!$F$19*NR_Reihen_Veränderungsraten!P26,) -> 0 | Q148: =IF($C148=1,'IN_Definition Index'!$F$19*NR_Reihen_Veränderungsraten!Q26,) -> 0 | R148: =IF($C148=1,'IN_Definition Index'!$F$19*NR_Reihen_Veränderungsraten!R26,) -> 0 | S148: =IF($C148=1,'IN_Definition Index'!$F$19*NR_Reihen_Veränderungsraten!S26,) -> 0 | T148: =IF($C148=1,'IN_Definition Index'!$F$19*NR_Reihen_Veränderungsraten!T26,) -> 0 | U148: =IF($C148=1,'IN_Definition Index'!$F$19*NR_Reihen_Veränderungsraten!U26,) -> 0 | V148: =IF($C148=1,'IN_Definition Index'!$F$19*NR_Reihen_Veränderungsraten!V26,) -> 0 | W148: =IF($C148=1,'IN_Definition Index'!$F$19*NR_Reihen_Veränderungsraten!W26,) -> 0 | X148: =IF($C148=1,'IN_Definition Index'!$F$19*NR_Reihen_Veränderungsraten!X26,) -> 0 | Y148: =IF($C148=1,'IN_Definition Index'!$F$19*NR_Reihen_Veränderungsraten!Y26,) -> 0 | Z148: =IF($C148=1,'IN_Definition Index'!$F$19*NR_Reihen_Veränderungsraten!Z26,) -> 0 | AA148: =IF($C148=1,'IN_Definition Index'!$F$19*NR_Reihen_Veränderungsraten!AA26,) -> 0 | AB148: =IF($C148=1,'IN_Definition Index'!$F$19*NR_Reihen_Veränderungsraten!AB26,) -> 0 | AC148: =IF($C148=1,'IN_Definition Index'!$F$19*NR_Reihen_Veränderungsraten!AC26,) -> 0 | AD148: =IF($C148=1,'IN_Definition Index'!$F$19*NR_Reihen_Veränderungsraten!AD26,) -> 0 | AE148: =IF($C148=1,'IN_Definition Index'!$F$19*NR_Reihen_Veränderungsraten!AE26,) -> 0 | AF148: =IF($C148=1,'IN_Definition Index'!$F$19*NR_Reihen_Veränderungsraten!AF26,) -> 0
